Workbook

Sheet Contents
A2: Powerlink Capex Model, Revenue Reset 2028-32
B4: This capex model brings together various capex forecasts and project information, to calculate the overall capex forecast for the next regulatory control period.
B5: Inputs are provided from the trend based model and, bottom up project information is included for specific projects, and for current projects. The information is listed on of (330) "project sheets". Totals are calculated from these project sheets, with output reports utilised by the PTRM, RIN reports, and forecast reporting. Adjustments to the forecast are made to ensure that the top down forecast aligns with approved projects and prior year expenditure.
I8: Capex Model
E9: Inputs | N9: Outputs
D11: Motor Vehicle Disposals
D14: CPI, Escalation Rates | G14: Project Sheets
G15: P_1
G16: P_25
D17: Cost Allocation | G17: P_50 | N17: Totals by Project | R17: Forecast Reporting
G18: P_75 | J18: Calculations | N18: Totals by Driver
G19: P_100 | J19: (subtotals for reporting) | N19: PTRM Input | R19: PTRM Model
D20: Data Lookups | G20: P_150 | N20: RIN 2.1.1
G21: P_200 | N21: RIN 2.2.1
G22: P_250 | N22: RIN 2.3.4 | R22: RIN Reports
G23: P_300 | N23: RIN 2.6.1
B24: Trend Based Forecasts | D24: Project Data | G24: P_330
B25: Bottom Up Project Forecasts | D25: Project
B26: Current Projects | D26: Project Details
I32: Data Checks | K32: Overall Data Check | M32: =Checks!C4 -> TRUE
F34: Total In Period Incurred Expenditure, Real 26/27, $m, (net of disposals) | M34: =+'Totals by Driver'!AB27 -> 2499.485641

Sheet Inputs---->
A1: Contents

Sheet Input Rates
A1: Contents
B3: Unit Rates
B5: Conversion | C5: 2025 | D5: 2026 | E5: 2027 | F5: 2028 | G5: 2029 | H5: 2030 | I5: 2031 | J5: 2032
B6: CPI | C6: 0.0242 | D6: 0.033 | E6: 0.032 | F6: 0.02599975634 | G6: 0.02599975634 | H6: 0.02599975634 | I6: 0.02599975634 | J6: 0.02599975634
B7: Internal Labour Escalation real | C7: 0 | D7: 0.0139673532 | E7: 0.01143751461 | F7: 0.01184370411 | G7: 0.01419625682 | H7: 0.01588864321 | I7: 0.01496845473 | J7: 0.01287983662
B8: External Labour Escalation real | C8: 0 | D8: 0.005655649415 | E8: 0.007072573862 | F8: 0.00961535774 | G8: 0.01275508575 | H8: 0.01475013849 | I8: 0.0114351331 | J8: 0.00911058442
B10: 1/2 CPI | C10: =((1+C6)^0.5)-1 -> 0.01202766761 | D10: 0.01636607578 | E10: 0.01587400794 | F10: 0.01291646069 | G10: 0.01291646069 | H10: 0.01291646069 | I10: 0.01291646069 | J10: 0.01291646069
B11: 1/2 Internal Labour Escalation | D11: =((D7+1)^0.5)-1 -> 0.006959459563 | E11: 0.005702498062 | F11: 0.005904420961 | G11: 0.007073113941 | H11: 0.007913013714 | I11: 0.007456428203 | J11: 0.006419314511
B12: 1/2 External Labour Escalation | D12: 0.002823837678 | E12: 0.003530056282 | F12: =((F8+1)^0.5)-1 -> 0.004796177212 | G12: 0.006357335022 | H12: 0.007348072163 | I12: 0.005701314058 | J12: 0.004544963862
B14: Convert MY Real 26/27 to MY Nominal - Non Labour | D14: 1 | E14: =+Conversion[[#This Row],[2026]]*(1+E6) -> 1.032 | F14: =+Conversion[[#This Row],[2027]]*(1+F6) -> 1.058831749 | G14: =+Conversion[[#This Row],[2028]]*(1+G6) -> 1.086361116 | H14: =+Conversion[[#This Row],[2029]]*(1+H6) -> 1.11460624 | I14: =+Conversion[[#This Row],[2030]]*(1+I6) -> 1.143585731 | J14: =+Conversion[[#This Row],[2031]]*(1+J6) -> 1.173318681
B15: Convert MY Real 26/27 to MY Nominal - Internal Labour | D15: 1 | E15: =D15*(1+E6)*(1+D11)*(1+E11) -> 1.045108097 | F15: 1.084762631 | G15: 1.127456233 | H15: 1.174170064 | I15: 1.22328482 | J15: 1.272565307
B16: Convert MY Real 26/27 to MY Nominal - External Labour | D16: 1 | E16: =D16*(1+E6)*(1+D12)*(1+E12) -> 1.038567506 | F16: 1.074460234 | G16: 1.114725137 | H16: 1.159436127 | I16: 1.205154324 | J16: 1.249189483
B18: Convert MY Nominal to EOY Real 26/27 | C18: =Conversion[[#This Row],[2026]]*(1+C6)*(1+D10)/(1+C10) -> 1.078878167 | D18: =Conversion[[#This Row],[2027]]*(1+D6)*(1+E10)/(1+D10) -> 1.04888979 | E18: =1+E10 -> 1.015874008 | F18: =(Conversion[[#This Row],[2027]]*(1+E10))/((1+E6)*(1+F10)) -> 0.9872482468 | G18: =(Conversion[[#This Row],[2028]]*(1+F10))/((1+F6)*(1+G10)) -> 0.9622304886 | H18: =(Conversion[[#This Row],[2029]]*(1+G10))/((1+G6)*(1+H10)) -> 0.9378467028 | I18: =(Conversion[[#This Row],[2030]]*(1+H10))/((1+H6)*(1+I10)) -> 0.9140808241 | J18: =(Conversion[[#This Row],[2031]]*(1+I10))/((1+I6)*(1+J10)) -> 0.8909171942
B19: Convert EOY Real 26/27 to MY Nominal - CPI Only | C19: =1/C18 -> 0.9268887168 | D19: 0.9533890113 | E19: 0.9843740387 | F19: 1.012916461 | G19: 1.039252042 | H19: 1.066272342 | I19: =1/I18 -> 1.093995163 | J19: =1/J18 -> 1.12243877

Sheet Input Project
A1: Contents | G1: As Incurred | I1: Nominal
G2: Project Close | I2: Real2026
B3: Project Data
B4: This sheet describes information that is common for a "project" or a class of projects (ie: output from repex model) | K4: Asset Class Breakdown | AE4: For Non-load driven project categories, 2017 and later
F5: Formula | H5: Formula | J5: Formula | K5: LinesOH | L5: LinesUG | M5: LinesRefit | N5: SubsPrimary | O5: SubsSecondary | P5: Communications | Q5: CommsCivil | R5: SwitchgCentres | S5: Land | T5: Easement | U5: CommericalBuildings | V5: IT | W5: Office Furniure | X5: OfficeMachines | Y5: MV | Z5: MovablePlant | AA5: Inhouse Software | AB5: Formula | AC5: Project Type | AD5: Formula | AE5: Used to check forecast with approved projects.
A6: ID | B6: Project Name | C6: Type | D6: Notes | E6: PQ Project Driver | F6: Check True Project Driver | G6: Capitalisation | H6: Capitalisation Check | I6: RepexDollarsBasis | J6: Check Repex Dollar Basis | K6: LinesOH | L6: LinesUG | M6: LinesRefit | N6: SubsPrimary | O6: SubsSecondary | P6: Communications | Q6: CommsCivil | R6: SwitchgCentres | S6: Land | T6: Easement | U6: CommericalBuildings | V6: IT | W6: Office | X6: OfficeMachines | Y6: MV | Z6: MovablePlant | AA6: Inhouse Software | AB6: Check Asset Class Breakdown | AC6: DMDLCCOCSplitType | AD6: Check True RIN Splits Type | AE6: Specific Approved Project | AF6: OnlyAssetClassAllocationIsToBeUsed | AG6: Project Driver
A7: 1 | B7: Tools | C7: Future - Non Network - Trend | E7: Tools | F7: =ISNUMBER(MATCH(ProjectData[[#This Row],[PQ Project Driver]],Lookup_ProjectDrivers,0)) -> TRUE | G7: As Incurred | H7: =ISNUMBER(MATCH(ProjectData[[#This Row],[Capitalisation]],Lookup_CapitalisationTypes,0)) -> TRUE | I7: Real2026 | J7: =ISNUMBER(MATCH(ProjectData[[#This Row],[RepexDollarsBasis]],Lookup_RepexDollarBasis,0)) -> TRUE | K7: 0 | L7: 0 | M7: 0 | N7: 0 | O7: 0 | P7: 0 | Q7: 0 | R7: 0 | S7: 0 | T7: 0 | U7: 0 | V7: 0 | W7: 0 | X7: 0 | Y7: 0 | Z7: 1 | AA7: 0 | AB7: =OR(SUM(ProjectData[[#This Row],[LinesOH]:[Inhouse Software]])=1,ProjectData[[#This Row],[OnlyAssetClassAllocationIsToBeUsed]]=TRUE) -> TRUE | AC7: Non Network - Tools | AD7: =ISNUMBER(MATCH(ProjectData[[#This Row],[DMDLCCOCSplitType]],CostAllocationSplit[Type of Project],0)) -> TRUE | AE7: FALSE | AF7: FALSE | AG7: Non Network - Tools
A8: =+A7+1 -> 2 | B8: MV | C8: Future - Non Network | E8: MV | F8: =ISNUMBER(MATCH(ProjectData[[#This Row],[PQ Project Driver]],Lookup_ProjectDrivers,0)) -> TRUE | G8: As Incurred | H8: =ISNUMBER(MATCH(ProjectData[[#This Row],[Capitalisation]],Lookup_CapitalisationTypes,0)) -> TRUE | I8: Real2026 | J8: =ISNUMBER(MATCH(ProjectData[[#This Row],[RepexDollarsBasis]],Lookup_RepexDollarBasis,0)) -> TRUE | K8: 0 | L8: 0 | M8: 0 | N8: 0 | O8: 0 | P8: 0 | Q8: 0 | R8: 0 | S8: 0 | T8: 0 | U8: 0 | V8: 0 | W8: 0 | X8: 0 | Y8: 1 | Z8: 0 | AA8: 0 | AB8: =OR(SUM(ProjectData[[#This Row],[LinesOH]:[Inhouse Software]])=1,ProjectData[[#This Row],[OnlyAssetClassAllocationIsToBeUsed]]=TRUE) -> TRUE | AC8: Non Network - MV | AD8: =ISNUMBER(MATCH(ProjectData[[#This Row],[DMDLCCOCSplitType]],CostAllocationSplit[Type of Project],0)) -> TRUE | AE8: FALSE | AF8: FALSE | AG8: Non Network - MV
A9: =+A8+1 -> 3 | B9: Buildings - Sustaining | C9: Future - Non Network - Trend | E9: Buildings | F9: =ISNUMBER(MATCH(ProjectData[[#This Row],[PQ Project Driver]],Lookup_ProjectDrivers,0)) -> TRUE | G9: As Incurred | H9: =ISNUMBER(MATCH(ProjectData[[#This Row],[Capitalisation]],Lookup_CapitalisationTypes,0)) -> TRUE | I9: Real2026 | J9: =ISNUMBER(MATCH(ProjectData[[#This Row],[RepexDollarsBasis]],Lookup_RepexDollarBasis,0)) -> TRUE | K9: 0 | L9: 0 | M9: 0 | N9: 0 | O9: 0 | P9: 0 | Q9: 0 | R9: 0 | S9: 0 | T9: 0 | U9: 1 | V9: 0 | W9: 0 | X9: 0 | Y9: 0 | Z9: 0 | AA9: 0 | AB9: =OR(SUM(ProjectData[[#This Row],[LinesOH]:[Inhouse Software]])=1,ProjectData[[#This Row],[OnlyAssetClassAllocationIsToBeUsed]]=TRUE) -> TRUE | AC9: Non Network - Buildings | AD9: =ISNUMBER(MATCH(ProjectData[[#This Row],[DMDLCCOCSplitType]],CostAllocationSplit[Type of Project],0)) -> TRUE | AE9: FALSE | AF9: FALSE | AG9: Non Network - Buildings
A10: 4 | B10: Buildings - Virginia Uplift | C10: Future - Non Network | E10: Buildings | F10: =ISNUMBER(MATCH(ProjectData[[#This Row],[PQ Project Driver]],Lookup_ProjectDrivers,0)) -> TRUE | G10: Project Close | H10: =ISNUMBER(MATCH(ProjectData[[#This Row],[Capitalisation]],Lookup_CapitalisationTypes,0)) -> TRUE | I10: Real2026 | J10: =ISNUMBER(MATCH(ProjectData[[#This Row],[RepexDollarsBasis]],Lookup_RepexDollarBasis,0)) -> TRUE | K10: 0 | L10: 0 | M10: 0 | N10: 0 | O10: 0 | P10: 0 | Q10: 0 | R10: 0 | S10: 0 | T10: 0 | U10: 1 | V10: 0 | W10: 0 | X10: 0 | Y10: 0 | Z10: 0 | AA10: 0 | AB10: =OR(SUM(ProjectData[[#This Row],[LinesOH]:[Inhouse Software]])=1,ProjectData[[#This Row],[OnlyAssetClassAllocationIsToBeUsed]]=TRUE) -> TRUE | AC10: Non Network - Buildings | AD10: =ISNUMBER(MATCH(ProjectData[[#This Row],[DMDLCCOCSplitType]],CostAllocationSplit[Type of Project],0)) -> TRUE | AE10: FALSE | AF10: FALSE | AG10: Non Network - Buildings
A11: 5 | B11: Buildings - New Depot | C11: Future - Non Network | E11: Buildings | F11: =ISNUMBER(MATCH(ProjectData[[#This Row],[PQ Project Driver]],Lookup_ProjectDrivers,0)) -> TRUE | G11: Project Close | H11: =ISNUMBER(MATCH(ProjectData[[#This Row],[Capitalisation]],Lookup_CapitalisationTypes,0)) -> TRUE | I11: Real2026 | J11: =ISNUMBER(MATCH(ProjectData[[#This Row],[RepexDollarsBasis]],Lookup_RepexDollarBasis,0)) -> TRUE | K11: 0 | L11: 0 | M11: 0 | N11: 0 | O11: 0 | P11: 0 | Q11: 0 | R11: 0 | S11: 0 | T11: 0 | U11: 1 | V11: 0 | W11: 0 | X11: 0 | Y11: 0 | Z11: 0 | AA11: 0 | AB11: =OR(SUM(ProjectData[[#This Row],[LinesOH]:[Inhouse Software]])=1,ProjectData[[#This Row],[OnlyAssetClassAllocationIsToBeUsed]]=TRUE) -> TRUE | AC11: Non Network - Buildings | AD11: =ISNUMBER(MATCH(ProjectData[[#This Row],[DMDLCCOCSplitType]],CostAllocationSplit[Type of Project],0)) -> TRUE | AE11: FALSE | AF11: FALSE | AG11: Non Network - Buildings
A12: 6 | B12: SOCI Pass through Buildings | C12: Future - Non Network | E12: Buildings | F12: =ISNUMBER(MATCH(ProjectData[[#This Row],[PQ Project Driver]],Lookup_ProjectDrivers,0)) -> TRUE | G12: Project Close | H12: =ISNUMBER(MATCH(ProjectData[[#This Row],[Capitalisation]],Lookup_CapitalisationTypes,0)) -> TRUE | I12: Real2026 | J12: =ISNUMBER(MATCH(ProjectData[[#This Row],[RepexDollarsBasis]],Lookup_RepexDollarBasis,0)) -> TRUE | K12: 0 | L12: 0 | M12: 0 | N12: 0 | O12: 0 | P12: 0 | Q12: 0 | R12: 0 | S12: 0 | T12: 0 | U12: 1 | V12: 0 | W12: 0 | X12: 0 | Y12: 0 | Z12: 0 | AA12: 0 | AB12: =OR(SUM(ProjectData[[#This Row],[LinesOH]:[Inhouse Software]])=1,ProjectData[[#This Row],[OnlyAssetClassAllocationIsToBeUsed]]=TRUE) -> TRUE | AC12: Non Network - Buildings | AD12: =ISNUMBER(MATCH(ProjectData[[#This Row],[DMDLCCOCSplitType]],CostAllocationSplit[Type of Project],0)) -> TRUE | AE12: FALSE | AF12: FALSE | AG12: Non Network - Buildings
A13: 7 | B13: IT - Cyber Security | C13: Future - Non Network | E13: IT | F13: =ISNUMBER(MATCH(ProjectData[[#This Row],[PQ Project Driver]],Lookup_ProjectDrivers,0)) -> TRUE | G13: As Incurred | H13: =ISNUMBER(MATCH(ProjectData[[#This Row],[Capitalisation]],Lookup_CapitalisationTypes,0)) -> TRUE | I13: Real2026 | J13: =ISNUMBER(MATCH(ProjectData[[#This Row],[RepexDollarsBasis]],Lookup_RepexDollarBasis,0)) -> TRUE | K13: 0 | L13: 0 | M13: 0 | N13: 0 | O13: 0 | P13: 0 | Q13: 0 | R13: 0 | S13: 0 | T13: 0 | U13: 0 | V13: 0.62 | W13: 0 | X13: 0 | Y13: 0 | Z13: 0 | AA13: 0.38 | AB13: =OR(SUM(ProjectData[[#This Row],[LinesOH]:[Inhouse Software]])=1,ProjectData[[#This Row],[OnlyAssetClassAllocationIsToBeUsed]]=TRUE) -> TRUE | AC13: Non Network - IT - Non-recurrent | AD13: =ISNUMBER(MATCH(ProjectData[[#This Row],[DMDLCCOCSplitType]],CostAllocationSplit[Type of Project],0)) -> TRUE | AE13: FALSE | AF13: FALSE | AG13: Non Network - IT
A14: 8 | B14: IT - EAM | C14: Future - Non Network | E14: IT | F14: =ISNUMBER(MATCH(ProjectData[[#This Row],[PQ Project Driver]],Lookup_ProjectDrivers,0)) -> TRUE | G14: As Incurred | H14: =ISNUMBER(MATCH(ProjectData[[#This Row],[Capitalisation]],Lookup_CapitalisationTypes,0)) -> TRUE | I14: Real2026 | J14: =ISNUMBER(MATCH(ProjectData[[#This Row],[RepexDollarsBasis]],Lookup_RepexDollarBasis,0)) -> TRUE | K14: 0 | L14: 0 | M14: 0 | N14: 0 | O14: 0 | P14: 0 | Q14: 0 | R14: 0 | S14: 0 | T14: 0 | U14: 0 | V14: 0.62 | W14: 0 | X14: 0 | Y14: 0 | Z14: 0 | AA14: 0.38 | AB14: =OR(SUM(ProjectData[[#This Row],[LinesOH]:[Inhouse Software]])=1,ProjectData[[#This Row],[OnlyAssetClassAllocationIsToBeUsed]]=TRUE) -> TRUE | AC14: Non Network - IT - Non-recurrent | AD14: =ISNUMBER(MATCH(ProjectData[[#This Row],[DMDLCCOCSplitType]],CostAllocationSplit[Type of Project],0)) -> TRUE | AE14: FALSE | AF14: FALSE | AG14: Non Network - IT
A15: 9 | B15: IT - Safety & Environment | C15: Future - Non Network | E15: IT | F15: =ISNUMBER(MATCH(ProjectData[[#This Row],[PQ Project Driver]],Lookup_ProjectDrivers,0)) -> TRUE | G15: As Incurred | H15: =ISNUMBER(MATCH(ProjectData[[#This Row],[Capitalisation]],Lookup_CapitalisationTypes,0)) -> TRUE | I15: Real2026 | J15: =ISNUMBER(MATCH(ProjectData[[#This Row],[RepexDollarsBasis]],Lookup_RepexDollarBasis,0)) -> TRUE | K15: 0 | L15: 0 | M15: 0 | N15: 0 | O15: 0 | P15: 0 | Q15: 0 | R15: 0 | S15: 0 | T15: 0 | U15: 0 | V15: 0.62 | W15: 0 | X15: 0 | Y15: 0 | Z15: 0 | AA15: 0.38 | AB15: =OR(SUM(ProjectData[[#This Row],[LinesOH]:[Inhouse Software]])=1,ProjectData[[#This Row],[OnlyAssetClassAllocationIsToBeUsed]]=TRUE) -> TRUE | AC15: Non Network - IT - Non-recurrent | AD15: =ISNUMBER(MATCH(ProjectData[[#This Row],[DMDLCCOCSplitType]],CostAllocationSplit[Type of Project],0)) -> TRUE | AE15: FALSE | AF15: FALSE | AG15: Non Network - IT
A16: 10 | B16: IT - Support and Sustain | C16: Future - Non Network | E16: IT | F16: =ISNUMBER(MATCH(ProjectData[[#This Row],[PQ Project Driver]],Lookup_ProjectDrivers,0)) -> TRUE | G16: As Incurred | H16: =ISNUMBER(MATCH(ProjectData[[#This Row],[Capitalisation]],Lookup_CapitalisationTypes,0)) -> TRUE | I16: Real2026 | J16: =ISNUMBER(MATCH(ProjectData[[#This Row],[RepexDollarsBasis]],Lookup_RepexDollarBasis,0)) -> TRUE | K16: 0 | L16: 0 | M16: 0 | N16: 0 | O16: 0 | P16: 0 | Q16: 0 | R16: 0 | S16: 0 | T16: 0 | U16: 0 | V16: 0.62 | W16: 0 | X16: 0 | Y16: 0 | Z16: 0 | AA16: 0.38 | AB16: =OR(SUM(ProjectData[[#This Row],[LinesOH]:[Inhouse Software]])=1,ProjectData[[#This Row],[OnlyAssetClassAllocationIsToBeUsed]]=TRUE) -> TRUE | AC16: Non Network - IT - Non-recurrent | AD16: =ISNUMBER(MATCH(ProjectData[[#This Row],[DMDLCCOCSplitType]],CostAllocationSplit[Type of Project],0)) -> TRUE | AE16: FALSE | AF16: FALSE | AG16: Non Network - IT
A17: 11 | B17: IT - Recurrent | C17: Future - Non Network | E17: IT | F17: =ISNUMBER(MATCH(ProjectData[[#This Row],[PQ Project Driver]],Lookup_ProjectDrivers,0)) -> TRUE | G17: As Incurred | H17: =ISNUMBER(MATCH(ProjectData[[#This Row],[Capitalisation]],Lookup_CapitalisationTypes,0)) -> TRUE | I17: Real2026 | J17: =ISNUMBER(MATCH(ProjectData[[#This Row],[RepexDollarsBasis]],Lookup_RepexDollarBasis,0)) -> TRUE | K17: 0 | L17: 0 | M17: 0 | N17: 0 | O17: 0 | P17: 0 | Q17: 0 | R17: 0 | S17: 0 | T17: 0 | U17: 0 | V17: 0.62 | W17: 0 | X17: 0 | Y17: 0 | Z17: 0 | AA17: 0.38 | AB17: =OR(SUM(ProjectData[[#This Row],[LinesOH]:[Inhouse Software]])=1,ProjectData[[#This Row],[OnlyAssetClassAllocationIsToBeUsed]]=TRUE) -> TRUE | AC17: Non Network - IT - Software Hardware Refresh | AD17: =ISNUMBER(MATCH(ProjectData[[#This Row],[DMDLCCOCSplitType]],CostAllocationSplit[Type of Project],0)) -> TRUE | AE17: FALSE | AF17: FALSE | AG17: Non Network - IT
A18: 12 | B18: IT - Client Devices | C18: Future - Non Network | E18: IT | F18: =ISNUMBER(MATCH(ProjectData[[#This Row],[PQ Project Driver]],Lookup_ProjectDrivers,0)) -> TRUE | G18: As Incurred | H18: =ISNUMBER(MATCH(ProjectData[[#This Row],[Capitalisation]],Lookup_CapitalisationTypes,0)) -> TRUE | I18: Real2026 | J18: =ISNUMBER(MATCH(ProjectData[[#This Row],[RepexDollarsBasis]],Lookup_RepexDollarBasis,0)) -> TRUE | K18: 0 | L18: 0 | M18: 0 | N18: 0 | O18: 0 | P18: 0 | Q18: 0 | R18: 0 | S18: 0 | T18: 0 | U18: 0 | V18: 0.62 | W18: 0 | X18: 0 | Y18: 0 | Z18: 0 | AA18: 0.38 | AB18: =OR(SUM(ProjectData[[#This Row],[LinesOH]:[Inhouse Software]])=1,ProjectData[[#This Row],[OnlyAssetClassAllocationIsToBeUsed]]=TRUE) -> TRUE | AC18: Non Network - IT - Software Hardware Refresh | AD18: =ISNUMBER(MATCH(ProjectData[[#This Row],[DMDLCCOCSplitType]],CostAllocationSplit[Type of Project],0)) -> TRUE | AE18: FALSE | AF18: FALSE | AG18: Non Network - IT
A19: 13 | B19: CP.02513 OpsWAN and MPLS Replacement RAN 2 | C19: Tier 1 Comms | E19: Replacement | F19: =ISNUMBER(MATCH(ProjectData[[#This Row],[PQ Project Driver]],Lookup_ProjectDrivers,0)) -> TRUE | G19: Project Close | H19: =ISNUMBER(MATCH(ProjectData[[#This Row],[Capitalisation]],Lookup_CapitalisationTypes,0)) -> TRUE | I19: Real2026 | J19: =ISNUMBER(MATCH(ProjectData[[#This Row],[RepexDollarsBasis]],Lookup_RepexDollarBasis,0)) -> TRUE | K19: 0 | L19: 0 | M19: 0 | N19: 0 | O19: 0.11 | P19: 0.89 | Q19: 0 | R19: 0 | S19: 0 | T19: 0 | U19: 0 | V19: 0 | W19: 0 | X19: 0 | Y19: 0 | Z19: 0 | AA19: 0 | AB19: =OR(SUM(ProjectData[[#This Row],[LinesOH]:[Inhouse Software]])=1,ProjectData[[#This Row],[OnlyAssetClassAllocationIsToBeUsed]]=TRUE) -> TRUE | AC19: Telecomms | AD19: =ISNUMBER(MATCH(ProjectData[[#This Row],[DMDLCCOCSplitType]],CostAllocationSplit[Type of Project],0)) -> TRUE | AE19: FALSE | AF19: FALSE | AG19: =+ProjectData[[#This Row],[PQ Project Driver]] -> Replacement
A20: 14 | B20: CP.02514 OpsWAN and MPLS Replacement RAN 3 | C20: Tier 1 Comms | E20: Replacement | F20: =ISNUMBER(MATCH(ProjectData[[#This Row],[PQ Project Driver]],Lookup_ProjectDrivers,0)) -> TRUE | G20: Project Close | H20: =ISNUMBER(MATCH(ProjectData[[#This Row],[Capitalisation]],Lookup_CapitalisationTypes,0)) -> TRUE | I20: Real2026 | J20: =ISNUMBER(MATCH(ProjectData[[#This Row],[RepexDollarsBasis]],Lookup_RepexDollarBasis,0)) -> TRUE | K20: 0 | L20: 0 | M20: 0 | N20: 0 | O20: 0.11 | P20: 0.89 | Q20: 0 | R20: 0 | S20: 0 | T20: 0 | U20: 0 | V20: 0 | W20: 0 | X20: 0 | Y20: 0 | Z20: 0 | AA20: 0 | AB20: =OR(SUM(ProjectData[[#This Row],[LinesOH]:[Inhouse Software]])=1,ProjectData[[#This Row],[OnlyAssetClassAllocationIsToBeUsed]]=TRUE) -> TRUE | AC20: Telecomms | AD20: =ISNUMBER(MATCH(ProjectData[[#This Row],[DMDLCCOCSplitType]],CostAllocationSplit[Type of Project],0)) -> TRUE | AE20: FALSE | AF20: FALSE | AG20: =+ProjectData[[#This Row],[PQ Project Driver]] -> Replacement
A21: 15 | B21: CP.02811 Telecommunication Network Consolidation RAN 2 | C21: Tier 1 Comms | E21: Replacement | F21: =ISNUMBER(MATCH(ProjectData[[#This Row],[PQ Project Driver]],Lookup_ProjectDrivers,0)) -> TRUE | G21: Project Close | H21: =ISNUMBER(MATCH(ProjectData[[#This Row],[Capitalisation]],Lookup_CapitalisationTypes,0)) -> TRUE | I21: Real2026 | J21: =ISNUMBER(MATCH(ProjectData[[#This Row],[RepexDollarsBasis]],Lookup_RepexDollarBasis,0)) -> TRUE | K21: 0 | L21: 0 | M21: 0 | N21: 0 | O21: 0.04 | P21: 0.96 | Q21: 0 | R21: 0 | S21: 0 | T21: 0 | U21: 0 | V21: 0 | W21: 0 | X21: 0 | Y21: 0 | Z21: 0 | AA21: 0 | AB21: =OR(SUM(ProjectData[[#This Row],[LinesOH]:[Inhouse Software]])=1,ProjectData[[#This Row],[OnlyAssetClassAllocationIsToBeUsed]]=TRUE) -> TRUE | AC21: Telecomms | AD21: =ISNUMBER(MATCH(ProjectData[[#This Row],[DMDLCCOCSplitType]],CostAllocationSplit[Type of Project],0)) -> TRUE | AE21: FALSE | AF21: FALSE | AG21: =+ProjectData[[#This Row],[PQ Project Driver]] -> Replacement
A22: 16 | B22: CP.02812 Telecommunication Network Consolidation RAN 3 | C22: Tier 1 Comms | E22: Replacement | F22: =ISNUMBER(MATCH(ProjectData[[#This Row],[PQ Project Driver]],Lookup_ProjectDrivers,0)) -> TRUE | G22: Project Close | H22: =ISNUMBER(MATCH(ProjectData[[#This Row],[Capitalisation]],Lookup_CapitalisationTypes,0)) -> TRUE | I22: Real2026 | J22: =ISNUMBER(MATCH(ProjectData[[#This Row],[RepexDollarsBasis]],Lookup_RepexDollarBasis,0)) -> TRUE | K22: 0 | L22: 0 | M22: 0 | N22: 0 | O22: 0.05 | P22: 0.95 | Q22: 0 | R22: 0 | S22: 0 | T22: 0 | U22: 0 | V22: 0 | W22: 0 | X22: 0 | Y22: 0 | Z22: 0 | AA22: 0 | AB22: =OR(SUM(ProjectData[[#This Row],[LinesOH]:[Inhouse Software]])=1,ProjectData[[#This Row],[OnlyAssetClassAllocationIsToBeUsed]]=TRUE) -> TRUE | AC22: Telecomms | AD22: =ISNUMBER(MATCH(ProjectData[[#This Row],[DMDLCCOCSplitType]],CostAllocationSplit[Type of Project],0)) -> TRUE | AE22: FALSE | AF22: FALSE | AG22: =+ProjectData[[#This Row],[PQ Project Driver]] -> Replacement
A23: 17 | B23: CP.02813 Telecommunication Network Consolidation RAN 4 | C23: Tier 1 Comms | E23: Replacement | F23: =ISNUMBER(MATCH(ProjectData[[#This Row],[PQ Project Driver]],Lookup_ProjectDrivers,0)) -> TRUE | G23: Project Close | H23: =ISNUMBER(MATCH(ProjectData[[#This Row],[Capitalisation]],Lookup_CapitalisationTypes,0)) -> TRUE | I23: Real2026 | J23: =ISNUMBER(MATCH(ProjectData[[#This Row],[RepexDollarsBasis]],Lookup_RepexDollarBasis,0)) -> TRUE | K23: 0 | L23: 0 | M23: 0 | N23: 0 | O23: 0.04 | P23: 0.96 | Q23: 0 | R23: 0 | S23: 0 | T23: 0 | U23: 0 | V23: 0 | W23: 0 | X23: 0 | Y23: 0 | Z23: 0 | AA23: 0 | AB23: =OR(SUM(ProjectData[[#This Row],[LinesOH]:[Inhouse Software]])=1,ProjectData[[#This Row],[OnlyAssetClassAllocationIsToBeUsed]]=TRUE) -> TRUE | AC23: Telecomms | AD23: =ISNUMBER(MATCH(ProjectData[[#This Row],[DMDLCCOCSplitType]],CostAllocationSplit[Type of Project],0)) -> TRUE | AE23: FALSE | AF23: FALSE | AG23: =+ProjectData[[#This Row],[PQ Project Driver]] -> Replacement
A24: 18 | B24: CP.02822 OpsWAN and MPLS Replacement RAN 4 | C24: Tier 1 Comms | E24: Replacement | F24: =ISNUMBER(MATCH(ProjectData[[#This Row],[PQ Project Driver]],Lookup_ProjectDrivers,0)) -> TRUE | G24: Project Close | H24: =ISNUMBER(MATCH(ProjectData[[#This Row],[Capitalisation]],Lookup_CapitalisationTypes,0)) -> TRUE | I24: Real2026 | J24: =ISNUMBER(MATCH(ProjectData[[#This Row],[RepexDollarsBasis]],Lookup_RepexDollarBasis,0)) -> TRUE | K24: 0 | L24: 0 | M24: 0 | N24: 0 | O24: 0.12 | P24: 0.88 | Q24: 0 | R24: 0 | S24: 0 | T24: 0 | U24: 0 | V24: 0 | W24: 0 | X24: 0 | Y24: 0 | Z24: 0 | AA24: 0 | AB24: =OR(SUM(ProjectData[[#This Row],[LinesOH]:[Inhouse Software]])=1,ProjectData[[#This Row],[OnlyAssetClassAllocationIsToBeUsed]]=TRUE) -> TRUE | AC24: Telecomms | AD24: =ISNUMBER(MATCH(ProjectData[[#This Row],[DMDLCCOCSplitType]],CostAllocationSplit[Type of Project],0)) -> TRUE | AE24: FALSE | AF24: FALSE | AG24: =+ProjectData[[#This Row],[PQ Project Driver]] -> Replacement
A25: 19 | B25: CP.01162 Callemondah Substation Reinvestment | C25: Tier 1 | E25: Replacement | F25: =ISNUMBER(MATCH(ProjectData[[#This Row],[PQ Project Driver]],Lookup_ProjectDrivers,0)) -> TRUE | G25: Project Close | H25: =ISNUMBER(MATCH(ProjectData[[#This Row],[Capitalisation]],Lookup_CapitalisationTypes,0)) -> TRUE | I25: Real2026 | J25: =ISNUMBER(MATCH(ProjectData[[#This Row],[RepexDollarsBasis]],Lookup_RepexDollarBasis,0)) -> TRUE | K25: 0.04 | L25: 0 | M25: 0 | N25: 0.58 | O25: 0.35 | P25: 0.03 | Q25: 0 | R25: 0 | S25: 0 | T25: 0 | U25: 0 | V25: 0 | W25: 0 | X25: 0 | Y25: 0 | Z25: 0 | AA25: 0 | AB25: =OR(SUM(ProjectData[[#This Row],[LinesOH]:[Inhouse Software]])=1,ProjectData[[#This Row],[OnlyAssetClassAllocationIsToBeUsed]]=TRUE) -> TRUE | AC25: Primary Plant - Bay | AD25: =ISNUMBER(MATCH(ProjectData[[#This Row],[DMDLCCOCSplitType]],CostAllocationSplit[Type of Project],0)) -> TRUE | AE25: FALSE | AF25: FALSE | AG25: =+ProjectData[[#This Row],[PQ Project Driver]] -> Replacement
A26: 20 | B26: CP.01636 Wandoo Substation Reinvestment | C26: Tier 1 | E26: Replacement | F26: =ISNUMBER(MATCH(ProjectData[[#This Row],[PQ Project Driver]],Lookup_ProjectDrivers,0)) -> TRUE | G26: Project Close | H26: =ISNUMBER(MATCH(ProjectData[[#This Row],[Capitalisation]],Lookup_CapitalisationTypes,0)) -> TRUE | I26: Real2026 | J26: =ISNUMBER(MATCH(ProjectData[[#This Row],[RepexDollarsBasis]],Lookup_RepexDollarBasis,0)) -> TRUE | K26: 0 | L26: 0 | M26: 0 | N26: 0.61 | O26: 0.37 | P26: 0.02 | Q26: 0 | R26: 0 | S26: 0 | T26: 0 | U26: 0 | V26: 0 | W26: 0 | X26: 0 | Y26: 0 | Z26: 0 | AA26: 0 | AB26: =OR(SUM(ProjectData[[#This Row],[LinesOH]:[Inhouse Software]])=1,ProjectData[[#This Row],[OnlyAssetClassAllocationIsToBeUsed]]=TRUE) -> TRUE | AC26: Primary Plant - Bay | AD26: =ISNUMBER(MATCH(ProjectData[[#This Row],[DMDLCCOCSplitType]],CostAllocationSplit[Type of Project],0)) -> TRUE | AE26: FALSE | AF26: FALSE | AG26: =+ProjectData[[#This Row],[PQ Project Driver]] -> Replacement
A27: 21 | B27: CP.01921 Coppabella Substation Reinvestment | C27: Tier 1 | E27: Replacement | F27: =ISNUMBER(MATCH(ProjectData[[#This Row],[PQ Project Driver]],Lookup_ProjectDrivers,0)) -> TRUE | G27: Project Close | H27: =ISNUMBER(MATCH(ProjectData[[#This Row],[Capitalisation]],Lookup_CapitalisationTypes,0)) -> TRUE | I27: Real2026 | J27: =ISNUMBER(MATCH(ProjectData[[#This Row],[RepexDollarsBasis]],Lookup_RepexDollarBasis,0)) -> TRUE | K27: 0 | L27: 0 | M27: 0 | N27: 0.76 | O27: 0.23 | P27: 0.01 | Q27: 0 | R27: 0 | S27: 0 | T27: 0 | U27: 0 | V27: 0 | W27: 0 | X27: 0 | Y27: 0 | Z27: 0 | AA27: 0 | AB27: =OR(SUM(ProjectData[[#This Row],[LinesOH]:[Inhouse Software]])=1,ProjectData[[#This Row],[OnlyAssetClassAllocationIsToBeUsed]]=TRUE) -> TRUE | AC27: Primary Plant - Bay | AD27: =ISNUMBER(MATCH(ProjectData[[#This Row],[DMDLCCOCSplitType]],CostAllocationSplit[Type of Project],0)) -> TRUE | AE27: FALSE | AF27: FALSE | AG27: =+ProjectData[[#This Row],[PQ Project Driver]] -> Replacement
A28: 22 | B28: CP.01922 Grantleigh Substation Reinvestment | C28: Tier 1 | E28: Replacement | F28: =ISNUMBER(MATCH(ProjectData[[#This Row],[PQ Project Driver]],Lookup_ProjectDrivers,0)) -> TRUE | G28: Project Close | H28: =ISNUMBER(MATCH(ProjectData[[#This Row],[Capitalisation]],Lookup_CapitalisationTypes,0)) -> TRUE | I28: Real2026 | J28: =ISNUMBER(MATCH(ProjectData[[#This Row],[RepexDollarsBasis]],Lookup_RepexDollarBasis,0)) -> TRUE | K28: 0 | L28: 0 | M28: 0 | N28: 0.76 | O28: 0.23 | P28: 0.01 | Q28: 0 | R28: 0 | S28: 0 | T28: 0 | U28: 0 | V28: 0 | W28: 0 | X28: 0 | Y28: 0 | Z28: 0 | AA28: 0 | AB28: =OR(SUM(ProjectData[[#This Row],[LinesOH]:[Inhouse Software]])=1,ProjectData[[#This Row],[OnlyAssetClassAllocationIsToBeUsed]]=TRUE) -> TRUE | AC28: Primary Plant - Bay | AD28: =ISNUMBER(MATCH(ProjectData[[#This Row],[DMDLCCOCSplitType]],CostAllocationSplit[Type of Project],0)) -> TRUE | AE28: FALSE | AF28: FALSE | AG28: =+ProjectData[[#This Row],[PQ Project Driver]] -> Replacement
A29: 23 | B29: CP.02003 Woree-Kamerunga 132kV Line Reinvestment | C29: Tier 1 | E29: Replacement | F29: =ISNUMBER(MATCH(ProjectData[[#This Row],[PQ Project Driver]],Lookup_ProjectDrivers,0)) -> TRUE | G29: Project Close | H29: =ISNUMBER(MATCH(ProjectData[[#This Row],[Capitalisation]],Lookup_CapitalisationTypes,0)) -> TRUE | I29: Real2026 | J29: =ISNUMBER(MATCH(ProjectData[[#This Row],[RepexDollarsBasis]],Lookup_RepexDollarBasis,0)) -> TRUE | K29: 0.13 | L29: 0.77 | M29: 0 | N29: 0.06 | O29: 0.03 | P29: 0.01 | Q29: 0 | R29: 0 | S29: 0 | T29: 0 | U29: 0 | V29: 0 | W29: 0 | X29: 0 | Y29: 0 | Z29: 0 | AA29: 0 | AB29: =OR(SUM(ProjectData[[#This Row],[LinesOH]:[Inhouse Software]])=1,ProjectData[[#This Row],[OnlyAssetClassAllocationIsToBeUsed]]=TRUE) -> TRUE | AC29: Tower Refit | AD29: =ISNUMBER(MATCH(ProjectData[[#This Row],[DMDLCCOCSplitType]],CostAllocationSplit[Type of Project],0)) -> TRUE | AE29: FALSE | AF29: FALSE | AG29: =+ProjectData[[#This Row],[PQ Project Driver]] -> Replacement
A30: 24 | B30: CP.02170 Chinchilla Substation Replacement | C30: Tier 1 | E30: Replacement | F30: =ISNUMBER(MATCH(ProjectData[[#This Row],[PQ Project Driver]],Lookup_ProjectDrivers,0)) -> TRUE | G30: Project Close | H30: =ISNUMBER(MATCH(ProjectData[[#This Row],[Capitalisation]],Lookup_CapitalisationTypes,0)) -> TRUE | I30: Real2026 | J30: =ISNUMBER(MATCH(ProjectData[[#This Row],[RepexDollarsBasis]],Lookup_RepexDollarBasis,0)) -> TRUE | K30: 0 | L30: 0 | M30: 0 | N30: 0.73 | O30: 0.24 | P30: 0.03 | Q30: 0 | R30: 0 | S30: 0 | T30: 0 | U30: 0 | V30: 0 | W30: 0 | X30: 0 | Y30: 0 | Z30: 0 | AA30: 0 | AB30: =OR(SUM(ProjectData[[#This Row],[LinesOH]:[Inhouse Software]])=1,ProjectData[[#This Row],[OnlyAssetClassAllocationIsToBeUsed]]=TRUE) -> TRUE | AC30: Primary Plant - Bay | AD30: =ISNUMBER(MATCH(ProjectData[[#This Row],[DMDLCCOCSplitType]],CostAllocationSplit[Type of Project],0)) -> TRUE | AE30: FALSE | AF30: FALSE | AG30: =+ProjectData[[#This Row],[PQ Project Driver]] -> Replacement
A31: 25 | B31: CP.02320 Oonooie Substation Reinvestment | C31: Tier 1 | E31: Replacement | F31: =ISNUMBER(MATCH(ProjectData[[#This Row],[PQ Project Driver]],Lookup_ProjectDrivers,0)) -> TRUE | G31: Project Close | H31: =ISNUMBER(MATCH(ProjectData[[#This Row],[Capitalisation]],Lookup_CapitalisationTypes,0)) -> TRUE | I31: Real2026 | J31: =ISNUMBER(MATCH(ProjectData[[#This Row],[RepexDollarsBasis]],Lookup_RepexDollarBasis,0)) -> TRUE | K31: 0 | L31: 0 | M31: 0 | N31: 0.76 | O31: 0.23 | P31: 0.01 | Q31: 0 | R31: 0 | S31: 0 | T31: 0 | U31: 0 | V31: 0 | W31: 0 | X31: 0 | Y31: 0 | Z31: 0 | AA31: 0 | AB31: =OR(SUM(ProjectData[[#This Row],[LinesOH]:[Inhouse Software]])=1,ProjectData[[#This Row],[OnlyAssetClassAllocationIsToBeUsed]]=TRUE) -> TRUE | AC31: Primary Plant - Bay | AD31: =ISNUMBER(MATCH(ProjectData[[#This Row],[DMDLCCOCSplitType]],CostAllocationSplit[Type of Project],0)) -> TRUE | AE31: FALSE | AF31: FALSE | AG31: =+ProjectData[[#This Row],[PQ Project Driver]] -> Replacement
... 38 more rows

Sheet Input Project Details
A1: Contents | N1: 1000
B3: Project Details Data | W3: 1000
B4: This sheet lists the details for each project item.
G5: Replacement Quantities. | N5: Repex, Nominal (Mid Year), As Incurred, $k | V5: Repex, Real 25/26 (End of year), As Incurred, $k | AS5: Repex, Real 20/21 (End of year), As Commissioned, $k
A6: Notes: | N6: WIP as at 30/06/2025
A7: 9 | B7: Project ID = 999. Indicates that the values aren't used. | AC7: If relevant (project close) | AE7: Internal + External <> 1 (remainder is non labour component).
C8: Formula | F8: Formula
A9: ID | B9: ProjectID | C9: ID Again | D9: PQ Description | E9: RIN Asset Description | F9: Check RIN Asset | G9: RepexQty2026 | H9: RepexQty2027 | I9: RepexQty2028 | J9: RepexQty2029 | K9: RepexQty2030 | L9: RepexQty2031 | M9: RepexQty2032 | N9: WIP | O9: NomIncur2026 | P9: NomIncur2027 | Q9: NomIncur2028 | R9: NomIncur2029 | S9: NomIncur2030 | T9: NomIncur2031 | U9: NomIncur2032 | V9: RealIncur2026 | W9: RealIncur2027 | X9: RealIncur2028 | Y9: RealIncur2029 | Z9: RealIncur2030 | AA9: RealIncur2031 | AB9: RealIncur2032 | AC9: Capitalisation Year | AD9: Check Non value capitalisation year, and project set to capitalise on project close | AE9: Labour Internal | AF9: Labour External | AG9: DollarBasisImpliesNominal | AH9: DollarBasisImpliesReal2026 | AI9: DollarBasisOK | AJ9: DollarBasisConsistentWithProject | AK9: LabourRatesPresent | AL9: IncorrectLabourRatesNotPresent | AM9: LastYearOfNominalCashFlow | AN9: OverWrite_CashFlowAndCapitalisationYearAreOK | AO9: CashFlowandCapitalisationYearLineUp | AP9: Not_LabourRatesPresentWhenTheyShouldntBe | AQ9: ExpenditureAfter2026IsNotUsed | AR9: PowerTransformerIsNotExcludedFromForecast | AS9: RealAsCom2026 | AT9: RealAsCom2027 | AU9: RealAsCom2028 | AV9: RealAsCom2029 | AW9: RealAsCom2030 | AX9: RealAsCom2031 | AY9: RealAsCom2032 | AZ9: ProjectHasNoDollarBasis | BA9: CheckCapitalisationYearNowOrLater | BB9: ID Check | BC9: Project Is Specific Approved | BD9: Notes | BE9: DMDLCCOCSplitType | BF9: PQ Project Driver | BG9: Specific Approved Project
A10: 1 | B10: 1 | C10: =Project_Details[[#This Row],[ID]] -> 1 | D10: Tools | E10: Non-Network - Other | F10: =ISNUMBER(MATCH(Project_Details[[#This Row],[RIN Asset Description]],Lookup_RIN_AssetCategory,0)) -> TRUE | N10: 464.792484 | O10: 0 | P10: 0 | Q10: 0 | R10: 0 | S10: 0 | T10: 0 | U10: 0 | V10: 4128 | W10: 4000 | X10: 2148.21998 | Y10: 2211.478906 | Z10: 2300.469476 | AA10: 2710.27968 | AB10: 2466.273356 | AD10: =IF((VLOOKUP(Project_Details[[#This Row],[ProjectID]],ProjectData[],MATCH("Capitalisation",ProjectData[#Headers],0),FALSE)="Project Close"),ISNUMBER(Project_Details[[#This Row],[Capitalisation Year]]),"NA") -> NA | AE10: 0 | AF10: 0 | AG10: =MAX(ABS(Project_Details[[#This Row],[NomIncur2026]:[NomIncur2032]]))>0 -> FALSE | AH10: =MAX(ABS(Project_Details[[#This Row],[RealIncur2026]:[RealIncur2032]]))>0 -> TRUE | AI10: =OR(AND(Project_Details[[#This Row],[DollarBasisImpliesNominal]],NOT(Project_Details[[#This Row],[DollarBasisImpliesReal2026]])), AND(NOT(Project_Details[[#This Row],[DollarBasisImpliesNominal]]),Project_Details[[#This Row],[DollarBasisImpliesReal2026]]),AND(NOT(Project_Details[[#This Row],[DollarBasisImpliesNominal]]),NOT(Project_Details[[#This Row],[DollarBasisImpliesReal2026]]))) -> TRUE | AJ10: =IFERROR(OR(AND(Project_Details[[#This Row],[DollarBasisImpliesNominal]],VLOOKUP(Project_Details[[#This Row],[ProjectID]],ProjectData[],MATCH("RepexDollarsBasis",ProjectData[#Headers],0),FALSE)="Nominal"),AND(Project_Details[[#This Row],[DollarBasisImpliesReal2026]],VLOOKUP(Project_Details[[#This Row],[ProjectID]],ProjectData[],MATCH("RepexDollarsBasis",ProjectData[#Headers],0),FALSE)="Real2026"),Project_Details[[#This Row],[ProjectHasNoDollarBasis]]),FALSE) -> TRUE | AK10: =IF(Project_Details[[#This Row],[DollarBasisImpliesReal2026]],AND(ISNUMBER(Project_Details[[#This Row],[Labour Internal]]),ISNUMBER(Project_Details[[#This Row],[Labour External]])),"NA") -> TRUE | AL10: =IF(Project_Details[[#This Row],[DollarBasisImpliesNominal]],NOT(OR(ISNUMBER(Project_Details[[#This Row],[Labour Internal]]),ISNUMBER(Project_Details[[#This Row],[Labour External]]))),"NA") -> NA | AM10: =IF(AND(Project_Details[[#This Row],[NomIncur2026]]=0,Project_Details[[#This Row],[WIP]]<>0),2026,IF(AND(Project_Details[[#This Row],[NomIncur2027]]=0,Project_Details[[#This Row],[NomIncur2026]]<>0),2026,IF(AND(Project_Details[[#This Row],[NomIncur2028]]=0,Project_Details[[#This Row],[NomIncur2027]]<>0),2027,IF(AND(Project_Details[[#This Row],[NomIncur2029]]=0,Project_Details[[#This Row],[NomIncur2028]]<>0),2028,IF(AND(Project_Details[[#This Row],[NomIncur2030]]=0,Project_Details[[#This Row],[NomIncur2029]]<>0),2029,IF(AND(Project_Details[[#This Row],[NomIncur2031]]=0,Project_Details[[#This Row],[NomIncur2030]]<>0),2030,IF(AND(Project_Details[[#This Row],[NomIncur2032]]=0,Project_Details[[#This Row],[NomIncur2031]]<>0),2031,IF(Project_Details[[#This Row],[NomIncur2032]]<>0,2032,"")))))))) -> 2026 | AO10: =IF(NOT(ISNUMBER(Project_Details[[#This Row],[Capitalisation Year]])), "NA", OR(Project_Details[[#This Row],[OverWrite_CashFlowAndCapitalisationYearAreOK]],(Project_Details[[#This Row],[LastYearOfNominalCashFlow]]=Project_Details[[#This Row],[Capitalisation Year]]))) -> NA | AP10: =NOT(AND(Project_Details[[#This Row],[DollarBasisImpliesNominal]],OR(ISNUMBER(Project_Details[[#This Row],[Labour Internal]]),ISNUMBER(Project_Details[[#This Row],[Labour External]])))) -> TRUE | AR10: =IF(LEFT(Project_Details[[#This Row],[RIN Asset Description]],17)="Power Transformer",IF((Project_Details[[#This Row],[ExpenditureAfter2026IsNotUsed]]=TRUE),FALSE,TRUE),"NA") -> NA | AZ10: =IFERROR(("None"=VLOOKUP(Project_Details[[#This Row],[ProjectID]],ProjectData[],MATCH("RepexDollarsBasis",ProjectData[#Headers],0),FALSE)),FALSE) -> FALSE | BA10: =IF(ISNUMBER(Project_Details[[#This Row],[Capitalisation Year]]),(Project_Details[[#This Row],[Capitalisation Year]]>=2016),"NA") -> NA | BB10: =(Project_Details[[#This Row],[ID]]=(ROW()-ProjectDetailsTableStartRow)) -> TRUE | BC10: =VLOOKUP(Project_Details[[#This Row],[ProjectID]],ProjectData[],MATCH("Specific Approved Project", ProjectData[#Headers],0),FALSE) -> FALSE | BE10: =_xlfn.XLOOKUP(Project_Details[[#This Row],[ProjectID]],ProjectData[[#All],[ID]],ProjectData[[#All],[DMDLCCOCSplitType]],"Not Found") -> Non Network - Tools | BF10: =_xlfn.XLOOKUP(Project_Details[[#This Row],[ProjectID]],ProjectData[[#All],[ID]],ProjectData[[#All],[PQ Project Driver]],"NOT FOUND") -> Tools | BG10: =_xlfn.XLOOKUP(Project_Details[[#This Row],[ID]],ProjectData[[#All],[ID]],ProjectData[[#All],[Specific Approved Project]],"NOT FOUND") -> FALSE
A11: =+A10+1 -> 2 | B11: 2 | C11: =Project_Details[[#This Row],[ID]] -> 2 | D11: MV | E11: Non Network - Motor Vehicles | F11: =ISNUMBER(MATCH(Project_Details[[#This Row],[RIN Asset Description]],Lookup_RIN_AssetCategory,0)) -> TRUE | N11: 7662.85024 | O11: 0 | P11: 0 | Q11: 0 | R11: 0 | S11: 0 | T11: 0 | U11: 0 | V11: 11799.533 | W11: 4435 | X11: 4885.57349 | Y11: 6831 | Z11: 8030.42299 | AA11: 6640 | AB11: 6319.16444 | AD11: =IF((VLOOKUP(Project_Details[[#This Row],[ProjectID]],ProjectData[],MATCH("Capitalisation",ProjectData[#Headers],0),FALSE)="Project Close"),ISNUMBER(Project_Details[[#This Row],[Capitalisation Year]]),"NA") -> NA | AE11: 0 | AF11: 0 | AG11: =MAX(ABS(Project_Details[[#This Row],[NomIncur2026]:[NomIncur2032]]))>0 -> FALSE | AH11: =MAX(ABS(Project_Details[[#This Row],[RealIncur2026]:[RealIncur2032]]))>0 -> TRUE | AI11: =OR(AND(Project_Details[[#This Row],[DollarBasisImpliesNominal]],NOT(Project_Details[[#This Row],[DollarBasisImpliesReal2026]])), AND(NOT(Project_Details[[#This Row],[DollarBasisImpliesNominal]]),Project_Details[[#This Row],[DollarBasisImpliesReal2026]]),AND(NOT(Project_Details[[#This Row],[DollarBasisImpliesNominal]]),NOT(Project_Details[[#This Row],[DollarBasisImpliesReal2026]]))) -> TRUE | AJ11: =IFERROR(OR(AND(Project_Details[[#This Row],[DollarBasisImpliesNominal]],VLOOKUP(Project_Details[[#This Row],[ProjectID]],ProjectData[],MATCH("RepexDollarsBasis",ProjectData[#Headers],0),FALSE)="Nominal"),AND(Project_Details[[#This Row],[DollarBasisImpliesReal2026]],VLOOKUP(Project_Details[[#This Row],[ProjectID]],ProjectData[],MATCH("RepexDollarsBasis",ProjectData[#Headers],0),FALSE)="Real2026"),Project_Details[[#This Row],[ProjectHasNoDollarBasis]]),FALSE) -> TRUE | AK11: =IF(Project_Details[[#This Row],[DollarBasisImpliesReal2026]],AND(ISNUMBER(Project_Details[[#This Row],[Labour Internal]]),ISNUMBER(Project_Details[[#This Row],[Labour External]])),"NA") -> TRUE | AL11: =IF(Project_Details[[#This Row],[DollarBasisImpliesNominal]],NOT(OR(ISNUMBER(Project_Details[[#This Row],[Labour Internal]]),ISNUMBER(Project_Details[[#This Row],[Labour External]]))),"NA") -> NA | AM11: =IF(AND(Project_Details[[#This Row],[NomIncur2026]]=0,Project_Details[[#This Row],[WIP]]<>0),2026,IF(AND(Project_Details[[#This Row],[NomIncur2027]]=0,Project_Details[[#This Row],[NomIncur2026]]<>0),2026,IF(AND(Project_Details[[#This Row],[NomIncur2028]]=0,Project_Details[[#This Row],[NomIncur2027]]<>0),2027,IF(AND(Project_Details[[#This Row],[NomIncur2029]]=0,Project_Details[[#This Row],[NomIncur2028]]<>0),2028,IF(AND(Project_Details[[#This Row],[NomIncur2030]]=0,Project_Details[[#This Row],[NomIncur2029]]<>0),2029,IF(AND(Project_Details[[#This Row],[NomIncur2031]]=0,Project_Details[[#This Row],[NomIncur2030]]<>0),2030,IF(AND(Project_Details[[#This Row],[NomIncur2032]]=0,Project_Details[[#This Row],[NomIncur2031]]<>0),2031,IF(Project_Details[[#This Row],[NomIncur2032]]<>0,2032,"")))))))) -> 2026 | AO11: =IF(NOT(ISNUMBER(Project_Details[[#This Row],[Capitalisation Year]])), "NA", OR(Project_Details[[#This Row],[OverWrite_CashFlowAndCapitalisationYearAreOK]],(Project_Details[[#This Row],[LastYearOfNominalCashFlow]]=Project_Details[[#This Row],[Capitalisation Year]]))) -> NA | AP11: =NOT(AND(Project_Details[[#This Row],[DollarBasisImpliesNominal]],OR(ISNUMBER(Project_Details[[#This Row],[Labour Internal]]),ISNUMBER(Project_Details[[#This Row],[Labour External]])))) -> TRUE | AR11: =IF(LEFT(Project_Details[[#This Row],[RIN Asset Description]],17)="Power Transformer",IF((Project_Details[[#This Row],[ExpenditureAfter2026IsNotUsed]]=TRUE),FALSE,TRUE),"NA") -> NA | AZ11: =IFERROR(("None"=VLOOKUP(Project_Details[[#This Row],[ProjectID]],ProjectData[],MATCH("RepexDollarsBasis",ProjectData[#Headers],0),FALSE)),FALSE) -> FALSE | BA11: =IF(ISNUMBER(Project_Details[[#This Row],[Capitalisation Year]]),(Project_Details[[#This Row],[Capitalisation Year]]>=2016),"NA") -> NA | BB11: =(Project_Details[[#This Row],[ID]]=(ROW()-ProjectDetailsTableStartRow)) -> TRUE | BC11: =VLOOKUP(Project_Details[[#This Row],[ProjectID]],ProjectData[],MATCH("Specific Approved Project", ProjectData[#Headers],0),FALSE) -> FALSE | BE11: =_xlfn.XLOOKUP(Project_Details[[#This Row],[ProjectID]],ProjectData[[#All],[ID]],ProjectData[[#All],[DMDLCCOCSplitType]],"Not Found") -> Non Network - MV | BF11: =_xlfn.XLOOKUP(Project_Details[[#This Row],[ProjectID]],ProjectData[[#All],[ID]],ProjectData[[#All],[PQ Project Driver]],"NOT FOUND") -> MV | BG11: =_xlfn.XLOOKUP(Project_Details[[#This Row],[ID]],ProjectData[[#All],[ID]],ProjectData[[#All],[Specific Approved Project]],"NOT FOUND") -> FALSE
A12: 3 | B12: 3 | C12: =Project_Details[[#This Row],[ID]] -> 3 | D12: Buildings - Sustaining | E12: Non Network - Buildings And Property | F12: =ISNUMBER(MATCH(Project_Details[[#This Row],[RIN Asset Description]],Lookup_RIN_AssetCategory,0)) -> TRUE | N12: 1243.4188 | O12: 0 | P12: 0 | Q12: 0 | R12: 0 | S12: 0 | T12: 0 | U12: 0 | V12: 3096 | W12: 3000 | X12: 2309.942069 | Y12: 2431.898529 | Z12: 2435.08416 | AA12: 2418.498172 | AB12: 2401.189076 | AD12: =IF((VLOOKUP(Project_Details[[#This Row],[ProjectID]],ProjectData[],MATCH("Capitalisation",ProjectData[#Headers],0),FALSE)="Project Close"),ISNUMBER(Project_Details[[#This Row],[Capitalisation Year]]),"NA") -> NA | AE12: 0 | AF12: 0 | AG12: =MAX(ABS(Project_Details[[#This Row],[NomIncur2026]:[NomIncur2032]]))>0 -> FALSE | AH12: =MAX(ABS(Project_Details[[#This Row],[RealIncur2026]:[RealIncur2032]]))>0 -> TRUE | AI12: =OR(AND(Project_Details[[#This Row],[DollarBasisImpliesNominal]],NOT(Project_Details[[#This Row],[DollarBasisImpliesReal2026]])), AND(NOT(Project_Details[[#This Row],[DollarBasisImpliesNominal]]),Project_Details[[#This Row],[DollarBasisImpliesReal2026]]),AND(NOT(Project_Details[[#This Row],[DollarBasisImpliesNominal]]),NOT(Project_Details[[#This Row],[DollarBasisImpliesReal2026]]))) -> TRUE | AJ12: =IFERROR(OR(AND(Project_Details[[#This Row],[DollarBasisImpliesNominal]],VLOOKUP(Project_Details[[#This Row],[ProjectID]],ProjectData[],MATCH("RepexDollarsBasis",ProjectData[#Headers],0),FALSE)="Nominal"),AND(Project_Details[[#This Row],[DollarBasisImpliesReal2026]],VLOOKUP(Project_Details[[#This Row],[ProjectID]],ProjectData[],MATCH("RepexDollarsBasis",ProjectData[#Headers],0),FALSE)="Real2026"),Project_Details[[#This Row],[ProjectHasNoDollarBasis]]),FALSE) -> TRUE | AK12: =IF(Project_Details[[#This Row],[DollarBasisImpliesReal2026]],AND(ISNUMBER(Project_Details[[#This Row],[Labour Internal]]),ISNUMBER(Project_Details[[#This Row],[Labour External]])),"NA") -> TRUE | AL12: =IF(Project_Details[[#This Row],[DollarBasisImpliesNominal]],NOT(OR(ISNUMBER(Project_Details[[#This Row],[Labour Internal]]),ISNUMBER(Project_Details[[#This Row],[Labour External]]))),"NA") -> NA | AM12: =IF(AND(Project_Details[[#This Row],[NomIncur2026]]=0,Project_Details[[#This Row],[WIP]]<>0),2026,IF(AND(Project_Details[[#This Row],[NomIncur2027]]=0,Project_Details[[#This Row],[NomIncur2026]]<>0),2026,IF(AND(Project_Details[[#This Row],[NomIncur2028]]=0,Project_Details[[#This Row],[NomIncur2027]]<>0),2027,IF(AND(Project_Details[[#This Row],[NomIncur2029]]=0,Project_Details[[#This Row],[NomIncur2028]]<>0),2028,IF(AND(Project_Details[[#This Row],[NomIncur2030]]=0,Project_Details[[#This Row],[NomIncur2029]]<>0),2029,IF(AND(Project_Details[[#This Row],[NomIncur2031]]=0,Project_Details[[#This Row],[NomIncur2030]]<>0),2030,IF(AND(Project_Details[[#This Row],[NomIncur2032]]=0,Project_Details[[#This Row],[NomIncur2031]]<>0),2031,IF(Project_Details[[#This Row],[NomIncur2032]]<>0,2032,"")))))))) -> 2026 | AO12: =IF(NOT(ISNUMBER(Project_Details[[#This Row],[Capitalisation Year]])), "NA", OR(Project_Details[[#This Row],[OverWrite_CashFlowAndCapitalisationYearAreOK]],(Project_Details[[#This Row],[LastYearOfNominalCashFlow]]=Project_Details[[#This Row],[Capitalisation Year]]))) -> NA | AP12: =NOT(AND(Project_Details[[#This Row],[DollarBasisImpliesNominal]],OR(ISNUMBER(Project_Details[[#This Row],[Labour Internal]]),ISNUMBER(Project_Details[[#This Row],[Labour External]])))) -> TRUE | AR12: =IF(LEFT(Project_Details[[#This Row],[RIN Asset Description]],17)="Power Transformer",IF((Project_Details[[#This Row],[ExpenditureAfter2026IsNotUsed]]=TRUE),FALSE,TRUE),"NA") -> NA | AZ12: =IFERROR(("None"=VLOOKUP(Project_Details[[#This Row],[ProjectID]],ProjectData[],MATCH("RepexDollarsBasis",ProjectData[#Headers],0),FALSE)),FALSE) -> FALSE | BA12: =IF(ISNUMBER(Project_Details[[#This Row],[Capitalisation Year]]),(Project_Details[[#This Row],[Capitalisation Year]]>=2016),"NA") -> NA | BB12: =(Project_Details[[#This Row],[ID]]=(ROW()-ProjectDetailsTableStartRow)) -> TRUE | BC12: =VLOOKUP(Project_Details[[#This Row],[ProjectID]],ProjectData[],MATCH("Specific Approved Project", ProjectData[#Headers],0),FALSE) -> FALSE | BE12: =_xlfn.XLOOKUP(Project_Details[[#This Row],[ProjectID]],ProjectData[[#All],[ID]],ProjectData[[#All],[DMDLCCOCSplitType]],"Not Found") -> Non Network - Buildings | BF12: =_xlfn.XLOOKUP(Project_Details[[#This Row],[ProjectID]],ProjectData[[#All],[ID]],ProjectData[[#All],[PQ Project Driver]],"NOT FOUND") -> Buildings | BG12: =_xlfn.XLOOKUP(Project_Details[[#This Row],[ID]],ProjectData[[#All],[ID]],ProjectData[[#All],[Specific Approved Project]],"NOT FOUND") -> FALSE
A13: 4 | B13: 4 | C13: =Project_Details[[#This Row],[ID]] -> 4 | D13: Buildings - Virginia Uplift Stage 1 (NLP Whouse) | E13: Non Network - Buildings And Property | F13: =ISNUMBER(MATCH(Project_Details[[#This Row],[RIN Asset Description]],Lookup_RIN_AssetCategory,0)) -> TRUE | N13: 0 | O13: 0 | P13: 0 | Q13: 0 | R13: 0 | S13: 0 | T13: 0 | U13: 0 | V13: 2349.5 | W13: 3585.271318 | X13: 0 | Y13: 0 | Z13: 0 | AA13: 0 | AB13: 0 | AC13: 2027 | AD13: =IF((VLOOKUP(Project_Details[[#This Row],[ProjectID]],ProjectData[],MATCH("Capitalisation",ProjectData[#Headers],0),FALSE)="Project Close"),ISNUMBER(Project_Details[[#This Row],[Capitalisation Year]]),"NA") -> TRUE | AE13: 0.3 | AF13: 0.3 | AG13: =MAX(ABS(Project_Details[[#This Row],[NomIncur2026]:[NomIncur2032]]))>0 -> FALSE | AH13: =MAX(ABS(Project_Details[[#This Row],[RealIncur2026]:[RealIncur2032]]))>0 -> TRUE | AI13: =OR(AND(Project_Details[[#This Row],[DollarBasisImpliesNominal]],NOT(Project_Details[[#This Row],[DollarBasisImpliesReal2026]])), AND(NOT(Project_Details[[#This Row],[DollarBasisImpliesNominal]]),Project_Details[[#This Row],[DollarBasisImpliesReal2026]]),AND(NOT(Project_Details[[#This Row],[DollarBasisImpliesNominal]]),NOT(Project_Details[[#This Row],[DollarBasisImpliesReal2026]]))) -> TRUE | AJ13: =IFERROR(OR(AND(Project_Details[[#This Row],[DollarBasisImpliesNominal]],VLOOKUP(Project_Details[[#This Row],[ProjectID]],ProjectData[],MATCH("RepexDollarsBasis",ProjectData[#Headers],0),FALSE)="Nominal"),AND(Project_Details[[#This Row],[DollarBasisImpliesReal2026]],VLOOKUP(Project_Details[[#This Row],[ProjectID]],ProjectData[],MATCH("RepexDollarsBasis",ProjectData[#Headers],0),FALSE)="Real2026"),Project_Details[[#This Row],[ProjectHasNoDollarBasis]]),FALSE) -> TRUE | AK13: =IF(Project_Details[[#This Row],[DollarBasisImpliesReal2026]],AND(ISNUMBER(Project_Details[[#This Row],[Labour Internal]]),ISNUMBER(Project_Details[[#This Row],[Labour External]])),"NA") -> TRUE | AL13: =IF(Project_Details[[#This Row],[DollarBasisImpliesNominal]],NOT(OR(ISNUMBER(Project_Details[[#This Row],[Labour Internal]]),ISNUMBER(Project_Details[[#This Row],[Labour External]]))),"NA") -> NA | AM13: =IF(AND(Project_Details[[#This Row],[NomIncur2026]]=0,Project_Details[[#This Row],[WIP]]<>0),2026,IF(AND(Project_Details[[#This Row],[NomIncur2027]]=0,Project_Details[[#This Row],[NomIncur2026]]<>0),2026,IF(AND(Project_Details[[#This Row],[NomIncur2028]]=0,Project_Details[[#This Row],[NomIncur2027]]<>0),2027,IF(AND(Project_Details[[#This Row],[NomIncur2029]]=0,Project_Details[[#This Row],[NomIncur2028]]<>0),2028,IF(AND(Project_Details[[#This Row],[NomIncur2030]]=0,Project_Details[[#This Row],[NomIncur2029]]<>0),2029,IF(AND(Project_Details[[#This Row],[NomIncur2031]]=0,Project_Details[[#This Row],[NomIncur2030]]<>0),2030,IF(AND(Project_Details[[#This Row],[NomIncur2032]]=0,Project_Details[[#This Row],[NomIncur2031]]<>0),2031,IF(Project_Details[[#This Row],[NomIncur2032]]<>0,2032,"")))))))) ->  | AN13: TRUE | AO13: =IF(NOT(ISNUMBER(Project_Details[[#This Row],[Capitalisation Year]])), "NA", OR(Project_Details[[#This Row],[OverWrite_CashFlowAndCapitalisationYearAreOK]],(Project_Details[[#This Row],[LastYearOfNominalCashFlow]]=Project_Details[[#This Row],[Capitalisation Year]]))) -> TRUE | AP13: =NOT(AND(Project_Details[[#This Row],[DollarBasisImpliesNominal]],OR(ISNUMBER(Project_Details[[#This Row],[Labour Internal]]),ISNUMBER(Project_Details[[#This Row],[Labour External]])))) -> TRUE | AR13: =IF(LEFT(Project_Details[[#This Row],[RIN Asset Description]],17)="Power Transformer",IF((Project_Details[[#This Row],[ExpenditureAfter2026IsNotUsed]]=TRUE),FALSE,TRUE),"NA") -> NA | AZ13: =IFERROR(("None"=VLOOKUP(Project_Details[[#This Row],[ProjectID]],ProjectData[],MATCH("RepexDollarsBasis",ProjectData[#Headers],0),FALSE)),FALSE) -> FALSE | BA13: =IF(ISNUMBER(Project_Details[[#This Row],[Capitalisation Year]]),(Project_Details[[#This Row],[Capitalisation Year]]>=2016),"NA") -> TRUE | BB13: =(Project_Details[[#This Row],[ID]]=(ROW()-ProjectDetailsTableStartRow)) -> TRUE | BC13: =VLOOKUP(Project_Details[[#This Row],[ProjectID]],ProjectData[],MATCH("Specific Approved Project", ProjectData[#Headers],0),FALSE) -> FALSE | BE13: =_xlfn.XLOOKUP(Project_Details[[#This Row],[ProjectID]],ProjectData[[#All],[ID]],ProjectData[[#All],[DMDLCCOCSplitType]],"Not Found") -> Non Network - Buildings | BF13: =_xlfn.XLOOKUP(Project_Details[[#This Row],[ProjectID]],ProjectData[[#All],[ID]],ProjectData[[#All],[PQ Project Driver]],"NOT FOUND") -> Buildings | BG13: =_xlfn.XLOOKUP(Project_Details[[#This Row],[ID]],ProjectData[[#All],[ID]],ProjectData[[#All],[Specific Approved Project]],"NOT FOUND") -> FALSE
A14: 5 | B14: 4 | C14: =Project_Details[[#This Row],[ID]] -> 5 | D14: Buildings - Virginia Uplift Stage 2 (Edison) | E14: Non Network - Buildings And Property | F14: =ISNUMBER(MATCH(Project_Details[[#This Row],[RIN Asset Description]],Lookup_RIN_AssetCategory,0)) -> TRUE | N14: 1423.26151 | O14: 0 | P14: 0 | Q14: 0 | R14: 0 | S14: 0 | T14: 0 | U14: 0 | V14: 333 | W14: 2595.736434 | X14: 18236.13395 | Y14: 59484.20159 | Z14: 11012.53655 | AA14: 0 | AB14: 0 | AC14: 2030 | AD14: =IF((VLOOKUP(Project_Details[[#This Row],[ProjectID]],ProjectData[],MATCH("Capitalisation",ProjectData[#Headers],0),FALSE)="Project Close"),ISNUMBER(Project_Details[[#This Row],[Capitalisation Year]]),"NA") -> TRUE | AE14: 0.3 | AF14: 0.3 | AG14: =MAX(ABS(Project_Details[[#This Row],[NomIncur2026]:[NomIncur2032]]))>0 -> FALSE | AH14: =MAX(ABS(Project_Details[[#This Row],[RealIncur2026]:[RealIncur2032]]))>0 -> TRUE | AI14: =OR(AND(Project_Details[[#This Row],[DollarBasisImpliesNominal]],NOT(Project_Details[[#This Row],[DollarBasisImpliesReal2026]])), AND(NOT(Project_Details[[#This Row],[DollarBasisImpliesNominal]]),Project_Details[[#This Row],[DollarBasisImpliesReal2026]]),AND(NOT(Project_Details[[#This Row],[DollarBasisImpliesNominal]]),NOT(Project_Details[[#This Row],[DollarBasisImpliesReal2026]]))) -> TRUE | AJ14: =IFERROR(OR(AND(Project_Details[[#This Row],[DollarBasisImpliesNominal]],VLOOKUP(Project_Details[[#This Row],[ProjectID]],ProjectData[],MATCH("RepexDollarsBasis",ProjectData[#Headers],0),FALSE)="Nominal"),AND(Project_Details[[#This Row],[DollarBasisImpliesReal2026]],VLOOKUP(Project_Details[[#This Row],[ProjectID]],ProjectData[],MATCH("RepexDollarsBasis",ProjectData[#Headers],0),FALSE)="Real2026"),Project_Details[[#This Row],[ProjectHasNoDollarBasis]]),FALSE) -> TRUE | AK14: =IF(Project_Details[[#This Row],[DollarBasisImpliesReal2026]],AND(ISNUMBER(Project_Details[[#This Row],[Labour Internal]]),ISNUMBER(Project_Details[[#This Row],[Labour External]])),"NA") -> TRUE | AL14: =IF(Project_Details[[#This Row],[DollarBasisImpliesNominal]],NOT(OR(ISNUMBER(Project_Details[[#This Row],[Labour Internal]]),ISNUMBER(Project_Details[[#This Row],[Labour External]]))),"NA") -> NA | AM14: =IF(AND(Project_Details[[#This Row],[NomIncur2026]]=0,Project_Details[[#This Row],[WIP]]<>0),2026,IF(AND(Project_Details[[#This Row],[NomIncur2027]]=0,Project_Details[[#This Row],[NomIncur2026]]<>0),2026,IF(AND(Project_Details[[#This Row],[NomIncur2028]]=0,Project_Details[[#This Row],[NomIncur2027]]<>0),2027,IF(AND(Project_Details[[#This Row],[NomIncur2029]]=0,Project_Details[[#This Row],[NomIncur2028]]<>0),2028,IF(AND(Project_Details[[#This Row],[NomIncur2030]]=0,Project_Details[[#This Row],[NomIncur2029]]<>0),2029,IF(AND(Project_Details[[#This Row],[NomIncur2031]]=0,Project_Details[[#This Row],[NomIncur2030]]<>0),2030,IF(AND(Project_Details[[#This Row],[NomIncur2032]]=0,Project_Details[[#This Row],[NomIncur2031]]<>0),2031,IF(Project_Details[[#This Row],[NomIncur2032]]<>0,2032,"")))))))) -> 2026 | AN14: TRUE | AO14: =IF(NOT(ISNUMBER(Project_Details[[#This Row],[Capitalisation Year]])), "NA", OR(Project_Details[[#This Row],[OverWrite_CashFlowAndCapitalisationYearAreOK]],(Project_Details[[#This Row],[LastYearOfNominalCashFlow]]=Project_Details[[#This Row],[Capitalisation Year]]))) -> TRUE | AP14: =NOT(AND(Project_Details[[#This Row],[DollarBasisImpliesNominal]],OR(ISNUMBER(Project_Details[[#This Row],[Labour Internal]]),ISNUMBER(Project_Details[[#This Row],[Labour External]])))) -> TRUE | AR14: =IF(LEFT(Project_Details[[#This Row],[RIN Asset Description]],17)="Power Transformer",IF((Project_Details[[#This Row],[ExpenditureAfter2026IsNotUsed]]=TRUE),FALSE,TRUE),"NA") -> NA | AZ14: =IFERROR(("None"=VLOOKUP(Project_Details[[#This Row],[ProjectID]],ProjectData[],MATCH("RepexDollarsBasis",ProjectData[#Headers],0),FALSE)),FALSE) -> FALSE | BA14: =IF(ISNUMBER(Project_Details[[#This Row],[Capitalisation Year]]),(Project_Details[[#This Row],[Capitalisation Year]]>=2016),"NA") -> TRUE | BB14: =(Project_Details[[#This Row],[ID]]=(ROW()-ProjectDetailsTableStartRow)) -> TRUE | BC14: =VLOOKUP(Project_Details[[#This Row],[ProjectID]],ProjectData[],MATCH("Specific Approved Project", ProjectData[#Headers],0),FALSE) -> FALSE | BE14: =_xlfn.XLOOKUP(Project_Details[[#This Row],[ProjectID]],ProjectData[[#All],[ID]],ProjectData[[#All],[DMDLCCOCSplitType]],"Not Found") -> Non Network - Buildings | BF14: =_xlfn.XLOOKUP(Project_Details[[#This Row],[ProjectID]],ProjectData[[#All],[ID]],ProjectData[[#All],[PQ Project Driver]],"NOT FOUND") -> Buildings | BG14: =_xlfn.XLOOKUP(Project_Details[[#This Row],[ID]],ProjectData[[#All],[ID]],ProjectData[[#All],[Specific Approved Project]],"NOT FOUND") -> FALSE
A15: 6 | B15: 4 | C15: =Project_Details[[#This Row],[ID]] -> 6 | D15: Buildings - Virginia Uplift Stage 3 (CarParks) | E15: Non Network - Buildings And Property | F15: =ISNUMBER(MATCH(Project_Details[[#This Row],[RIN Asset Description]],Lookup_RIN_AssetCategory,0)) -> TRUE | N15: 0 | O15: 0 | P15: 0 | Q15: 0 | R15: 0 | S15: 0 | T15: 0 | U15: 0 | V15: 0 | W15: 0 | X15: 0 | Y15: 0 | Z15: 3116.140745 | AA15: 3431.758524 | AB15: 4363.926784 | AC15: 2032 | AD15: =IF((VLOOKUP(Project_Details[[#This Row],[ProjectID]],ProjectData[],MATCH("Capitalisation",ProjectData[#Headers],0),FALSE)="Project Close"),ISNUMBER(Project_Details[[#This Row],[Capitalisation Year]]),"NA") -> TRUE | AE15: 0.3 | AF15: 0.3 | AG15: =MAX(ABS(Project_Details[[#This Row],[NomIncur2026]:[NomIncur2032]]))>0 -> FALSE | AH15: =MAX(ABS(Project_Details[[#This Row],[RealIncur2026]:[RealIncur2032]]))>0 -> TRUE | AI15: =OR(AND(Project_Details[[#This Row],[DollarBasisImpliesNominal]],NOT(Project_Details[[#This Row],[DollarBasisImpliesReal2026]])), AND(NOT(Project_Details[[#This Row],[DollarBasisImpliesNominal]]),Project_Details[[#This Row],[DollarBasisImpliesReal2026]]),AND(NOT(Project_Details[[#This Row],[DollarBasisImpliesNominal]]),NOT(Project_Details[[#This Row],[DollarBasisImpliesReal2026]]))) -> TRUE | AJ15: =IFERROR(OR(AND(Project_Details[[#This Row],[DollarBasisImpliesNominal]],VLOOKUP(Project_Details[[#This Row],[ProjectID]],ProjectData[],MATCH("RepexDollarsBasis",ProjectData[#Headers],0),FALSE)="Nominal"),AND(Project_Details[[#This Row],[DollarBasisImpliesReal2026]],VLOOKUP(Project_Details[[#This Row],[ProjectID]],ProjectData[],MATCH("RepexDollarsBasis",ProjectData[#Headers],0),FALSE)="Real2026"),Project_Details[[#This Row],[ProjectHasNoDollarBasis]]),FALSE) -> TRUE | AK15: =IF(Project_Details[[#This Row],[DollarBasisImpliesReal2026]],AND(ISNUMBER(Project_Details[[#This Row],[Labour Internal]]),ISNUMBER(Project_Details[[#This Row],[Labour External]])),"NA") -> TRUE | AL15: =IF(Project_Details[[#This Row],[DollarBasisImpliesNominal]],NOT(OR(ISNUMBER(Project_Details[[#This Row],[Labour Internal]]),ISNUMBER(Project_Details[[#This Row],[Labour External]]))),"NA") -> NA | AM15: =IF(AND(Project_Details[[#This Row],[NomIncur2026]]=0,Project_Details[[#This Row],[WIP]]<>0),2026,IF(AND(Project_Details[[#This Row],[NomIncur2027]]=0,Project_Details[[#This Row],[NomIncur2026]]<>0),2026,IF(AND(Project_Details[[#This Row],[NomIncur2028]]=0,Project_Details[[#This Row],[NomIncur2027]]<>0),2027,IF(AND(Project_Details[[#This Row],[NomIncur2029]]=0,Project_Details[[#This Row],[NomIncur2028]]<>0),2028,IF(AND(Project_Details[[#This Row],[NomIncur2030]]=0,Project_Details[[#This Row],[NomIncur2029]]<>0),2029,IF(AND(Project_Details[[#This Row],[NomIncur2031]]=0,Project_Details[[#This Row],[NomIncur2030]]<>0),2030,IF(AND(Project_Details[[#This Row],[NomIncur2032]]=0,Project_Details[[#This Row],[NomIncur2031]]<>0),2031,IF(Project_Details[[#This Row],[NomIncur2032]]<>0,2032,"")))))))) ->  | AN15: TRUE | AO15: =IF(NOT(ISNUMBER(Project_Details[[#This Row],[Capitalisation Year]])), "NA", OR(Project_Details[[#This Row],[OverWrite_CashFlowAndCapitalisationYearAreOK]],(Project_Details[[#This Row],[LastYearOfNominalCashFlow]]=Project_Details[[#This Row],[Capitalisation Year]]))) -> TRUE | AP15: =NOT(AND(Project_Details[[#This Row],[DollarBasisImpliesNominal]],OR(ISNUMBER(Project_Details[[#This Row],[Labour Internal]]),ISNUMBER(Project_Details[[#This Row],[Labour External]])))) -> TRUE | AR15: =IF(LEFT(Project_Details[[#This Row],[RIN Asset Description]],17)="Power Transformer",IF((Project_Details[[#This Row],[ExpenditureAfter2026IsNotUsed]]=TRUE),FALSE,TRUE),"NA") -> NA | AZ15: =IFERROR(("None"=VLOOKUP(Project_Details[[#This Row],[ProjectID]],ProjectData[],MATCH("RepexDollarsBasis",ProjectData[#Headers],0),FALSE)),FALSE) -> FALSE | BA15: =IF(ISNUMBER(Project_Details[[#This Row],[Capitalisation Year]]),(Project_Details[[#This Row],[Capitalisation Year]]>=2016),"NA") -> TRUE | BB15: =(Project_Details[[#This Row],[ID]]=(ROW()-ProjectDetailsTableStartRow)) -> TRUE | BC15: =VLOOKUP(Project_Details[[#This Row],[ProjectID]],ProjectData[],MATCH("Specific Approved Project", ProjectData[#Headers],0),FALSE) -> FALSE | BE15: =_xlfn.XLOOKUP(Project_Details[[#This Row],[ProjectID]],ProjectData[[#All],[ID]],ProjectData[[#All],[DMDLCCOCSplitType]],"Not Found") -> Non Network - Buildings | BF15: =_xlfn.XLOOKUP(Project_Details[[#This Row],[ProjectID]],ProjectData[[#All],[ID]],ProjectData[[#All],[PQ Project Driver]],"NOT FOUND") -> Buildings | BG15: =_xlfn.XLOOKUP(Project_Details[[#This Row],[ID]],ProjectData[[#All],[ID]],ProjectData[[#All],[Specific Approved Project]],"NOT FOUND") -> FALSE
A16: 7 | B16: 5 | C16: =Project_Details[[#This Row],[ID]] -> 7 | D16: Buildings - New Depot | E16: Non Network - Buildings And Property | F16: =ISNUMBER(MATCH(Project_Details[[#This Row],[RIN Asset Description]],Lookup_RIN_AssetCategory,0)) -> TRUE | N16: 0 | O16: 0 | P16: 0 | Q16: 0 | R16: 0 | S16: 0 | T16: 0 | U16: 0 | V16: 0 | W16: 0 | X16: 16125.42203 | Y16: 0 | Z16: 0 | AA16: 0 | AB16: 0 | AC16: 2028 | AD16: =IF((VLOOKUP(Project_Details[[#This Row],[ProjectID]],ProjectData[],MATCH("Capitalisation",ProjectData[#Headers],0),FALSE)="Project Close"),ISNUMBER(Project_Details[[#This Row],[Capitalisation Year]]),"NA") -> TRUE | AE16: 0.3 | AF16: 0.3 | AG16: =MAX(ABS(Project_Details[[#This Row],[NomIncur2026]:[NomIncur2032]]))>0 -> FALSE | AH16: =MAX(ABS(Project_Details[[#This Row],[RealIncur2026]:[RealIncur2032]]))>0 -> TRUE | AI16: =OR(AND(Project_Details[[#This Row],[DollarBasisImpliesNominal]],NOT(Project_Details[[#This Row],[DollarBasisImpliesReal2026]])), AND(NOT(Project_Details[[#This Row],[DollarBasisImpliesNominal]]),Project_Details[[#This Row],[DollarBasisImpliesReal2026]]),AND(NOT(Project_Details[[#This Row],[DollarBasisImpliesNominal]]),NOT(Project_Details[[#This Row],[DollarBasisImpliesReal2026]]))) -> TRUE | AJ16: =IFERROR(OR(AND(Project_Details[[#This Row],[DollarBasisImpliesNominal]],VLOOKUP(Project_Details[[#This Row],[ProjectID]],ProjectData[],MATCH("RepexDollarsBasis",ProjectData[#Headers],0),FALSE)="Nominal"),AND(Project_Details[[#This Row],[DollarBasisImpliesReal2026]],VLOOKUP(Project_Details[[#This Row],[ProjectID]],ProjectData[],MATCH("RepexDollarsBasis",ProjectData[#Headers],0),FALSE)="Real2026"),Project_Details[[#This Row],[ProjectHasNoDollarBasis]]),FALSE) -> TRUE | AK16: =IF(Project_Details[[#This Row],[DollarBasisImpliesReal2026]],AND(ISNUMBER(Project_Details[[#This Row],[Labour Internal]]),ISNUMBER(Project_Details[[#This Row],[Labour External]])),"NA") -> TRUE | AL16: =IF(Project_Details[[#This Row],[DollarBasisImpliesNominal]],NOT(OR(ISNUMBER(Project_Details[[#This Row],[Labour Internal]]),ISNUMBER(Project_Details[[#This Row],[Labour External]]))),"NA") -> NA | AM16: =IF(AND(Project_Details[[#This Row],[NomIncur2026]]=0,Project_Details[[#This Row],[WIP]]<>0),2026,IF(AND(Project_Details[[#This Row],[NomIncur2027]]=0,Project_Details[[#This Row],[NomIncur2026]]<>0),2026,IF(AND(Project_Details[[#This Row],[NomIncur2028]]=0,Project_Details[[#This Row],[NomIncur2027]]<>0),2027,IF(AND(Project_Details[[#This Row],[NomIncur2029]]=0,Project_Details[[#This Row],[NomIncur2028]]<>0),2028,IF(AND(Project_Details[[#This Row],[NomIncur2030]]=0,Project_Details[[#This Row],[NomIncur2029]]<>0),2029,IF(AND(Project_Details[[#This Row],[NomIncur2031]]=0,Project_Details[[#This Row],[NomIncur2030]]<>0),2030,IF(AND(Project_Details[[#This Row],[NomIncur2032]]=0,Project_Details[[#This Row],[NomIncur2031]]<>0),2031,IF(Project_Details[[#This Row],[NomIncur2032]]<>0,2032,"")))))))) ->  | AN16: TRUE | AO16: =IF(NOT(ISNUMBER(Project_Details[[#This Row],[Capitalisation Year]])), "NA", OR(Project_Details[[#This Row],[OverWrite_CashFlowAndCapitalisationYearAreOK]],(Project_Details[[#This Row],[LastYearOfNominalCashFlow]]=Project_Details[[#This Row],[Capitalisation Year]]))) -> TRUE | AP16: =NOT(AND(Project_Details[[#This Row],[DollarBasisImpliesNominal]],OR(ISNUMBER(Project_Details[[#This Row],[Labour Internal]]),ISNUMBER(Project_Details[[#This Row],[Labour External]])))) -> TRUE | AR16: =IF(LEFT(Project_Details[[#This Row],[RIN Asset Description]],17)="Power Transformer",IF((Project_Details[[#This Row],[ExpenditureAfter2026IsNotUsed]]=TRUE),FALSE,TRUE),"NA") -> NA | AZ16: =IFERROR(("None"=VLOOKUP(Project_Details[[#This Row],[ProjectID]],ProjectData[],MATCH("RepexDollarsBasis",ProjectData[#Headers],0),FALSE)),FALSE) -> FALSE | BA16: =IF(ISNUMBER(Project_Details[[#This Row],[Capitalisation Year]]),(Project_Details[[#This Row],[Capitalisation Year]]>=2016),"NA") -> TRUE | BB16: =(Project_Details[[#This Row],[ID]]=(ROW()-ProjectDetailsTableStartRow)) -> TRUE | BC16: =VLOOKUP(Project_Details[[#This Row],[ProjectID]],ProjectData[],MATCH("Specific Approved Project", ProjectData[#Headers],0),FALSE) -> FALSE | BE16: =_xlfn.XLOOKUP(Project_Details[[#This Row],[ProjectID]],ProjectData[[#All],[ID]],ProjectData[[#All],[DMDLCCOCSplitType]],"Not Found") -> Non Network - Buildings | BF16: =_xlfn.XLOOKUP(Project_Details[[#This Row],[ProjectID]],ProjectData[[#All],[ID]],ProjectData[[#All],[PQ Project Driver]],"NOT FOUND") -> Buildings | BG16: =_xlfn.XLOOKUP(Project_Details[[#This Row],[ID]],ProjectData[[#All],[ID]],ProjectData[[#All],[Specific Approved Project]],"NOT FOUND") -> FALSE
A17: 8 | B17: 6 | C17: =Project_Details[[#This Row],[ID]] -> 8 | D17: CP.98224 Security Control RoomEstablishment | E17: Non Network - Buildings And Property | F17: =ISNUMBER(MATCH(Project_Details[[#This Row],[RIN Asset Description]],Lookup_RIN_AssetCategory,0)) -> TRUE | N17: 13.07776 | O17: 0 | P17: 0 | Q17: 0 | R17: 0 | S17: 0 | T17: 0 | U17: 0 | V17: 669.1414201 | W17: 3345.707083 | X17: 0 | Y17: 0 | Z17: 0 | AA17: 0 | AB17: 0 | AC17: 2027 | AD17: =IF((VLOOKUP(Project_Details[[#This Row],[ProjectID]],ProjectData[],MATCH("Capitalisation",ProjectData[#Headers],0),FALSE)="Project Close"),ISNUMBER(Project_Details[[#This Row],[Capitalisation Year]]),"NA") -> TRUE | AE17: 0.3 | AF17: 0.3 | AG17: =MAX(ABS(Project_Details[[#This Row],[NomIncur2026]:[NomIncur2032]]))>0 -> FALSE | AH17: =MAX(ABS(Project_Details[[#This Row],[RealIncur2026]:[RealIncur2032]]))>0 -> TRUE | AI17: =OR(AND(Project_Details[[#This Row],[DollarBasisImpliesNominal]],NOT(Project_Details[[#This Row],[DollarBasisImpliesReal2026]])), AND(NOT(Project_Details[[#This Row],[DollarBasisImpliesNominal]]),Project_Details[[#This Row],[DollarBasisImpliesReal2026]]),AND(NOT(Project_Details[[#This Row],[DollarBasisImpliesNominal]]),NOT(Project_Details[[#This Row],[DollarBasisImpliesReal2026]]))) -> TRUE | AJ17: =IFERROR(OR(AND(Project_Details[[#This Row],[DollarBasisImpliesNominal]],VLOOKUP(Project_Details[[#This Row],[ProjectID]],ProjectData[],MATCH("RepexDollarsBasis",ProjectData[#Headers],0),FALSE)="Nominal"),AND(Project_Details[[#This Row],[DollarBasisImpliesReal2026]],VLOOKUP(Project_Details[[#This Row],[ProjectID]],ProjectData[],MATCH("RepexDollarsBasis",ProjectData[#Headers],0),FALSE)="Real2026"),Project_Details[[#This Row],[ProjectHasNoDollarBasis]]),FALSE) -> TRUE | AK17: =IF(Project_Details[[#This Row],[DollarBasisImpliesReal2026]],AND(ISNUMBER(Project_Details[[#This Row],[Labour Internal]]),ISNUMBER(Project_Details[[#This Row],[Labour External]])),"NA") -> TRUE | AL17: =IF(Project_Details[[#This Row],[DollarBasisImpliesNominal]],NOT(OR(ISNUMBER(Project_Details[[#This Row],[Labour Internal]]),ISNUMBER(Project_Details[[#This Row],[Labour External]]))),"NA") -> NA | AM17: =IF(AND(Project_Details[[#This Row],[NomIncur2026]]=0,Project_Details[[#This Row],[WIP]]<>0),2026,IF(AND(Project_Details[[#This Row],[NomIncur2027]]=0,Project_Details[[#This Row],[NomIncur2026]]<>0),2026,IF(AND(Project_Details[[#This Row],[NomIncur2028]]=0,Project_Details[[#This Row],[NomIncur2027]]<>0),2027,IF(AND(Project_Details[[#This Row],[NomIncur2029]]=0,Project_Details[[#This Row],[NomIncur2028]]<>0),2028,IF(AND(Project_Details[[#This Row],[NomIncur2030]]=0,Project_Details[[#This Row],[NomIncur2029]]<>0),2029,IF(AND(Project_Details[[#This Row],[NomIncur2031]]=0,Project_Details[[#This Row],[NomIncur2030]]<>0),2030,IF(AND(Project_Details[[#This Row],[NomIncur2032]]=0,Project_Details[[#This Row],[NomIncur2031]]<>0),2031,IF(Project_Details[[#This Row],[NomIncur2032]]<>0,2032,"")))))))) -> 2026 | AN17: TRUE | AO17: =IF(NOT(ISNUMBER(Project_Details[[#This Row],[Capitalisation Year]])), "NA", OR(Project_Details[[#This Row],[OverWrite_CashFlowAndCapitalisationYearAreOK]],(Project_Details[[#This Row],[LastYearOfNominalCashFlow]]=Project_Details[[#This Row],[Capitalisation Year]]))) -> TRUE | AP17: =NOT(AND(Project_Details[[#This Row],[DollarBasisImpliesNominal]],OR(ISNUMBER(Project_Details[[#This Row],[Labour Internal]]),ISNUMBER(Project_Details[[#This Row],[Labour External]])))) -> TRUE | AR17: =IF(LEFT(Project_Details[[#This Row],[RIN Asset Description]],17)="Power Transformer",IF((Project_Details[[#This Row],[ExpenditureAfter2026IsNotUsed]]=TRUE),FALSE,TRUE),"NA") -> NA | AZ17: =IFERROR(("None"=VLOOKUP(Project_Details[[#This Row],[ProjectID]],ProjectData[],MATCH("RepexDollarsBasis",ProjectData[#Headers],0),FALSE)),FALSE) -> FALSE | BA17: =IF(ISNUMBER(Project_Details[[#This Row],[Capitalisation Year]]),(Project_Details[[#This Row],[Capitalisation Year]]>=2016),"NA") -> TRUE | BB17: =(Project_Details[[#This Row],[ID]]=(ROW()-ProjectDetailsTableStartRow)) -> TRUE | BC17: =VLOOKUP(Project_Details[[#This Row],[ProjectID]],ProjectData[],MATCH("Specific Approved Project", ProjectData[#Headers],0),FALSE) -> FALSE | BE17: =_xlfn.XLOOKUP(Project_Details[[#This Row],[ProjectID]],ProjectData[[#All],[ID]],ProjectData[[#All],[DMDLCCOCSplitType]],"Not Found") -> Non Network - Buildings | BF17: =_xlfn.XLOOKUP(Project_Details[[#This Row],[ProjectID]],ProjectData[[#All],[ID]],ProjectData[[#All],[PQ Project Driver]],"NOT FOUND") -> Buildings | BG17: =_xlfn.XLOOKUP(Project_Details[[#This Row],[ID]],ProjectData[[#All],[ID]],ProjectData[[#All],[Specific Approved Project]],"NOT FOUND") -> FALSE
A18: 9 | B18: 7 | C18: =Project_Details[[#This Row],[ID]] -> 9 | D18: IT - Cyber Security | E18: Non Network - IT and Communications - Non-Recurrent | F18: =ISNUMBER(MATCH(Project_Details[[#This Row],[RIN Asset Description]],Lookup_RIN_AssetCategory,0)) -> TRUE | N18: 0 | O18: 0 | P18: 0 | Q18: 0 | R18: 0 | S18: 0 | T18: 0 | U18: 0 | V18: 1515.37626 | W18: 1500 | X18: 1829.693993 | Y18: 1521.143993 | Z18: 1521.143993 | AA18: 1521.143993 | AB18: 1521.143993 | AD18: =IF((VLOOKUP(Project_Details[[#This Row],[ProjectID]],ProjectData[],MATCH("Capitalisation",ProjectData[#Headers],0),FALSE)="Project Close"),ISNUMBER(Project_Details[[#This Row],[Capitalisation Year]]),"NA") -> NA | AE18: 0.2 | AF18: 0.1 | AG18: =MAX(ABS(Project_Details[[#This Row],[NomIncur2026]:[NomIncur2032]]))>0 -> FALSE | AH18: =MAX(ABS(Project_Details[[#This Row],[RealIncur2026]:[RealIncur2032]]))>0 -> TRUE | AI18: =OR(AND(Project_Details[[#This Row],[DollarBasisImpliesNominal]],NOT(Project_Details[[#This Row],[DollarBasisImpliesReal2026]])), AND(NOT(Project_Details[[#This Row],[DollarBasisImpliesNominal]]),Project_Details[[#This Row],[DollarBasisImpliesReal2026]]),AND(NOT(Project_Details[[#This Row],[DollarBasisImpliesNominal]]),NOT(Project_Details[[#This Row],[DollarBasisImpliesReal2026]]))) -> TRUE | AJ18: =IFERROR(OR(AND(Project_Details[[#This Row],[DollarBasisImpliesNominal]],VLOOKUP(Project_Details[[#This Row],[ProjectID]],ProjectData[],MATCH("RepexDollarsBasis",ProjectData[#Headers],0),FALSE)="Nominal"),AND(Project_Details[[#This Row],[DollarBasisImpliesReal2026]],VLOOKUP(Project_Details[[#This Row],[ProjectID]],ProjectData[],MATCH("RepexDollarsBasis",ProjectData[#Headers],0),FALSE)="Real2026"),Project_Details[[#This Row],[ProjectHasNoDollarBasis]]),FALSE) -> TRUE | AK18: =IF(Project_Details[[#This Row],[DollarBasisImpliesReal2026]],AND(ISNUMBER(Project_Details[[#This Row],[Labour Internal]]),ISNUMBER(Project_Details[[#This Row],[Labour External]])),"NA") -> TRUE | AL18: =IF(Project_Details[[#This Row],[DollarBasisImpliesNominal]],NOT(OR(ISNUMBER(Project_Details[[#This Row],[Labour Internal]]),ISNUMBER(Project_Details[[#This Row],[Labour External]]))),"NA") -> NA | AM18: =IF(AND(Project_Details[[#This Row],[NomIncur2026]]=0,Project_Details[[#This Row],[WIP]]<>0),2026,IF(AND(Project_Details[[#This Row],[NomIncur2027]]=0,Project_Details[[#This Row],[NomIncur2026]]<>0),2026,IF(AND(Project_Details[[#This Row],[NomIncur2028]]=0,Project_Details[[#This Row],[NomIncur2027]]<>0),2027,IF(AND(Project_Details[[#This Row],[NomIncur2029]]=0,Project_Details[[#This Row],[NomIncur2028]]<>0),2028,IF(AND(Project_Details[[#This Row],[NomIncur2030]]=0,Project_Details[[#This Row],[NomIncur2029]]<>0),2029,IF(AND(Project_Details[[#This Row],[NomIncur2031]]=0,Project_Details[[#This Row],[NomIncur2030]]<>0),2030,IF(AND(Project_Details[[#This Row],[NomIncur2032]]=0,Project_Details[[#This Row],[NomIncur2031]]<>0),2031,IF(Project_Details[[#This Row],[NomIncur2032]]<>0,2032,"")))))))) ->  | AO18: =IF(NOT(ISNUMBER(Project_Details[[#This Row],[Capitalisation Year]])), "NA", OR(Project_Details[[#This Row],[OverWrite_CashFlowAndCapitalisationYearAreOK]],(Project_Details[[#This Row],[LastYearOfNominalCashFlow]]=Project_Details[[#This Row],[Capitalisation Year]]))) -> NA | AP18: =NOT(AND(Project_Details[[#This Row],[DollarBasisImpliesNominal]],OR(ISNUMBER(Project_Details[[#This Row],[Labour Internal]]),ISNUMBER(Project_Details[[#This Row],[Labour External]])))) -> TRUE | AR18: =IF(LEFT(Project_Details[[#This Row],[RIN Asset Description]],17)="Power Transformer",IF((Project_Details[[#This Row],[ExpenditureAfter2026IsNotUsed]]=TRUE),FALSE,TRUE),"NA") -> NA | AZ18: =IFERROR(("None"=VLOOKUP(Project_Details[[#This Row],[ProjectID]],ProjectData[],MATCH("RepexDollarsBasis",ProjectData[#Headers],0),FALSE)),FALSE) -> FALSE | BA18: =IF(ISNUMBER(Project_Details[[#This Row],[Capitalisation Year]]),(Project_Details[[#This Row],[Capitalisation Year]]>=2016),"NA") -> NA | BB18: =(Project_Details[[#This Row],[ID]]=(ROW()-ProjectDetailsTableStartRow)) -> TRUE | BC18: =VLOOKUP(Project_Details[[#This Row],[ProjectID]],ProjectData[],MATCH("Specific Approved Project", ProjectData[#Headers],0),FALSE) -> FALSE | BE18: =_xlfn.XLOOKUP(Project_Details[[#This Row],[ProjectID]],ProjectData[[#All],[ID]],ProjectData[[#All],[DMDLCCOCSplitType]],"Not Found") -> Non Network - IT - Non-recurrent | BF18: =_xlfn.XLOOKUP(Project_Details[[#This Row],[ProjectID]],ProjectData[[#All],[ID]],ProjectData[[#All],[PQ Project Driver]],"NOT FOUND") -> IT | BG18: =_xlfn.XLOOKUP(Project_Details[[#This Row],[ID]],ProjectData[[#All],[ID]],ProjectData[[#All],[Specific Approved Project]],"NOT FOUND") -> FALSE
A19: 10 | B19: 8 | C19: =Project_Details[[#This Row],[ID]] -> 10 | D19: IT - EAM | E19: Non Network - IT and Communications - Non-Recurrent | F19: =ISNUMBER(MATCH(Project_Details[[#This Row],[RIN Asset Description]],Lookup_RIN_AssetCategory,0)) -> TRUE | N19: 0 | O19: 0 | P19: 0 | Q19: 0 | R19: 0 | S19: 0 | T19: 0 | U19: 0 | V19: 0 | W19: 0 | X19: 198.9 | Y19: 675.75 | Z19: 228.8625 | AA19: 96.79375 | AB19: 58.65 | AD19: =IF((VLOOKUP(Project_Details[[#This Row],[ProjectID]],ProjectData[],MATCH("Capitalisation",ProjectData[#Headers],0),FALSE)="Project Close"),ISNUMBER(Project_Details[[#This Row],[Capitalisation Year]]),"NA") -> NA | AE19: 0.2 | AF19: 0.1 | AG19: =MAX(ABS(Project_Details[[#This Row],[NomIncur2026]:[NomIncur2032]]))>0 -> FALSE | AH19: =MAX(ABS(Project_Details[[#This Row],[RealIncur2026]:[RealIncur2032]]))>0 -> TRUE | AI19: =OR(AND(Project_Details[[#This Row],[DollarBasisImpliesNominal]],NOT(Project_Details[[#This Row],[DollarBasisImpliesReal2026]])), AND(NOT(Project_Details[[#This Row],[DollarBasisImpliesNominal]]),Project_Details[[#This Row],[DollarBasisImpliesReal2026]]),AND(NOT(Project_Details[[#This Row],[DollarBasisImpliesNominal]]),NOT(Project_Details[[#This Row],[DollarBasisImpliesReal2026]]))) -> TRUE | AJ19: =IFERROR(OR(AND(Project_Details[[#This Row],[DollarBasisImpliesNominal]],VLOOKUP(Project_Details[[#This Row],[ProjectID]],ProjectData[],MATCH("RepexDollarsBasis",ProjectData[#Headers],0),FALSE)="Nominal"),AND(Project_Details[[#This Row],[DollarBasisImpliesReal2026]],VLOOKUP(Project_Details[[#This Row],[ProjectID]],ProjectData[],MATCH("RepexDollarsBasis",ProjectData[#Headers],0),FALSE)="Real2026"),Project_Details[[#This Row],[ProjectHasNoDollarBasis]]),FALSE) -> TRUE | AK19: =IF(Project_Details[[#This Row],[DollarBasisImpliesReal2026]],AND(ISNUMBER(Project_Details[[#This Row],[Labour Internal]]),ISNUMBER(Project_Details[[#This Row],[Labour External]])),"NA") -> TRUE | AL19: =IF(Project_Details[[#This Row],[DollarBasisImpliesNominal]],NOT(OR(ISNUMBER(Project_Details[[#This Row],[Labour Internal]]),ISNUMBER(Project_Details[[#This Row],[Labour External]]))),"NA") -> NA | AM19: =IF(AND(Project_Details[[#This Row],[NomIncur2026]]=0,Project_Details[[#This Row],[WIP]]<>0),2026,IF(AND(Project_Details[[#This Row],[NomIncur2027]]=0,Project_Details[[#This Row],[NomIncur2026]]<>0),2026,IF(AND(Project_Details[[#This Row],[NomIncur2028]]=0,Project_Details[[#This Row],[NomIncur2027]]<>0),2027,IF(AND(Project_Details[[#This Row],[NomIncur2029]]=0,Project_Details[[#This Row],[NomIncur2028]]<>0),2028,IF(AND(Project_Details[[#This Row],[NomIncur2030]]=0,Project_Details[[#This Row],[NomIncur2029]]<>0),2029,IF(AND(Project_Details[[#This Row],[NomIncur2031]]=0,Project_Details[[#This Row],[NomIncur2030]]<>0),2030,IF(AND(Project_Details[[#This Row],[NomIncur2032]]=0,Project_Details[[#This Row],[NomIncur2031]]<>0),2031,IF(Project_Details[[#This Row],[NomIncur2032]]<>0,2032,"")))))))) ->  | AO19: =IF(NOT(ISNUMBER(Project_Details[[#This Row],[Capitalisation Year]])), "NA", OR(Project_Details[[#This Row],[OverWrite_CashFlowAndCapitalisationYearAreOK]],(Project_Details[[#This Row],[LastYearOfNominalCashFlow]]=Project_Details[[#This Row],[Capitalisation Year]]))) -> NA | AP19: =NOT(AND(Project_Details[[#This Row],[DollarBasisImpliesNominal]],OR(ISNUMBER(Project_Details[[#This Row],[Labour Internal]]),ISNUMBER(Project_Details[[#This Row],[Labour External]])))) -> TRUE | AR19: =IF(LEFT(Project_Details[[#This Row],[RIN Asset Description]],17)="Power Transformer",IF((Project_Details[[#This Row],[ExpenditureAfter2026IsNotUsed]]=TRUE),FALSE,TRUE),"NA") -> NA | AZ19: =IFERROR(("None"=VLOOKUP(Project_Details[[#This Row],[ProjectID]],ProjectData[],MATCH("RepexDollarsBasis",ProjectData[#Headers],0),FALSE)),FALSE) -> FALSE | BA19: =IF(ISNUMBER(Project_Details[[#This Row],[Capitalisation Year]]),(Project_Details[[#This Row],[Capitalisation Year]]>=2016),"NA") -> NA | BB19: =(Project_Details[[#This Row],[ID]]=(ROW()-ProjectDetailsTableStartRow)) -> TRUE | BC19: =VLOOKUP(Project_Details[[#This Row],[ProjectID]],ProjectData[],MATCH("Specific Approved Project", ProjectData[#Headers],0),FALSE) -> FALSE | BE19: =_xlfn.XLOOKUP(Project_Details[[#This Row],[ProjectID]],ProjectData[[#All],[ID]],ProjectData[[#All],[DMDLCCOCSplitType]],"Not Found") -> Non Network - IT - Non-recurrent | BF19: =_xlfn.XLOOKUP(Project_Details[[#This Row],[ProjectID]],ProjectData[[#All],[ID]],ProjectData[[#All],[PQ Project Driver]],"NOT FOUND") -> IT | BG19: =_xlfn.XLOOKUP(Project_Details[[#This Row],[ID]],ProjectData[[#All],[ID]],ProjectData[[#All],[Specific Approved Project]],"NOT FOUND") -> FALSE
A20: 11 | B20: 9 | C20: =Project_Details[[#This Row],[ID]] -> 11 | D20: IT - Safety & Environment | E20: Non Network - IT and Communications - Non-Recurrent | F20: =ISNUMBER(MATCH(Project_Details[[#This Row],[RIN Asset Description]],Lookup_RIN_AssetCategory,0)) -> TRUE | N20: 0 | O20: 0 | P20: 0 | Q20: 0 | R20: 0 | S20: 0 | T20: 0 | U20: 0 | V20: 0 | W20: 0 | X20: 44.1 | Y20: 50.4 | Z20: 72.275 | AA20: 6.125 | AB20: 0 | AD20: =IF((VLOOKUP(Project_Details[[#This Row],[ProjectID]],ProjectData[],MATCH("Capitalisation",ProjectData[#Headers],0),FALSE)="Project Close"),ISNUMBER(Project_Details[[#This Row],[Capitalisation Year]]),"NA") -> NA | AE20: 0.2 | AF20: 0.1 | AG20: =MAX(ABS(Project_Details[[#This Row],[NomIncur2026]:[NomIncur2032]]))>0 -> FALSE | AH20: =MAX(ABS(Project_Details[[#This Row],[RealIncur2026]:[RealIncur2032]]))>0 -> TRUE | AI20: =OR(AND(Project_Details[[#This Row],[DollarBasisImpliesNominal]],NOT(Project_Details[[#This Row],[DollarBasisImpliesReal2026]])), AND(NOT(Project_Details[[#This Row],[DollarBasisImpliesNominal]]),Project_Details[[#This Row],[DollarBasisImpliesReal2026]]),AND(NOT(Project_Details[[#This Row],[DollarBasisImpliesNominal]]),NOT(Project_Details[[#This Row],[DollarBasisImpliesReal2026]]))) -> TRUE | AJ20: =IFERROR(OR(AND(Project_Details[[#This Row],[DollarBasisImpliesNominal]],VLOOKUP(Project_Details[[#This Row],[ProjectID]],ProjectData[],MATCH("RepexDollarsBasis",ProjectData[#Headers],0),FALSE)="Nominal"),AND(Project_Details[[#This Row],[DollarBasisImpliesReal2026]],VLOOKUP(Project_Details[[#This Row],[ProjectID]],ProjectData[],MATCH("RepexDollarsBasis",ProjectData[#Headers],0),FALSE)="Real2026"),Project_Details[[#This Row],[ProjectHasNoDollarBasis]]),FALSE) -> TRUE | AK20: =IF(Project_Details[[#This Row],[DollarBasisImpliesReal2026]],AND(ISNUMBER(Project_Details[[#This Row],[Labour Internal]]),ISNUMBER(Project_Details[[#This Row],[Labour External]])),"NA") -> TRUE | AL20: =IF(Project_Details[[#This Row],[DollarBasisImpliesNominal]],NOT(OR(ISNUMBER(Project_Details[[#This Row],[Labour Internal]]),ISNUMBER(Project_Details[[#This Row],[Labour External]]))),"NA") -> NA | AM20: =IF(AND(Project_Details[[#This Row],[NomIncur2026]]=0,Project_Details[[#This Row],[WIP]]<>0),2026,IF(AND(Project_Details[[#This Row],[NomIncur2027]]=0,Project_Details[[#This Row],[NomIncur2026]]<>0),2026,IF(AND(Project_Details[[#This Row],[NomIncur2028]]=0,Project_Details[[#This Row],[NomIncur2027]]<>0),2027,IF(AND(Project_Details[[#This Row],[NomIncur2029]]=0,Project_Details[[#This Row],[NomIncur2028]]<>0),2028,IF(AND(Project_Details[[#This Row],[NomIncur2030]]=0,Project_Details[[#This Row],[NomIncur2029]]<>0),2029,IF(AND(Project_Details[[#This Row],[NomIncur2031]]=0,Project_Details[[#This Row],[NomIncur2030]]<>0),2030,IF(AND(Project_Details[[#This Row],[NomIncur2032]]=0,Project_Details[[#This Row],[NomIncur2031]]<>0),2031,IF(Project_Details[[#This Row],[NomIncur2032]]<>0,2032,"")))))))) ->  | AO20: =IF(NOT(ISNUMBER(Project_Details[[#This Row],[Capitalisation Year]])), "NA", OR(Project_Details[[#This Row],[OverWrite_CashFlowAndCapitalisationYearAreOK]],(Project_Details[[#This Row],[LastYearOfNominalCashFlow]]=Project_Details[[#This Row],[Capitalisation Year]]))) -> NA | AP20: =NOT(AND(Project_Details[[#This Row],[DollarBasisImpliesNominal]],OR(ISNUMBER(Project_Details[[#This Row],[Labour Internal]]),ISNUMBER(Project_Details[[#This Row],[Labour External]])))) -> TRUE | AR20: =IF(LEFT(Project_Details[[#This Row],[RIN Asset Description]],17)="Power Transformer",IF((Project_Details[[#This Row],[ExpenditureAfter2026IsNotUsed]]=TRUE),FALSE,TRUE),"NA") -> NA | AZ20: =IFERROR(("None"=VLOOKUP(Project_Details[[#This Row],[ProjectID]],ProjectData[],MATCH("RepexDollarsBasis",ProjectData[#Headers],0),FALSE)),FALSE) -> FALSE | BA20: =IF(ISNUMBER(Project_Details[[#This Row],[Capitalisation Year]]),(Project_Details[[#This Row],[Capitalisation Year]]>=2016),"NA") -> NA | BB20: =(Project_Details[[#This Row],[ID]]=(ROW()-ProjectDetailsTableStartRow)) -> TRUE | BC20: =VLOOKUP(Project_Details[[#This Row],[ProjectID]],ProjectData[],MATCH("Specific Approved Project", ProjectData[#Headers],0),FALSE) -> FALSE | BE20: =_xlfn.XLOOKUP(Project_Details[[#This Row],[ProjectID]],ProjectData[[#All],[ID]],ProjectData[[#All],[DMDLCCOCSplitType]],"Not Found") -> Non Network - IT - Non-recurrent | BF20: =_xlfn.XLOOKUP(Project_Details[[#This Row],[ProjectID]],ProjectData[[#All],[ID]],ProjectData[[#All],[PQ Project Driver]],"NOT FOUND") -> IT | BG20: =_xlfn.XLOOKUP(Project_Details[[#This Row],[ID]],ProjectData[[#All],[ID]],ProjectData[[#All],[Specific Approved Project]],"NOT FOUND") -> FALSE
A21: 12 | B21: 10 | C21: =Project_Details[[#This Row],[ID]] -> 12 | D21: IT - Support and Sustain | E21: Non Network - IT and Communications - Non-Recurrent | F21: =ISNUMBER(MATCH(Project_Details[[#This Row],[RIN Asset Description]],Lookup_RIN_AssetCategory,0)) -> TRUE | N21: 19822.34491 | O21: 0 | P21: 0 | Q21: 0 | R21: 0 | S21: 0 | T21: 0 | U21: 0 | V21: 10717.59974 | W21: 9964.24 | X21: 0 | Y21: 0 | Z21: 617.07 | AA21: 575.751 | AB21: 75.6 | AD21: =IF((VLOOKUP(Project_Details[[#This Row],[ProjectID]],ProjectData[],MATCH("Capitalisation",ProjectData[#Headers],0),FALSE)="Project Close"),ISNUMBER(Project_Details[[#This Row],[Capitalisation Year]]),"NA") -> NA | AE21: 0.2 | AF21: 0.1 | AG21: =MAX(ABS(Project_Details[[#This Row],[NomIncur2026]:[NomIncur2032]]))>0 -> FALSE | AH21: =MAX(ABS(Project_Details[[#This Row],[RealIncur2026]:[RealIncur2032]]))>0 -> TRUE | AI21: =OR(AND(Project_Details[[#This Row],[DollarBasisImpliesNominal]],NOT(Project_Details[[#This Row],[DollarBasisImpliesReal2026]])), AND(NOT(Project_Details[[#This Row],[DollarBasisImpliesNominal]]),Project_Details[[#This Row],[DollarBasisImpliesReal2026]]),AND(NOT(Project_Details[[#This Row],[DollarBasisImpliesNominal]]),NOT(Project_Details[[#This Row],[DollarBasisImpliesReal2026]]))) -> TRUE | AJ21: =IFERROR(OR(AND(Project_Details[[#This Row],[DollarBasisImpliesNominal]],VLOOKUP(Project_Details[[#This Row],[ProjectID]],ProjectData[],MATCH("RepexDollarsBasis",ProjectData[#Headers],0),FALSE)="Nominal"),AND(Project_Details[[#This Row],[DollarBasisImpliesReal2026]],VLOOKUP(Project_Details[[#This Row],[ProjectID]],ProjectData[],MATCH("RepexDollarsBasis",ProjectData[#Headers],0),FALSE)="Real2026"),Project_Details[[#This Row],[ProjectHasNoDollarBasis]]),FALSE) -> TRUE | AK21: =IF(Project_Details[[#This Row],[DollarBasisImpliesReal2026]],AND(ISNUMBER(Project_Details[[#This Row],[Labour Internal]]),ISNUMBER(Project_Details[[#This Row],[Labour External]])),"NA") -> TRUE | AL21: =IF(Project_Details[[#This Row],[DollarBasisImpliesNominal]],NOT(OR(ISNUMBER(Project_Details[[#This Row],[Labour Internal]]),ISNUMBER(Project_Details[[#This Row],[Labour External]]))),"NA") -> NA | AM21: =IF(AND(Project_Details[[#This Row],[NomIncur2026]]=0,Project_Details[[#This Row],[WIP]]<>0),2026,IF(AND(Project_Details[[#This Row],[NomIncur2027]]=0,Project_Details[[#This Row],[NomIncur2026]]<>0),2026,IF(AND(Project_Details[[#This Row],[NomIncur2028]]=0,Project_Details[[#This Row],[NomIncur2027]]<>0),2027,IF(AND(Project_Details[[#This Row],[NomIncur2029]]=0,Project_Details[[#This Row],[NomIncur2028]]<>0),2028,IF(AND(Project_Details[[#This Row],[NomIncur2030]]=0,Project_Details[[#This Row],[NomIncur2029]]<>0),2029,IF(AND(Project_Details[[#This Row],[NomIncur2031]]=0,Project_Details[[#This Row],[NomIncur2030]]<>0),2030,IF(AND(Project_Details[[#This Row],[NomIncur2032]]=0,Project_Details[[#This Row],[NomIncur2031]]<>0),2031,IF(Project_Details[[#This Row],[NomIncur2032]]<>0,2032,"")))))))) -> 2026 | AO21: =IF(NOT(ISNUMBER(Project_Details[[#This Row],[Capitalisation Year]])), "NA", OR(Project_Details[[#This Row],[OverWrite_CashFlowAndCapitalisationYearAreOK]],(Project_Details[[#This Row],[LastYearOfNominalCashFlow]]=Project_Details[[#This Row],[Capitalisation Year]]))) -> NA | AP21: =NOT(AND(Project_Details[[#This Row],[DollarBasisImpliesNominal]],OR(ISNUMBER(Project_Details[[#This Row],[Labour Internal]]),ISNUMBER(Project_Details[[#This Row],[Labour External]])))) -> TRUE | AR21: =IF(LEFT(Project_Details[[#This Row],[RIN Asset Description]],17)="Power Transformer",IF((Project_Details[[#This Row],[ExpenditureAfter2026IsNotUsed]]=TRUE),FALSE,TRUE),"NA") -> NA | AZ21: =IFERROR(("None"=VLOOKUP(Project_Details[[#This Row],[ProjectID]],ProjectData[],MATCH("RepexDollarsBasis",ProjectData[#Headers],0),FALSE)),FALSE) -> FALSE | BA21: =IF(ISNUMBER(Project_Details[[#This Row],[Capitalisation Year]]),(Project_Details[[#This Row],[Capitalisation Year]]>=2016),"NA") -> NA | BB21: =(Project_Details[[#This Row],[ID]]=(ROW()-ProjectDetailsTableStartRow)) -> TRUE | BC21: =VLOOKUP(Project_Details[[#This Row],[ProjectID]],ProjectData[],MATCH("Specific Approved Project", ProjectData[#Headers],0),FALSE) -> FALSE | BE21: =_xlfn.XLOOKUP(Project_Details[[#This Row],[ProjectID]],ProjectData[[#All],[ID]],ProjectData[[#All],[DMDLCCOCSplitType]],"Not Found") -> Non Network - IT - Non-recurrent | BF21: =_xlfn.XLOOKUP(Project_Details[[#This Row],[ProjectID]],ProjectData[[#All],[ID]],ProjectData[[#All],[PQ Project Driver]],"NOT FOUND") -> IT | BG21: =_xlfn.XLOOKUP(Project_Details[[#This Row],[ID]],ProjectData[[#All],[ID]],ProjectData[[#All],[Specific Approved Project]],"NOT FOUND") -> FALSE
A22: 13 | B22: 11 | C22: =Project_Details[[#This Row],[ID]] -> 13 | D22: IT - Recurrent | E22: Non Network - IT and Communications - Recurrent | F22: =ISNUMBER(MATCH(Project_Details[[#This Row],[RIN Asset Description]],Lookup_RIN_AssetCategory,0)) -> TRUE | N22: 6415.85949 | O22: 0 | P22: 0 | Q22: 0 | R22: 0 | S22: 0 | T22: 0 | U22: 0 | V22: 1759.909 | W22: 1739.75 | X22: 1818.533511 | Y22: 2787.764711 | Z22: 2517.079611 | AA22: 1376.713111 | AB22: 2181.933611 | AD22: =IF((VLOOKUP(Project_Details[[#This Row],[ProjectID]],ProjectData[],MATCH("Capitalisation",ProjectData[#Headers],0),FALSE)="Project Close"),ISNUMBER(Project_Details[[#This Row],[Capitalisation Year]]),"NA") -> NA | AE22: 0.2 | AF22: 0.1 | AG22: =MAX(ABS(Project_Details[[#This Row],[NomIncur2026]:[NomIncur2032]]))>0 -> FALSE | AH22: =MAX(ABS(Project_Details[[#This Row],[RealIncur2026]:[RealIncur2032]]))>0 -> TRUE | AI22: =OR(AND(Project_Details[[#This Row],[DollarBasisImpliesNominal]],NOT(Project_Details[[#This Row],[DollarBasisImpliesReal2026]])), AND(NOT(Project_Details[[#This Row],[DollarBasisImpliesNominal]]),Project_Details[[#This Row],[DollarBasisImpliesReal2026]]),AND(NOT(Project_Details[[#This Row],[DollarBasisImpliesNominal]]),NOT(Project_Details[[#This Row],[DollarBasisImpliesReal2026]]))) -> TRUE | AJ22: =IFERROR(OR(AND(Project_Details[[#This Row],[DollarBasisImpliesNominal]],VLOOKUP(Project_Details[[#This Row],[ProjectID]],ProjectData[],MATCH("RepexDollarsBasis",ProjectData[#Headers],0),FALSE)="Nominal"),AND(Project_Details[[#This Row],[DollarBasisImpliesReal2026]],VLOOKUP(Project_Details[[#This Row],[ProjectID]],ProjectData[],MATCH("RepexDollarsBasis",ProjectData[#Headers],0),FALSE)="Real2026"),Project_Details[[#This Row],[ProjectHasNoDollarBasis]]),FALSE) -> TRUE | AK22: =IF(Project_Details[[#This Row],[DollarBasisImpliesReal2026]],AND(ISNUMBER(Project_Details[[#This Row],[Labour Internal]]),ISNUMBER(Project_Details[[#This Row],[Labour External]])),"NA") -> TRUE | AL22: =IF(Project_Details[[#This Row],[DollarBasisImpliesNominal]],NOT(OR(ISNUMBER(Project_Details[[#This Row],[Labour Internal]]),ISNUMBER(Project_Details[[#This Row],[Labour External]]))),"NA") -> NA | AM22: =IF(AND(Project_Details[[#This Row],[NomIncur2026]]=0,Project_Details[[#This Row],[WIP]]<>0),2026,IF(AND(Project_Details[[#This Row],[NomIncur2027]]=0,Project_Details[[#This Row],[NomIncur2026]]<>0),2026,IF(AND(Project_Details[[#This Row],[NomIncur2028]]=0,Project_Details[[#This Row],[NomIncur2027]]<>0),2027,IF(AND(Project_Details[[#This Row],[NomIncur2029]]=0,Project_Details[[#This Row],[NomIncur2028]]<>0),2028,IF(AND(Project_Details[[#This Row],[NomIncur2030]]=0,Project_Details[[#This Row],[NomIncur2029]]<>0),2029,IF(AND(Project_Details[[#This Row],[NomIncur2031]]=0,Project_Details[[#This Row],[NomIncur2030]]<>0),2030,IF(AND(Project_Details[[#This Row],[NomIncur2032]]=0,Project_Details[[#This Row],[NomIncur2031]]<>0),2031,IF(Project_Details[[#This Row],[NomIncur2032]]<>0,2032,"")))))))) -> 2026 | AO22: =IF(NOT(ISNUMBER(Project_Details[[#This Row],[Capitalisation Year]])), "NA", OR(Project_Details[[#This Row],[OverWrite_CashFlowAndCapitalisationYearAreOK]],(Project_Details[[#This Row],[LastYearOfNominalCashFlow]]=Project_Details[[#This Row],[Capitalisation Year]]))) -> NA | AP22: =NOT(AND(Project_Details[[#This Row],[DollarBasisImpliesNominal]],OR(ISNUMBER(Project_Details[[#This Row],[Labour Internal]]),ISNUMBER(Project_Details[[#This Row],[Labour External]])))) -> TRUE | AR22: =IF(LEFT(Project_Details[[#This Row],[RIN Asset Description]],17)="Power Transformer",IF((Project_Details[[#This Row],[ExpenditureAfter2026IsNotUsed]]=TRUE),FALSE,TRUE),"NA") -> NA | AZ22: =IFERROR(("None"=VLOOKUP(Project_Details[[#This Row],[ProjectID]],ProjectData[],MATCH("RepexDollarsBasis",ProjectData[#Headers],0),FALSE)),FALSE) -> FALSE | BA22: =IF(ISNUMBER(Project_Details[[#This Row],[Capitalisation Year]]),(Project_Details[[#This Row],[Capitalisation Year]]>=2016),"NA") -> NA | BB22: =(Project_Details[[#This Row],[ID]]=(ROW()-ProjectDetailsTableStartRow)) -> TRUE | BC22: =VLOOKUP(Project_Details[[#This Row],[ProjectID]],ProjectData[],MATCH("Specific Approved Project", ProjectData[#Headers],0),FALSE) -> FALSE | BE22: =_xlfn.XLOOKUP(Project_Details[[#This Row],[ProjectID]],ProjectData[[#All],[ID]],ProjectData[[#All],[DMDLCCOCSplitType]],"Not Found") -> Non Network - IT - Software Hardware Refresh | BF22: =_xlfn.XLOOKUP(Project_Details[[#This Row],[ProjectID]],ProjectData[[#All],[ID]],ProjectData[[#All],[PQ Project Driver]],"NOT FOUND") -> IT | BG22: =_xlfn.XLOOKUP(Project_Details[[#This Row],[ID]],ProjectData[[#All],[ID]],ProjectData[[#All],[Specific Approved Project]],"NOT FOUND") -> FALSE
A23: 14 | B23: 12 | C23: =Project_Details[[#This Row],[ID]] -> 14 | D23: IT - Client Devices | E23: Non Network - IT and Communications - Device expenditure | F23: =ISNUMBER(MATCH(Project_Details[[#This Row],[RIN Asset Description]],Lookup_RIN_AssetCategory,0)) -> TRUE | G23: 458 | H23: 497 | I23: 355 | J23: 288 | K23: 589 | L23: 715 | M23: 352 | N23: 0 | O23: 0 | P23: 0 | Q23: 0 | R23: 0 | S23: 0 | T23: 0 | U23: 0 | V23: 2094.268 | W23: 2018.11 | X23: 771.7934 | Y23: 547.8165 | Z23: 1119.37 | AA23: 1360.2953 | AB23: 700.8001 | AD23: =IF((VLOOKUP(Project_Details[[#This Row],[ProjectID]],ProjectData[],MATCH("Capitalisation",ProjectData[#Headers],0),FALSE)="Project Close"),ISNUMBER(Project_Details[[#This Row],[Capitalisation Year]]),"NA") -> NA | AE23: 0.2 | AF23: 0.1 | AG23: =MAX(ABS(Project_Details[[#This Row],[NomIncur2026]:[NomIncur2032]]))>0 -> FALSE | AH23: =MAX(ABS(Project_Details[[#This Row],[RealIncur2026]:[RealIncur2032]]))>0 -> TRUE | AI23: =OR(AND(Project_Details[[#This Row],[DollarBasisImpliesNominal]],NOT(Project_Details[[#This Row],[DollarBasisImpliesReal2026]])), AND(NOT(Project_Details[[#This Row],[DollarBasisImpliesNominal]]),Project_Details[[#This Row],[DollarBasisImpliesReal2026]]),AND(NOT(Project_Details[[#This Row],[DollarBasisImpliesNominal]]),NOT(Project_Details[[#This Row],[DollarBasisImpliesReal2026]]))) -> TRUE | AJ23: =IFERROR(OR(AND(Project_Details[[#This Row],[DollarBasisImpliesNominal]],VLOOKUP(Project_Details[[#This Row],[ProjectID]],ProjectData[],MATCH("RepexDollarsBasis",ProjectData[#Headers],0),FALSE)="Nominal"),AND(Project_Details[[#This Row],[DollarBasisImpliesReal2026]],VLOOKUP(Project_Details[[#This Row],[ProjectID]],ProjectData[],MATCH("RepexDollarsBasis",ProjectData[#Headers],0),FALSE)="Real2026"),Project_Details[[#This Row],[ProjectHasNoDollarBasis]]),FALSE) -> TRUE | AK23: =IF(Project_Details[[#This Row],[DollarBasisImpliesReal2026]],AND(ISNUMBER(Project_Details[[#This Row],[Labour Internal]]),ISNUMBER(Project_Details[[#This Row],[Labour External]])),"NA") -> TRUE | AL23: =IF(Project_Details[[#This Row],[DollarBasisImpliesNominal]],NOT(OR(ISNUMBER(Project_Details[[#This Row],[Labour Internal]]),ISNUMBER(Project_Details[[#This Row],[Labour External]]))),"NA") -> NA | AM23: =IF(AND(Project_Details[[#This Row],[NomIncur2026]]=0,Project_Details[[#This Row],[WIP]]<>0),2026,IF(AND(Project_Details[[#This Row],[NomIncur2027]]=0,Project_Details[[#This Row],[NomIncur2026]]<>0),2026,IF(AND(Project_Details[[#This Row],[NomIncur2028]]=0,Project_Details[[#This Row],[NomIncur2027]]<>0),2027,IF(AND(Project_Details[[#This Row],[NomIncur2029]]=0,Project_Details[[#This Row],[NomIncur2028]]<>0),2028,IF(AND(Project_Details[[#This Row],[NomIncur2030]]=0,Project_Details[[#This Row],[NomIncur2029]]<>0),2029,IF(AND(Project_Details[[#This Row],[NomIncur2031]]=0,Project_Details[[#This Row],[NomIncur2030]]<>0),2030,IF(AND(Project_Details[[#This Row],[NomIncur2032]]=0,Project_Details[[#This Row],[NomIncur2031]]<>0),2031,IF(Project_Details[[#This Row],[NomIncur2032]]<>0,2032,"")))))))) ->  | AO23: =IF(NOT(ISNUMBER(Project_Details[[#This Row],[Capitalisation Year]])), "NA", OR(Project_Details[[#This Row],[OverWrite_CashFlowAndCapitalisationYearAreOK]],(Project_Details[[#This Row],[LastYearOfNominalCashFlow]]=Project_Details[[#This Row],[Capitalisation Year]]))) -> NA | AP23: =NOT(AND(Project_Details[[#This Row],[DollarBasisImpliesNominal]],OR(ISNUMBER(Project_Details[[#This Row],[Labour Internal]]),ISNUMBER(Project_Details[[#This Row],[Labour External]])))) -> TRUE | AR23: =IF(LEFT(Project_Details[[#This Row],[RIN Asset Description]],17)="Power Transformer",IF((Project_Details[[#This Row],[ExpenditureAfter2026IsNotUsed]]=TRUE),FALSE,TRUE),"NA") -> NA | AZ23: =IFERROR(("None"=VLOOKUP(Project_Details[[#This Row],[ProjectID]],ProjectData[],MATCH("RepexDollarsBasis",ProjectData[#Headers],0),FALSE)),FALSE) -> FALSE | BA23: =IF(ISNUMBER(Project_Details[[#This Row],[Capitalisation Year]]),(Project_Details[[#This Row],[Capitalisation Year]]>=2016),"NA") -> NA | BB23: =(Project_Details[[#This Row],[ID]]=(ROW()-ProjectDetailsTableStartRow)) -> TRUE | BC23: =VLOOKUP(Project_Details[[#This Row],[ProjectID]],ProjectData[],MATCH("Specific Approved Project", ProjectData[#Headers],0),FALSE) -> FALSE | BE23: =_xlfn.XLOOKUP(Project_Details[[#This Row],[ProjectID]],ProjectData[[#All],[ID]],ProjectData[[#All],[DMDLCCOCSplitType]],"Not Found") -> Non Network - IT - Software Hardware Refresh | BF23: =_xlfn.XLOOKUP(Project_Details[[#This Row],[ProjectID]],ProjectData[[#All],[ID]],ProjectData[[#All],[PQ Project Driver]],"NOT FOUND") -> IT | BG23: =_xlfn.XLOOKUP(Project_Details[[#This Row],[ID]],ProjectData[[#All],[ID]],ProjectData[[#All],[Specific Approved Project]],"NOT FOUND") -> FALSE
A24: 15 | B24: 13 | C24: =Project_Details[[#This Row],[ID]] -> 15 | D24: CP.02513 OpsWAN and MPLS Replacement RAN 2 | E24: Sec Sys - Telecomms | F24: =ISNUMBER(MATCH(Project_Details[[#This Row],[RIN Asset Description]],Lookup_RIN_AssetCategory,0)) -> TRUE | N24: 9.012871 | O24: 0 | P24: 0 | Q24: 0 | R24: 0 | S24: 0 | T24: 0 | U24: 0 | V24: 8.7444 | W24: 5856.8993 | X24: 12015.5 | Y24: 3908.9211 | Z24: 351.088829 | AA24: 0 | AB24: 0 | AC24: 2029 | AD24: =IF((VLOOKUP(Project_Details[[#This Row],[ProjectID]],ProjectData[],MATCH("Capitalisation",ProjectData[#Headers],0),FALSE)="Project Close"),ISNUMBER(Project_Details[[#This Row],[Capitalisation Year]]),"NA") -> TRUE | AE24: 0.51 | AF24: 0.03 | AG24: =MAX(ABS(Project_Details[[#This Row],[NomIncur2026]:[NomIncur2032]]))>0 -> FALSE | AH24: =MAX(ABS(Project_Details[[#This Row],[RealIncur2026]:[RealIncur2032]]))>0 -> TRUE | AI24: =OR(AND(Project_Details[[#This Row],[DollarBasisImpliesNominal]],NOT(Project_Details[[#This Row],[DollarBasisImpliesReal2026]])), AND(NOT(Project_Details[[#This Row],[DollarBasisImpliesNominal]]),Project_Details[[#This Row],[DollarBasisImpliesReal2026]]),AND(NOT(Project_Details[[#This Row],[DollarBasisImpliesNominal]]),NOT(Project_Details[[#This Row],[DollarBasisImpliesReal2026]]))) -> TRUE | AJ24: =IFERROR(OR(AND(Project_Details[[#This Row],[DollarBasisImpliesNominal]],VLOOKUP(Project_Details[[#This Row],[ProjectID]],ProjectData[],MATCH("RepexDollarsBasis",ProjectData[#Headers],0),FALSE)="Nominal"),AND(Project_Details[[#This Row],[DollarBasisImpliesReal2026]],VLOOKUP(Project_Details[[#This Row],[ProjectID]],ProjectData[],MATCH("RepexDollarsBasis",ProjectData[#Headers],0),FALSE)="Real2026"),Project_Details[[#This Row],[ProjectHasNoDollarBasis]]),FALSE) -> TRUE | AK24: =IF(Project_Details[[#This Row],[DollarBasisImpliesReal2026]],AND(ISNUMBER(Project_Details[[#This Row],[Labour Internal]]),ISNUMBER(Project_Details[[#This Row],[Labour External]])),"NA") -> TRUE | AL24: =IF(Project_Details[[#This Row],[DollarBasisImpliesNominal]],NOT(OR(ISNUMBER(Project_Details[[#This Row],[Labour Internal]]),ISNUMBER(Project_Details[[#This Row],[Labour External]]))),"NA") -> NA | AM24: =IF(AND(Project_Details[[#This Row],[NomIncur2026]]=0,Project_Details[[#This Row],[WIP]]<>0),2026,IF(AND(Project_Details[[#This Row],[NomIncur2027]]=0,Project_Details[[#This Row],[NomIncur2026]]<>0),2026,IF(AND(Project_Details[[#This Row],[NomIncur2028]]=0,Project_Details[[#This Row],[NomIncur2027]]<>0),2027,IF(AND(Project_Details[[#This Row],[NomIncur2029]]=0,Project_Details[[#This Row],[NomIncur2028]]<>0),2028,IF(AND(Project_Details[[#This Row],[NomIncur2030]]=0,Project_Details[[#This Row],[NomIncur2029]]<>0),2029,IF(AND(Project_Details[[#This Row],[NomIncur2031]]=0,Project_Details[[#This Row],[NomIncur2030]]<>0),2030,IF(AND(Project_Details[[#This Row],[NomIncur2032]]=0,Project_Details[[#This Row],[NomIncur2031]]<>0),2031,IF(Project_Details[[#This Row],[NomIncur2032]]<>0,2032,"")))))))) -> 2026 | AN24: TRUE | AO24: =IF(NOT(ISNUMBER(Project_Details[[#This Row],[Capitalisation Year]])), "NA", OR(Project_Details[[#This Row],[OverWrite_CashFlowAndCapitalisationYearAreOK]],(Project_Details[[#This Row],[LastYearOfNominalCashFlow]]=Project_Details[[#This Row],[Capitalisation Year]]))) -> TRUE | AP24: =NOT(AND(Project_Details[[#This Row],[DollarBasisImpliesNominal]],OR(ISNUMBER(Project_Details[[#This Row],[Labour Internal]]),ISNUMBER(Project_Details[[#This Row],[Labour External]])))) -> TRUE | AR24: =IF(LEFT(Project_Details[[#This Row],[RIN Asset Description]],17)="Power Transformer",IF((Project_Details[[#This Row],[ExpenditureAfter2026IsNotUsed]]=TRUE),FALSE,TRUE),"NA") -> NA | AZ24: =IFERROR(("None"=VLOOKUP(Project_Details[[#This Row],[ProjectID]],ProjectData[],MATCH("RepexDollarsBasis",ProjectData[#Headers],0),FALSE)),FALSE) -> FALSE | BA24: =IF(ISNUMBER(Project_Details[[#This Row],[Capitalisation Year]]),(Project_Details[[#This Row],[Capitalisation Year]]>=2016),"NA") -> TRUE | BB24: =(Project_Details[[#This Row],[ID]]=(ROW()-ProjectDetailsTableStartRow)) -> TRUE | BC24: =VLOOKUP(Project_Details[[#This Row],[ProjectID]],ProjectData[],MATCH("Specific Approved Project", ProjectData[#Headers],0),FALSE) -> FALSE | BE24: =_xlfn.XLOOKUP(Project_Details[[#This Row],[ProjectID]],ProjectData[[#All],[ID]],ProjectData[[#All],[DMDLCCOCSplitType]],"Not Found") -> Telecomms | BF24: =_xlfn.XLOOKUP(Project_Details[[#This Row],[ProjectID]],ProjectData[[#All],[ID]],ProjectData[[#All],[PQ Project Driver]],"NOT FOUND") -> Replacement | BG24: =_xlfn.XLOOKUP(Project_Details[[#This Row],[ID]],ProjectData[[#All],[ID]],ProjectData[[#All],[Specific Approved Project]],"NOT FOUND") -> FALSE
A25: 16 | B25: 14 | C25: =Project_Details[[#This Row],[ID]] -> 16 | D25: CP.02514 OpsWAN and MPLS Replacement RAN 3 | E25: Sec Sys - Telecomms | F25: =ISNUMBER(MATCH(Project_Details[[#This Row],[RIN Asset Description]],Lookup_RIN_AssetCategory,0)) -> TRUE | N25: 0 | O25: 0 | P25: 0 | Q25: 0 | R25: 0 | S25: 0 | T25: 0 | U25: 0 | V25: 0 | W25: 87.3289864 | X25: 7355.211014 | Y25: 3272.8992 | Z25: 2178.9216 | AA25: 657.0688 | AB25: 0 | AC25: 2030 | AD25: =IF((VLOOKUP(Project_Details[[#This Row],[ProjectID]],ProjectData[],MATCH("Capitalisation",ProjectData[#Headers],0),FALSE)="Project Close"),ISNUMBER(Project_Details[[#This Row],[Capitalisation Year]]),"NA") -> TRUE | AE25: 0.54 | AF25: 0.03 | AG25: =MAX(ABS(Project_Details[[#This Row],[NomIncur2026]:[NomIncur2032]]))>0 -> FALSE | AH25: =MAX(ABS(Project_Details[[#This Row],[RealIncur2026]:[RealIncur2032]]))>0 -> TRUE | AI25: =OR(AND(Project_Details[[#This Row],[DollarBasisImpliesNominal]],NOT(Project_Details[[#This Row],[DollarBasisImpliesReal2026]])), AND(NOT(Project_Details[[#This Row],[DollarBasisImpliesNominal]]),Project_Details[[#This Row],[DollarBasisImpliesReal2026]]),AND(NOT(Project_Details[[#This Row],[DollarBasisImpliesNominal]]),NOT(Project_Details[[#This Row],[DollarBasisImpliesReal2026]]))) -> TRUE | AJ25: =IFERROR(OR(AND(Project_Details[[#This Row],[DollarBasisImpliesNominal]],VLOOKUP(Project_Details[[#This Row],[ProjectID]],ProjectData[],MATCH("RepexDollarsBasis",ProjectData[#Headers],0),FALSE)="Nominal"),AND(Project_Details[[#This Row],[DollarBasisImpliesReal2026]],VLOOKUP(Project_Details[[#This Row],[ProjectID]],ProjectData[],MATCH("RepexDollarsBasis",ProjectData[#Headers],0),FALSE)="Real2026"),Project_Details[[#This Row],[ProjectHasNoDollarBasis]]),FALSE) -> TRUE | AK25: =IF(Project_Details[[#This Row],[DollarBasisImpliesReal2026]],AND(ISNUMBER(Project_Details[[#This Row],[Labour Internal]]),ISNUMBER(Project_Details[[#This Row],[Labour External]])),"NA") -> TRUE | AL25: =IF(Project_Details[[#This Row],[DollarBasisImpliesNominal]],NOT(OR(ISNUMBER(Project_Details[[#This Row],[Labour Internal]]),ISNUMBER(Project_Details[[#This Row],[Labour External]]))),"NA") -> NA | AM25: =IF(AND(Project_Details[[#This Row],[NomIncur2026]]=0,Project_Details[[#This Row],[WIP]]<>0),2026,IF(AND(Project_Details[[#This Row],[NomIncur2027]]=0,Project_Details[[#This Row],[NomIncur2026]]<>0),2026,IF(AND(Project_Details[[#This Row],[NomIncur2028]]=0,Project_Details[[#This Row],[NomIncur2027]]<>0),2027,IF(AND(Project_Details[[#This Row],[NomIncur2029]]=0,Project_Details[[#This Row],[NomIncur2028]]<>0),2028,IF(AND(Project_Details[[#This Row],[NomIncur2030]]=0,Project_Details[[#This Row],[NomIncur2029]]<>0),2029,IF(AND(Project_Details[[#This Row],[NomIncur2031]]=0,Project_Details[[#This Row],[NomIncur2030]]<>0),2030,IF(AND(Project_Details[[#This Row],[NomIncur2032]]=0,Project_Details[[#This Row],[NomIncur2031]]<>0),2031,IF(Project_Details[[#This Row],[NomIncur2032]]<>0,2032,"")))))))) ->  | AN25: TRUE | AO25: =IF(NOT(ISNUMBER(Project_Details[[#This Row],[Capitalisation Year]])), "NA", OR(Project_Details[[#This Row],[OverWrite_CashFlowAndCapitalisationYearAreOK]],(Project_Details[[#This Row],[LastYearOfNominalCashFlow]]=Project_Details[[#This Row],[Capitalisation Year]]))) -> TRUE | AP25: =NOT(AND(Project_Details[[#This Row],[DollarBasisImpliesNominal]],OR(ISNUMBER(Project_Details[[#This Row],[Labour Internal]]),ISNUMBER(Project_Details[[#This Row],[Labour External]])))) -> TRUE | AR25: =IF(LEFT(Project_Details[[#This Row],[RIN Asset Description]],17)="Power Transformer",IF((Project_Details[[#This Row],[ExpenditureAfter2026IsNotUsed]]=TRUE),FALSE,TRUE),"NA") -> NA | AZ25: =IFERROR(("None"=VLOOKUP(Project_Details[[#This Row],[ProjectID]],ProjectData[],MATCH("RepexDollarsBasis",ProjectData[#Headers],0),FALSE)),FALSE) -> FALSE | BA25: =IF(ISNUMBER(Project_Details[[#This Row],[Capitalisation Year]]),(Project_Details[[#This Row],[Capitalisation Year]]>=2016),"NA") -> TRUE | BB25: =(Project_Details[[#This Row],[ID]]=(ROW()-ProjectDetailsTableStartRow)) -> TRUE | BC25: =VLOOKUP(Project_Details[[#This Row],[ProjectID]],ProjectData[],MATCH("Specific Approved Project", ProjectData[#Headers],0),FALSE) -> FALSE | BE25: =_xlfn.XLOOKUP(Project_Details[[#This Row],[ProjectID]],ProjectData[[#All],[ID]],ProjectData[[#All],[DMDLCCOCSplitType]],"Not Found") -> Telecomms | BF25: =_xlfn.XLOOKUP(Project_Details[[#This Row],[ProjectID]],ProjectData[[#All],[ID]],ProjectData[[#All],[PQ Project Driver]],"NOT FOUND") -> Replacement | BG25: =_xlfn.XLOOKUP(Project_Details[[#This Row],[ID]],ProjectData[[#All],[ID]],ProjectData[[#All],[Specific Approved Project]],"NOT FOUND") -> FALSE
A26: 17 | B26: 15 | C26: =Project_Details[[#This Row],[ID]] -> 17 | D26: CP.02811 Telecommunication Network Consolidation RAN 2 | E26: Sec Sys - Telecomms | F26: =ISNUMBER(MATCH(Project_Details[[#This Row],[RIN Asset Description]],Lookup_RIN_AssetCategory,0)) -> TRUE | N26: 1699.032475 | O26: 0 | P26: 0 | Q26: 0 | R26: 0 | S26: 0 | T26: 0 | U26: 0 | V26: 5410.4148 | W26: 10636.3901 | X26: 15749.6101 | Y26: 8684.542825 | Z26: 0 | AA26: 0 | AB26: 0 | AC26: 2029 | AD26: =IF((VLOOKUP(Project_Details[[#This Row],[ProjectID]],ProjectData[],MATCH("Capitalisation",ProjectData[#Headers],0),FALSE)="Project Close"),ISNUMBER(Project_Details[[#This Row],[Capitalisation Year]]),"NA") -> TRUE | AE26: 0.69 | AF26: 0.02 | AG26: =MAX(ABS(Project_Details[[#This Row],[NomIncur2026]:[NomIncur2032]]))>0 -> FALSE | AH26: =MAX(ABS(Project_Details[[#This Row],[RealIncur2026]:[RealIncur2032]]))>0 -> TRUE | AI26: =OR(AND(Project_Details[[#This Row],[DollarBasisImpliesNominal]],NOT(Project_Details[[#This Row],[DollarBasisImpliesReal2026]])), AND(NOT(Project_Details[[#This Row],[DollarBasisImpliesNominal]]),Project_Details[[#This Row],[DollarBasisImpliesReal2026]]),AND(NOT(Project_Details[[#This Row],[DollarBasisImpliesNominal]]),NOT(Project_Details[[#This Row],[DollarBasisImpliesReal2026]]))) -> TRUE | AJ26: =IFERROR(OR(AND(Project_Details[[#This Row],[DollarBasisImpliesNominal]],VLOOKUP(Project_Details[[#This Row],[ProjectID]],ProjectData[],MATCH("RepexDollarsBasis",ProjectData[#Headers],0),FALSE)="Nominal"),AND(Project_Details[[#This Row],[DollarBasisImpliesReal2026]],VLOOKUP(Project_Details[[#This Row],[ProjectID]],ProjectData[],MATCH("RepexDollarsBasis",ProjectData[#Headers],0),FALSE)="Real2026"),Project_Details[[#This Row],[ProjectHasNoDollarBasis]]),FALSE) -> TRUE | AK26: =IF(Project_Details[[#This Row],[DollarBasisImpliesReal2026]],AND(ISNUMBER(Project_Details[[#This Row],[Labour Internal]]),ISNUMBER(Project_Details[[#This Row],[Labour External]])),"NA") -> TRUE | AL26: =IF(Project_Details[[#This Row],[DollarBasisImpliesNominal]],NOT(OR(ISNUMBER(Project_Details[[#This Row],[Labour Internal]]),ISNUMBER(Project_Details[[#This Row],[Labour External]]))),"NA") -> NA | AM26: =IF(AND(Project_Details[[#This Row],[NomIncur2026]]=0,Project_Details[[#This Row],[WIP]]<>0),2026,IF(AND(Project_Details[[#This Row],[NomIncur2027]]=0,Project_Details[[#This Row],[NomIncur2026]]<>0),2026,IF(AND(Project_Details[[#This Row],[NomIncur2028]]=0,Project_Details[[#This Row],[NomIncur2027]]<>0),2027,IF(AND(Project_Details[[#This Row],[NomIncur2029]]=0,Project_Details[[#This Row],[NomIncur2028]]<>0),2028,IF(AND(Project_Details[[#This Row],[NomIncur2030]]=0,Project_Details[[#This Row],[NomIncur2029]]<>0),2029,IF(AND(Project_Details[[#This Row],[NomIncur2031]]=0,Project_Details[[#This Row],[NomIncur2030]]<>0),2030,IF(AND(Project_Details[[#This Row],[NomIncur2032]]=0,Project_Details[[#This Row],[NomIncur2031]]<>0),2031,IF(Project_Details[[#This Row],[NomIncur2032]]<>0,2032,"")))))))) -> 2026 | AN26: TRUE | AO26: =IF(NOT(ISNUMBER(Project_Details[[#This Row],[Capitalisation Year]])), "NA", OR(Project_Details[[#This Row],[OverWrite_CashFlowAndCapitalisationYearAreOK]],(Project_Details[[#This Row],[LastYearOfNominalCashFlow]]=Project_Details[[#This Row],[Capitalisation Year]]))) -> TRUE | AP26: =NOT(AND(Project_Details[[#This Row],[DollarBasisImpliesNominal]],OR(ISNUMBER(Project_Details[[#This Row],[Labour Internal]]),ISNUMBER(Project_Details[[#This Row],[Labour External]])))) -> TRUE | AR26: =IF(LEFT(Project_Details[[#This Row],[RIN Asset Description]],17)="Power Transformer",IF((Project_Details[[#This Row],[ExpenditureAfter2026IsNotUsed]]=TRUE),FALSE,TRUE),"NA") -> NA | AZ26: =IFERROR(("None"=VLOOKUP(Project_Details[[#This Row],[ProjectID]],ProjectData[],MATCH("RepexDollarsBasis",ProjectData[#Headers],0),FALSE)),FALSE) -> FALSE | BA26: =IF(ISNUMBER(Project_Details[[#This Row],[Capitalisation Year]]),(Project_Details[[#This Row],[Capitalisation Year]]>=2016),"NA") -> TRUE | BB26: =(Project_Details[[#This Row],[ID]]=(ROW()-ProjectDetailsTableStartRow)) -> TRUE | BC26: =VLOOKUP(Project_Details[[#This Row],[ProjectID]],ProjectData[],MATCH("Specific Approved Project", ProjectData[#Headers],0),FALSE) -> FALSE | BE26: =_xlfn.XLOOKUP(Project_Details[[#This Row],[ProjectID]],ProjectData[[#All],[ID]],ProjectData[[#All],[DMDLCCOCSplitType]],"Not Found") -> Telecomms | BF26: =_xlfn.XLOOKUP(Project_Details[[#This Row],[ProjectID]],ProjectData[[#All],[ID]],ProjectData[[#All],[PQ Project Driver]],"NOT FOUND") -> Replacement | BG26: =_xlfn.XLOOKUP(Project_Details[[#This Row],[ID]],ProjectData[[#All],[ID]],ProjectData[[#All],[Specific Approved Project]],"NOT FOUND") -> FALSE
A27: 18 | B27: 16 | C27: =Project_Details[[#This Row],[ID]] -> 18 | D27: CP.02812 Telecommunication Network Consolidation RAN 3 | E27: Sec Sys - Telecomms | F27: =ISNUMBER(MATCH(Project_Details[[#This Row],[RIN Asset Description]],Lookup_RIN_AssetCategory,0)) -> TRUE | N27: 0 | O27: 0 | P27: 0 | Q27: 0 | R27: 0 | S27: 0 | T27: 0 | U27: 0 | V27: 0 | W27: 0 | X27: 10015.5456 | Y27: 9743.6064 | Z27: 7335.3936 | AA27: 259.7176 | AB27: 0 | AC27: 2030 | AD27: =IF((VLOOKUP(Project_Details[[#This Row],[ProjectID]],ProjectData[],MATCH("Capitalisation",ProjectData[#Headers],0),FALSE)="Project Close"),ISNUMBER(Project_Details[[#This Row],[Capitalisation Year]]),"NA") -> TRUE | AE27: 0.68 | AF27: 0.03 | AG27: =MAX(ABS(Project_Details[[#This Row],[NomIncur2026]:[NomIncur2032]]))>0 -> FALSE | AH27: =MAX(ABS(Project_Details[[#This Row],[RealIncur2026]:[RealIncur2032]]))>0 -> TRUE | AI27: =OR(AND(Project_Details[[#This Row],[DollarBasisImpliesNominal]],NOT(Project_Details[[#This Row],[DollarBasisImpliesReal2026]])), AND(NOT(Project_Details[[#This Row],[DollarBasisImpliesNominal]]),Project_Details[[#This Row],[DollarBasisImpliesReal2026]]),AND(NOT(Project_Details[[#This Row],[DollarBasisImpliesNominal]]),NOT(Project_Details[[#This Row],[DollarBasisImpliesReal2026]]))) -> TRUE | AJ27: =IFERROR(OR(AND(Project_Details[[#This Row],[DollarBasisImpliesNominal]],VLOOKUP(Project_Details[[#This Row],[ProjectID]],ProjectData[],MATCH("RepexDollarsBasis",ProjectData[#Headers],0),FALSE)="Nominal"),AND(Project_Details[[#This Row],[DollarBasisImpliesReal2026]],VLOOKUP(Project_Details[[#This Row],[ProjectID]],ProjectData[],MATCH("RepexDollarsBasis",ProjectData[#Headers],0),FALSE)="Real2026"),Project_Details[[#This Row],[ProjectHasNoDollarBasis]]),FALSE) -> TRUE | AK27: =IF(Project_Details[[#This Row],[DollarBasisImpliesReal2026]],AND(ISNUMBER(Project_Details[[#This Row],[Labour Internal]]),ISNUMBER(Project_Details[[#This Row],[Labour External]])),"NA") -> TRUE | AL27: =IF(Project_Details[[#This Row],[DollarBasisImpliesNominal]],NOT(OR(ISNUMBER(Project_Details[[#This Row],[Labour Internal]]),ISNUMBER(Project_Details[[#This Row],[Labour External]]))),"NA") -> NA | AM27: =IF(AND(Project_Details[[#This Row],[NomIncur2026]]=0,Project_Details[[#This Row],[WIP]]<>0),2026,IF(AND(Project_Details[[#This Row],[NomIncur2027]]=0,Project_Details[[#This Row],[NomIncur2026]]<>0),2026,IF(AND(Project_Details[[#This Row],[NomIncur2028]]=0,Project_Details[[#This Row],[NomIncur2027]]<>0),2027,IF(AND(Project_Details[[#This Row],[NomIncur2029]]=0,Project_Details[[#This Row],[NomIncur2028]]<>0),2028,IF(AND(Project_Details[[#This Row],[NomIncur2030]]=0,Project_Details[[#This Row],[NomIncur2029]]<>0),2029,IF(AND(Project_Details[[#This Row],[NomIncur2031]]=0,Project_Details[[#This Row],[NomIncur2030]]<>0),2030,IF(AND(Project_Details[[#This Row],[NomIncur2032]]=0,Project_Details[[#This Row],[NomIncur2031]]<>0),2031,IF(Project_Details[[#This Row],[NomIncur2032]]<>0,2032,"")))))))) ->  | AN27: TRUE | AO27: =IF(NOT(ISNUMBER(Project_Details[[#This Row],[Capitalisation Year]])), "NA", OR(Project_Details[[#This Row],[OverWrite_CashFlowAndCapitalisationYearAreOK]],(Project_Details[[#This Row],[LastYearOfNominalCashFlow]]=Project_Details[[#This Row],[Capitalisation Year]]))) -> TRUE | AP27: =NOT(AND(Project_Details[[#This Row],[DollarBasisImpliesNominal]],OR(ISNUMBER(Project_Details[[#This Row],[Labour Internal]]),ISNUMBER(Project_Details[[#This Row],[Labour External]])))) -> TRUE | AR27: =IF(LEFT(Project_Details[[#This Row],[RIN Asset Description]],17)="Power Transformer",IF((Project_Details[[#This Row],[ExpenditureAfter2026IsNotUsed]]=TRUE),FALSE,TRUE),"NA") -> NA | AZ27: =IFERROR(("None"=VLOOKUP(Project_Details[[#This Row],[ProjectID]],ProjectData[],MATCH("RepexDollarsBasis",ProjectData[#Headers],0),FALSE)),FALSE) -> FALSE | BA27: =IF(ISNUMBER(Project_Details[[#This Row],[Capitalisation Year]]),(Project_Details[[#This Row],[Capitalisation Year]]>=2016),"NA") -> TRUE | BB27: =(Project_Details[[#This Row],[ID]]=(ROW()-ProjectDetailsTableStartRow)) -> TRUE | BC27: =VLOOKUP(Project_Details[[#This Row],[ProjectID]],ProjectData[],MATCH("Specific Approved Project", ProjectData[#Headers],0),FALSE) -> FALSE | BE27: =_xlfn.XLOOKUP(Project_Details[[#This Row],[ProjectID]],ProjectData[[#All],[ID]],ProjectData[[#All],[DMDLCCOCSplitType]],"Not Found") -> Telecomms | BF27: =_xlfn.XLOOKUP(Project_Details[[#This Row],[ProjectID]],ProjectData[[#All],[ID]],ProjectData[[#All],[PQ Project Driver]],"NOT FOUND") -> Replacement | BG27: =_xlfn.XLOOKUP(Project_Details[[#This Row],[ID]],ProjectData[[#All],[ID]],ProjectData[[#All],[Specific Approved Project]],"NOT FOUND") -> FALSE
A28: 19 | B28: 17 | C28: =Project_Details[[#This Row],[ID]] -> 19 | D28: CP.02813 Telecommunication Network Consolidation RAN 4 | E28: Sec Sys - Telecomms | F28: =ISNUMBER(MATCH(Project_Details[[#This Row],[RIN Asset Description]],Lookup_RIN_AssetCategory,0)) -> TRUE | N28: 0 | O28: 0 | P28: 0 | Q28: 0 | R28: 0 | S28: 0 | T28: 0 | U28: 0 | V28: 0 | W28: 0 | X28: 0 | Y28: 0 | Z28: 0 | AA28: 15999.1074 | AB28: 10998.0918 | AC28: 2032 | AD28: =IF((VLOOKUP(Project_Details[[#This Row],[ProjectID]],ProjectData[],MATCH("Capitalisation",ProjectData[#Headers],0),FALSE)="Project Close"),ISNUMBER(Project_Details[[#This Row],[Capitalisation Year]]),"NA") -> TRUE | AE28: 0.69 | AF28: 0.03 | AG28: =MAX(ABS(Project_Details[[#This Row],[NomIncur2026]:[NomIncur2032]]))>0 -> FALSE | AH28: =MAX(ABS(Project_Details[[#This Row],[RealIncur2026]:[RealIncur2032]]))>0 -> TRUE | AI28: =OR(AND(Project_Details[[#This Row],[DollarBasisImpliesNominal]],NOT(Project_Details[[#This Row],[DollarBasisImpliesReal2026]])), AND(NOT(Project_Details[[#This Row],[DollarBasisImpliesNominal]]),Project_Details[[#This Row],[DollarBasisImpliesReal2026]]),AND(NOT(Project_Details[[#This Row],[DollarBasisImpliesNominal]]),NOT(Project_Details[[#This Row],[DollarBasisImpliesReal2026]]))) -> TRUE | AJ28: =IFERROR(OR(AND(Project_Details[[#This Row],[DollarBasisImpliesNominal]],VLOOKUP(Project_Details[[#This Row],[ProjectID]],ProjectData[],MATCH("RepexDollarsBasis",ProjectData[#Headers],0),FALSE)="Nominal"),AND(Project_Details[[#This Row],[DollarBasisImpliesReal2026]],VLOOKUP(Project_Details[[#This Row],[ProjectID]],ProjectData[],MATCH("RepexDollarsBasis",ProjectData[#Headers],0),FALSE)="Real2026"),Project_Details[[#This Row],[ProjectHasNoDollarBasis]]),FALSE) -> TRUE | AK28: =IF(Project_Details[[#This Row],[DollarBasisImpliesReal2026]],AND(ISNUMBER(Project_Details[[#This Row],[Labour Internal]]),ISNUMBER(Project_Details[[#This Row],[Labour External]])),"NA") -> TRUE | AL28: =IF(Project_Details[[#This Row],[DollarBasisImpliesNominal]],NOT(OR(ISNUMBER(Project_Details[[#This Row],[Labour Internal]]),ISNUMBER(Project_Details[[#This Row],[Labour External]]))),"NA") -> NA | AM28: =IF(AND(Project_Details[[#This Row],[NomIncur2026]]=0,Project_Details[[#This Row],[WIP]]<>0),2026,IF(AND(Project_Details[[#This Row],[NomIncur2027]]=0,Project_Details[[#This Row],[NomIncur2026]]<>0),2026,IF(AND(Project_Details[[#This Row],[NomIncur2028]]=0,Project_Details[[#This Row],[NomIncur2027]]<>0),2027,IF(AND(Project_Details[[#This Row],[NomIncur2029]]=0,Project_Details[[#This Row],[NomIncur2028]]<>0),2028,IF(AND(Project_Details[[#This Row],[NomIncur2030]]=0,Project_Details[[#This Row],[NomIncur2029]]<>0),2029,IF(AND(Project_Details[[#This Row],[NomIncur2031]]=0,Project_Details[[#This Row],[NomIncur2030]]<>0),2030,IF(AND(Project_Details[[#This Row],[NomIncur2032]]=0,Project_Details[[#This Row],[NomIncur2031]]<>0),2031,IF(Project_Details[[#This Row],[NomIncur2032]]<>0,2032,"")))))))) ->  | AN28: TRUE | AO28: =IF(NOT(ISNUMBER(Project_Details[[#This Row],[Capitalisation Year]])), "NA", OR(Project_Details[[#This Row],[OverWrite_CashFlowAndCapitalisationYearAreOK]],(Project_Details[[#This Row],[LastYearOfNominalCashFlow]]=Project_Details[[#This Row],[Capitalisation Year]]))) -> TRUE | AP28: =NOT(AND(Project_Details[[#This Row],[DollarBasisImpliesNominal]],OR(ISNUMBER(Project_Details[[#This Row],[Labour Internal]]),ISNUMBER(Project_Details[[#This Row],[Labour External]])))) -> TRUE | AR28: =IF(LEFT(Project_Details[[#This Row],[RIN Asset Description]],17)="Power Transformer",IF((Project_Details[[#This Row],[ExpenditureAfter2026IsNotUsed]]=TRUE),FALSE,TRUE),"NA") -> NA | AZ28: =IFERROR(("None"=VLOOKUP(Project_Details[[#This Row],[ProjectID]],ProjectData[],MATCH("RepexDollarsBasis",ProjectData[#Headers],0),FALSE)),FALSE) -> FALSE | BA28: =IF(ISNUMBER(Project_Details[[#This Row],[Capitalisation Year]]),(Project_Details[[#This Row],[Capitalisation Year]]>=2016),"NA") -> TRUE | BB28: =(Project_Details[[#This Row],[ID]]=(ROW()-ProjectDetailsTableStartRow)) -> TRUE | BC28: =VLOOKUP(Project_Details[[#This Row],[ProjectID]],ProjectData[],MATCH("Specific Approved Project", ProjectData[#Headers],0),FALSE) -> FALSE | BE28: =_xlfn.XLOOKUP(Project_Details[[#This Row],[ProjectID]],ProjectData[[#All],[ID]],ProjectData[[#All],[DMDLCCOCSplitType]],"Not Found") -> Telecomms | BF28: =_xlfn.XLOOKUP(Project_Details[[#This Row],[ProjectID]],ProjectData[[#All],[ID]],ProjectData[[#All],[PQ Project Driver]],"NOT FOUND") -> Replacement | BG28: =_xlfn.XLOOKUP(Project_Details[[#This Row],[ID]],ProjectData[[#All],[ID]],ProjectData[[#All],[Specific Approved Project]],"NOT FOUND") -> FALSE
A29: 20 | B29: 18 | C29: =Project_Details[[#This Row],[ID]] -> 20 | D29: CP.02822 OpsWAN and MPLS Replacement RAN 4 | E29: Sec Sys - Telecomms | F29: =ISNUMBER(MATCH(Project_Details[[#This Row],[RIN Asset Description]],Lookup_RIN_AssetCategory,0)) -> TRUE | N29: 0 | O29: 0 | P29: 0 | Q29: 0 | R29: 0 | S29: 0 | T29: 0 | U29: 0 | V29: 0 | W29: 0 | X29: 0 | Y29: 0 | Z29: 0 | AA29: 9501.8913 | AB29: 4241.3031 | AC29: 2032 | AD29: =IF((VLOOKUP(Project_Details[[#This Row],[ProjectID]],ProjectData[],MATCH("Capitalisation",ProjectData[#Headers],0),FALSE)="Project Close"),ISNUMBER(Project_Details[[#This Row],[Capitalisation Year]]),"NA") -> TRUE | AE29: 0.55 | AF29: 0.04 | AG29: =MAX(ABS(Project_Details[[#This Row],[NomIncur2026]:[NomIncur2032]]))>0 -> FALSE | AH29: =MAX(ABS(Project_Details[[#This Row],[RealIncur2026]:[RealIncur2032]]))>0 -> TRUE | AI29: =OR(AND(Project_Details[[#This Row],[DollarBasisImpliesNominal]],NOT(Project_Details[[#This Row],[DollarBasisImpliesReal2026]])), AND(NOT(Project_Details[[#This Row],[DollarBasisImpliesNominal]]),Project_Details[[#This Row],[DollarBasisImpliesReal2026]]),AND(NOT(Project_Details[[#This Row],[DollarBasisImpliesNominal]]),NOT(Project_Details[[#This Row],[DollarBasisImpliesReal2026]]))) -> TRUE | AJ29: =IFERROR(OR(AND(Project_Details[[#This Row],[DollarBasisImpliesNominal]],VLOOKUP(Project_Details[[#This Row],[ProjectID]],ProjectData[],MATCH("RepexDollarsBasis",ProjectData[#Headers],0),FALSE)="Nominal"),AND(Project_Details[[#This Row],[DollarBasisImpliesReal2026]],VLOOKUP(Project_Details[[#This Row],[ProjectID]],ProjectData[],MATCH("RepexDollarsBasis",ProjectData[#Headers],0),FALSE)="Real2026"),Project_Details[[#This Row],[ProjectHasNoDollarBasis]]),FALSE) -> TRUE | AK29: =IF(Project_Details[[#This Row],[DollarBasisImpliesReal2026]],AND(ISNUMBER(Project_Details[[#This Row],[Labour Internal]]),ISNUMBER(Project_Details[[#This Row],[Labour External]])),"NA") -> TRUE | AL29: =IF(Project_Details[[#This Row],[DollarBasisImpliesNominal]],NOT(OR(ISNUMBER(Project_Details[[#This Row],[Labour Internal]]),ISNUMBER(Project_Details[[#This Row],[Labour External]]))),"NA") -> NA | AM29: =IF(AND(Project_Details[[#This Row],[NomIncur2026]]=0,Project_Details[[#This Row],[WIP]]<>0),2026,IF(AND(Project_Details[[#This Row],[NomIncur2027]]=0,Project_Details[[#This Row],[NomIncur2026]]<>0),2026,IF(AND(Project_Details[[#This Row],[NomIncur2028]]=0,Project_Details[[#This Row],[NomIncur2027]]<>0),2027,IF(AND(Project_Details[[#This Row],[NomIncur2029]]=0,Project_Details[[#This Row],[NomIncur2028]]<>0),2028,IF(AND(Project_Details[[#This Row],[NomIncur2030]]=0,Project_Details[[#This Row],[NomIncur2029]]<>0),2029,IF(AND(Project_Details[[#This Row],[NomIncur2031]]=0,Project_Details[[#This Row],[NomIncur2030]]<>0),2030,IF(AND(Project_Details[[#This Row],[NomIncur2032]]=0,Project_Details[[#This Row],[NomIncur2031]]<>0),2031,IF(Project_Details[[#This Row],[NomIncur2032]]<>0,2032,"")))))))) ->  | AN29: TRUE | AO29: =IF(NOT(ISNUMBER(Project_Details[[#This Row],[Capitalisation Year]])), "NA", OR(Project_Details[[#This Row],[OverWrite_CashFlowAndCapitalisationYearAreOK]],(Project_Details[[#This Row],[LastYearOfNominalCashFlow]]=Project_Details[[#This Row],[Capitalisation Year]]))) -> TRUE | AP29: =NOT(AND(Project_Details[[#This Row],[DollarBasisImpliesNominal]],OR(ISNUMBER(Project_Details[[#This Row],[Labour Internal]]),ISNUMBER(Project_Details[[#This Row],[Labour External]])))) -> TRUE | AR29: =IF(LEFT(Project_Details[[#This Row],[RIN Asset Description]],17)="Power Transformer",IF((Project_Details[[#This Row],[ExpenditureAfter2026IsNotUsed]]=TRUE),FALSE,TRUE),"NA") -> NA | AZ29: =IFERROR(("None"=VLOOKUP(Project_Details[[#This Row],[ProjectID]],ProjectData[],MATCH("RepexDollarsBasis",ProjectData[#Headers],0),FALSE)),FALSE) -> FALSE | BA29: =IF(ISNUMBER(Project_Details[[#This Row],[Capitalisation Year]]),(Project_Details[[#This Row],[Capitalisation Year]]>=2016),"NA") -> TRUE | BB29: =(Project_Details[[#This Row],[ID]]=(ROW()-ProjectDetailsTableStartRow)) -> TRUE | BC29: =VLOOKUP(Project_Details[[#This Row],[ProjectID]],ProjectData[],MATCH("Specific Approved Project", ProjectData[#Headers],0),FALSE) -> FALSE | BE29: =_xlfn.XLOOKUP(Project_Details[[#This Row],[ProjectID]],ProjectData[[#All],[ID]],ProjectData[[#All],[DMDLCCOCSplitType]],"Not Found") -> Telecomms | BF29: =_xlfn.XLOOKUP(Project_Details[[#This Row],[ProjectID]],ProjectData[[#All],[ID]],ProjectData[[#All],[PQ Project Driver]],"NOT FOUND") -> Replacement | BG29: =_xlfn.XLOOKUP(Project_Details[[#This Row],[ID]],ProjectData[[#All],[ID]],ProjectData[[#All],[Specific Approved Project]],"NOT FOUND") -> FALSE
A30: 21 | B30: 19 | C30: =Project_Details[[#This Row],[ID]] -> 21 | D30: CP.01162 Callemondah Substation Reinvestment | E30: SUBSTATION SWITCHBAYS | F30: =ISNUMBER(MATCH(Project_Details[[#This Row],[RIN Asset Description]],Lookup_RIN_AssetCategory,0)) -> TRUE | J30: 3 | N30: 568.07977 | O30: 0 | P30: 0 | Q30: 0 | R30: 0 | S30: 0 | T30: 0 | U30: 0 | V30: 53.92702869 | W30: 1605.70574 | X30: 5863.028109 | Y30: 4969.887585 | Z30: 85.6587709 | AA30: 0 | AB30: 0 | AC30: 2029 | AD30: =IF((VLOOKUP(Project_Details[[#This Row],[ProjectID]],ProjectData[],MATCH("Capitalisation",ProjectData[#Headers],0),FALSE)="Project Close"),ISNUMBER(Project_Details[[#This Row],[Capitalisation Year]]),"NA") -> TRUE | AE30: 0.54 | AF30: 0.23 | AG30: =MAX(ABS(Project_Details[[#This Row],[NomIncur2026]:[NomIncur2032]]))>0 -> FALSE | AH30: =MAX(ABS(Project_Details[[#This Row],[RealIncur2026]:[RealIncur2032]]))>0 -> TRUE | AI30: =OR(AND(Project_Details[[#This Row],[DollarBasisImpliesNominal]],NOT(Project_Details[[#This Row],[DollarBasisImpliesReal2026]])), AND(NOT(Project_Details[[#This Row],[DollarBasisImpliesNominal]]),Project_Details[[#This Row],[DollarBasisImpliesReal2026]]),AND(NOT(Project_Details[[#This Row],[DollarBasisImpliesNominal]]),NOT(Project_Details[[#This Row],[DollarBasisImpliesReal2026]]))) -> TRUE | AJ30: =IFERROR(OR(AND(Project_Details[[#This Row],[DollarBasisImpliesNominal]],VLOOKUP(Project_Details[[#This Row],[ProjectID]],ProjectData[],MATCH("RepexDollarsBasis",ProjectData[#Headers],0),FALSE)="Nominal"),AND(Project_Details[[#This Row],[DollarBasisImpliesReal2026]],VLOOKUP(Project_Details[[#This Row],[ProjectID]],ProjectData[],MATCH("RepexDollarsBasis",ProjectData[#Headers],0),FALSE)="Real2026"),Project_Details[[#This Row],[ProjectHasNoDollarBasis]]),FALSE) -> TRUE | AK30: =IF(Project_Details[[#This Row],[DollarBasisImpliesReal2026]],AND(ISNUMBER(Project_Details[[#This Row],[Labour Internal]]),ISNUMBER(Project_Details[[#This Row],[Labour External]])),"NA") -> TRUE | AL30: =IF(Project_Details[[#This Row],[DollarBasisImpliesNominal]],NOT(OR(ISNUMBER(Project_Details[[#This Row],[Labour Internal]]),ISNUMBER(Project_Details[[#This Row],[Labour External]]))),"NA") -> NA | AM30: =IF(AND(Project_Details[[#This Row],[NomIncur2026]]=0,Project_Details[[#This Row],[WIP]]<>0),2026,IF(AND(Project_Details[[#This Row],[NomIncur2027]]=0,Project_Details[[#This Row],[NomIncur2026]]<>0),2026,IF(AND(Project_Details[[#This Row],[NomIncur2028]]=0,Project_Details[[#This Row],[NomIncur2027]]<>0),2027,IF(AND(Project_Details[[#This Row],[NomIncur2029]]=0,Project_Details[[#This Row],[NomIncur2028]]<>0),2028,IF(AND(Project_Details[[#This Row],[NomIncur2030]]=0,Project_Details[[#This Row],[NomIncur2029]]<>0),2029,IF(AND(Project_Details[[#This Row],[NomIncur2031]]=0,Project_Details[[#This Row],[NomIncur2030]]<>0),2030,IF(AND(Project_Details[[#This Row],[NomIncur2032]]=0,Project_Details[[#This Row],[NomIncur2031]]<>0),2031,IF(Project_Details[[#This Row],[NomIncur2032]]<>0,2032,"")))))))) -> 2026 | AN30: TRUE | AO30: =IF(NOT(ISNUMBER(Project_Details[[#This Row],[Capitalisation Year]])), "NA", OR(Project_Details[[#This Row],[OverWrite_CashFlowAndCapitalisationYearAreOK]],(Project_Details[[#This Row],[LastYearOfNominalCashFlow]]=Project_Details[[#This Row],[Capitalisation Year]]))) -> TRUE | AP30: =NOT(AND(Project_Details[[#This Row],[DollarBasisImpliesNominal]],OR(ISNUMBER(Project_Details[[#This Row],[Labour Internal]]),ISNUMBER(Project_Details[[#This Row],[Labour External]])))) -> TRUE | AR30: =IF(LEFT(Project_Details[[#This Row],[RIN Asset Description]],17)="Power Transformer",IF((Project_Details[[#This Row],[ExpenditureAfter2026IsNotUsed]]=TRUE),FALSE,TRUE),"NA") -> NA | AZ30: =IFERROR(("None"=VLOOKUP(Project_Details[[#This Row],[ProjectID]],ProjectData[],MATCH("RepexDollarsBasis",ProjectData[#Headers],0),FALSE)),FALSE) -> FALSE | BA30: =IF(ISNUMBER(Project_Details[[#This Row],[Capitalisation Year]]),(Project_Details[[#This Row],[Capitalisation Year]]>=2016),"NA") -> TRUE | BB30: =(Project_Details[[#This Row],[ID]]=(ROW()-ProjectDetailsTableStartRow)) -> TRUE | BC30: =VLOOKUP(Project_Details[[#This Row],[ProjectID]],ProjectData[],MATCH("Specific Approved Project", ProjectData[#Headers],0),FALSE) -> FALSE | BE30: =_xlfn.XLOOKUP(Project_Details[[#This Row],[ProjectID]],ProjectData[[#All],[ID]],ProjectData[[#All],[DMDLCCOCSplitType]],"Not Found") -> Primary Plant - Bay | BF30: =_xlfn.XLOOKUP(Project_Details[[#This Row],[ProjectID]],ProjectData[[#All],[ID]],ProjectData[[#All],[PQ Project Driver]],"NOT FOUND") -> Replacement | BG30: =_xlfn.XLOOKUP(Project_Details[[#This Row],[ID]],ProjectData[[#All],[ID]],ProjectData[[#All],[Specific Approved Project]],"NOT FOUND") -> FALSE
A31: 22 | B31: 19 | C31: =Project_Details[[#This Row],[ID]] -> 22 | D31: CP.01162 Callemondah Substation Reinvestment | E31: Sec Sys - Bay Non Bay | F31: =ISNUMBER(MATCH(Project_Details[[#This Row],[RIN Asset Description]],Lookup_RIN_AssetCategory,0)) -> TRUE | J31: 5 | N31: 0 | O31: 0 | P31: 0 | Q31: 0 | R31: 0 | S31: 0 | T31: 0 | U31: 0 | V31: 35 | W31: 1042.143472 | X31: 3805.252928 | Y31: 3225.582231 | Z31: 55.5947 | AA31: 0 | AB31: 0 | AC31: 2029 | AD31: =IF((VLOOKUP(Project_Details[[#This Row],[ProjectID]],ProjectData[],MATCH("Capitalisation",ProjectData[#Headers],0),FALSE)="Project Close"),ISNUMBER(Project_Details[[#This Row],[Capitalisation Year]]),"NA") -> TRUE | AE31: 0.54 | AF31: 0.23 | AG31: =MAX(ABS(Project_Details[[#This Row],[NomIncur2026]:[NomIncur2032]]))>0 -> FALSE | AH31: =MAX(ABS(Project_Details[[#This Row],[RealIncur2026]:[RealIncur2032]]))>0 -> TRUE | AI31: =OR(AND(Project_Details[[#This Row],[DollarBasisImpliesNominal]],NOT(Project_Details[[#This Row],[DollarBasisImpliesReal2026]])), AND(NOT(Project_Details[[#This Row],[DollarBasisImpliesNominal]]),Project_Details[[#This Row],[DollarBasisImpliesReal2026]]),AND(NOT(Project_Details[[#This Row],[DollarBasisImpliesNominal]]),NOT(Project_Details[[#This Row],[DollarBasisImpliesReal2026]]))) -> TRUE | AJ31: =IFERROR(OR(AND(Project_Details[[#This Row],[DollarBasisImpliesNominal]],VLOOKUP(Project_Details[[#This Row],[ProjectID]],ProjectData[],MATCH("RepexDollarsBasis",ProjectData[#Headers],0),FALSE)="Nominal"),AND(Project_Details[[#This Row],[DollarBasisImpliesReal2026]],VLOOKUP(Project_Details[[#This Row],[ProjectID]],ProjectData[],MATCH("RepexDollarsBasis",ProjectData[#Headers],0),FALSE)="Real2026"),Project_Details[[#This Row],[ProjectHasNoDollarBasis]]),FALSE) -> TRUE | AK31: =IF(Project_Details[[#This Row],[DollarBasisImpliesReal2026]],AND(ISNUMBER(Project_Details[[#This Row],[Labour Internal]]),ISNUMBER(Project_Details[[#This Row],[Labour External]])),"NA") -> TRUE | AL31: =IF(Project_Details[[#This Row],[DollarBasisImpliesNominal]],NOT(OR(ISNUMBER(Project_Details[[#This Row],[Labour Internal]]),ISNUMBER(Project_Details[[#This Row],[Labour External]]))),"NA") -> NA | AM31: =IF(AND(Project_Details[[#This Row],[NomIncur2026]]=0,Project_Details[[#This Row],[WIP]]<>0),2026,IF(AND(Project_Details[[#This Row],[NomIncur2027]]=0,Project_Details[[#This Row],[NomIncur2026]]<>0),2026,IF(AND(Project_Details[[#This Row],[NomIncur2028]]=0,Project_Details[[#This Row],[NomIncur2027]]<>0),2027,IF(AND(Project_Details[[#This Row],[NomIncur2029]]=0,Project_Details[[#This Row],[NomIncur2028]]<>0),2028,IF(AND(Project_Details[[#This Row],[NomIncur2030]]=0,Project_Details[[#This Row],[NomIncur2029]]<>0),2029,IF(AND(Project_Details[[#This Row],[NomIncur2031]]=0,Project_Details[[#This Row],[NomIncur2030]]<>0),2030,IF(AND(Project_Details[[#This Row],[NomIncur2032]]=0,Project_Details[[#This Row],[NomIncur2031]]<>0),2031,IF(Project_Details[[#This Row],[NomIncur2032]]<>0,2032,"")))))))) ->  | AN31: TRUE | AO31: =IF(NOT(ISNUMBER(Project_Details[[#This Row],[Capitalisation Year]])), "NA", OR(Project_Details[[#This Row],[OverWrite_CashFlowAndCapitalisationYearAreOK]],(Project_Details[[#This Row],[LastYearOfNominalCashFlow]]=Project_Details[[#This Row],[Capitalisation Year]]))) -> TRUE | AP31: =NOT(AND(Project_Details[[#This Row],[DollarBasisImpliesNominal]],OR(ISNUMBER(Project_Details[[#This Row],[Labour Internal]]),ISNUMBER(Project_Details[[#This Row],[Labour External]])))) -> TRUE | AR31: =IF(LEFT(Project_Details[[#This Row],[RIN Asset Description]],17)="Power Transformer",IF((Project_Details[[#This Row],[ExpenditureAfter2026IsNotUsed]]=TRUE),FALSE,TRUE),"NA") -> NA | AZ31: =IFERROR(("None"=VLOOKUP(Project_Details[[#This Row],[ProjectID]],ProjectData[],MATCH("RepexDollarsBasis",ProjectData[#Headers],0),FALSE)),FALSE) -> FALSE | BA31: =IF(ISNUMBER(Project_Details[[#This Row],[Capitalisation Year]]),(Project_Details[[#This Row],[Capitalisation Year]]>=2016),"NA") -> TRUE | BB31: =(Project_Details[[#This Row],[ID]]=(ROW()-ProjectDetailsTableStartRow)) -> TRUE | BC31: =VLOOKUP(Project_Details[[#This Row],[ProjectID]],ProjectData[],MATCH("Specific Approved Project", ProjectData[#Headers],0),FALSE) -> FALSE | BE31: =_xlfn.XLOOKUP(Project_Details[[#This Row],[ProjectID]],ProjectData[[#All],[ID]],ProjectData[[#All],[DMDLCCOCSplitType]],"Not Found") -> Primary Plant - Bay | BF31: =_xlfn.XLOOKUP(Project_Details[[#This Row],[ProjectID]],ProjectData[[#All],[ID]],ProjectData[[#All],[PQ Project Driver]],"NOT FOUND") -> Replacement | BG31: =_xlfn.XLOOKUP(Project_Details[[#This Row],[ID]],ProjectData[[#All],[ID]],ProjectData[[#All],[Specific Approved Project]],"NOT FOUND") -> FALSE
... 35 more rows

Sheet Input Cost Allocation
A1: Contents
B3: Cost Allocations
B5: Type of Project | C5: Direct Materials | D5: Direct Labour | E5: Contract Costs | F5: Other Costs | G5: Check Total 1
B6: Tower Replacement | C6: 0.07 | D6: 0.1 | E6: 0.8 | F6: 0.03 | G6: =(SUM(CostAllocationSplit[[#This Row],[Direct Materials]:[Other Costs]])=1) -> TRUE
B7: Tower Refit | C7: 0.02 | D7: 0.2 | E7: 0.75 | F7: 0.03 | G7: =(SUM(CostAllocationSplit[[#This Row],[Direct Materials]:[Other Costs]])=1) -> TRUE
B8: Secondary Systems | C8: 0.2 | D8: 0.3 | E8: 0.45 | F8: 0.05 | G8: =(SUM(CostAllocationSplit[[#This Row],[Direct Materials]:[Other Costs]])=1) -> TRUE
B9: Telecomms | C9: 0.35 | D9: 0.55 | E9: 0.08 | F9: 0.02 | G9: =(SUM(CostAllocationSplit[[#This Row],[Direct Materials]:[Other Costs]])=1) -> TRUE
B10: Other | C10: 0.25 | D10: 0.2 | E10: 0.3 | F10: 0.25 | G10: =(SUM(CostAllocationSplit[[#This Row],[Direct Materials]:[Other Costs]])=1) -> TRUE
B11: Primary Plant - Power Transformer | C11: 0.6 | D11: 0.15 | E11: 0.23 | F11: 0.02 | G11: =(SUM(CostAllocationSplit[[#This Row],[Direct Materials]:[Other Costs]])=1) -> TRUE
B12: Repex - Non Modelled | C12: 0.35 | D12: 0.2 | E12: 0.2 | F12: 0.25 | G12: =(SUM(CostAllocationSplit[[#This Row],[Direct Materials]:[Other Costs]])=1) -> TRUE
B13: Security and Compliance | C13: 0.3 | D13: 0.3 | E13: 0.3 | F13: 0.1 | G13: =(SUM(CostAllocationSplit[[#This Row],[Direct Materials]:[Other Costs]])=1) -> TRUE
B14: Primary Plant - Bay | C14: 0.34 | D14: 0.29 | E14: 0.35 | F14: 0.02 | G14: =(SUM(CostAllocationSplit[[#This Row],[Direct Materials]:[Other Costs]])=1) -> TRUE
B15: Non Network - MV | C15: 0.9 | D15: 0.05 | E15: 0 | F15: 0.05 | G15: =(SUM(CostAllocationSplit[[#This Row],[Direct Materials]:[Other Costs]])=1) -> TRUE
B16: Non Network - Buildings | C16: 0.03 | D16: 0.02 | E16: 0.5 | F16: 0.45 | G16: =(SUM(CostAllocationSplit[[#This Row],[Direct Materials]:[Other Costs]])=1) -> TRUE
B17: Non Network - Tools | C17: 0.75 | D17: 0.1 | E17: 0.05 | F17: 0.1 | G17: =(SUM(CostAllocationSplit[[#This Row],[Direct Materials]:[Other Costs]])=1) -> TRUE
B18: Easement | C18: 0.05 | D18: 0.1 | E18: 0.05 | F18: 0.8 | G18: =(SUM(CostAllocationSplit[[#This Row],[Direct Materials]:[Other Costs]])=1) -> TRUE
B19: Non Network - IT - Non-recurrent | C19: 0 | D19: 0.25 | E19: 0.07 | F19: 0.68 | G19: =(SUM(CostAllocationSplit[[#This Row],[Direct Materials]:[Other Costs]])=1) -> TRUE
B20: Non Network - IT - Software Hardware Refresh | C20: 0 | D20: 0.12 | E20: 0.175 | F20: 0.705 | G20: =(SUM(CostAllocationSplit[[#This Row],[Direct Materials]:[Other Costs]])=1) -> TRUE
B21: Non Network - IT - Minor Software | C21: 0 | D21: 0.15 | E21: 0.25 | F21: 0.6 | G21: =(SUM(CostAllocationSplit[[#This Row],[Direct Materials]:[Other Costs]])=1) -> TRUE
B22: Non Network - IT - Early Years | C22: 0 | D22: 0.19 | E22: 0.1135 | F22: 0.6965 | G22: =(SUM(CostAllocationSplit[[#This Row],[Direct Materials]:[Other Costs]])=1) -> TRUE
B23: EMS | C23: 0.06072134335 | D23: 0.5462360863 | E23: 0.3791634062 | F23: 0.01387916419 | G23: =(SUM(CostAllocationSplit[[#This Row],[Direct Materials]:[Other Costs]])=1) -> TRUE

Sheet Input Disposals
A1: Contents
B3: Motor Vehicle Disposals
B5: Motor vehicle disposals are not directly in the forecast (so do not include them as a project).
B8: Description | C8: 2026 | D8: 2027 | E8: 2028 | F8: 2029 | G8: 2030 | H8: 2031 | I8: 2032
B9: Motor Vehicle Disposals - Nominal (MY) ($m) | C9: 2.508900181 | D9: 0.9712618216 | E9: 1.251748372 | F9: 1.567086503 | G9: 1.821231661 | H9: 1.529883855 | I9: 1.49017479
B10: Convert MY Nominal to EOY Real 26/27 | C10: =VLOOKUP($B10,Conversion[],MATCH(C8,Conversion[#Headers],0),FALSE) -> 1.04888979 | D10: =VLOOKUP($B10,Conversion[],MATCH(D8,Conversion[#Headers],0),FALSE) -> 1.015874008 | E10: =VLOOKUP($B10,Conversion[],MATCH(E8,Conversion[#Headers],0),FALSE) -> 0.9872482468 | F10: =VLOOKUP($B10,Conversion[],MATCH(F8,Conversion[#Headers],0),FALSE) -> 0.9622304886 | G10: =VLOOKUP($B10,Conversion[],MATCH(G8,Conversion[#Headers],0),FALSE) -> 0.9378467028 | H10: =VLOOKUP($B10,Conversion[],MATCH(H8,Conversion[#Headers],0),FALSE) -> 0.9140808241 | I10: =VLOOKUP($B10,Conversion[],MATCH(I8,Conversion[#Headers],0),FALSE) -> 0.8909171942
B11: Motor Vehicle Disposals - EOY Real 26/27 ($m) | C11: =C9*C10 -> 2.631559785 | D11: 0.9866796395 | E11: 1.235786386 | F11: 1.507898411 | G11: 1.708036109 | H11: 1.398437495 | I11: 1.327622342
B12: Property Disposals - Nominal (MY) ($m) | C12: 0 | D12: 0 | E12: 0 | F12: 0 | G12: 0 | H12: 0 | I12: 0
B13: Property Disposals - EOY Real 26/27 ($m) | C13: =C10*C12 -> 0 | D13: =D10*D12 -> 0 | E13: 0 | F13: 0 | G13: 0 | H13: 0 | I13: 0

Sheet Lookups
A1: Contents
B3: Data Lookups
B5: Project Drivers | D5: Asset Class | F5: Capitalisation Types | H5: Dollar Basis | J5: RIN Asset Classification
B7: Augmentation | D7: Transmission Lines - Overhead | F7: As Incurred | H7: Nominal | J7: RIN Asset Category | K7: RIN Asset Group | L7: RIN High Level Asset Group
B8: Connection | D8: Transmission Lines - Underground | F8: As Specified | H8: Real2026 | J8: Towers - < = 33 kV; Single Circuit | K8: Repex - Transmission Towers | L8: Replacement
B9: Easement | D9: Transmission Lines - Refit | F9: Project Close | H9: None | J9: Towers - > 33 kV & < = 66 kV ; Single Circuit | K9: Repex - Transmission Towers | L9: Replacement
B10: Replacement | D10: Substations Primary Plant | F10: Adjustment | J10: Towers - > 66 kV & < = 132 kV ; Single Circuit | K10: Repex - Transmission Towers | L10: Replacement
B11: System Services | D11: Substations Secondary Systems | F11: None | J11: Towers - > 132 kV & < = 275 kV ; Single Circuit | K11: Repex - Transmission Towers | L11: Replacement
B12: Other | D12: Communications Other Assets | J12: Towers - > 275 kV & < = 330 kV ; Single Circuit | K12: Repex - Transmission Towers | L12: Replacement
B13: Security and Compliance | D13: Comms - Civil Works | J13: Towers - > 330 kV & < = 500 kV ; Single Circuit | K13: Repex - Transmission Towers | L13: Replacement
B14: IT | D14: Network Switching Centres | J14: Towers - > 500 kV ; Single Circuit | K14: Repex - Transmission Towers | L14: Replacement
B15: MV | D15: Land (network and non-network) | J15: Towers - < = 33 kV; Multiple Circuit | K15: Repex - Transmission Towers | L15: Replacement
B16: Buildings | D16: Easements | J16: Towers - > 33 kV & < = 66 kV ; Multiple Circuit | K16: Repex - Transmission Towers | L16: Replacement
B17: Tools | D17: Commercial Buildings - old | J17: Towers - > 66 kV & < = 132 kV ; Multiple Circuit | K17: Repex - Transmission Towers | L17: Replacement
D18: Computer Equipment | J18: Towers - > 132 kV & < = 275 kV ; Multiple Circuit | K18: Repex - Transmission Towers | L18: Replacement
D19: Office Furniture & Miscellaneous | J19: Towers - > 275 kV & < = 330 kV ; Multiple Circuit | K19: Repex - Transmission Towers | L19: Replacement
D20: Office Machines | J20: Towers - > 330 kV & < = 500 kV ; Multiple Circuit | K20: Repex - Transmission Towers | L20: Replacement
D21: Vehicles | J21: Towers - > 500 kV ; Multiple Circuit | K21: Repex - Transmission Towers | L21: Replacement
D22: Moveable Plant | J22: Towers - > 66 kV & < = 132 kV ; Single Circuit - REFURBISHED | K22: Repex - Transmission Towers | L22: Replacement
D23: Insurance Spares | J23: Towers - > 132 kV & < = 275 kV ; Single Circuit - REFURBISHED | K23: Repex - Transmission Towers | L23: Replacement
D24: Spare | J24: Towers - > 275 kV & < = 330 kV ; Single Circuit - REFURBISHED | K24: Repex - Transmission Towers | L24: Replacement
D25: Buildings - Capital Works | J25: Towers - > 66 kV & < = 132 kV ; Multiple Circuit - REFURBISHED | K25: Repex - Transmission Towers | L25: Replacement
D26: Inhouse Software | J26: Towers - > 132 kV & < = 275 kV ; Multiple Circuit - REFURBISHED | K26: Repex - Transmission Towers | L26: Replacement
D27: ERC | J27: Towers - > 275 kV & < = 330 kV ; Multiple Circuit - REFURBISHED | K27: Repex - Transmission Towers | L27: Replacement
J28: Conductors - < = 33 kV ; < = 100 MVA | K28: Repex - Conductors | L28: Replacement
J29: Conductors - < = 33 kV ; > 100 MVA & < = 400 MVA | K29: Repex - Conductors | L29: Replacement
J30: Conductors - < = 33 kV ; > 400 MVA | K30: Repex - Conductors | L30: Replacement
J31: Conductors - > 33 kV & < = 66 kV ; < = 100 MVA | K31: Repex - Conductors | L31: Replacement
... 38 more rows

Sheet Checks 1 (hidden)
H2: Sheet | I2: NomIncur2025 | J2: NomIncur2026 | K2: NomIncur2027 | L2: NomIncur2028 | M2: NomIncur2029 | N2: NomIncur2030 | O2: NomIncur2031 | P2: NomIncur2032 | R2: RealIncur2025 | S2: RealIncur2026 | T2: RealIncur2027 | U2: RealIncur2028 | V2: RealIncur2029 | W2: RealIncur2030 | X2: RealIncur2031 | Y2: RealIncur2032 | AA2: RealAsCom2026 | AB2: RealAsCom2027 | AC2: RealAsCom2028 | AD2: RealAsCom2029 | AE2: RealAsCom2030 | AF2: RealAsCom2031 | AG2: RealAsCom2032 | AI2: NomAsCom2026 | AJ2: NomAsCom2027 | AK2: NomAsCom2028 | AL2: NomAsCom2029 | AM2: NomAsCom2030 | AN2: NomAsCom2031 | AO2: NomAsCom2032
H3: Project Driver | I3: ='Project Driver'!G8 -> 541810.3627 | J3: ='Project Driver'!H8 -> 355922.3442 | K3: ='Project Driver'!I8 -> 381151.0867 | L3: ='Project Driver'!J8 -> 524173.4428 | M3: ='Project Driver'!K8 -> 524855.9552 | N3: ='Project Driver'!L8 -> 458556.1227 | O3: ='Project Driver'!M8 -> 587208.905 | P3: ='Project Driver'!N8 -> 580671.2035 | R3: ='Project Driver'!P8 -> 584547.3711 | S3: ='Project Driver'!Q8 -> 373323.3129 | T3: ='Project Driver'!R8 -> 387201.4821 | U3: ='Project Driver'!S8 -> 517489.3125 | V3: ='Project Driver'!T8 -> 505032.4022 | W3: ='Project Driver'!U8 -> 430055.3477 | X3: ='Project Driver'!V8 -> 536756.3998 | Y3: ='Project Driver'!W8 -> 517329.9594 | AA3: ='Project Driver'!Y8 -> 317057.3343 | AB3: ='Project Driver'!Z8 -> 425266.0754 | AC3: ='Project Driver'!AA8 -> 595144.3146 | AD3: ='Project Driver'!AB8 -> 298004.2524 | AE3: ='Project Driver'!AC8 -> 467084.0715 | AF3: ='Project Driver'!AD8 -> 525458.3676 | AG3: ='Project Driver'!AE8 -> 653595.6519 | AI3: ='Project Driver'!AG8 -> 302278.9784 | AJ3: ='Project Driver'!AH8 -> 418620.8841 | AK3: ='Project Driver'!AI8 -> 602831.4727 | AL3: ='Project Driver'!AJ8 -> 309701.5278 | AM3: ='Project Driver'!AK8 -> 498038.8267 | AN3: ='Project Driver'!AL8 -> 574848.9124 | AO3: ='Project Driver'!AM8 -> 733621.0998
H4: Project Drier Asset Class | I4: ='Project Driver Asset Class'!X9 -> 541810.3627 | J4: ='Project Driver Asset Class'!Y9 -> 355922.3442 | K4: ='Project Driver Asset Class'!Z9 -> 381151.0867 | L4: ='Project Driver Asset Class'!AA9 -> 524173.4428 | M4: ='Project Driver Asset Class'!AB9 -> 524855.9552 | N4: ='Project Driver Asset Class'!AC9 -> 458556.1227 | O4: ='Project Driver Asset Class'!AD9 -> 587208.905 | P4: ='Project Driver Asset Class'!AE9 -> 580671.2035 | R4: ='Project Driver Asset Class'!G9 -> 584547.3711 | S4: ='Project Driver Asset Class'!H9 -> 373323.3129 | T4: ='Project Driver Asset Class'!I9 -> 387201.4821 | U4: ='Project Driver Asset Class'!J9 -> 517489.3125 | V4: ='Project Driver Asset Class'!K9 -> 505032.4022 | W4: ='Project Driver Asset Class'!L9 -> 430055.3477 | X4: ='Project Driver Asset Class'!M9 -> 536756.3998 | Y4: ='Project Driver Asset Class'!N9 -> 517329.9594 | AA4: ='Project Driver Asset Class'!P9 -> 317057.3343 | AB4: ='Project Driver Asset Class'!Q9 -> 425266.0754 | AC4: ='Project Driver Asset Class'!R9 -> 595144.3146 | AD4: ='Project Driver Asset Class'!S9 -> 298004.2524 | AE4: ='Project Driver Asset Class'!T9 -> 467084.0715 | AF4: ='Project Driver Asset Class'!U9 -> 525458.3676 | AG4: ='Project Driver Asset Class'!V9 -> 653595.6519 | AI4: ='Project Driver Asset Class'!AG9 -> 302278.9784 | AJ4: ='Project Driver Asset Class'!AH9 -> 418620.8841 | AK4: ='Project Driver Asset Class'!AI9 -> 602831.4727 | AL4: ='Project Driver Asset Class'!AJ9 -> 309701.5278 | AM4: ='Project Driver Asset Class'!AK9 -> 498038.8267 | AN4: ='Project Driver Asset Class'!AL9 -> 574848.9124 | AO4: ='Project Driver Asset Class'!AM9 -> 733621.0998
B5: Listing of projects, number of sub items. | H5: RIN Equip | R5: =RIN_Equip!AA9 -> 584547.3711 | S5: =RIN_Equip!AB9 -> 373323.3129 | T5: =RIN_Equip!AC9 -> 387201.4821 | U5: =RIN_Equip!AD9 -> 517489.3125 | V5: =RIN_Equip!AE9 -> 505032.4022 | W5: =RIN_Equip!AF9 -> 430055.3477 | X5: =RIN_Equip!AG9 -> 536756.3998 | Y5: =RIN_Equip!AH9 -> 517329.9594 | AA5: =RIN_Equip!K9 -> 317057.3343 | AB5: =RIN_Equip!L9 -> 425266.0754 | AC5: =RIN_Equip!M9 -> 595144.3146 | AD5: =RIN_Equip!N9 -> 298004.2524 | AE5: =RIN_Equip!O9 -> 467084.0715 | AF5: =RIN_Equip!P9 -> 525458.3676 | AG5: =RIN_Equip!Q9 -> 653595.6519
H6: Total by Driver (per report) | I6: ='Totals by Driver'!D29 -> 541.8103627 | J6: ='Totals by Driver'!E29 -> 355.9223442 | K6: ='Totals by Driver'!F29 -> 381.1510867 | L6: ='Totals by Driver'!G29 -> 524.1734428 | M6: ='Totals by Driver'!H29 -> 524.8559552 | N6: ='Totals by Driver'!I29 -> 458.5561227 | O6: ='Totals by Driver'!J29 -> 587.208905 | P6: ='Totals by Driver'!K29 -> 580.6712035 | R6: ='Totals by Driver'!S29 -> 584.5473711 | S6: ='Totals by Driver'!T29 -> 373.3233129 | T6: ='Totals by Driver'!U29 -> 387.2014821 | U6: ='Totals by Driver'!V29 -> 517.4893125 | V6: ='Totals by Driver'!W29 -> 505.0324022 | W6: ='Totals by Driver'!X29 -> 430.0553477 | X6: ='Totals by Driver'!Y29 -> 536.7563998 | Y6: ='Totals by Driver'!Z29 -> 517.3299594 | AA6: =+'Totals by Driver'!AH27 -> 317.0573343 | AB6: =+'Totals by Driver'!AI27 -> 425.2660754 | AC6: =+'Totals by Driver'!AJ27 -> 595.1443146 | AD6: =+'Totals by Driver'!AK27 -> 298.0042524 | AE6: =+'Totals by Driver'!AL27 -> 467.0840715 | AF6: =+'Totals by Driver'!AM27 -> 525.4583676 | AG6: =+'Totals by Driver'!AN27 -> 653.5956519 | AI6: ='Totals by Driver'!AV27 -> 302.2789784 | AJ6: ='Totals by Driver'!AW27 -> 418.6208841 | AK6: ='Totals by Driver'!AX27 -> 602.8314727 | AL6: ='Totals by Driver'!AY27 -> 309.7015278 | AM6: ='Totals by Driver'!AZ27 -> 498.0388267 | AN6: ='Totals by Driver'!BA27 -> 574.8489124 | AO6: ='Totals by Driver'!BB27 -> 733.6210998
H7: Total by Driver ('000s)) | I7: =+I6*1000 -> 541810.3627 | J7: =+J6*1000 -> 355922.3442 | K7: 381151.0867 | L7: 524173.4428 | M7: 524855.9552 | N7: 458556.1227 | O7: 587208.905 | P7: 580671.2035 | R7: =+R6*1000 -> 584547.3711 | S7: =+S6*1000 -> 373323.3129 | T7: =+T6*1000 -> 387201.4821 | U7: =+U6*1000 -> 517489.3125 | V7: =+V6*1000 -> 505032.4022 | W7: =+W6*1000 -> 430055.3477 | X7: =+X6*1000 -> 536756.3998 | Y7: =+Y6*1000 -> 517329.9594 | AA7: =+AA6*1000 -> 317057.3343 | AB7: =+AB6*1000 -> 425266.0754 | AC7: =+AC6*1000 -> 595144.3146 | AD7: =+AD6*1000 -> 298004.2524 | AE7: =+AE6*1000 -> 467084.0715 | AF7: =+AF6*1000 -> 525458.3676 | AG7: =+AG6*1000 -> 653595.6519 | AI7: =+AI6*1000 -> 302278.9784 | AJ7: =+AJ6*1000 -> 418620.8841 | AK7: =+AK6*1000 -> 602831.4727 | AL7: =+AL6*1000 -> 309701.5278 | AM7: =+AM6*1000 -> 498038.8267 | AN7: =+AN6*1000 -> 574848.9124 | AO7: =+AO6*1000 -> 733621.0998
B8: Row Labels | C8: Count of ID Again | H8: PTRM | I8: =PTRM!Q28 -> 541.8103627 | J8: =PTRM!R28 -> 355.9223442 | K8: =PTRM!S28 -> 381.1510867 | L8: =PTRM!T28 -> 524.1734428 | M8: =PTRM!U28 -> 524.8559552 | N8: =PTRM!V28 -> 458.5561227 | O8: =PTRM!W28 -> 587.208905 | P8: =PTRM!X28 -> 580.6712035 | R8: =PTRM!D28 -> 584.5473711 | S8: =PTRM!E28 -> 373.3233129 | T8: =PTRM!F28 -> 387.2014821 | U8: =PTRM!G28 -> 517.4893125 | V8: =PTRM!H28 -> 505.0324022 | W8: =PTRM!I28 -> 430.0553477 | X8: =PTRM!J28 -> 536.7563998 | Y8: =PTRM!K28 -> 517.3299594 | AA8: =PTRM!E56 -> 317.0573343 | AB8: =PTRM!F56 -> 425.2660754 | AC8: =PTRM!G56 -> 595.1443146 | AD8: =PTRM!H56 -> 298.0042524 | AE8: =PTRM!I56 -> 467.0840715 | AF8: =PTRM!J56 -> 525.4583676 | AG8: =PTRM!K56 -> 653.5956519 | AI8: =PTRM!R56 -> 302.2789784 | AJ8: =PTRM!S56 -> 418.6208841 | AK8: =PTRM!T56 -> 602.8314727 | AL8: =PTRM!U56 -> 309.7015278 | AM8: =PTRM!V56 -> 498.0388267 | AN8: =PTRM!W56 -> 574.8489124 | AO8: =PTRM!X56 -> 733.6210998
B9: 1 | C9: 1 | H9: PTRM ('000s)) | I9: =+I8*1000 -> 541810.3627 | J9: =+J8*1000 -> 355922.3442 | K9: =+K8*1000 -> 381151.0867 | L9: =+L8*1000 -> 524173.4428 | M9: =+M8*1000 -> 524855.9552 | N9: =+N8*1000 -> 458556.1227 | O9: =+O8*1000 -> 587208.905 | P9: =+P8*1000 -> 580671.2035 | R9: =+R8*1000 -> 584547.3711 | S9: =+S8*1000 -> 373323.3129 | T9: =+T8*1000 -> 387201.4821 | U9: =+U8*1000 -> 517489.3125 | V9: =+V8*1000 -> 505032.4022 | W9: =+W8*1000 -> 430055.3477 | X9: =+X8*1000 -> 536756.3998 | Y9: =+Y8*1000 -> 517329.9594 | AA9: =+AA8*1000 -> 317057.3343 | AB9: =+AB8*1000 -> 425266.0754 | AC9: =+AC8*1000 -> 595144.3146 | AD9: =+AD8*1000 -> 298004.2524 | AE9: =+AE8*1000 -> 467084.0715 | AF9: =+AF8*1000 -> 525458.3676 | AG9: =+AG8*1000 -> 653595.6519 | AI9: =+AI8*1000 -> 302278.9784 | AJ9: =+AJ8*1000 -> 418620.8841 | AK9: =+AK8*1000 -> 602831.4727 | AL9: =+AL8*1000 -> 309701.5278 | AM9: =+AM8*1000 -> 498038.8267 | AN9: =+AN8*1000 -> 574848.9124 | AO9: =+AO8*1000 -> 733621.0998
B10: 2 | C10: 1
B11: 3 | C11: 1
B12: 4 | C12: 3
B13: 5 | C13: 1
B14: 6 | C14: 2
B15: 7 | C15: 1
B16: 8 | C16: 1
B17: 9 | C17: 1
B18: 10 | C18: 1
B19: 11 | C19: 1
B20: 12 | C20: 1
B21: 13 | C21: 1
B22: 14 | C22: 1
B23: 15 | C23: 1
B24: 16 | C24: 1
B25: 17 | C25: 1
B26: 18 | C26: 1
B27: 19 | C27: 5
B28: 20 | C28: 4
B29: 21 | C29: 4
B30: 22 | C30: 4
B31: 23 | C31: 4
... 38 more rows

Sheet Projects---->
A1: Contents

Sheet Admin
A1: Contents
B3: Capex Model Administration
B5: Number of projects in list | F5: =MAX(ProjectData[ID]) -> 284
B7: Number of project sheets to create | F7: 340
G9: Warning:
G10: * All project sheets are over-written
G11: * Can be slow
G12: * Ensure no other Excel workbooks are open (speed)
B16: Small Value | D16: 1e-08 | F16: Used for data checking: subtraction of two floating point numbers that should be equal is not always exactly 0.

Sheet Project_Template
C1: Contents
A2: Index Column / Lookup column | G2: 2 | H2: =G2+1 -> 3 | I2: =H2+1 -> 4 | J2: =I2+1 -> 5 | K2: =J2+1 -> 6 | L2: =K2+1 -> 7 | M2: =L2+1 -> 8 | N2: =M2+1 -> 9 | AI2: =H2 -> 3 | AJ2: 4 | AK2: 5 | AL2: 6 | AM2: 7 | AN2: 8 | AO2: =N2 -> 9
C3: Projects
C4: Project Details
A5: Project Name | D5: =VLOOKUP($A$1,ProjectData[],MATCH(A5,ProjectData[#Headers],0),FALSE()) -> 
D7: Project Number | E7: =A1 -> 0
A8: PQ Project Driver | D8: Project Type | E8: =VLOOKUP($A$1,ProjectData[],MATCH(A8,ProjectData[#Headers],0),FALSE()) -> 
A9: Capitalisation | D9: Capitalisation | E9: =VLOOKUP($A$1,ProjectData[],MATCH(A9,ProjectData[#Headers],0),FALSE()) -> 
A10: RepexDollarsBasis | D10: Dollar Basis | E10: =VLOOKUP($A$1,ProjectData[],MATCH(A10,ProjectData[#Headers],0),FALSE()) -> 
A11: DMDLCCOCSplitType | D11: Cost Allocation Type | E11: =VLOOKUP($A$1,ProjectData[],MATCH(A11,ProjectData[#Headers],0),FALSE()) -> 
A12: Direct Materials | D12: Direct Materials | E12: =VLOOKUP(E$11,CostAllocationSplit[],MATCH(A12,CostAllocationSplit[#Headers],0),FALSE) -> 
A13: Direct Labour | D13: Direct Labour | E13: =VLOOKUP(E$11,CostAllocationSplit[],MATCH(A13,CostAllocationSplit[#Headers],0),FALSE) -> 
A14: Contract Costs | D14: Contract Costs | E14: =VLOOKUP(E$11,CostAllocationSplit[],MATCH(A14,CostAllocationSplit[#Headers],0),FALSE) -> 
A15: Other Costs | D15: Other Costs | E15: =VLOOKUP(E$11,CostAllocationSplit[],MATCH(A15,CostAllocationSplit[#Headers],0),FALSE) -> 
A16: Specific Approved Project | D16: Specific Approved Project? | E16: =IF(VLOOKUP($A$1,ProjectData[],MATCH(A16,ProjectData[#Headers],0),FALSE)="", FALSE,VLOOKUP($A$1,ProjectData[],MATCH(A16,ProjectData[#Headers],0),FALSE)) -> 
C17: Project Asset Class Breakdown
A18: LinesOH | D18: LinesOH | E18: =VLOOKUP($A$1,ProjectData[],MATCH(A18,ProjectData[#Headers],0),FALSE()) -> 
A19: LinesUG | D19: LinesUG | E19: =VLOOKUP($A$1,ProjectData[],MATCH(A19,ProjectData[#Headers],0),FALSE()) -> 
A20: LinesRefit | D20: LinesRefit | E20: =VLOOKUP($A$1,ProjectData[],MATCH(A20,ProjectData[#Headers],0),FALSE()) -> 
A21: SubsPrimary | D21: SubsPrimary | E21: =VLOOKUP($A$1,ProjectData[],MATCH(A21,ProjectData[#Headers],0),FALSE()) -> 
A22: SubsSecondary | D22: SubsSecondary | E22: =VLOOKUP($A$1,ProjectData[],MATCH(A22,ProjectData[#Headers],0),FALSE()) -> 
A23: Communications | D23: Communications | E23: =VLOOKUP($A$1,ProjectData[],MATCH(A23,ProjectData[#Headers],0),FALSE()) -> 
A24: CommsCivil | D24: CommsCivil | E24: =VLOOKUP($A$1,ProjectData[],MATCH(A24,ProjectData[#Headers],0),FALSE()) -> 
A25: SwitchgCentres | D25: SwitchgCentres | E25: =VLOOKUP($A$1,ProjectData[],MATCH(A25,ProjectData[#Headers],0),FALSE()) -> 
A26: Land | D26: Land | E26: =VLOOKUP($A$1,ProjectData[],MATCH(A26,ProjectData[#Headers],0),FALSE()) -> 
A27: Easement | D27: Easement | E27: =VLOOKUP($A$1,ProjectData[],MATCH(A27,ProjectData[#Headers],0),FALSE()) -> 
A28: CommericalBuildings | D28: CommericalBuildings | E28: =VLOOKUP($A$1,ProjectData[],MATCH(A28,ProjectData[#Headers],0),FALSE()) -> 
A29: IT | D29: IT | E29: =VLOOKUP($A$1,ProjectData[],MATCH(A29,ProjectData[#Headers],0),FALSE()) -> 
A30: Office | D30: Office | E30: =VLOOKUP($A$1,ProjectData[],MATCH(A30,ProjectData[#Headers],0),FALSE()) -> 
A31: OfficeMachines | D31: OfficeMachines | E31: =VLOOKUP($A$1,ProjectData[],MATCH(A31,ProjectData[#Headers],0),FALSE()) -> 
... 30 more rows

Sheet StartOfProjects
A1: Page deliberately blank.

Sheet P_1
A1: 1 | C1: Contents
A2: Index Column / Lookup column | G2: 2 | H2: =G2+1 -> 3 | I2: =H2+1 -> 4 | J2: =I2+1 -> 5 | K2: 6 | L2: 7 | M2: 8 | N2: 9 | AI2: =H2 -> 3 | AJ2: 4 | AK2: 5 | AL2: 6 | AM2: 7 | AN2: 8 | AO2: =N2 -> 9
C3: Projects
C4: Project Details
A5: Project Name | D5: =VLOOKUP($A$1,ProjectData[],MATCH(A5,ProjectData[#Headers],0),FALSE()) -> Tools
D7: Project Number | E7: =A1 -> 1
A8: PQ Project Driver | D8: Project Type | E8: =VLOOKUP($A$1,ProjectData[],MATCH(A8,ProjectData[#Headers],0),FALSE()) -> Tools
A9: Capitalisation | D9: Capitalisation | E9: =VLOOKUP($A$1,ProjectData[],MATCH(A9,ProjectData[#Headers],0),FALSE()) -> As Incurred
A10: RepexDollarsBasis | D10: Dollar Basis | E10: =VLOOKUP($A$1,ProjectData[],MATCH(A10,ProjectData[#Headers],0),FALSE()) -> Real2026
A11: DMDLCCOCSplitType | D11: Cost Allocation Type | E11: =VLOOKUP($A$1,ProjectData[],MATCH(A11,ProjectData[#Headers],0),FALSE()) -> Non Network - Tools
A12: Direct Materials | D12: Direct Materials | E12: =VLOOKUP(E$11,CostAllocationSplit[],MATCH(A12,CostAllocationSplit[#Headers],0),FALSE) -> 0.75
A13: Direct Labour | D13: Direct Labour | E13: =VLOOKUP(E$11,CostAllocationSplit[],MATCH(A13,CostAllocationSplit[#Headers],0),FALSE) -> 0.1
A14: Contract Costs | D14: Contract Costs | E14: =VLOOKUP(E$11,CostAllocationSplit[],MATCH(A14,CostAllocationSplit[#Headers],0),FALSE) -> 0.05
A15: Other Costs | D15: Other Costs | E15: =VLOOKUP(E$11,CostAllocationSplit[],MATCH(A15,CostAllocationSplit[#Headers],0),FALSE) -> 0.1
A16: Specific Approved Project | D16: Specific Approved Project? | E16: =IF(VLOOKUP($A$1,ProjectData[],MATCH(A16,ProjectData[#Headers],0),FALSE)="", FALSE,VLOOKUP($A$1,ProjectData[],MATCH(A16,ProjectData[#Headers],0),FALSE)) -> FALSE
C17: Project Asset Class Breakdown
A18: LinesOH | D18: LinesOH | E18: =VLOOKUP($A$1,ProjectData[],MATCH(A18,ProjectData[#Headers],0),FALSE()) -> 0
A19: LinesUG | D19: LinesUG | E19: =VLOOKUP($A$1,ProjectData[],MATCH(A19,ProjectData[#Headers],0),FALSE()) -> 0
A20: LinesRefit | D20: LinesRefit | E20: =VLOOKUP($A$1,ProjectData[],MATCH(A20,ProjectData[#Headers],0),FALSE()) -> 0
A21: SubsPrimary | D21: SubsPrimary | E21: =VLOOKUP($A$1,ProjectData[],MATCH(A21,ProjectData[#Headers],0),FALSE()) -> 0
A22: SubsSecondary | D22: SubsSecondary | E22: =VLOOKUP($A$1,ProjectData[],MATCH(A22,ProjectData[#Headers],0),FALSE()) -> 0
A23: Communications | D23: Communications | E23: =VLOOKUP($A$1,ProjectData[],MATCH(A23,ProjectData[#Headers],0),FALSE()) -> 0
A24: CommsCivil | D24: CommsCivil | E24: =VLOOKUP($A$1,ProjectData[],MATCH(A24,ProjectData[#Headers],0),FALSE()) -> 0
A25: SwitchgCentres | D25: SwitchgCentres | E25: =VLOOKUP($A$1,ProjectData[],MATCH(A25,ProjectData[#Headers],0),FALSE()) -> 0
A26: Land | D26: Land | E26: =VLOOKUP($A$1,ProjectData[],MATCH(A26,ProjectData[#Headers],0),FALSE()) -> 0
A27: Easement | D27: Easement | E27: =VLOOKUP($A$1,ProjectData[],MATCH(A27,ProjectData[#Headers],0),FALSE()) -> 0
A28: CommericalBuildings | D28: CommericalBuildings | E28: =VLOOKUP($A$1,ProjectData[],MATCH(A28,ProjectData[#Headers],0),FALSE()) -> 0
A29: IT | D29: IT | E29: =VLOOKUP($A$1,ProjectData[],MATCH(A29,ProjectData[#Headers],0),FALSE()) -> 0
A30: Office | D30: Office | E30: =VLOOKUP($A$1,ProjectData[],MATCH(A30,ProjectData[#Headers],0),FALSE()) -> 0
A31: OfficeMachines | D31: OfficeMachines | E31: =VLOOKUP($A$1,ProjectData[],MATCH(A31,ProjectData[#Headers],0),FALSE()) -> 0
... 32 more rows

Sheet P_2
A1: 2 | C1: Contents
A2: Index Column / Lookup column | G2: 2 | H2: =G2+1 -> 3 | I2: =H2+1 -> 4 | J2: =I2+1 -> 5 | K2: 6 | L2: 7 | M2: 8 | N2: 9 | AI2: =H2 -> 3 | AJ2: 4 | AK2: 5 | AL2: 6 | AM2: 7 | AN2: 8 | AO2: =N2 -> 9
C3: Projects
C4: Project Details
A5: Project Name | D5: =VLOOKUP($A$1,ProjectData[],MATCH(A5,ProjectData[#Headers],0),FALSE()) -> MV
D7: Project Number | E7: =A1 -> 2
A8: PQ Project Driver | D8: Project Type | E8: =VLOOKUP($A$1,ProjectData[],MATCH(A8,ProjectData[#Headers],0),FALSE()) -> MV
A9: Capitalisation | D9: Capitalisation | E9: =VLOOKUP($A$1,ProjectData[],MATCH(A9,ProjectData[#Headers],0),FALSE()) -> As Incurred
A10: RepexDollarsBasis | D10: Dollar Basis | E10: =VLOOKUP($A$1,ProjectData[],MATCH(A10,ProjectData[#Headers],0),FALSE()) -> Real2026
A11: DMDLCCOCSplitType | D11: Cost Allocation Type | E11: =VLOOKUP($A$1,ProjectData[],MATCH(A11,ProjectData[#Headers],0),FALSE()) -> Non Network - MV
A12: Direct Materials | D12: Direct Materials | E12: =VLOOKUP(E$11,CostAllocationSplit[],MATCH(A12,CostAllocationSplit[#Headers],0),FALSE) -> 0.9
A13: Direct Labour | D13: Direct Labour | E13: =VLOOKUP(E$11,CostAllocationSplit[],MATCH(A13,CostAllocationSplit[#Headers],0),FALSE) -> 0.05
A14: Contract Costs | D14: Contract Costs | E14: =VLOOKUP(E$11,CostAllocationSplit[],MATCH(A14,CostAllocationSplit[#Headers],0),FALSE) -> 0
A15: Other Costs | D15: Other Costs | E15: =VLOOKUP(E$11,CostAllocationSplit[],MATCH(A15,CostAllocationSplit[#Headers],0),FALSE) -> 0.05
A16: Specific Approved Project | D16: Specific Approved Project? | E16: =IF(VLOOKUP($A$1,ProjectData[],MATCH(A16,ProjectData[#Headers],0),FALSE)="", FALSE,VLOOKUP($A$1,ProjectData[],MATCH(A16,ProjectData[#Headers],0),FALSE)) -> FALSE
C17: Project Asset Class Breakdown
A18: LinesOH | D18: LinesOH | E18: =VLOOKUP($A$1,ProjectData[],MATCH(A18,ProjectData[#Headers],0),FALSE()) -> 0
A19: LinesUG | D19: LinesUG | E19: =VLOOKUP($A$1,ProjectData[],MATCH(A19,ProjectData[#Headers],0),FALSE()) -> 0
A20: LinesRefit | D20: LinesRefit | E20: =VLOOKUP($A$1,ProjectData[],MATCH(A20,ProjectData[#Headers],0),FALSE()) -> 0
A21: SubsPrimary | D21: SubsPrimary | E21: =VLOOKUP($A$1,ProjectData[],MATCH(A21,ProjectData[#Headers],0),FALSE()) -> 0
A22: SubsSecondary | D22: SubsSecondary | E22: =VLOOKUP($A$1,ProjectData[],MATCH(A22,ProjectData[#Headers],0),FALSE()) -> 0
A23: Communications | D23: Communications | E23: =VLOOKUP($A$1,ProjectData[],MATCH(A23,ProjectData[#Headers],0),FALSE()) -> 0
A24: CommsCivil | D24: CommsCivil | E24: =VLOOKUP($A$1,ProjectData[],MATCH(A24,ProjectData[#Headers],0),FALSE()) -> 0
A25: SwitchgCentres | D25: SwitchgCentres | E25: =VLOOKUP($A$1,ProjectData[],MATCH(A25,ProjectData[#Headers],0),FALSE()) -> 0
A26: Land | D26: Land | E26: =VLOOKUP($A$1,ProjectData[],MATCH(A26,ProjectData[#Headers],0),FALSE()) -> 0
A27: Easement | D27: Easement | E27: =VLOOKUP($A$1,ProjectData[],MATCH(A27,ProjectData[#Headers],0),FALSE()) -> 0
A28: CommericalBuildings | D28: CommericalBuildings | E28: =VLOOKUP($A$1,ProjectData[],MATCH(A28,ProjectData[#Headers],0),FALSE()) -> 0
A29: IT | D29: IT | E29: =VLOOKUP($A$1,ProjectData[],MATCH(A29,ProjectData[#Headers],0),FALSE()) -> 0
A30: Office | D30: Office | E30: =VLOOKUP($A$1,ProjectData[],MATCH(A30,ProjectData[#Headers],0),FALSE()) -> 0
A31: OfficeMachines | D31: OfficeMachines | E31: =VLOOKUP($A$1,ProjectData[],MATCH(A31,ProjectData[#Headers],0),FALSE()) -> 0
... 32 more rows

Sheet P_3
A1: 3 | C1: Contents
A2: Index Column / Lookup column | G2: 2 | H2: =G2+1 -> 3 | I2: =H2+1 -> 4 | J2: =I2+1 -> 5 | K2: 6 | L2: 7 | M2: 8 | N2: 9 | AI2: =H2 -> 3 | AJ2: 4 | AK2: 5 | AL2: 6 | AM2: 7 | AN2: 8 | AO2: =N2 -> 9
C3: Projects
C4: Project Details
A5: Project Name | D5: =VLOOKUP($A$1,ProjectData[],MATCH(A5,ProjectData[#Headers],0),FALSE()) -> Buildings - Sustaining
D7: Project Number | E7: =A1 -> 3
A8: PQ Project Driver | D8: Project Type | E8: =VLOOKUP($A$1,ProjectData[],MATCH(A8,ProjectData[#Headers],0),FALSE()) -> Buildings
A9: Capitalisation | D9: Capitalisation | E9: =VLOOKUP($A$1,ProjectData[],MATCH(A9,ProjectData[#Headers],0),FALSE()) -> As Incurred
A10: RepexDollarsBasis | D10: Dollar Basis | E10: =VLOOKUP($A$1,ProjectData[],MATCH(A10,ProjectData[#Headers],0),FALSE()) -> Real2026
A11: DMDLCCOCSplitType | D11: Cost Allocation Type | E11: =VLOOKUP($A$1,ProjectData[],MATCH(A11,ProjectData[#Headers],0),FALSE()) -> Non Network - Buildings
A12: Direct Materials | D12: Direct Materials | E12: =VLOOKUP(E$11,CostAllocationSplit[],MATCH(A12,CostAllocationSplit[#Headers],0),FALSE) -> 0.03
A13: Direct Labour | D13: Direct Labour | E13: =VLOOKUP(E$11,CostAllocationSplit[],MATCH(A13,CostAllocationSplit[#Headers],0),FALSE) -> 0.02
A14: Contract Costs | D14: Contract Costs | E14: =VLOOKUP(E$11,CostAllocationSplit[],MATCH(A14,CostAllocationSplit[#Headers],0),FALSE) -> 0.5
A15: Other Costs | D15: Other Costs | E15: =VLOOKUP(E$11,CostAllocationSplit[],MATCH(A15,CostAllocationSplit[#Headers],0),FALSE) -> 0.45
A16: Specific Approved Project | D16: Specific Approved Project? | E16: =IF(VLOOKUP($A$1,ProjectData[],MATCH(A16,ProjectData[#Headers],0),FALSE)="", FALSE,VLOOKUP($A$1,ProjectData[],MATCH(A16,ProjectData[#Headers],0),FALSE)) -> FALSE
C17: Project Asset Class Breakdown
A18: LinesOH | D18: LinesOH | E18: =VLOOKUP($A$1,ProjectData[],MATCH(A18,ProjectData[#Headers],0),FALSE()) -> 0
A19: LinesUG | D19: LinesUG | E19: =VLOOKUP($A$1,ProjectData[],MATCH(A19,ProjectData[#Headers],0),FALSE()) -> 0
A20: LinesRefit | D20: LinesRefit | E20: =VLOOKUP($A$1,ProjectData[],MATCH(A20,ProjectData[#Headers],0),FALSE()) -> 0
A21: SubsPrimary | D21: SubsPrimary | E21: =VLOOKUP($A$1,ProjectData[],MATCH(A21,ProjectData[#Headers],0),FALSE()) -> 0
A22: SubsSecondary | D22: SubsSecondary | E22: =VLOOKUP($A$1,ProjectData[],MATCH(A22,ProjectData[#Headers],0),FALSE()) -> 0
A23: Communications | D23: Communications | E23: =VLOOKUP($A$1,ProjectData[],MATCH(A23,ProjectData[#Headers],0),FALSE()) -> 0
A24: CommsCivil | D24: CommsCivil | E24: =VLOOKUP($A$1,ProjectData[],MATCH(A24,ProjectData[#Headers],0),FALSE()) -> 0
A25: SwitchgCentres | D25: SwitchgCentres | E25: =VLOOKUP($A$1,ProjectData[],MATCH(A25,ProjectData[#Headers],0),FALSE()) -> 0
A26: Land | D26: Land | E26: =VLOOKUP($A$1,ProjectData[],MATCH(A26,ProjectData[#Headers],0),FALSE()) -> 0
A27: Easement | D27: Easement | E27: =VLOOKUP($A$1,ProjectData[],MATCH(A27,ProjectData[#Headers],0),FALSE()) -> 0
A28: CommericalBuildings | D28: CommericalBuildings | E28: =VLOOKUP($A$1,ProjectData[],MATCH(A28,ProjectData[#Headers],0),FALSE()) -> 1
A29: IT | D29: IT | E29: =VLOOKUP($A$1,ProjectData[],MATCH(A29,ProjectData[#Headers],0),FALSE()) -> 0
A30: Office | D30: Office | E30: =VLOOKUP($A$1,ProjectData[],MATCH(A30,ProjectData[#Headers],0),FALSE()) -> 0
A31: OfficeMachines | D31: OfficeMachines | E31: =VLOOKUP($A$1,ProjectData[],MATCH(A31,ProjectData[#Headers],0),FALSE()) -> 0
... 32 more rows

Sheet P_4
A1: 4 | C1: Contents
A2: Index Column / Lookup column | G2: 2 | H2: =G2+1 -> 3 | I2: =H2+1 -> 4 | J2: =I2+1 -> 5 | K2: 6 | L2: 7 | M2: 8 | N2: 9 | AI2: =H2 -> 3 | AJ2: 4 | AK2: 5 | AL2: 6 | AM2: 7 | AN2: 8 | AO2: =N2 -> 9
C3: Projects
C4: Project Details
A5: Project Name | D5: =VLOOKUP($A$1,ProjectData[],MATCH(A5,ProjectData[#Headers],0),FALSE()) -> Buildings - Virginia Uplift
D7: Project Number | E7: =A1 -> 4
A8: PQ Project Driver | D8: Project Type | E8: =VLOOKUP($A$1,ProjectData[],MATCH(A8,ProjectData[#Headers],0),FALSE()) -> Buildings
A9: Capitalisation | D9: Capitalisation | E9: =VLOOKUP($A$1,ProjectData[],MATCH(A9,ProjectData[#Headers],0),FALSE()) -> Project Close
A10: RepexDollarsBasis | D10: Dollar Basis | E10: =VLOOKUP($A$1,ProjectData[],MATCH(A10,ProjectData[#Headers],0),FALSE()) -> Real2026
A11: DMDLCCOCSplitType | D11: Cost Allocation Type | E11: =VLOOKUP($A$1,ProjectData[],MATCH(A11,ProjectData[#Headers],0),FALSE()) -> Non Network - Buildings
A12: Direct Materials | D12: Direct Materials | E12: =VLOOKUP(E$11,CostAllocationSplit[],MATCH(A12,CostAllocationSplit[#Headers],0),FALSE) -> 0.03
A13: Direct Labour | D13: Direct Labour | E13: =VLOOKUP(E$11,CostAllocationSplit[],MATCH(A13,CostAllocationSplit[#Headers],0),FALSE) -> 0.02
A14: Contract Costs | D14: Contract Costs | E14: =VLOOKUP(E$11,CostAllocationSplit[],MATCH(A14,CostAllocationSplit[#Headers],0),FALSE) -> 0.5
A15: Other Costs | D15: Other Costs | E15: =VLOOKUP(E$11,CostAllocationSplit[],MATCH(A15,CostAllocationSplit[#Headers],0),FALSE) -> 0.45
A16: Specific Approved Project | D16: Specific Approved Project? | E16: =IF(VLOOKUP($A$1,ProjectData[],MATCH(A16,ProjectData[#Headers],0),FALSE)="", FALSE,VLOOKUP($A$1,ProjectData[],MATCH(A16,ProjectData[#Headers],0),FALSE)) -> FALSE
C17: Project Asset Class Breakdown
A18: LinesOH | D18: LinesOH | E18: =VLOOKUP($A$1,ProjectData[],MATCH(A18,ProjectData[#Headers],0),FALSE()) -> 0
A19: LinesUG | D19: LinesUG | E19: =VLOOKUP($A$1,ProjectData[],MATCH(A19,ProjectData[#Headers],0),FALSE()) -> 0
A20: LinesRefit | D20: LinesRefit | E20: =VLOOKUP($A$1,ProjectData[],MATCH(A20,ProjectData[#Headers],0),FALSE()) -> 0
A21: SubsPrimary | D21: SubsPrimary | E21: =VLOOKUP($A$1,ProjectData[],MATCH(A21,ProjectData[#Headers],0),FALSE()) -> 0
A22: SubsSecondary | D22: SubsSecondary | E22: =VLOOKUP($A$1,ProjectData[],MATCH(A22,ProjectData[#Headers],0),FALSE()) -> 0
A23: Communications | D23: Communications | E23: =VLOOKUP($A$1,ProjectData[],MATCH(A23,ProjectData[#Headers],0),FALSE()) -> 0
A24: CommsCivil | D24: CommsCivil | E24: =VLOOKUP($A$1,ProjectData[],MATCH(A24,ProjectData[#Headers],0),FALSE()) -> 0
A25: SwitchgCentres | D25: SwitchgCentres | E25: =VLOOKUP($A$1,ProjectData[],MATCH(A25,ProjectData[#Headers],0),FALSE()) -> 0
A26: Land | D26: Land | E26: =VLOOKUP($A$1,ProjectData[],MATCH(A26,ProjectData[#Headers],0),FALSE()) -> 0
A27: Easement | D27: Easement | E27: =VLOOKUP($A$1,ProjectData[],MATCH(A27,ProjectData[#Headers],0),FALSE()) -> 0
A28: CommericalBuildings | D28: CommericalBuildings | E28: =VLOOKUP($A$1,ProjectData[],MATCH(A28,ProjectData[#Headers],0),FALSE()) -> 1
A29: IT | D29: IT | E29: =VLOOKUP($A$1,ProjectData[],MATCH(A29,ProjectData[#Headers],0),FALSE()) -> 0
A30: Office | D30: Office | E30: =VLOOKUP($A$1,ProjectData[],MATCH(A30,ProjectData[#Headers],0),FALSE()) -> 0
A31: OfficeMachines | D31: OfficeMachines | E31: =VLOOKUP($A$1,ProjectData[],MATCH(A31,ProjectData[#Headers],0),FALSE()) -> 0
... 32 more rows

Sheet P_5
A1: 5 | C1: Contents
A2: Index Column / Lookup column | G2: 2 | H2: =G2+1 -> 3 | I2: =H2+1 -> 4 | J2: =I2+1 -> 5 | K2: 6 | L2: 7 | M2: 8 | N2: 9 | AI2: =H2 -> 3 | AJ2: 4 | AK2: 5 | AL2: 6 | AM2: 7 | AN2: 8 | AO2: =N2 -> 9
C3: Projects
C4: Project Details
A5: Project Name | D5: =VLOOKUP($A$1,ProjectData[],MATCH(A5,ProjectData[#Headers],0),FALSE()) -> Buildings - New Depot
D7: Project Number | E7: =A1 -> 5
A8: PQ Project Driver | D8: Project Type | E8: =VLOOKUP($A$1,ProjectData[],MATCH(A8,ProjectData[#Headers],0),FALSE()) -> Buildings
A9: Capitalisation | D9: Capitalisation | E9: =VLOOKUP($A$1,ProjectData[],MATCH(A9,ProjectData[#Headers],0),FALSE()) -> Project Close
A10: RepexDollarsBasis | D10: Dollar Basis | E10: =VLOOKUP($A$1,ProjectData[],MATCH(A10,ProjectData[#Headers],0),FALSE()) -> Real2026
A11: DMDLCCOCSplitType | D11: Cost Allocation Type | E11: =VLOOKUP($A$1,ProjectData[],MATCH(A11,ProjectData[#Headers],0),FALSE()) -> Non Network - Buildings
A12: Direct Materials | D12: Direct Materials | E12: =VLOOKUP(E$11,CostAllocationSplit[],MATCH(A12,CostAllocationSplit[#Headers],0),FALSE) -> 0.03
A13: Direct Labour | D13: Direct Labour | E13: =VLOOKUP(E$11,CostAllocationSplit[],MATCH(A13,CostAllocationSplit[#Headers],0),FALSE) -> 0.02
A14: Contract Costs | D14: Contract Costs | E14: =VLOOKUP(E$11,CostAllocationSplit[],MATCH(A14,CostAllocationSplit[#Headers],0),FALSE) -> 0.5
A15: Other Costs | D15: Other Costs | E15: =VLOOKUP(E$11,CostAllocationSplit[],MATCH(A15,CostAllocationSplit[#Headers],0),FALSE) -> 0.45
A16: Specific Approved Project | D16: Specific Approved Project? | E16: =IF(VLOOKUP($A$1,ProjectData[],MATCH(A16,ProjectData[#Headers],0),FALSE)="", FALSE,VLOOKUP($A$1,ProjectData[],MATCH(A16,ProjectData[#Headers],0),FALSE)) -> FALSE
C17: Project Asset Class Breakdown
A18: LinesOH | D18: LinesOH | E18: =VLOOKUP($A$1,ProjectData[],MATCH(A18,ProjectData[#Headers],0),FALSE()) -> 0
A19: LinesUG | D19: LinesUG | E19: =VLOOKUP($A$1,ProjectData[],MATCH(A19,ProjectData[#Headers],0),FALSE()) -> 0
A20: LinesRefit | D20: LinesRefit | E20: =VLOOKUP($A$1,ProjectData[],MATCH(A20,ProjectData[#Headers],0),FALSE()) -> 0
A21: SubsPrimary | D21: SubsPrimary | E21: =VLOOKUP($A$1,ProjectData[],MATCH(A21,ProjectData[#Headers],0),FALSE()) -> 0
A22: SubsSecondary | D22: SubsSecondary | E22: =VLOOKUP($A$1,ProjectData[],MATCH(A22,ProjectData[#Headers],0),FALSE()) -> 0
A23: Communications | D23: Communications | E23: =VLOOKUP($A$1,ProjectData[],MATCH(A23,ProjectData[#Headers],0),FALSE()) -> 0
A24: CommsCivil | D24: CommsCivil | E24: =VLOOKUP($A$1,ProjectData[],MATCH(A24,ProjectData[#Headers],0),FALSE()) -> 0
A25: SwitchgCentres | D25: SwitchgCentres | E25: =VLOOKUP($A$1,ProjectData[],MATCH(A25,ProjectData[#Headers],0),FALSE()) -> 0
A26: Land | D26: Land | E26: =VLOOKUP($A$1,ProjectData[],MATCH(A26,ProjectData[#Headers],0),FALSE()) -> 0
A27: Easement | D27: Easement | E27: =VLOOKUP($A$1,ProjectData[],MATCH(A27,ProjectData[#Headers],0),FALSE()) -> 0
A28: CommericalBuildings | D28: CommericalBuildings | E28: =VLOOKUP($A$1,ProjectData[],MATCH(A28,ProjectData[#Headers],0),FALSE()) -> 1
A29: IT | D29: IT | E29: =VLOOKUP($A$1,ProjectData[],MATCH(A29,ProjectData[#Headers],0),FALSE()) -> 0
A30: Office | D30: Office | E30: =VLOOKUP($A$1,ProjectData[],MATCH(A30,ProjectData[#Headers],0),FALSE()) -> 0
A31: OfficeMachines | D31: OfficeMachines | E31: =VLOOKUP($A$1,ProjectData[],MATCH(A31,ProjectData[#Headers],0),FALSE()) -> 0
... 32 more rows

Sheet P_6
A1: 6 | C1: Contents
A2: Index Column / Lookup column | G2: 2 | H2: =G2+1 -> 3 | I2: =H2+1 -> 4 | J2: =I2+1 -> 5 | K2: 6 | L2: 7 | M2: 8 | N2: 9 | AI2: =H2 -> 3 | AJ2: 4 | AK2: 5 | AL2: 6 | AM2: 7 | AN2: 8 | AO2: =N2 -> 9
C3: Projects
C4: Project Details
A5: Project Name | D5: =VLOOKUP($A$1,ProjectData[],MATCH(A5,ProjectData[#Headers],0),FALSE()) -> SOCI Pass through Buildings
D7: Project Number | E7: =A1 -> 6
A8: PQ Project Driver | D8: Project Type | E8: =VLOOKUP($A$1,ProjectData[],MATCH(A8,ProjectData[#Headers],0),FALSE()) -> Buildings
A9: Capitalisation | D9: Capitalisation | E9: =VLOOKUP($A$1,ProjectData[],MATCH(A9,ProjectData[#Headers],0),FALSE()) -> Project Close
A10: RepexDollarsBasis | D10: Dollar Basis | E10: =VLOOKUP($A$1,ProjectData[],MATCH(A10,ProjectData[#Headers],0),FALSE()) -> Real2026
A11: DMDLCCOCSplitType | D11: Cost Allocation Type | E11: =VLOOKUP($A$1,ProjectData[],MATCH(A11,ProjectData[#Headers],0),FALSE()) -> Non Network - Buildings
A12: Direct Materials | D12: Direct Materials | E12: =VLOOKUP(E$11,CostAllocationSplit[],MATCH(A12,CostAllocationSplit[#Headers],0),FALSE) -> 0.03
A13: Direct Labour | D13: Direct Labour | E13: =VLOOKUP(E$11,CostAllocationSplit[],MATCH(A13,CostAllocationSplit[#Headers],0),FALSE) -> 0.02
A14: Contract Costs | D14: Contract Costs | E14: =VLOOKUP(E$11,CostAllocationSplit[],MATCH(A14,CostAllocationSplit[#Headers],0),FALSE) -> 0.5
A15: Other Costs | D15: Other Costs | E15: =VLOOKUP(E$11,CostAllocationSplit[],MATCH(A15,CostAllocationSplit[#Headers],0),FALSE) -> 0.45
A16: Specific Approved Project | D16: Specific Approved Project? | E16: =IF(VLOOKUP($A$1,ProjectData[],MATCH(A16,ProjectData[#Headers],0),FALSE)="", FALSE,VLOOKUP($A$1,ProjectData[],MATCH(A16,ProjectData[#Headers],0),FALSE)) -> FALSE
C17: Project Asset Class Breakdown
A18: LinesOH | D18: LinesOH | E18: =VLOOKUP($A$1,ProjectData[],MATCH(A18,ProjectData[#Headers],0),FALSE()) -> 0
A19: LinesUG | D19: LinesUG | E19: =VLOOKUP($A$1,ProjectData[],MATCH(A19,ProjectData[#Headers],0),FALSE()) -> 0
A20: LinesRefit | D20: LinesRefit | E20: =VLOOKUP($A$1,ProjectData[],MATCH(A20,ProjectData[#Headers],0),FALSE()) -> 0
A21: SubsPrimary | D21: SubsPrimary | E21: =VLOOKUP($A$1,ProjectData[],MATCH(A21,ProjectData[#Headers],0),FALSE()) -> 0
A22: SubsSecondary | D22: SubsSecondary | E22: =VLOOKUP($A$1,ProjectData[],MATCH(A22,ProjectData[#Headers],0),FALSE()) -> 0
A23: Communications | D23: Communications | E23: =VLOOKUP($A$1,ProjectData[],MATCH(A23,ProjectData[#Headers],0),FALSE()) -> 0
A24: CommsCivil | D24: CommsCivil | E24: =VLOOKUP($A$1,ProjectData[],MATCH(A24,ProjectData[#Headers],0),FALSE()) -> 0
A25: SwitchgCentres | D25: SwitchgCentres | E25: =VLOOKUP($A$1,ProjectData[],MATCH(A25,ProjectData[#Headers],0),FALSE()) -> 0
A26: Land | D26: Land | E26: =VLOOKUP($A$1,ProjectData[],MATCH(A26,ProjectData[#Headers],0),FALSE()) -> 0
A27: Easement | D27: Easement | E27: =VLOOKUP($A$1,ProjectData[],MATCH(A27,ProjectData[#Headers],0),FALSE()) -> 0
A28: CommericalBuildings | D28: CommericalBuildings | E28: =VLOOKUP($A$1,ProjectData[],MATCH(A28,ProjectData[#Headers],0),FALSE()) -> 1
A29: IT | D29: IT | E29: =VLOOKUP($A$1,ProjectData[],MATCH(A29,ProjectData[#Headers],0),FALSE()) -> 0
A30: Office | D30: Office | E30: =VLOOKUP($A$1,ProjectData[],MATCH(A30,ProjectData[#Headers],0),FALSE()) -> 0
A31: OfficeMachines | D31: OfficeMachines | E31: =VLOOKUP($A$1,ProjectData[],MATCH(A31,ProjectData[#Headers],0),FALSE()) -> 0
... 32 more rows

Sheet P_7
A1: 7 | C1: Contents
A2: Index Column / Lookup column | G2: 2 | H2: =G2+1 -> 3 | I2: =H2+1 -> 4 | J2: =I2+1 -> 5 | K2: 6 | L2: 7 | M2: 8 | N2: 9 | AI2: =H2 -> 3 | AJ2: 4 | AK2: 5 | AL2: 6 | AM2: 7 | AN2: 8 | AO2: =N2 -> 9
C3: Projects
C4: Project Details
A5: Project Name | D5: =VLOOKUP($A$1,ProjectData[],MATCH(A5,ProjectData[#Headers],0),FALSE()) -> IT - Cyber Security
D7: Project Number | E7: =A1 -> 7
A8: PQ Project Driver | D8: Project Type | E8: =VLOOKUP($A$1,ProjectData[],MATCH(A8,ProjectData[#Headers],0),FALSE()) -> IT
A9: Capitalisation | D9: Capitalisation | E9: =VLOOKUP($A$1,ProjectData[],MATCH(A9,ProjectData[#Headers],0),FALSE()) -> As Incurred
A10: RepexDollarsBasis | D10: Dollar Basis | E10: =VLOOKUP($A$1,ProjectData[],MATCH(A10,ProjectData[#Headers],0),FALSE()) -> Real2026
A11: DMDLCCOCSplitType | D11: Cost Allocation Type | E11: =VLOOKUP($A$1,ProjectData[],MATCH(A11,ProjectData[#Headers],0),FALSE()) -> Non Network - IT - Non-recurrent
A12: Direct Materials | D12: Direct Materials | E12: =VLOOKUP(E$11,CostAllocationSplit[],MATCH(A12,CostAllocationSplit[#Headers],0),FALSE) -> 0
A13: Direct Labour | D13: Direct Labour | E13: =VLOOKUP(E$11,CostAllocationSplit[],MATCH(A13,CostAllocationSplit[#Headers],0),FALSE) -> 0.25
A14: Contract Costs | D14: Contract Costs | E14: =VLOOKUP(E$11,CostAllocationSplit[],MATCH(A14,CostAllocationSplit[#Headers],0),FALSE) -> 0.07
A15: Other Costs | D15: Other Costs | E15: =VLOOKUP(E$11,CostAllocationSplit[],MATCH(A15,CostAllocationSplit[#Headers],0),FALSE) -> 0.68
A16: Specific Approved Project | D16: Specific Approved Project? | E16: =IF(VLOOKUP($A$1,ProjectData[],MATCH(A16,ProjectData[#Headers],0),FALSE)="", FALSE,VLOOKUP($A$1,ProjectData[],MATCH(A16,ProjectData[#Headers],0),FALSE)) -> FALSE
C17: Project Asset Class Breakdown
A18: LinesOH | D18: LinesOH | E18: =VLOOKUP($A$1,ProjectData[],MATCH(A18,ProjectData[#Headers],0),FALSE()) -> 0
A19: LinesUG | D19: LinesUG | E19: =VLOOKUP($A$1,ProjectData[],MATCH(A19,ProjectData[#Headers],0),FALSE()) -> 0
A20: LinesRefit | D20: LinesRefit | E20: =VLOOKUP($A$1,ProjectData[],MATCH(A20,ProjectData[#Headers],0),FALSE()) -> 0
A21: SubsPrimary | D21: SubsPrimary | E21: =VLOOKUP($A$1,ProjectData[],MATCH(A21,ProjectData[#Headers],0),FALSE()) -> 0
A22: SubsSecondary | D22: SubsSecondary | E22: =VLOOKUP($A$1,ProjectData[],MATCH(A22,ProjectData[#Headers],0),FALSE()) -> 0
A23: Communications | D23: Communications | E23: =VLOOKUP($A$1,ProjectData[],MATCH(A23,ProjectData[#Headers],0),FALSE()) -> 0
A24: CommsCivil | D24: CommsCivil | E24: =VLOOKUP($A$1,ProjectData[],MATCH(A24,ProjectData[#Headers],0),FALSE()) -> 0
A25: SwitchgCentres | D25: SwitchgCentres | E25: =VLOOKUP($A$1,ProjectData[],MATCH(A25,ProjectData[#Headers],0),FALSE()) -> 0
A26: Land | D26: Land | E26: =VLOOKUP($A$1,ProjectData[],MATCH(A26,ProjectData[#Headers],0),FALSE()) -> 0
A27: Easement | D27: Easement | E27: =VLOOKUP($A$1,ProjectData[],MATCH(A27,ProjectData[#Headers],0),FALSE()) -> 0
A28: CommericalBuildings | D28: CommericalBuildings | E28: =VLOOKUP($A$1,ProjectData[],MATCH(A28,ProjectData[#Headers],0),FALSE()) -> 0
A29: IT | D29: IT | E29: =VLOOKUP($A$1,ProjectData[],MATCH(A29,ProjectData[#Headers],0),FALSE()) -> 0.62
A30: Office | D30: Office | E30: =VLOOKUP($A$1,ProjectData[],MATCH(A30,ProjectData[#Headers],0),FALSE()) -> 0
A31: OfficeMachines | D31: OfficeMachines | E31: =VLOOKUP($A$1,ProjectData[],MATCH(A31,ProjectData[#Headers],0),FALSE()) -> 0
... 32 more rows

Sheet P_8
A1: 8 | C1: Contents
A2: Index Column / Lookup column | G2: 2 | H2: =G2+1 -> 3 | I2: =H2+1 -> 4 | J2: =I2+1 -> 5 | K2: 6 | L2: 7 | M2: 8 | N2: 9 | AI2: =H2 -> 3 | AJ2: 4 | AK2: 5 | AL2: 6 | AM2: 7 | AN2: 8 | AO2: =N2 -> 9
C3: Projects
C4: Project Details
A5: Project Name | D5: =VLOOKUP($A$1,ProjectData[],MATCH(A5,ProjectData[#Headers],0),FALSE()) -> IT - EAM
D7: Project Number | E7: =A1 -> 8
A8: PQ Project Driver | D8: Project Type | E8: =VLOOKUP($A$1,ProjectData[],MATCH(A8,ProjectData[#Headers],0),FALSE()) -> IT
A9: Capitalisation | D9: Capitalisation | E9: =VLOOKUP($A$1,ProjectData[],MATCH(A9,ProjectData[#Headers],0),FALSE()) -> As Incurred
A10: RepexDollarsBasis | D10: Dollar Basis | E10: =VLOOKUP($A$1,ProjectData[],MATCH(A10,ProjectData[#Headers],0),FALSE()) -> Real2026
A11: DMDLCCOCSplitType | D11: Cost Allocation Type | E11: =VLOOKUP($A$1,ProjectData[],MATCH(A11,ProjectData[#Headers],0),FALSE()) -> Non Network - IT - Non-recurrent
A12: Direct Materials | D12: Direct Materials | E12: =VLOOKUP(E$11,CostAllocationSplit[],MATCH(A12,CostAllocationSplit[#Headers],0),FALSE) -> 0
A13: Direct Labour | D13: Direct Labour | E13: =VLOOKUP(E$11,CostAllocationSplit[],MATCH(A13,CostAllocationSplit[#Headers],0),FALSE) -> 0.25
A14: Contract Costs | D14: Contract Costs | E14: =VLOOKUP(E$11,CostAllocationSplit[],MATCH(A14,CostAllocationSplit[#Headers],0),FALSE) -> 0.07
A15: Other Costs | D15: Other Costs | E15: =VLOOKUP(E$11,CostAllocationSplit[],MATCH(A15,CostAllocationSplit[#Headers],0),FALSE) -> 0.68
A16: Specific Approved Project | D16: Specific Approved Project? | E16: =IF(VLOOKUP($A$1,ProjectData[],MATCH(A16,ProjectData[#Headers],0),FALSE)="", FALSE,VLOOKUP($A$1,ProjectData[],MATCH(A16,ProjectData[#Headers],0),FALSE)) -> FALSE
C17: Project Asset Class Breakdown
A18: LinesOH | D18: LinesOH | E18: =VLOOKUP($A$1,ProjectData[],MATCH(A18,ProjectData[#Headers],0),FALSE()) -> 0
A19: LinesUG | D19: LinesUG | E19: =VLOOKUP($A$1,ProjectData[],MATCH(A19,ProjectData[#Headers],0),FALSE()) -> 0
A20: LinesRefit | D20: LinesRefit | E20: =VLOOKUP($A$1,ProjectData[],MATCH(A20,ProjectData[#Headers],0),FALSE()) -> 0
A21: SubsPrimary | D21: SubsPrimary | E21: =VLOOKUP($A$1,ProjectData[],MATCH(A21,ProjectData[#Headers],0),FALSE()) -> 0
A22: SubsSecondary | D22: SubsSecondary | E22: =VLOOKUP($A$1,ProjectData[],MATCH(A22,ProjectData[#Headers],0),FALSE()) -> 0
A23: Communications | D23: Communications | E23: =VLOOKUP($A$1,ProjectData[],MATCH(A23,ProjectData[#Headers],0),FALSE()) -> 0
A24: CommsCivil | D24: CommsCivil | E24: =VLOOKUP($A$1,ProjectData[],MATCH(A24,ProjectData[#Headers],0),FALSE()) -> 0
A25: SwitchgCentres | D25: SwitchgCentres | E25: =VLOOKUP($A$1,ProjectData[],MATCH(A25,ProjectData[#Headers],0),FALSE()) -> 0
A26: Land | D26: Land | E26: =VLOOKUP($A$1,ProjectData[],MATCH(A26,ProjectData[#Headers],0),FALSE()) -> 0
A27: Easement | D27: Easement | E27: =VLOOKUP($A$1,ProjectData[],MATCH(A27,ProjectData[#Headers],0),FALSE()) -> 0
A28: CommericalBuildings | D28: CommericalBuildings | E28: =VLOOKUP($A$1,ProjectData[],MATCH(A28,ProjectData[#Headers],0),FALSE()) -> 0
A29: IT | D29: IT | E29: =VLOOKUP($A$1,ProjectData[],MATCH(A29,ProjectData[#Headers],0),FALSE()) -> 0.62
A30: Office | D30: Office | E30: =VLOOKUP($A$1,ProjectData[],MATCH(A30,ProjectData[#Headers],0),FALSE()) -> 0
A31: OfficeMachines | D31: OfficeMachines | E31: =VLOOKUP($A$1,ProjectData[],MATCH(A31,ProjectData[#Headers],0),FALSE()) -> 0
... 32 more rows

Sheet P_9
A1: 9 | C1: Contents
A2: Index Column / Lookup column | G2: 2 | H2: =G2+1 -> 3 | I2: =H2+1 -> 4 | J2: =I2+1 -> 5 | K2: 6 | L2: 7 | M2: 8 | N2: 9 | AI2: =H2 -> 3 | AJ2: 4 | AK2: 5 | AL2: 6 | AM2: 7 | AN2: 8 | AO2: =N2 -> 9
C3: Projects
C4: Project Details
A5: Project Name | D5: =VLOOKUP($A$1,ProjectData[],MATCH(A5,ProjectData[#Headers],0),FALSE()) -> IT - Safety & Environment
D7: Project Number | E7: =A1 -> 9
A8: PQ Project Driver | D8: Project Type | E8: =VLOOKUP($A$1,ProjectData[],MATCH(A8,ProjectData[#Headers],0),FALSE()) -> IT
A9: Capitalisation | D9: Capitalisation | E9: =VLOOKUP($A$1,ProjectData[],MATCH(A9,ProjectData[#Headers],0),FALSE()) -> As Incurred
A10: RepexDollarsBasis | D10: Dollar Basis | E10: =VLOOKUP($A$1,ProjectData[],MATCH(A10,ProjectData[#Headers],0),FALSE()) -> Real2026
A11: DMDLCCOCSplitType | D11: Cost Allocation Type | E11: =VLOOKUP($A$1,ProjectData[],MATCH(A11,ProjectData[#Headers],0),FALSE()) -> Non Network - IT - Non-recurrent
A12: Direct Materials | D12: Direct Materials | E12: =VLOOKUP(E$11,CostAllocationSplit[],MATCH(A12,CostAllocationSplit[#Headers],0),FALSE) -> 0
A13: Direct Labour | D13: Direct Labour | E13: =VLOOKUP(E$11,CostAllocationSplit[],MATCH(A13,CostAllocationSplit[#Headers],0),FALSE) -> 0.25
A14: Contract Costs | D14: Contract Costs | E14: =VLOOKUP(E$11,CostAllocationSplit[],MATCH(A14,CostAllocationSplit[#Headers],0),FALSE) -> 0.07
A15: Other Costs | D15: Other Costs | E15: =VLOOKUP(E$11,CostAllocationSplit[],MATCH(A15,CostAllocationSplit[#Headers],0),FALSE) -> 0.68
A16: Specific Approved Project | D16: Specific Approved Project? | E16: =IF(VLOOKUP($A$1,ProjectData[],MATCH(A16,ProjectData[#Headers],0),FALSE)="", FALSE,VLOOKUP($A$1,ProjectData[],MATCH(A16,ProjectData[#Headers],0),FALSE)) -> FALSE
C17: Project Asset Class Breakdown
A18: LinesOH | D18: LinesOH | E18: =VLOOKUP($A$1,ProjectData[],MATCH(A18,ProjectData[#Headers],0),FALSE()) -> 0
A19: LinesUG | D19: LinesUG | E19: =VLOOKUP($A$1,ProjectData[],MATCH(A19,ProjectData[#Headers],0),FALSE()) -> 0
A20: LinesRefit | D20: LinesRefit | E20: =VLOOKUP($A$1,ProjectData[],MATCH(A20,ProjectData[#Headers],0),FALSE()) -> 0
A21: SubsPrimary | D21: SubsPrimary | E21: =VLOOKUP($A$1,ProjectData[],MATCH(A21,ProjectData[#Headers],0),FALSE()) -> 0
A22: SubsSecondary | D22: SubsSecondary | E22: =VLOOKUP($A$1,ProjectData[],MATCH(A22,ProjectData[#Headers],0),FALSE()) -> 0
A23: Communications | D23: Communications | E23: =VLOOKUP($A$1,ProjectData[],MATCH(A23,ProjectData[#Headers],0),FALSE()) -> 0
A24: CommsCivil | D24: CommsCivil | E24: =VLOOKUP($A$1,ProjectData[],MATCH(A24,ProjectData[#Headers],0),FALSE()) -> 0
A25: SwitchgCentres | D25: SwitchgCentres | E25: =VLOOKUP($A$1,ProjectData[],MATCH(A25,ProjectData[#Headers],0),FALSE()) -> 0
A26: Land | D26: Land | E26: =VLOOKUP($A$1,ProjectData[],MATCH(A26,ProjectData[#Headers],0),FALSE()) -> 0
A27: Easement | D27: Easement | E27: =VLOOKUP($A$1,ProjectData[],MATCH(A27,ProjectData[#Headers],0),FALSE()) -> 0
A28: CommericalBuildings | D28: CommericalBuildings | E28: =VLOOKUP($A$1,ProjectData[],MATCH(A28,ProjectData[#Headers],0),FALSE()) -> 0
A29: IT | D29: IT | E29: =VLOOKUP($A$1,ProjectData[],MATCH(A29,ProjectData[#Headers],0),FALSE()) -> 0.62
A30: Office | D30: Office | E30: =VLOOKUP($A$1,ProjectData[],MATCH(A30,ProjectData[#Headers],0),FALSE()) -> 0
A31: OfficeMachines | D31: OfficeMachines | E31: =VLOOKUP($A$1,ProjectData[],MATCH(A31,ProjectData[#Headers],0),FALSE()) -> 0
... 32 more rows

Sheet P_10
A1: 10 | C1: Contents
A2: Index Column / Lookup column | G2: 2 | H2: =G2+1 -> 3 | I2: =H2+1 -> 4 | J2: =I2+1 -> 5 | K2: 6 | L2: 7 | M2: 8 | N2: 9 | AI2: =H2 -> 3 | AJ2: 4 | AK2: 5 | AL2: 6 | AM2: 7 | AN2: 8 | AO2: =N2 -> 9
C3: Projects
C4: Project Details
A5: Project Name | D5: =VLOOKUP($A$1,ProjectData[],MATCH(A5,ProjectData[#Headers],0),FALSE()) -> IT - Support and Sustain
D7: Project Number | E7: =A1 -> 10
A8: PQ Project Driver | D8: Project Type | E8: =VLOOKUP($A$1,ProjectData[],MATCH(A8,ProjectData[#Headers],0),FALSE()) -> IT
A9: Capitalisation | D9: Capitalisation | E9: =VLOOKUP($A$1,ProjectData[],MATCH(A9,ProjectData[#Headers],0),FALSE()) -> As Incurred
A10: RepexDollarsBasis | D10: Dollar Basis | E10: =VLOOKUP($A$1,ProjectData[],MATCH(A10,ProjectData[#Headers],0),FALSE()) -> Real2026
A11: DMDLCCOCSplitType | D11: Cost Allocation Type | E11: =VLOOKUP($A$1,ProjectData[],MATCH(A11,ProjectData[#Headers],0),FALSE()) -> Non Network - IT - Non-recurrent
A12: Direct Materials | D12: Direct Materials | E12: =VLOOKUP(E$11,CostAllocationSplit[],MATCH(A12,CostAllocationSplit[#Headers],0),FALSE) -> 0
A13: Direct Labour | D13: Direct Labour | E13: =VLOOKUP(E$11,CostAllocationSplit[],MATCH(A13,CostAllocationSplit[#Headers],0),FALSE) -> 0.25
A14: Contract Costs | D14: Contract Costs | E14: =VLOOKUP(E$11,CostAllocationSplit[],MATCH(A14,CostAllocationSplit[#Headers],0),FALSE) -> 0.07
A15: Other Costs | D15: Other Costs | E15: =VLOOKUP(E$11,CostAllocationSplit[],MATCH(A15,CostAllocationSplit[#Headers],0),FALSE) -> 0.68
A16: Specific Approved Project | D16: Specific Approved Project? | E16: =IF(VLOOKUP($A$1,ProjectData[],MATCH(A16,ProjectData[#Headers],0),FALSE)="", FALSE,VLOOKUP($A$1,ProjectData[],MATCH(A16,ProjectData[#Headers],0),FALSE)) -> FALSE
C17: Project Asset Class Breakdown
A18: LinesOH | D18: LinesOH | E18: =VLOOKUP($A$1,ProjectData[],MATCH(A18,ProjectData[#Headers],0),FALSE()) -> 0
A19: LinesUG | D19: LinesUG | E19: =VLOOKUP($A$1,ProjectData[],MATCH(A19,ProjectData[#Headers],0),FALSE()) -> 0
A20: LinesRefit | D20: LinesRefit | E20: =VLOOKUP($A$1,ProjectData[],MATCH(A20,ProjectData[#Headers],0),FALSE()) -> 0
A21: SubsPrimary | D21: SubsPrimary | E21: =VLOOKUP($A$1,ProjectData[],MATCH(A21,ProjectData[#Headers],0),FALSE()) -> 0
A22: SubsSecondary | D22: SubsSecondary | E22: =VLOOKUP($A$1,ProjectData[],MATCH(A22,ProjectData[#Headers],0),FALSE()) -> 0
A23: Communications | D23: Communications | E23: =VLOOKUP($A$1,ProjectData[],MATCH(A23,ProjectData[#Headers],0),FALSE()) -> 0
A24: CommsCivil | D24: CommsCivil | E24: =VLOOKUP($A$1,ProjectData[],MATCH(A24,ProjectData[#Headers],0),FALSE()) -> 0
A25: SwitchgCentres | D25: SwitchgCentres | E25: =VLOOKUP($A$1,ProjectData[],MATCH(A25,ProjectData[#Headers],0),FALSE()) -> 0
A26: Land | D26: Land | E26: =VLOOKUP($A$1,ProjectData[],MATCH(A26,ProjectData[#Headers],0),FALSE()) -> 0
A27: Easement | D27: Easement | E27: =VLOOKUP($A$1,ProjectData[],MATCH(A27,ProjectData[#Headers],0),FALSE()) -> 0
A28: CommericalBuildings | D28: CommericalBuildings | E28: =VLOOKUP($A$1,ProjectData[],MATCH(A28,ProjectData[#Headers],0),FALSE()) -> 0
A29: IT | D29: IT | E29: =VLOOKUP($A$1,ProjectData[],MATCH(A29,ProjectData[#Headers],0),FALSE()) -> 0.62
A30: Office | D30: Office | E30: =VLOOKUP($A$1,ProjectData[],MATCH(A30,ProjectData[#Headers],0),FALSE()) -> 0
A31: OfficeMachines | D31: OfficeMachines | E31: =VLOOKUP($A$1,ProjectData[],MATCH(A31,ProjectData[#Headers],0),FALSE()) -> 0
... 32 more rows

Sheet P_11
A1: 11 | C1: Contents
A2: Index Column / Lookup column | G2: 2 | H2: =G2+1 -> 3 | I2: =H2+1 -> 4 | J2: =I2+1 -> 5 | K2: 6 | L2: 7 | M2: 8 | N2: 9 | AI2: =H2 -> 3 | AJ2: 4 | AK2: 5 | AL2: 6 | AM2: 7 | AN2: 8 | AO2: =N2 -> 9
C3: Projects
C4: Project Details
A5: Project Name | D5: =VLOOKUP($A$1,ProjectData[],MATCH(A5,ProjectData[#Headers],0),FALSE()) -> IT - Recurrent
D7: Project Number | E7: =A1 -> 11
A8: PQ Project Driver | D8: Project Type | E8: =VLOOKUP($A$1,ProjectData[],MATCH(A8,ProjectData[#Headers],0),FALSE()) -> IT
A9: Capitalisation | D9: Capitalisation | E9: =VLOOKUP($A$1,ProjectData[],MATCH(A9,ProjectData[#Headers],0),FALSE()) -> As Incurred
A10: RepexDollarsBasis | D10: Dollar Basis | E10: =VLOOKUP($A$1,ProjectData[],MATCH(A10,ProjectData[#Headers],0),FALSE()) -> Real2026
A11: DMDLCCOCSplitType | D11: Cost Allocation Type | E11: =VLOOKUP($A$1,ProjectData[],MATCH(A11,ProjectData[#Headers],0),FALSE()) -> Non Network - IT - Software Hardware Refresh
A12: Direct Materials | D12: Direct Materials | E12: =VLOOKUP(E$11,CostAllocationSplit[],MATCH(A12,CostAllocationSplit[#Headers],0),FALSE) -> 0
A13: Direct Labour | D13: Direct Labour | E13: =VLOOKUP(E$11,CostAllocationSplit[],MATCH(A13,CostAllocationSplit[#Headers],0),FALSE) -> 0.12
A14: Contract Costs | D14: Contract Costs | E14: =VLOOKUP(E$11,CostAllocationSplit[],MATCH(A14,CostAllocationSplit[#Headers],0),FALSE) -> 0.175
A15: Other Costs | D15: Other Costs | E15: =VLOOKUP(E$11,CostAllocationSplit[],MATCH(A15,CostAllocationSplit[#Headers],0),FALSE) -> 0.705
A16: Specific Approved Project | D16: Specific Approved Project? | E16: =IF(VLOOKUP($A$1,ProjectData[],MATCH(A16,ProjectData[#Headers],0),FALSE)="", FALSE,VLOOKUP($A$1,ProjectData[],MATCH(A16,ProjectData[#Headers],0),FALSE)) -> FALSE
C17: Project Asset Class Breakdown
A18: LinesOH | D18: LinesOH | E18: =VLOOKUP($A$1,ProjectData[],MATCH(A18,ProjectData[#Headers],0),FALSE()) -> 0
A19: LinesUG | D19: LinesUG | E19: =VLOOKUP($A$1,ProjectData[],MATCH(A19,ProjectData[#Headers],0),FALSE()) -> 0
A20: LinesRefit | D20: LinesRefit | E20: =VLOOKUP($A$1,ProjectData[],MATCH(A20,ProjectData[#Headers],0),FALSE()) -> 0
A21: SubsPrimary | D21: SubsPrimary | E21: =VLOOKUP($A$1,ProjectData[],MATCH(A21,ProjectData[#Headers],0),FALSE()) -> 0
A22: SubsSecondary | D22: SubsSecondary | E22: =VLOOKUP($A$1,ProjectData[],MATCH(A22,ProjectData[#Headers],0),FALSE()) -> 0
A23: Communications | D23: Communications | E23: =VLOOKUP($A$1,ProjectData[],MATCH(A23,ProjectData[#Headers],0),FALSE()) -> 0
A24: CommsCivil | D24: CommsCivil | E24: =VLOOKUP($A$1,ProjectData[],MATCH(A24,ProjectData[#Headers],0),FALSE()) -> 0
A25: SwitchgCentres | D25: SwitchgCentres | E25: =VLOOKUP($A$1,ProjectData[],MATCH(A25,ProjectData[#Headers],0),FALSE()) -> 0
A26: Land | D26: Land | E26: =VLOOKUP($A$1,ProjectData[],MATCH(A26,ProjectData[#Headers],0),FALSE()) -> 0
A27: Easement | D27: Easement | E27: =VLOOKUP($A$1,ProjectData[],MATCH(A27,ProjectData[#Headers],0),FALSE()) -> 0
A28: CommericalBuildings | D28: CommericalBuildings | E28: =VLOOKUP($A$1,ProjectData[],MATCH(A28,ProjectData[#Headers],0),FALSE()) -> 0
A29: IT | D29: IT | E29: =VLOOKUP($A$1,ProjectData[],MATCH(A29,ProjectData[#Headers],0),FALSE()) -> 0.62
A30: Office | D30: Office | E30: =VLOOKUP($A$1,ProjectData[],MATCH(A30,ProjectData[#Headers],0),FALSE()) -> 0
A31: OfficeMachines | D31: OfficeMachines | E31: =VLOOKUP($A$1,ProjectData[],MATCH(A31,ProjectData[#Headers],0),FALSE()) -> 0
... 32 more rows

Sheet P_12
A1: 12 | C1: Contents
A2: Index Column / Lookup column | G2: 2 | H2: =G2+1 -> 3 | I2: =H2+1 -> 4 | J2: =I2+1 -> 5 | K2: 6 | L2: 7 | M2: 8 | N2: 9 | AI2: =H2 -> 3 | AJ2: 4 | AK2: 5 | AL2: 6 | AM2: 7 | AN2: 8 | AO2: =N2 -> 9
C3: Projects
C4: Project Details
A5: Project Name | D5: =VLOOKUP($A$1,ProjectData[],MATCH(A5,ProjectData[#Headers],0),FALSE()) -> IT - Client Devices
D7: Project Number | E7: =A1 -> 12
A8: PQ Project Driver | D8: Project Type | E8: =VLOOKUP($A$1,ProjectData[],MATCH(A8,ProjectData[#Headers],0),FALSE()) -> IT
A9: Capitalisation | D9: Capitalisation | E9: =VLOOKUP($A$1,ProjectData[],MATCH(A9,ProjectData[#Headers],0),FALSE()) -> As Incurred
A10: RepexDollarsBasis | D10: Dollar Basis | E10: =VLOOKUP($A$1,ProjectData[],MATCH(A10,ProjectData[#Headers],0),FALSE()) -> Real2026
A11: DMDLCCOCSplitType | D11: Cost Allocation Type | E11: =VLOOKUP($A$1,ProjectData[],MATCH(A11,ProjectData[#Headers],0),FALSE()) -> Non Network - IT - Software Hardware Refresh
A12: Direct Materials | D12: Direct Materials | E12: =VLOOKUP(E$11,CostAllocationSplit[],MATCH(A12,CostAllocationSplit[#Headers],0),FALSE) -> 0
A13: Direct Labour | D13: Direct Labour | E13: =VLOOKUP(E$11,CostAllocationSplit[],MATCH(A13,CostAllocationSplit[#Headers],0),FALSE) -> 0.12
A14: Contract Costs | D14: Contract Costs | E14: =VLOOKUP(E$11,CostAllocationSplit[],MATCH(A14,CostAllocationSplit[#Headers],0),FALSE) -> 0.175
A15: Other Costs | D15: Other Costs | E15: =VLOOKUP(E$11,CostAllocationSplit[],MATCH(A15,CostAllocationSplit[#Headers],0),FALSE) -> 0.705
A16: Specific Approved Project | D16: Specific Approved Project? | E16: =IF(VLOOKUP($A$1,ProjectData[],MATCH(A16,ProjectData[#Headers],0),FALSE)="", FALSE,VLOOKUP($A$1,ProjectData[],MATCH(A16,ProjectData[#Headers],0),FALSE)) -> FALSE
C17: Project Asset Class Breakdown
A18: LinesOH | D18: LinesOH | E18: =VLOOKUP($A$1,ProjectData[],MATCH(A18,ProjectData[#Headers],0),FALSE()) -> 0
A19: LinesUG | D19: LinesUG | E19: =VLOOKUP($A$1,ProjectData[],MATCH(A19,ProjectData[#Headers],0),FALSE()) -> 0
A20: LinesRefit | D20: LinesRefit | E20: =VLOOKUP($A$1,ProjectData[],MATCH(A20,ProjectData[#Headers],0),FALSE()) -> 0
A21: SubsPrimary | D21: SubsPrimary | E21: =VLOOKUP($A$1,ProjectData[],MATCH(A21,ProjectData[#Headers],0),FALSE()) -> 0
A22: SubsSecondary | D22: SubsSecondary | E22: =VLOOKUP($A$1,ProjectData[],MATCH(A22,ProjectData[#Headers],0),FALSE()) -> 0
A23: Communications | D23: Communications | E23: =VLOOKUP($A$1,ProjectData[],MATCH(A23,ProjectData[#Headers],0),FALSE()) -> 0
A24: CommsCivil | D24: CommsCivil | E24: =VLOOKUP($A$1,ProjectData[],MATCH(A24,ProjectData[#Headers],0),FALSE()) -> 0
A25: SwitchgCentres | D25: SwitchgCentres | E25: =VLOOKUP($A$1,ProjectData[],MATCH(A25,ProjectData[#Headers],0),FALSE()) -> 0
A26: Land | D26: Land | E26: =VLOOKUP($A$1,ProjectData[],MATCH(A26,ProjectData[#Headers],0),FALSE()) -> 0
A27: Easement | D27: Easement | E27: =VLOOKUP($A$1,ProjectData[],MATCH(A27,ProjectData[#Headers],0),FALSE()) -> 0
A28: CommericalBuildings | D28: CommericalBuildings | E28: =VLOOKUP($A$1,ProjectData[],MATCH(A28,ProjectData[#Headers],0),FALSE()) -> 0
A29: IT | D29: IT | E29: =VLOOKUP($A$1,ProjectData[],MATCH(A29,ProjectData[#Headers],0),FALSE()) -> 0.62
A30: Office | D30: Office | E30: =VLOOKUP($A$1,ProjectData[],MATCH(A30,ProjectData[#Headers],0),FALSE()) -> 0
A31: OfficeMachines | D31: OfficeMachines | E31: =VLOOKUP($A$1,ProjectData[],MATCH(A31,ProjectData[#Headers],0),FALSE()) -> 0
... 32 more rows

Sheet P_13
A1: 13 | C1: Contents
A2: Index Column / Lookup column | G2: 2 | H2: =G2+1 -> 3 | I2: =H2+1 -> 4 | J2: =I2+1 -> 5 | K2: 6 | L2: 7 | M2: 8 | N2: 9 | AI2: =H2 -> 3 | AJ2: 4 | AK2: 5 | AL2: 6 | AM2: 7 | AN2: 8 | AO2: =N2 -> 9
C3: Projects
C4: Project Details
A5: Project Name | D5: =VLOOKUP($A$1,ProjectData[],MATCH(A5,ProjectData[#Headers],0),FALSE()) -> CP.02513 OpsWAN and MPLS Replacement RAN 2
D7: Project Number | E7: =A1 -> 13
A8: PQ Project Driver | D8: Project Type | E8: =VLOOKUP($A$1,ProjectData[],MATCH(A8,ProjectData[#Headers],0),FALSE()) -> Replacement
A9: Capitalisation | D9: Capitalisation | E9: =VLOOKUP($A$1,ProjectData[],MATCH(A9,ProjectData[#Headers],0),FALSE()) -> Project Close
A10: RepexDollarsBasis | D10: Dollar Basis | E10: =VLOOKUP($A$1,ProjectData[],MATCH(A10,ProjectData[#Headers],0),FALSE()) -> Real2026
A11: DMDLCCOCSplitType | D11: Cost Allocation Type | E11: =VLOOKUP($A$1,ProjectData[],MATCH(A11,ProjectData[#Headers],0),FALSE()) -> Telecomms
A12: Direct Materials | D12: Direct Materials | E12: =VLOOKUP(E$11,CostAllocationSplit[],MATCH(A12,CostAllocationSplit[#Headers],0),FALSE) -> 0.35
A13: Direct Labour | D13: Direct Labour | E13: =VLOOKUP(E$11,CostAllocationSplit[],MATCH(A13,CostAllocationSplit[#Headers],0),FALSE) -> 0.55
A14: Contract Costs | D14: Contract Costs | E14: =VLOOKUP(E$11,CostAllocationSplit[],MATCH(A14,CostAllocationSplit[#Headers],0),FALSE) -> 0.08
A15: Other Costs | D15: Other Costs | E15: =VLOOKUP(E$11,CostAllocationSplit[],MATCH(A15,CostAllocationSplit[#Headers],0),FALSE) -> 0.02
A16: Specific Approved Project | D16: Specific Approved Project? | E16: =IF(VLOOKUP($A$1,ProjectData[],MATCH(A16,ProjectData[#Headers],0),FALSE)="", FALSE,VLOOKUP($A$1,ProjectData[],MATCH(A16,ProjectData[#Headers],0),FALSE)) -> FALSE
C17: Project Asset Class Breakdown
A18: LinesOH | D18: LinesOH | E18: =VLOOKUP($A$1,ProjectData[],MATCH(A18,ProjectData[#Headers],0),FALSE()) -> 0
A19: LinesUG | D19: LinesUG | E19: =VLOOKUP($A$1,ProjectData[],MATCH(A19,ProjectData[#Headers],0),FALSE()) -> 0
A20: LinesRefit | D20: LinesRefit | E20: =VLOOKUP($A$1,ProjectData[],MATCH(A20,ProjectData[#Headers],0),FALSE()) -> 0
A21: SubsPrimary | D21: SubsPrimary | E21: =VLOOKUP($A$1,ProjectData[],MATCH(A21,ProjectData[#Headers],0),FALSE()) -> 0
A22: SubsSecondary | D22: SubsSecondary | E22: =VLOOKUP($A$1,ProjectData[],MATCH(A22,ProjectData[#Headers],0),FALSE()) -> 0.11
A23: Communications | D23: Communications | E23: =VLOOKUP($A$1,ProjectData[],MATCH(A23,ProjectData[#Headers],0),FALSE()) -> 0.89
A24: CommsCivil | D24: CommsCivil | E24: =VLOOKUP($A$1,ProjectData[],MATCH(A24,ProjectData[#Headers],0),FALSE()) -> 0
A25: SwitchgCentres | D25: SwitchgCentres | E25: =VLOOKUP($A$1,ProjectData[],MATCH(A25,ProjectData[#Headers],0),FALSE()) -> 0
A26: Land | D26: Land | E26: =VLOOKUP($A$1,ProjectData[],MATCH(A26,ProjectData[#Headers],0),FALSE()) -> 0
A27: Easement | D27: Easement | E27: =VLOOKUP($A$1,ProjectData[],MATCH(A27,ProjectData[#Headers],0),FALSE()) -> 0
A28: CommericalBuildings | D28: CommericalBuildings | E28: =VLOOKUP($A$1,ProjectData[],MATCH(A28,ProjectData[#Headers],0),FALSE()) -> 0
A29: IT | D29: IT | E29: =VLOOKUP($A$1,ProjectData[],MATCH(A29,ProjectData[#Headers],0),FALSE()) -> 0
A30: Office | D30: Office | E30: =VLOOKUP($A$1,ProjectData[],MATCH(A30,ProjectData[#Headers],0),FALSE()) -> 0
A31: OfficeMachines | D31: OfficeMachines | E31: =VLOOKUP($A$1,ProjectData[],MATCH(A31,ProjectData[#Headers],0),FALSE()) -> 0
... 32 more rows

Sheet P_14
A1: 14 | C1: Contents
A2: Index Column / Lookup column | G2: 2 | H2: =G2+1 -> 3 | I2: =H2+1 -> 4 | J2: =I2+1 -> 5 | K2: 6 | L2: 7 | M2: 8 | N2: 9 | AI2: =H2 -> 3 | AJ2: 4 | AK2: 5 | AL2: 6 | AM2: 7 | AN2: 8 | AO2: =N2 -> 9
C3: Projects
C4: Project Details
A5: Project Name | D5: =VLOOKUP($A$1,ProjectData[],MATCH(A5,ProjectData[#Headers],0),FALSE()) -> CP.02514 OpsWAN and MPLS Replacement RAN 3
D7: Project Number | E7: =A1 -> 14
A8: PQ Project Driver | D8: Project Type | E8: =VLOOKUP($A$1,ProjectData[],MATCH(A8,ProjectData[#Headers],0),FALSE()) -> Replacement
A9: Capitalisation | D9: Capitalisation | E9: =VLOOKUP($A$1,ProjectData[],MATCH(A9,ProjectData[#Headers],0),FALSE()) -> Project Close
A10: RepexDollarsBasis | D10: Dollar Basis | E10: =VLOOKUP($A$1,ProjectData[],MATCH(A10,ProjectData[#Headers],0),FALSE()) -> Real2026
A11: DMDLCCOCSplitType | D11: Cost Allocation Type | E11: =VLOOKUP($A$1,ProjectData[],MATCH(A11,ProjectData[#Headers],0),FALSE()) -> Telecomms
A12: Direct Materials | D12: Direct Materials | E12: =VLOOKUP(E$11,CostAllocationSplit[],MATCH(A12,CostAllocationSplit[#Headers],0),FALSE) -> 0.35
A13: Direct Labour | D13: Direct Labour | E13: =VLOOKUP(E$11,CostAllocationSplit[],MATCH(A13,CostAllocationSplit[#Headers],0),FALSE) -> 0.55
A14: Contract Costs | D14: Contract Costs | E14: =VLOOKUP(E$11,CostAllocationSplit[],MATCH(A14,CostAllocationSplit[#Headers],0),FALSE) -> 0.08
A15: Other Costs | D15: Other Costs | E15: =VLOOKUP(E$11,CostAllocationSplit[],MATCH(A15,CostAllocationSplit[#Headers],0),FALSE) -> 0.02
A16: Specific Approved Project | D16: Specific Approved Project? | E16: =IF(VLOOKUP($A$1,ProjectData[],MATCH(A16,ProjectData[#Headers],0),FALSE)="", FALSE,VLOOKUP($A$1,ProjectData[],MATCH(A16,ProjectData[#Headers],0),FALSE)) -> FALSE
C17: Project Asset Class Breakdown
A18: LinesOH | D18: LinesOH | E18: =VLOOKUP($A$1,ProjectData[],MATCH(A18,ProjectData[#Headers],0),FALSE()) -> 0
A19: LinesUG | D19: LinesUG | E19: =VLOOKUP($A$1,ProjectData[],MATCH(A19,ProjectData[#Headers],0),FALSE()) -> 0
A20: LinesRefit | D20: LinesRefit | E20: =VLOOKUP($A$1,ProjectData[],MATCH(A20,ProjectData[#Headers],0),FALSE()) -> 0
A21: SubsPrimary | D21: SubsPrimary | E21: =VLOOKUP($A$1,ProjectData[],MATCH(A21,ProjectData[#Headers],0),FALSE()) -> 0
A22: SubsSecondary | D22: SubsSecondary | E22: =VLOOKUP($A$1,ProjectData[],MATCH(A22,ProjectData[#Headers],0),FALSE()) -> 0.11
A23: Communications | D23: Communications | E23: =VLOOKUP($A$1,ProjectData[],MATCH(A23,ProjectData[#Headers],0),FALSE()) -> 0.89
A24: CommsCivil | D24: CommsCivil | E24: =VLOOKUP($A$1,ProjectData[],MATCH(A24,ProjectData[#Headers],0),FALSE()) -> 0
A25: SwitchgCentres | D25: SwitchgCentres | E25: =VLOOKUP($A$1,ProjectData[],MATCH(A25,ProjectData[#Headers],0),FALSE()) -> 0
A26: Land | D26: Land | E26: =VLOOKUP($A$1,ProjectData[],MATCH(A26,ProjectData[#Headers],0),FALSE()) -> 0
A27: Easement | D27: Easement | E27: =VLOOKUP($A$1,ProjectData[],MATCH(A27,ProjectData[#Headers],0),FALSE()) -> 0
A28: CommericalBuildings | D28: CommericalBuildings | E28: =VLOOKUP($A$1,ProjectData[],MATCH(A28,ProjectData[#Headers],0),FALSE()) -> 0
A29: IT | D29: IT | E29: =VLOOKUP($A$1,ProjectData[],MATCH(A29,ProjectData[#Headers],0),FALSE()) -> 0
A30: Office | D30: Office | E30: =VLOOKUP($A$1,ProjectData[],MATCH(A30,ProjectData[#Headers],0),FALSE()) -> 0
A31: OfficeMachines | D31: OfficeMachines | E31: =VLOOKUP($A$1,ProjectData[],MATCH(A31,ProjectData[#Headers],0),FALSE()) -> 0
... 32 more rows

Sheet P_15
A1: 15 | C1: Contents
A2: Index Column / Lookup column | G2: 2 | H2: =G2+1 -> 3 | I2: =H2+1 -> 4 | J2: =I2+1 -> 5 | K2: 6 | L2: 7 | M2: 8 | N2: 9 | AI2: =H2 -> 3 | AJ2: 4 | AK2: 5 | AL2: 6 | AM2: 7 | AN2: 8 | AO2: =N2 -> 9
C3: Projects
C4: Project Details
A5: Project Name | D5: =VLOOKUP($A$1,ProjectData[],MATCH(A5,ProjectData[#Headers],0),FALSE()) -> CP.02811 Telecommunication Network Consolidation RAN 2
D7: Project Number | E7: =A1 -> 15
A8: PQ Project Driver | D8: Project Type | E8: =VLOOKUP($A$1,ProjectData[],MATCH(A8,ProjectData[#Headers],0),FALSE()) -> Replacement
A9: Capitalisation | D9: Capitalisation | E9: =VLOOKUP($A$1,ProjectData[],MATCH(A9,ProjectData[#Headers],0),FALSE()) -> Project Close
A10: RepexDollarsBasis | D10: Dollar Basis | E10: =VLOOKUP($A$1,ProjectData[],MATCH(A10,ProjectData[#Headers],0),FALSE()) -> Real2026
A11: DMDLCCOCSplitType | D11: Cost Allocation Type | E11: =VLOOKUP($A$1,ProjectData[],MATCH(A11,ProjectData[#Headers],0),FALSE()) -> Telecomms
A12: Direct Materials | D12: Direct Materials | E12: =VLOOKUP(E$11,CostAllocationSplit[],MATCH(A12,CostAllocationSplit[#Headers],0),FALSE) -> 0.35
A13: Direct Labour | D13: Direct Labour | E13: =VLOOKUP(E$11,CostAllocationSplit[],MATCH(A13,CostAllocationSplit[#Headers],0),FALSE) -> 0.55
A14: Contract Costs | D14: Contract Costs | E14: =VLOOKUP(E$11,CostAllocationSplit[],MATCH(A14,CostAllocationSplit[#Headers],0),FALSE) -> 0.08
A15: Other Costs | D15: Other Costs | E15: =VLOOKUP(E$11,CostAllocationSplit[],MATCH(A15,CostAllocationSplit[#Headers],0),FALSE) -> 0.02
A16: Specific Approved Project | D16: Specific Approved Project? | E16: =IF(VLOOKUP($A$1,ProjectData[],MATCH(A16,ProjectData[#Headers],0),FALSE)="", FALSE,VLOOKUP($A$1,ProjectData[],MATCH(A16,ProjectData[#Headers],0),FALSE)) -> FALSE
C17: Project Asset Class Breakdown
A18: LinesOH | D18: LinesOH | E18: =VLOOKUP($A$1,ProjectData[],MATCH(A18,ProjectData[#Headers],0),FALSE()) -> 0
A19: LinesUG | D19: LinesUG | E19: =VLOOKUP($A$1,ProjectData[],MATCH(A19,ProjectData[#Headers],0),FALSE()) -> 0
A20: LinesRefit | D20: LinesRefit | E20: =VLOOKUP($A$1,ProjectData[],MATCH(A20,ProjectData[#Headers],0),FALSE()) -> 0
A21: SubsPrimary | D21: SubsPrimary | E21: =VLOOKUP($A$1,ProjectData[],MATCH(A21,ProjectData[#Headers],0),FALSE()) -> 0
A22: SubsSecondary | D22: SubsSecondary | E22: =VLOOKUP($A$1,ProjectData[],MATCH(A22,ProjectData[#Headers],0),FALSE()) -> 0.04
A23: Communications | D23: Communications | E23: =VLOOKUP($A$1,ProjectData[],MATCH(A23,ProjectData[#Headers],0),FALSE()) -> 0.96
A24: CommsCivil | D24: CommsCivil | E24: =VLOOKUP($A$1,ProjectData[],MATCH(A24,ProjectData[#Headers],0),FALSE()) -> 0
A25: SwitchgCentres | D25: SwitchgCentres | E25: =VLOOKUP($A$1,ProjectData[],MATCH(A25,ProjectData[#Headers],0),FALSE()) -> 0
A26: Land | D26: Land | E26: =VLOOKUP($A$1,ProjectData[],MATCH(A26,ProjectData[#Headers],0),FALSE()) -> 0
A27: Easement | D27: Easement | E27: =VLOOKUP($A$1,ProjectData[],MATCH(A27,ProjectData[#Headers],0),FALSE()) -> 0
A28: CommericalBuildings | D28: CommericalBuildings | E28: =VLOOKUP($A$1,ProjectData[],MATCH(A28,ProjectData[#Headers],0),FALSE()) -> 0
A29: IT | D29: IT | E29: =VLOOKUP($A$1,ProjectData[],MATCH(A29,ProjectData[#Headers],0),FALSE()) -> 0
A30: Office | D30: Office | E30: =VLOOKUP($A$1,ProjectData[],MATCH(A30,ProjectData[#Headers],0),FALSE()) -> 0
A31: OfficeMachines | D31: OfficeMachines | E31: =VLOOKUP($A$1,ProjectData[],MATCH(A31,ProjectData[#Headers],0),FALSE()) -> 0
... 32 more rows

Sheet P_16
A1: 16 | C1: Contents
A2: Index Column / Lookup column | G2: 2 | H2: =G2+1 -> 3 | I2: =H2+1 -> 4 | J2: =I2+1 -> 5 | K2: 6 | L2: 7 | M2: 8 | N2: 9 | AI2: =H2 -> 3 | AJ2: 4 | AK2: 5 | AL2: 6 | AM2: 7 | AN2: 8 | AO2: =N2 -> 9
C3: Projects
C4: Project Details
A5: Project Name | D5: =VLOOKUP($A$1,ProjectData[],MATCH(A5,ProjectData[#Headers],0),FALSE()) -> CP.02812 Telecommunication Network Consolidation RAN 3
D7: Project Number | E7: =A1 -> 16
A8: PQ Project Driver | D8: Project Type | E8: =VLOOKUP($A$1,ProjectData[],MATCH(A8,ProjectData[#Headers],0),FALSE()) -> Replacement
A9: Capitalisation | D9: Capitalisation | E9: =VLOOKUP($A$1,ProjectData[],MATCH(A9,ProjectData[#Headers],0),FALSE()) -> Project Close
A10: RepexDollarsBasis | D10: Dollar Basis | E10: =VLOOKUP($A$1,ProjectData[],MATCH(A10,ProjectData[#Headers],0),FALSE()) -> Real2026
A11: DMDLCCOCSplitType | D11: Cost Allocation Type | E11: =VLOOKUP($A$1,ProjectData[],MATCH(A11,ProjectData[#Headers],0),FALSE()) -> Telecomms
A12: Direct Materials | D12: Direct Materials | E12: =VLOOKUP(E$11,CostAllocationSplit[],MATCH(A12,CostAllocationSplit[#Headers],0),FALSE) -> 0.35
A13: Direct Labour | D13: Direct Labour | E13: =VLOOKUP(E$11,CostAllocationSplit[],MATCH(A13,CostAllocationSplit[#Headers],0),FALSE) -> 0.55
A14: Contract Costs | D14: Contract Costs | E14: =VLOOKUP(E$11,CostAllocationSplit[],MATCH(A14,CostAllocationSplit[#Headers],0),FALSE) -> 0.08
A15: Other Costs | D15: Other Costs | E15: =VLOOKUP(E$11,CostAllocationSplit[],MATCH(A15,CostAllocationSplit[#Headers],0),FALSE) -> 0.02
A16: Specific Approved Project | D16: Specific Approved Project? | E16: =IF(VLOOKUP($A$1,ProjectData[],MATCH(A16,ProjectData[#Headers],0),FALSE)="", FALSE,VLOOKUP($A$1,ProjectData[],MATCH(A16,ProjectData[#Headers],0),FALSE)) -> FALSE
C17: Project Asset Class Breakdown
A18: LinesOH | D18: LinesOH | E18: =VLOOKUP($A$1,ProjectData[],MATCH(A18,ProjectData[#Headers],0),FALSE()) -> 0
A19: LinesUG | D19: LinesUG | E19: =VLOOKUP($A$1,ProjectData[],MATCH(A19,ProjectData[#Headers],0),FALSE()) -> 0
A20: LinesRefit | D20: LinesRefit | E20: =VLOOKUP($A$1,ProjectData[],MATCH(A20,ProjectData[#Headers],0),FALSE()) -> 0
A21: SubsPrimary | D21: SubsPrimary | E21: =VLOOKUP($A$1,ProjectData[],MATCH(A21,ProjectData[#Headers],0),FALSE()) -> 0
A22: SubsSecondary | D22: SubsSecondary | E22: =VLOOKUP($A$1,ProjectData[],MATCH(A22,ProjectData[#Headers],0),FALSE()) -> 0.05
A23: Communications | D23: Communications | E23: =VLOOKUP($A$1,ProjectData[],MATCH(A23,ProjectData[#Headers],0),FALSE()) -> 0.95
A24: CommsCivil | D24: CommsCivil | E24: =VLOOKUP($A$1,ProjectData[],MATCH(A24,ProjectData[#Headers],0),FALSE()) -> 0
A25: SwitchgCentres | D25: SwitchgCentres | E25: =VLOOKUP($A$1,ProjectData[],MATCH(A25,ProjectData[#Headers],0),FALSE()) -> 0
A26: Land | D26: Land | E26: =VLOOKUP($A$1,ProjectData[],MATCH(A26,ProjectData[#Headers],0),FALSE()) -> 0
A27: Easement | D27: Easement | E27: =VLOOKUP($A$1,ProjectData[],MATCH(A27,ProjectData[#Headers],0),FALSE()) -> 0
A28: CommericalBuildings | D28: CommericalBuildings | E28: =VLOOKUP($A$1,ProjectData[],MATCH(A28,ProjectData[#Headers],0),FALSE()) -> 0
A29: IT | D29: IT | E29: =VLOOKUP($A$1,ProjectData[],MATCH(A29,ProjectData[#Headers],0),FALSE()) -> 0
A30: Office | D30: Office | E30: =VLOOKUP($A$1,ProjectData[],MATCH(A30,ProjectData[#Headers],0),FALSE()) -> 0
A31: OfficeMachines | D31: OfficeMachines | E31: =VLOOKUP($A$1,ProjectData[],MATCH(A31,ProjectData[#Headers],0),FALSE()) -> 0
... 32 more rows

Sheet P_17
A1: 17 | C1: Contents
A2: Index Column / Lookup column | G2: 2 | H2: =G2+1 -> 3 | I2: =H2+1 -> 4 | J2: =I2+1 -> 5 | K2: 6 | L2: 7 | M2: 8 | N2: 9 | AI2: =H2 -> 3 | AJ2: 4 | AK2: 5 | AL2: 6 | AM2: 7 | AN2: 8 | AO2: =N2 -> 9
C3: Projects
C4: Project Details
A5: Project Name | D5: =VLOOKUP($A$1,ProjectData[],MATCH(A5,ProjectData[#Headers],0),FALSE()) -> CP.02813 Telecommunication Network Consolidation RAN 4
D7: Project Number | E7: =A1 -> 17
A8: PQ Project Driver | D8: Project Type | E8: =VLOOKUP($A$1,ProjectData[],MATCH(A8,ProjectData[#Headers],0),FALSE()) -> Replacement
A9: Capitalisation | D9: Capitalisation | E9: =VLOOKUP($A$1,ProjectData[],MATCH(A9,ProjectData[#Headers],0),FALSE()) -> Project Close
A10: RepexDollarsBasis | D10: Dollar Basis | E10: =VLOOKUP($A$1,ProjectData[],MATCH(A10,ProjectData[#Headers],0),FALSE()) -> Real2026
A11: DMDLCCOCSplitType | D11: Cost Allocation Type | E11: =VLOOKUP($A$1,ProjectData[],MATCH(A11,ProjectData[#Headers],0),FALSE()) -> Telecomms
A12: Direct Materials | D12: Direct Materials | E12: =VLOOKUP(E$11,CostAllocationSplit[],MATCH(A12,CostAllocationSplit[#Headers],0),FALSE) -> 0.35
A13: Direct Labour | D13: Direct Labour | E13: =VLOOKUP(E$11,CostAllocationSplit[],MATCH(A13,CostAllocationSplit[#Headers],0),FALSE) -> 0.55
A14: Contract Costs | D14: Contract Costs | E14: =VLOOKUP(E$11,CostAllocationSplit[],MATCH(A14,CostAllocationSplit[#Headers],0),FALSE) -> 0.08
A15: Other Costs | D15: Other Costs | E15: =VLOOKUP(E$11,CostAllocationSplit[],MATCH(A15,CostAllocationSplit[#Headers],0),FALSE) -> 0.02
A16: Specific Approved Project | D16: Specific Approved Project? | E16: =IF(VLOOKUP($A$1,ProjectData[],MATCH(A16,ProjectData[#Headers],0),FALSE)="", FALSE,VLOOKUP($A$1,ProjectData[],MATCH(A16,ProjectData[#Headers],0),FALSE)) -> FALSE
C17: Project Asset Class Breakdown
A18: LinesOH | D18: LinesOH | E18: =VLOOKUP($A$1,ProjectData[],MATCH(A18,ProjectData[#Headers],0),FALSE()) -> 0
A19: LinesUG | D19: LinesUG | E19: =VLOOKUP($A$1,ProjectData[],MATCH(A19,ProjectData[#Headers],0),FALSE()) -> 0
A20: LinesRefit | D20: LinesRefit | E20: =VLOOKUP($A$1,ProjectData[],MATCH(A20,ProjectData[#Headers],0),FALSE()) -> 0
A21: SubsPrimary | D21: SubsPrimary | E21: =VLOOKUP($A$1,ProjectData[],MATCH(A21,ProjectData[#Headers],0),FALSE()) -> 0
A22: SubsSecondary | D22: SubsSecondary | E22: =VLOOKUP($A$1,ProjectData[],MATCH(A22,ProjectData[#Headers],0),FALSE()) -> 0.04
A23: Communications | D23: Communications | E23: =VLOOKUP($A$1,ProjectData[],MATCH(A23,ProjectData[#Headers],0),FALSE()) -> 0.96
A24: CommsCivil | D24: CommsCivil | E24: =VLOOKUP($A$1,ProjectData[],MATCH(A24,ProjectData[#Headers],0),FALSE()) -> 0
A25: SwitchgCentres | D25: SwitchgCentres | E25: =VLOOKUP($A$1,ProjectData[],MATCH(A25,ProjectData[#Headers],0),FALSE()) -> 0
A26: Land | D26: Land | E26: =VLOOKUP($A$1,ProjectData[],MATCH(A26,ProjectData[#Headers],0),FALSE()) -> 0
A27: Easement | D27: Easement | E27: =VLOOKUP($A$1,ProjectData[],MATCH(A27,ProjectData[#Headers],0),FALSE()) -> 0
A28: CommericalBuildings | D28: CommericalBuildings | E28: =VLOOKUP($A$1,ProjectData[],MATCH(A28,ProjectData[#Headers],0),FALSE()) -> 0
A29: IT | D29: IT | E29: =VLOOKUP($A$1,ProjectData[],MATCH(A29,ProjectData[#Headers],0),FALSE()) -> 0
A30: Office | D30: Office | E30: =VLOOKUP($A$1,ProjectData[],MATCH(A30,ProjectData[#Headers],0),FALSE()) -> 0
A31: OfficeMachines | D31: OfficeMachines | E31: =VLOOKUP($A$1,ProjectData[],MATCH(A31,ProjectData[#Headers],0),FALSE()) -> 0
... 32 more rows

Sheet P_18
A1: 18 | C1: Contents
A2: Index Column / Lookup column | G2: 2 | H2: =G2+1 -> 3 | I2: =H2+1 -> 4 | J2: =I2+1 -> 5 | K2: 6 | L2: 7 | M2: 8 | N2: 9 | AI2: =H2 -> 3 | AJ2: 4 | AK2: 5 | AL2: 6 | AM2: 7 | AN2: 8 | AO2: =N2 -> 9
C3: Projects
C4: Project Details
A5: Project Name | D5: =VLOOKUP($A$1,ProjectData[],MATCH(A5,ProjectData[#Headers],0),FALSE()) -> CP.02822 OpsWAN and MPLS Replacement RAN 4
D7: Project Number | E7: =A1 -> 18
A8: PQ Project Driver | D8: Project Type | E8: =VLOOKUP($A$1,ProjectData[],MATCH(A8,ProjectData[#Headers],0),FALSE()) -> Replacement
A9: Capitalisation | D9: Capitalisation | E9: =VLOOKUP($A$1,ProjectData[],MATCH(A9,ProjectData[#Headers],0),FALSE()) -> Project Close
A10: RepexDollarsBasis | D10: Dollar Basis | E10: =VLOOKUP($A$1,ProjectData[],MATCH(A10,ProjectData[#Headers],0),FALSE()) -> Real2026
A11: DMDLCCOCSplitType | D11: Cost Allocation Type | E11: =VLOOKUP($A$1,ProjectData[],MATCH(A11,ProjectData[#Headers],0),FALSE()) -> Telecomms
A12: Direct Materials | D12: Direct Materials | E12: =VLOOKUP(E$11,CostAllocationSplit[],MATCH(A12,CostAllocationSplit[#Headers],0),FALSE) -> 0.35
A13: Direct Labour | D13: Direct Labour | E13: =VLOOKUP(E$11,CostAllocationSplit[],MATCH(A13,CostAllocationSplit[#Headers],0),FALSE) -> 0.55
A14: Contract Costs | D14: Contract Costs | E14: =VLOOKUP(E$11,CostAllocationSplit[],MATCH(A14,CostAllocationSplit[#Headers],0),FALSE) -> 0.08
A15: Other Costs | D15: Other Costs | E15: =VLOOKUP(E$11,CostAllocationSplit[],MATCH(A15,CostAllocationSplit[#Headers],0),FALSE) -> 0.02
A16: Specific Approved Project | D16: Specific Approved Project? | E16: =IF(VLOOKUP($A$1,ProjectData[],MATCH(A16,ProjectData[#Headers],0),FALSE)="", FALSE,VLOOKUP($A$1,ProjectData[],MATCH(A16,ProjectData[#Headers],0),FALSE)) -> FALSE
C17: Project Asset Class Breakdown
A18: LinesOH | D18: LinesOH | E18: =VLOOKUP($A$1,ProjectData[],MATCH(A18,ProjectData[#Headers],0),FALSE()) -> 0
A19: LinesUG | D19: LinesUG | E19: =VLOOKUP($A$1,ProjectData[],MATCH(A19,ProjectData[#Headers],0),FALSE()) -> 0
A20: LinesRefit | D20: LinesRefit | E20: =VLOOKUP($A$1,ProjectData[],MATCH(A20,ProjectData[#Headers],0),FALSE()) -> 0
A21: SubsPrimary | D21: SubsPrimary | E21: =VLOOKUP($A$1,ProjectData[],MATCH(A21,ProjectData[#Headers],0),FALSE()) -> 0
A22: SubsSecondary | D22: SubsSecondary | E22: =VLOOKUP($A$1,ProjectData[],MATCH(A22,ProjectData[#Headers],0),FALSE()) -> 0.12
A23: Communications | D23: Communications | E23: =VLOOKUP($A$1,ProjectData[],MATCH(A23,ProjectData[#Headers],0),FALSE()) -> 0.88
A24: CommsCivil | D24: CommsCivil | E24: =VLOOKUP($A$1,ProjectData[],MATCH(A24,ProjectData[#Headers],0),FALSE()) -> 0
A25: SwitchgCentres | D25: SwitchgCentres | E25: =VLOOKUP($A$1,ProjectData[],MATCH(A25,ProjectData[#Headers],0),FALSE()) -> 0
A26: Land | D26: Land | E26: =VLOOKUP($A$1,ProjectData[],MATCH(A26,ProjectData[#Headers],0),FALSE()) -> 0
A27: Easement | D27: Easement | E27: =VLOOKUP($A$1,ProjectData[],MATCH(A27,ProjectData[#Headers],0),FALSE()) -> 0
A28: CommericalBuildings | D28: CommericalBuildings | E28: =VLOOKUP($A$1,ProjectData[],MATCH(A28,ProjectData[#Headers],0),FALSE()) -> 0
A29: IT | D29: IT | E29: =VLOOKUP($A$1,ProjectData[],MATCH(A29,ProjectData[#Headers],0),FALSE()) -> 0
A30: Office | D30: Office | E30: =VLOOKUP($A$1,ProjectData[],MATCH(A30,ProjectData[#Headers],0),FALSE()) -> 0
A31: OfficeMachines | D31: OfficeMachines | E31: =VLOOKUP($A$1,ProjectData[],MATCH(A31,ProjectData[#Headers],0),FALSE()) -> 0
... 32 more rows

Sheet P_19
A1: 19 | C1: Contents
A2: Index Column / Lookup column | G2: 2 | H2: =G2+1 -> 3 | I2: =H2+1 -> 4 | J2: =I2+1 -> 5 | K2: 6 | L2: 7 | M2: 8 | N2: 9 | AI2: =H2 -> 3 | AJ2: 4 | AK2: 5 | AL2: 6 | AM2: 7 | AN2: 8 | AO2: =N2 -> 9
C3: Projects
C4: Project Details
A5: Project Name | D5: =VLOOKUP($A$1,ProjectData[],MATCH(A5,ProjectData[#Headers],0),FALSE()) -> CP.01162 Callemondah Substation Reinvestment
D7: Project Number | E7: =A1 -> 19
A8: PQ Project Driver | D8: Project Type | E8: =VLOOKUP($A$1,ProjectData[],MATCH(A8,ProjectData[#Headers],0),FALSE()) -> Replacement
A9: Capitalisation | D9: Capitalisation | E9: =VLOOKUP($A$1,ProjectData[],MATCH(A9,ProjectData[#Headers],0),FALSE()) -> Project Close
A10: RepexDollarsBasis | D10: Dollar Basis | E10: =VLOOKUP($A$1,ProjectData[],MATCH(A10,ProjectData[#Headers],0),FALSE()) -> Real2026
A11: DMDLCCOCSplitType | D11: Cost Allocation Type | E11: =VLOOKUP($A$1,ProjectData[],MATCH(A11,ProjectData[#Headers],0),FALSE()) -> Primary Plant - Bay
A12: Direct Materials | D12: Direct Materials | E12: =VLOOKUP(E$11,CostAllocationSplit[],MATCH(A12,CostAllocationSplit[#Headers],0),FALSE) -> 0.34
A13: Direct Labour | D13: Direct Labour | E13: =VLOOKUP(E$11,CostAllocationSplit[],MATCH(A13,CostAllocationSplit[#Headers],0),FALSE) -> 0.29
A14: Contract Costs | D14: Contract Costs | E14: =VLOOKUP(E$11,CostAllocationSplit[],MATCH(A14,CostAllocationSplit[#Headers],0),FALSE) -> 0.35
A15: Other Costs | D15: Other Costs | E15: =VLOOKUP(E$11,CostAllocationSplit[],MATCH(A15,CostAllocationSplit[#Headers],0),FALSE) -> 0.02
A16: Specific Approved Project | D16: Specific Approved Project? | E16: =IF(VLOOKUP($A$1,ProjectData[],MATCH(A16,ProjectData[#Headers],0),FALSE)="", FALSE,VLOOKUP($A$1,ProjectData[],MATCH(A16,ProjectData[#Headers],0),FALSE)) -> FALSE
C17: Project Asset Class Breakdown
A18: LinesOH | D18: LinesOH | E18: =VLOOKUP($A$1,ProjectData[],MATCH(A18,ProjectData[#Headers],0),FALSE()) -> 0.04
A19: LinesUG | D19: LinesUG | E19: =VLOOKUP($A$1,ProjectData[],MATCH(A19,ProjectData[#Headers],0),FALSE()) -> 0
A20: LinesRefit | D20: LinesRefit | E20: =VLOOKUP($A$1,ProjectData[],MATCH(A20,ProjectData[#Headers],0),FALSE()) -> 0
A21: SubsPrimary | D21: SubsPrimary | E21: =VLOOKUP($A$1,ProjectData[],MATCH(A21,ProjectData[#Headers],0),FALSE()) -> 0.58
A22: SubsSecondary | D22: SubsSecondary | E22: =VLOOKUP($A$1,ProjectData[],MATCH(A22,ProjectData[#Headers],0),FALSE()) -> 0.35
A23: Communications | D23: Communications | E23: =VLOOKUP($A$1,ProjectData[],MATCH(A23,ProjectData[#Headers],0),FALSE()) -> 0.03
A24: CommsCivil | D24: CommsCivil | E24: =VLOOKUP($A$1,ProjectData[],MATCH(A24,ProjectData[#Headers],0),FALSE()) -> 0
A25: SwitchgCentres | D25: SwitchgCentres | E25: =VLOOKUP($A$1,ProjectData[],MATCH(A25,ProjectData[#Headers],0),FALSE()) -> 0
A26: Land | D26: Land | E26: =VLOOKUP($A$1,ProjectData[],MATCH(A26,ProjectData[#Headers],0),FALSE()) -> 0
A27: Easement | D27: Easement | E27: =VLOOKUP($A$1,ProjectData[],MATCH(A27,ProjectData[#Headers],0),FALSE()) -> 0
A28: CommericalBuildings | D28: CommericalBuildings | E28: =VLOOKUP($A$1,ProjectData[],MATCH(A28,ProjectData[#Headers],0),FALSE()) -> 0
A29: IT | D29: IT | E29: =VLOOKUP($A$1,ProjectData[],MATCH(A29,ProjectData[#Headers],0),FALSE()) -> 0
A30: Office | D30: Office | E30: =VLOOKUP($A$1,ProjectData[],MATCH(A30,ProjectData[#Headers],0),FALSE()) -> 0
A31: OfficeMachines | D31: OfficeMachines | E31: =VLOOKUP($A$1,ProjectData[],MATCH(A31,ProjectData[#Headers],0),FALSE()) -> 0
... 32 more rows

Sheet P_20
A1: 20 | C1: Contents
A2: Index Column / Lookup column | G2: 2 | H2: =G2+1 -> 3 | I2: =H2+1 -> 4 | J2: =I2+1 -> 5 | K2: 6 | L2: 7 | M2: 8 | N2: 9 | AI2: =H2 -> 3 | AJ2: 4 | AK2: 5 | AL2: 6 | AM2: 7 | AN2: 8 | AO2: =N2 -> 9
C3: Projects
C4: Project Details
A5: Project Name | D5: =VLOOKUP($A$1,ProjectData[],MATCH(A5,ProjectData[#Headers],0),FALSE()) -> CP.01636 Wandoo Substation Reinvestment
D7: Project Number | E7: =A1 -> 20
A8: PQ Project Driver | D8: Project Type | E8: =VLOOKUP($A$1,ProjectData[],MATCH(A8,ProjectData[#Headers],0),FALSE()) -> Replacement
A9: Capitalisation | D9: Capitalisation | E9: =VLOOKUP($A$1,ProjectData[],MATCH(A9,ProjectData[#Headers],0),FALSE()) -> Project Close
A10: RepexDollarsBasis | D10: Dollar Basis | E10: =VLOOKUP($A$1,ProjectData[],MATCH(A10,ProjectData[#Headers],0),FALSE()) -> Real2026
A11: DMDLCCOCSplitType | D11: Cost Allocation Type | E11: =VLOOKUP($A$1,ProjectData[],MATCH(A11,ProjectData[#Headers],0),FALSE()) -> Primary Plant - Bay
A12: Direct Materials | D12: Direct Materials | E12: =VLOOKUP(E$11,CostAllocationSplit[],MATCH(A12,CostAllocationSplit[#Headers],0),FALSE) -> 0.34
A13: Direct Labour | D13: Direct Labour | E13: =VLOOKUP(E$11,CostAllocationSplit[],MATCH(A13,CostAllocationSplit[#Headers],0),FALSE) -> 0.29
A14: Contract Costs | D14: Contract Costs | E14: =VLOOKUP(E$11,CostAllocationSplit[],MATCH(A14,CostAllocationSplit[#Headers],0),FALSE) -> 0.35
A15: Other Costs | D15: Other Costs | E15: =VLOOKUP(E$11,CostAllocationSplit[],MATCH(A15,CostAllocationSplit[#Headers],0),FALSE) -> 0.02
A16: Specific Approved Project | D16: Specific Approved Project? | E16: =IF(VLOOKUP($A$1,ProjectData[],MATCH(A16,ProjectData[#Headers],0),FALSE)="", FALSE,VLOOKUP($A$1,ProjectData[],MATCH(A16,ProjectData[#Headers],0),FALSE)) -> FALSE
C17: Project Asset Class Breakdown
A18: LinesOH | D18: LinesOH | E18: =VLOOKUP($A$1,ProjectData[],MATCH(A18,ProjectData[#Headers],0),FALSE()) -> 0
A19: LinesUG | D19: LinesUG | E19: =VLOOKUP($A$1,ProjectData[],MATCH(A19,ProjectData[#Headers],0),FALSE()) -> 0
A20: LinesRefit | D20: LinesRefit | E20: =VLOOKUP($A$1,ProjectData[],MATCH(A20,ProjectData[#Headers],0),FALSE()) -> 0
A21: SubsPrimary | D21: SubsPrimary | E21: =VLOOKUP($A$1,ProjectData[],MATCH(A21,ProjectData[#Headers],0),FALSE()) -> 0.61
A22: SubsSecondary | D22: SubsSecondary | E22: =VLOOKUP($A$1,ProjectData[],MATCH(A22,ProjectData[#Headers],0),FALSE()) -> 0.37
A23: Communications | D23: Communications | E23: =VLOOKUP($A$1,ProjectData[],MATCH(A23,ProjectData[#Headers],0),FALSE()) -> 0.02
A24: CommsCivil | D24: CommsCivil | E24: =VLOOKUP($A$1,ProjectData[],MATCH(A24,ProjectData[#Headers],0),FALSE()) -> 0
A25: SwitchgCentres | D25: SwitchgCentres | E25: =VLOOKUP($A$1,ProjectData[],MATCH(A25,ProjectData[#Headers],0),FALSE()) -> 0
A26: Land | D26: Land | E26: =VLOOKUP($A$1,ProjectData[],MATCH(A26,ProjectData[#Headers],0),FALSE()) -> 0
A27: Easement | D27: Easement | E27: =VLOOKUP($A$1,ProjectData[],MATCH(A27,ProjectData[#Headers],0),FALSE()) -> 0
A28: CommericalBuildings | D28: CommericalBuildings | E28: =VLOOKUP($A$1,ProjectData[],MATCH(A28,ProjectData[#Headers],0),FALSE()) -> 0
A29: IT | D29: IT | E29: =VLOOKUP($A$1,ProjectData[],MATCH(A29,ProjectData[#Headers],0),FALSE()) -> 0
A30: Office | D30: Office | E30: =VLOOKUP($A$1,ProjectData[],MATCH(A30,ProjectData[#Headers],0),FALSE()) -> 0
A31: OfficeMachines | D31: OfficeMachines | E31: =VLOOKUP($A$1,ProjectData[],MATCH(A31,ProjectData[#Headers],0),FALSE()) -> 0
... 32 more rows

Sheet P_21
A1: 21 | C1: Contents
A2: Index Column / Lookup column | G2: 2 | H2: =G2+1 -> 3 | I2: =H2+1 -> 4 | J2: =I2+1 -> 5 | K2: 6 | L2: 7 | M2: 8 | N2: 9 | AI2: =H2 -> 3 | AJ2: 4 | AK2: 5 | AL2: 6 | AM2: 7 | AN2: 8 | AO2: =N2 -> 9
C3: Projects
C4: Project Details
A5: Project Name | D5: =VLOOKUP($A$1,ProjectData[],MATCH(A5,ProjectData[#Headers],0),FALSE()) -> CP.01921 Coppabella Substation Reinvestment
D7: Project Number | E7: =A1 -> 21
A8: PQ Project Driver | D8: Project Type | E8: =VLOOKUP($A$1,ProjectData[],MATCH(A8,ProjectData[#Headers],0),FALSE()) -> Replacement
A9: Capitalisation | D9: Capitalisation | E9: =VLOOKUP($A$1,ProjectData[],MATCH(A9,ProjectData[#Headers],0),FALSE()) -> Project Close
A10: RepexDollarsBasis | D10: Dollar Basis | E10: =VLOOKUP($A$1,ProjectData[],MATCH(A10,ProjectData[#Headers],0),FALSE()) -> Real2026
A11: DMDLCCOCSplitType | D11: Cost Allocation Type | E11: =VLOOKUP($A$1,ProjectData[],MATCH(A11,ProjectData[#Headers],0),FALSE()) -> Primary Plant - Bay
A12: Direct Materials | D12: Direct Materials | E12: =VLOOKUP(E$11,CostAllocationSplit[],MATCH(A12,CostAllocationSplit[#Headers],0),FALSE) -> 0.34
A13: Direct Labour | D13: Direct Labour | E13: =VLOOKUP(E$11,CostAllocationSplit[],MATCH(A13,CostAllocationSplit[#Headers],0),FALSE) -> 0.29
A14: Contract Costs | D14: Contract Costs | E14: =VLOOKUP(E$11,CostAllocationSplit[],MATCH(A14,CostAllocationSplit[#Headers],0),FALSE) -> 0.35
A15: Other Costs | D15: Other Costs | E15: =VLOOKUP(E$11,CostAllocationSplit[],MATCH(A15,CostAllocationSplit[#Headers],0),FALSE) -> 0.02
A16: Specific Approved Project | D16: Specific Approved Project? | E16: =IF(VLOOKUP($A$1,ProjectData[],MATCH(A16,ProjectData[#Headers],0),FALSE)="", FALSE,VLOOKUP($A$1,ProjectData[],MATCH(A16,ProjectData[#Headers],0),FALSE)) -> FALSE
C17: Project Asset Class Breakdown
A18: LinesOH | D18: LinesOH | E18: =VLOOKUP($A$1,ProjectData[],MATCH(A18,ProjectData[#Headers],0),FALSE()) -> 0
A19: LinesUG | D19: LinesUG | E19: =VLOOKUP($A$1,ProjectData[],MATCH(A19,ProjectData[#Headers],0),FALSE()) -> 0
A20: LinesRefit | D20: LinesRefit | E20: =VLOOKUP($A$1,ProjectData[],MATCH(A20,ProjectData[#Headers],0),FALSE()) -> 0
A21: SubsPrimary | D21: SubsPrimary | E21: =VLOOKUP($A$1,ProjectData[],MATCH(A21,ProjectData[#Headers],0),FALSE()) -> 0.76
A22: SubsSecondary | D22: SubsSecondary | E22: =VLOOKUP($A$1,ProjectData[],MATCH(A22,ProjectData[#Headers],0),FALSE()) -> 0.23
A23: Communications | D23: Communications | E23: =VLOOKUP($A$1,ProjectData[],MATCH(A23,ProjectData[#Headers],0),FALSE()) -> 0.01
A24: CommsCivil | D24: CommsCivil | E24: =VLOOKUP($A$1,ProjectData[],MATCH(A24,ProjectData[#Headers],0),FALSE()) -> 0
A25: SwitchgCentres | D25: SwitchgCentres | E25: =VLOOKUP($A$1,ProjectData[],MATCH(A25,ProjectData[#Headers],0),FALSE()) -> 0
A26: Land | D26: Land | E26: =VLOOKUP($A$1,ProjectData[],MATCH(A26,ProjectData[#Headers],0),FALSE()) -> 0
A27: Easement | D27: Easement | E27: =VLOOKUP($A$1,ProjectData[],MATCH(A27,ProjectData[#Headers],0),FALSE()) -> 0
A28: CommericalBuildings | D28: CommericalBuildings | E28: =VLOOKUP($A$1,ProjectData[],MATCH(A28,ProjectData[#Headers],0),FALSE()) -> 0
A29: IT | D29: IT | E29: =VLOOKUP($A$1,ProjectData[],MATCH(A29,ProjectData[#Headers],0),FALSE()) -> 0
A30: Office | D30: Office | E30: =VLOOKUP($A$1,ProjectData[],MATCH(A30,ProjectData[#Headers],0),FALSE()) -> 0
A31: OfficeMachines | D31: OfficeMachines | E31: =VLOOKUP($A$1,ProjectData[],MATCH(A31,ProjectData[#Headers],0),FALSE()) -> 0
... 32 more rows

Sheet P_22
A1: 22 | C1: Contents
A2: Index Column / Lookup column | G2: 2 | H2: =G2+1 -> 3 | I2: =H2+1 -> 4 | J2: =I2+1 -> 5 | K2: 6 | L2: 7 | M2: 8 | N2: 9 | AI2: =H2 -> 3 | AJ2: 4 | AK2: 5 | AL2: 6 | AM2: 7 | AN2: 8 | AO2: =N2 -> 9
C3: Projects
C4: Project Details
A5: Project Name | D5: =VLOOKUP($A$1,ProjectData[],MATCH(A5,ProjectData[#Headers],0),FALSE()) -> CP.01922 Grantleigh Substation Reinvestment
D7: Project Number | E7: =A1 -> 22
A8: PQ Project Driver | D8: Project Type | E8: =VLOOKUP($A$1,ProjectData[],MATCH(A8,ProjectData[#Headers],0),FALSE()) -> Replacement
A9: Capitalisation | D9: Capitalisation | E9: =VLOOKUP($A$1,ProjectData[],MATCH(A9,ProjectData[#Headers],0),FALSE()) -> Project Close
A10: RepexDollarsBasis | D10: Dollar Basis | E10: =VLOOKUP($A$1,ProjectData[],MATCH(A10,ProjectData[#Headers],0),FALSE()) -> Real2026
A11: DMDLCCOCSplitType | D11: Cost Allocation Type | E11: =VLOOKUP($A$1,ProjectData[],MATCH(A11,ProjectData[#Headers],0),FALSE()) -> Primary Plant - Bay
A12: Direct Materials | D12: Direct Materials | E12: =VLOOKUP(E$11,CostAllocationSplit[],MATCH(A12,CostAllocationSplit[#Headers],0),FALSE) -> 0.34
A13: Direct Labour | D13: Direct Labour | E13: =VLOOKUP(E$11,CostAllocationSplit[],MATCH(A13,CostAllocationSplit[#Headers],0),FALSE) -> 0.29
A14: Contract Costs | D14: Contract Costs | E14: =VLOOKUP(E$11,CostAllocationSplit[],MATCH(A14,CostAllocationSplit[#Headers],0),FALSE) -> 0.35
A15: Other Costs | D15: Other Costs | E15: =VLOOKUP(E$11,CostAllocationSplit[],MATCH(A15,CostAllocationSplit[#Headers],0),FALSE) -> 0.02
A16: Specific Approved Project | D16: Specific Approved Project? | E16: =IF(VLOOKUP($A$1,ProjectData[],MATCH(A16,ProjectData[#Headers],0),FALSE)="", FALSE,VLOOKUP($A$1,ProjectData[],MATCH(A16,ProjectData[#Headers],0),FALSE)) -> FALSE
C17: Project Asset Class Breakdown
A18: LinesOH | D18: LinesOH | E18: =VLOOKUP($A$1,ProjectData[],MATCH(A18,ProjectData[#Headers],0),FALSE()) -> 0
A19: LinesUG | D19: LinesUG | E19: =VLOOKUP($A$1,ProjectData[],MATCH(A19,ProjectData[#Headers],0),FALSE()) -> 0
A20: LinesRefit | D20: LinesRefit | E20: =VLOOKUP($A$1,ProjectData[],MATCH(A20,ProjectData[#Headers],0),FALSE()) -> 0
A21: SubsPrimary | D21: SubsPrimary | E21: =VLOOKUP($A$1,ProjectData[],MATCH(A21,ProjectData[#Headers],0),FALSE()) -> 0.76
A22: SubsSecondary | D22: SubsSecondary | E22: =VLOOKUP($A$1,ProjectData[],MATCH(A22,ProjectData[#Headers],0),FALSE()) -> 0.23
A23: Communications | D23: Communications | E23: =VLOOKUP($A$1,ProjectData[],MATCH(A23,ProjectData[#Headers],0),FALSE()) -> 0.01
A24: CommsCivil | D24: CommsCivil | E24: =VLOOKUP($A$1,ProjectData[],MATCH(A24,ProjectData[#Headers],0),FALSE()) -> 0
A25: SwitchgCentres | D25: SwitchgCentres | E25: =VLOOKUP($A$1,ProjectData[],MATCH(A25,ProjectData[#Headers],0),FALSE()) -> 0
A26: Land | D26: Land | E26: =VLOOKUP($A$1,ProjectData[],MATCH(A26,ProjectData[#Headers],0),FALSE()) -> 0
A27: Easement | D27: Easement | E27: =VLOOKUP($A$1,ProjectData[],MATCH(A27,ProjectData[#Headers],0),FALSE()) -> 0
A28: CommericalBuildings | D28: CommericalBuildings | E28: =VLOOKUP($A$1,ProjectData[],MATCH(A28,ProjectData[#Headers],0),FALSE()) -> 0
A29: IT | D29: IT | E29: =VLOOKUP($A$1,ProjectData[],MATCH(A29,ProjectData[#Headers],0),FALSE()) -> 0
A30: Office | D30: Office | E30: =VLOOKUP($A$1,ProjectData[],MATCH(A30,ProjectData[#Headers],0),FALSE()) -> 0
A31: OfficeMachines | D31: OfficeMachines | E31: =VLOOKUP($A$1,ProjectData[],MATCH(A31,ProjectData[#Headers],0),FALSE()) -> 0
... 32 more rows

Sheet P_23
A1: 23 | C1: Contents
A2: Index Column / Lookup column | G2: 2 | H2: =G2+1 -> 3 | I2: =H2+1 -> 4 | J2: =I2+1 -> 5 | K2: 6 | L2: 7 | M2: 8 | N2: 9 | AI2: =H2 -> 3 | AJ2: 4 | AK2: 5 | AL2: 6 | AM2: 7 | AN2: 8 | AO2: =N2 -> 9
C3: Projects
C4: Project Details
A5: Project Name | D5: =VLOOKUP($A$1,ProjectData[],MATCH(A5,ProjectData[#Headers],0),FALSE()) -> CP.02003 Woree-Kamerunga 132kV Line Reinvestment
D7: Project Number | E7: =A1 -> 23
A8: PQ Project Driver | D8: Project Type | E8: =VLOOKUP($A$1,ProjectData[],MATCH(A8,ProjectData[#Headers],0),FALSE()) -> Replacement
A9: Capitalisation | D9: Capitalisation | E9: =VLOOKUP($A$1,ProjectData[],MATCH(A9,ProjectData[#Headers],0),FALSE()) -> Project Close
A10: RepexDollarsBasis | D10: Dollar Basis | E10: =VLOOKUP($A$1,ProjectData[],MATCH(A10,ProjectData[#Headers],0),FALSE()) -> Real2026
A11: DMDLCCOCSplitType | D11: Cost Allocation Type | E11: =VLOOKUP($A$1,ProjectData[],MATCH(A11,ProjectData[#Headers],0),FALSE()) -> Tower Refit
A12: Direct Materials | D12: Direct Materials | E12: =VLOOKUP(E$11,CostAllocationSplit[],MATCH(A12,CostAllocationSplit[#Headers],0),FALSE) -> 0.02
A13: Direct Labour | D13: Direct Labour | E13: =VLOOKUP(E$11,CostAllocationSplit[],MATCH(A13,CostAllocationSplit[#Headers],0),FALSE) -> 0.2
A14: Contract Costs | D14: Contract Costs | E14: =VLOOKUP(E$11,CostAllocationSplit[],MATCH(A14,CostAllocationSplit[#Headers],0),FALSE) -> 0.75
A15: Other Costs | D15: Other Costs | E15: =VLOOKUP(E$11,CostAllocationSplit[],MATCH(A15,CostAllocationSplit[#Headers],0),FALSE) -> 0.03
A16: Specific Approved Project | D16: Specific Approved Project? | E16: =IF(VLOOKUP($A$1,ProjectData[],MATCH(A16,ProjectData[#Headers],0),FALSE)="", FALSE,VLOOKUP($A$1,ProjectData[],MATCH(A16,ProjectData[#Headers],0),FALSE)) -> FALSE
C17: Project Asset Class Breakdown
A18: LinesOH | D18: LinesOH | E18: =VLOOKUP($A$1,ProjectData[],MATCH(A18,ProjectData[#Headers],0),FALSE()) -> 0.13
A19: LinesUG | D19: LinesUG | E19: =VLOOKUP($A$1,ProjectData[],MATCH(A19,ProjectData[#Headers],0),FALSE()) -> 0.77
A20: LinesRefit | D20: LinesRefit | E20: =VLOOKUP($A$1,ProjectData[],MATCH(A20,ProjectData[#Headers],0),FALSE()) -> 0
A21: SubsPrimary | D21: SubsPrimary | E21: =VLOOKUP($A$1,ProjectData[],MATCH(A21,ProjectData[#Headers],0),FALSE()) -> 0.06
A22: SubsSecondary | D22: SubsSecondary | E22: =VLOOKUP($A$1,ProjectData[],MATCH(A22,ProjectData[#Headers],0),FALSE()) -> 0.03
A23: Communications | D23: Communications | E23: =VLOOKUP($A$1,ProjectData[],MATCH(A23,ProjectData[#Headers],0),FALSE()) -> 0.01
A24: CommsCivil | D24: CommsCivil | E24: =VLOOKUP($A$1,ProjectData[],MATCH(A24,ProjectData[#Headers],0),FALSE()) -> 0
A25: SwitchgCentres | D25: SwitchgCentres | E25: =VLOOKUP($A$1,ProjectData[],MATCH(A25,ProjectData[#Headers],0),FALSE()) -> 0
A26: Land | D26: Land | E26: =VLOOKUP($A$1,ProjectData[],MATCH(A26,ProjectData[#Headers],0),FALSE()) -> 0
A27: Easement | D27: Easement | E27: =VLOOKUP($A$1,ProjectData[],MATCH(A27,ProjectData[#Headers],0),FALSE()) -> 0
A28: CommericalBuildings | D28: CommericalBuildings | E28: =VLOOKUP($A$1,ProjectData[],MATCH(A28,ProjectData[#Headers],0),FALSE()) -> 0
A29: IT | D29: IT | E29: =VLOOKUP($A$1,ProjectData[],MATCH(A29,ProjectData[#Headers],0),FALSE()) -> 0
A30: Office | D30: Office | E30: =VLOOKUP($A$1,ProjectData[],MATCH(A30,ProjectData[#Headers],0),FALSE()) -> 0
A31: OfficeMachines | D31: OfficeMachines | E31: =VLOOKUP($A$1,ProjectData[],MATCH(A31,ProjectData[#Headers],0),FALSE()) -> 0
... 32 more rows

Sheet P_24
A1: 24 | C1: Contents
A2: Index Column / Lookup column | G2: 2 | H2: =G2+1 -> 3 | I2: =H2+1 -> 4 | J2: =I2+1 -> 5 | K2: 6 | L2: 7 | M2: 8 | N2: 9 | AI2: =H2 -> 3 | AJ2: 4 | AK2: 5 | AL2: 6 | AM2: 7 | AN2: 8 | AO2: =N2 -> 9
C3: Projects
C4: Project Details
A5: Project Name | D5: =VLOOKUP($A$1,ProjectData[],MATCH(A5,ProjectData[#Headers],0),FALSE()) -> CP.02170 Chinchilla Substation Replacement
D7: Project Number | E7: =A1 -> 24
A8: PQ Project Driver | D8: Project Type | E8: =VLOOKUP($A$1,ProjectData[],MATCH(A8,ProjectData[#Headers],0),FALSE()) -> Replacement
A9: Capitalisation | D9: Capitalisation | E9: =VLOOKUP($A$1,ProjectData[],MATCH(A9,ProjectData[#Headers],0),FALSE()) -> Project Close
A10: RepexDollarsBasis | D10: Dollar Basis | E10: =VLOOKUP($A$1,ProjectData[],MATCH(A10,ProjectData[#Headers],0),FALSE()) -> Real2026
A11: DMDLCCOCSplitType | D11: Cost Allocation Type | E11: =VLOOKUP($A$1,ProjectData[],MATCH(A11,ProjectData[#Headers],0),FALSE()) -> Primary Plant - Bay
A12: Direct Materials | D12: Direct Materials | E12: =VLOOKUP(E$11,CostAllocationSplit[],MATCH(A12,CostAllocationSplit[#Headers],0),FALSE) -> 0.34
A13: Direct Labour | D13: Direct Labour | E13: =VLOOKUP(E$11,CostAllocationSplit[],MATCH(A13,CostAllocationSplit[#Headers],0),FALSE) -> 0.29
A14: Contract Costs | D14: Contract Costs | E14: =VLOOKUP(E$11,CostAllocationSplit[],MATCH(A14,CostAllocationSplit[#Headers],0),FALSE) -> 0.35
A15: Other Costs | D15: Other Costs | E15: =VLOOKUP(E$11,CostAllocationSplit[],MATCH(A15,CostAllocationSplit[#Headers],0),FALSE) -> 0.02
A16: Specific Approved Project | D16: Specific Approved Project? | E16: =IF(VLOOKUP($A$1,ProjectData[],MATCH(A16,ProjectData[#Headers],0),FALSE)="", FALSE,VLOOKUP($A$1,ProjectData[],MATCH(A16,ProjectData[#Headers],0),FALSE)) -> FALSE
C17: Project Asset Class Breakdown
A18: LinesOH | D18: LinesOH | E18: =VLOOKUP($A$1,ProjectData[],MATCH(A18,ProjectData[#Headers],0),FALSE()) -> 0
A19: LinesUG | D19: LinesUG | E19: =VLOOKUP($A$1,ProjectData[],MATCH(A19,ProjectData[#Headers],0),FALSE()) -> 0
A20: LinesRefit | D20: LinesRefit | E20: =VLOOKUP($A$1,ProjectData[],MATCH(A20,ProjectData[#Headers],0),FALSE()) -> 0
A21: SubsPrimary | D21: SubsPrimary | E21: =VLOOKUP($A$1,ProjectData[],MATCH(A21,ProjectData[#Headers],0),FALSE()) -> 0.73
A22: SubsSecondary | D22: SubsSecondary | E22: =VLOOKUP($A$1,ProjectData[],MATCH(A22,ProjectData[#Headers],0),FALSE()) -> 0.24
A23: Communications | D23: Communications | E23: =VLOOKUP($A$1,ProjectData[],MATCH(A23,ProjectData[#Headers],0),FALSE()) -> 0.03
A24: CommsCivil | D24: CommsCivil | E24: =VLOOKUP($A$1,ProjectData[],MATCH(A24,ProjectData[#Headers],0),FALSE()) -> 0
A25: SwitchgCentres | D25: SwitchgCentres | E25: =VLOOKUP($A$1,ProjectData[],MATCH(A25,ProjectData[#Headers],0),FALSE()) -> 0
A26: Land | D26: Land | E26: =VLOOKUP($A$1,ProjectData[],MATCH(A26,ProjectData[#Headers],0),FALSE()) -> 0
A27: Easement | D27: Easement | E27: =VLOOKUP($A$1,ProjectData[],MATCH(A27,ProjectData[#Headers],0),FALSE()) -> 0
A28: CommericalBuildings | D28: CommericalBuildings | E28: =VLOOKUP($A$1,ProjectData[],MATCH(A28,ProjectData[#Headers],0),FALSE()) -> 0
A29: IT | D29: IT | E29: =VLOOKUP($A$1,ProjectData[],MATCH(A29,ProjectData[#Headers],0),FALSE()) -> 0
A30: Office | D30: Office | E30: =VLOOKUP($A$1,ProjectData[],MATCH(A30,ProjectData[#Headers],0),FALSE()) -> 0
A31: OfficeMachines | D31: OfficeMachines | E31: =VLOOKUP($A$1,ProjectData[],MATCH(A31,ProjectData[#Headers],0),FALSE()) -> 0
... 32 more rows

Sheet P_25
A1: 25 | C1: Contents
A2: Index Column / Lookup column | G2: 2 | H2: =G2+1 -> 3 | I2: =H2+1 -> 4 | J2: =I2+1 -> 5 | K2: 6 | L2: 7 | M2: 8 | N2: 9 | AI2: =H2 -> 3 | AJ2: 4 | AK2: 5 | AL2: 6 | AM2: 7 | AN2: 8 | AO2: =N2 -> 9
C3: Projects
C4: Project Details
A5: Project Name | D5: =VLOOKUP($A$1,ProjectData[],MATCH(A5,ProjectData[#Headers],0),FALSE()) -> CP.02320 Oonooie Substation Reinvestment
D7: Project Number | E7: =A1 -> 25
A8: PQ Project Driver | D8: Project Type | E8: =VLOOKUP($A$1,ProjectData[],MATCH(A8,ProjectData[#Headers],0),FALSE()) -> Replacement
A9: Capitalisation | D9: Capitalisation | E9: =VLOOKUP($A$1,ProjectData[],MATCH(A9,ProjectData[#Headers],0),FALSE()) -> Project Close
A10: RepexDollarsBasis | D10: Dollar Basis | E10: =VLOOKUP($A$1,ProjectData[],MATCH(A10,ProjectData[#Headers],0),FALSE()) -> Real2026
A11: DMDLCCOCSplitType | D11: Cost Allocation Type | E11: =VLOOKUP($A$1,ProjectData[],MATCH(A11,ProjectData[#Headers],0),FALSE()) -> Primary Plant - Bay
A12: Direct Materials | D12: Direct Materials | E12: =VLOOKUP(E$11,CostAllocationSplit[],MATCH(A12,CostAllocationSplit[#Headers],0),FALSE) -> 0.34
A13: Direct Labour | D13: Direct Labour | E13: =VLOOKUP(E$11,CostAllocationSplit[],MATCH(A13,CostAllocationSplit[#Headers],0),FALSE) -> 0.29
A14: Contract Costs | D14: Contract Costs | E14: =VLOOKUP(E$11,CostAllocationSplit[],MATCH(A14,CostAllocationSplit[#Headers],0),FALSE) -> 0.35
A15: Other Costs | D15: Other Costs | E15: =VLOOKUP(E$11,CostAllocationSplit[],MATCH(A15,CostAllocationSplit[#Headers],0),FALSE) -> 0.02
A16: Specific Approved Project | D16: Specific Approved Project? | E16: =IF(VLOOKUP($A$1,ProjectData[],MATCH(A16,ProjectData[#Headers],0),FALSE)="", FALSE,VLOOKUP($A$1,ProjectData[],MATCH(A16,ProjectData[#Headers],0),FALSE)) -> FALSE
C17: Project Asset Class Breakdown
A18: LinesOH | D18: LinesOH | E18: =VLOOKUP($A$1,ProjectData[],MATCH(A18,ProjectData[#Headers],0),FALSE()) -> 0
A19: LinesUG | D19: LinesUG | E19: =VLOOKUP($A$1,ProjectData[],MATCH(A19,ProjectData[#Headers],0),FALSE()) -> 0
A20: LinesRefit | D20: LinesRefit | E20: =VLOOKUP($A$1,ProjectData[],MATCH(A20,ProjectData[#Headers],0),FALSE()) -> 0
A21: SubsPrimary | D21: SubsPrimary | E21: =VLOOKUP($A$1,ProjectData[],MATCH(A21,ProjectData[#Headers],0),FALSE()) -> 0.76
A22: SubsSecondary | D22: SubsSecondary | E22: =VLOOKUP($A$1,ProjectData[],MATCH(A22,ProjectData[#Headers],0),FALSE()) -> 0.23
A23: Communications | D23: Communications | E23: =VLOOKUP($A$1,ProjectData[],MATCH(A23,ProjectData[#Headers],0),FALSE()) -> 0.01
A24: CommsCivil | D24: CommsCivil | E24: =VLOOKUP($A$1,ProjectData[],MATCH(A24,ProjectData[#Headers],0),FALSE()) -> 0
A25: SwitchgCentres | D25: SwitchgCentres | E25: =VLOOKUP($A$1,ProjectData[],MATCH(A25,ProjectData[#Headers],0),FALSE()) -> 0
A26: Land | D26: Land | E26: =VLOOKUP($A$1,ProjectData[],MATCH(A26,ProjectData[#Headers],0),FALSE()) -> 0
A27: Easement | D27: Easement | E27: =VLOOKUP($A$1,ProjectData[],MATCH(A27,ProjectData[#Headers],0),FALSE()) -> 0
A28: CommericalBuildings | D28: CommericalBuildings | E28: =VLOOKUP($A$1,ProjectData[],MATCH(A28,ProjectData[#Headers],0),FALSE()) -> 0
A29: IT | D29: IT | E29: =VLOOKUP($A$1,ProjectData[],MATCH(A29,ProjectData[#Headers],0),FALSE()) -> 0
A30: Office | D30: Office | E30: =VLOOKUP($A$1,ProjectData[],MATCH(A30,ProjectData[#Headers],0),FALSE()) -> 0
A31: OfficeMachines | D31: OfficeMachines | E31: =VLOOKUP($A$1,ProjectData[],MATCH(A31,ProjectData[#Headers],0),FALSE()) -> 0
... 32 more rows

Sheet P_26
A1: 26 | C1: Contents
A2: Index Column / Lookup column | G2: 2 | H2: =G2+1 -> 3 | I2: =H2+1 -> 4 | J2: =I2+1 -> 5 | K2: 6 | L2: 7 | M2: 8 | N2: 9 | AI2: =H2 -> 3 | AJ2: 4 | AK2: 5 | AL2: 6 | AM2: 7 | AN2: 8 | AO2: =N2 -> 9
C3: Projects
C4: Project Details
A5: Project Name | D5: =VLOOKUP($A$1,ProjectData[],MATCH(A5,ProjectData[#Headers],0),FALSE()) -> CP.02370 T048 Tully - Transformer 2 Replacement
D7: Project Number | E7: =A1 -> 26
A8: PQ Project Driver | D8: Project Type | E8: =VLOOKUP($A$1,ProjectData[],MATCH(A8,ProjectData[#Headers],0),FALSE()) -> Replacement
A9: Capitalisation | D9: Capitalisation | E9: =VLOOKUP($A$1,ProjectData[],MATCH(A9,ProjectData[#Headers],0),FALSE()) -> Project Close
A10: RepexDollarsBasis | D10: Dollar Basis | E10: =VLOOKUP($A$1,ProjectData[],MATCH(A10,ProjectData[#Headers],0),FALSE()) -> Real2026
A11: DMDLCCOCSplitType | D11: Cost Allocation Type | E11: =VLOOKUP($A$1,ProjectData[],MATCH(A11,ProjectData[#Headers],0),FALSE()) -> Primary Plant - Power Transformer
A12: Direct Materials | D12: Direct Materials | E12: =VLOOKUP(E$11,CostAllocationSplit[],MATCH(A12,CostAllocationSplit[#Headers],0),FALSE) -> 0.6
A13: Direct Labour | D13: Direct Labour | E13: =VLOOKUP(E$11,CostAllocationSplit[],MATCH(A13,CostAllocationSplit[#Headers],0),FALSE) -> 0.15
A14: Contract Costs | D14: Contract Costs | E14: =VLOOKUP(E$11,CostAllocationSplit[],MATCH(A14,CostAllocationSplit[#Headers],0),FALSE) -> 0.23
A15: Other Costs | D15: Other Costs | E15: =VLOOKUP(E$11,CostAllocationSplit[],MATCH(A15,CostAllocationSplit[#Headers],0),FALSE) -> 0.02
A16: Specific Approved Project | D16: Specific Approved Project? | E16: =IF(VLOOKUP($A$1,ProjectData[],MATCH(A16,ProjectData[#Headers],0),FALSE)="", FALSE,VLOOKUP($A$1,ProjectData[],MATCH(A16,ProjectData[#Headers],0),FALSE)) -> FALSE
C17: Project Asset Class Breakdown
A18: LinesOH | D18: LinesOH | E18: =VLOOKUP($A$1,ProjectData[],MATCH(A18,ProjectData[#Headers],0),FALSE()) -> 0
A19: LinesUG | D19: LinesUG | E19: =VLOOKUP($A$1,ProjectData[],MATCH(A19,ProjectData[#Headers],0),FALSE()) -> 0
A20: LinesRefit | D20: LinesRefit | E20: =VLOOKUP($A$1,ProjectData[],MATCH(A20,ProjectData[#Headers],0),FALSE()) -> 0
A21: SubsPrimary | D21: SubsPrimary | E21: =VLOOKUP($A$1,ProjectData[],MATCH(A21,ProjectData[#Headers],0),FALSE()) -> 0.93
A22: SubsSecondary | D22: SubsSecondary | E22: =VLOOKUP($A$1,ProjectData[],MATCH(A22,ProjectData[#Headers],0),FALSE()) -> 0.07
A23: Communications | D23: Communications | E23: =VLOOKUP($A$1,ProjectData[],MATCH(A23,ProjectData[#Headers],0),FALSE()) -> 0
A24: CommsCivil | D24: CommsCivil | E24: =VLOOKUP($A$1,ProjectData[],MATCH(A24,ProjectData[#Headers],0),FALSE()) -> 0
A25: SwitchgCentres | D25: SwitchgCentres | E25: =VLOOKUP($A$1,ProjectData[],MATCH(A25,ProjectData[#Headers],0),FALSE()) -> 0
A26: Land | D26: Land | E26: =VLOOKUP($A$1,ProjectData[],MATCH(A26,ProjectData[#Headers],0),FALSE()) -> 0
A27: Easement | D27: Easement | E27: =VLOOKUP($A$1,ProjectData[],MATCH(A27,ProjectData[#Headers],0),FALSE()) -> 0
A28: CommericalBuildings | D28: CommericalBuildings | E28: =VLOOKUP($A$1,ProjectData[],MATCH(A28,ProjectData[#Headers],0),FALSE()) -> 0
A29: IT | D29: IT | E29: =VLOOKUP($A$1,ProjectData[],MATCH(A29,ProjectData[#Headers],0),FALSE()) -> 0
A30: Office | D30: Office | E30: =VLOOKUP($A$1,ProjectData[],MATCH(A30,ProjectData[#Headers],0),FALSE()) -> 0
A31: OfficeMachines | D31: OfficeMachines | E31: =VLOOKUP($A$1,ProjectData[],MATCH(A31,ProjectData[#Headers],0),FALSE()) -> 0
... 32 more rows

Sheet P_27
A1: 27 | C1: Contents
A2: Index Column / Lookup column | G2: 2 | H2: =G2+1 -> 3 | I2: =H2+1 -> 4 | J2: =I2+1 -> 5 | K2: 6 | L2: 7 | M2: 8 | N2: 9 | AI2: =H2 -> 3 | AJ2: 4 | AK2: 5 | AL2: 6 | AM2: 7 | AN2: 8 | AO2: =N2 -> 9
C3: Projects
C4: Project Details
A5: Project Name | D5: =VLOOKUP($A$1,ProjectData[],MATCH(A5,ProjectData[#Headers],0),FALSE()) -> CP.02400 Alan Sherriff Secondary Systems Replacement T150
D7: Project Number | E7: =A1 -> 27
A8: PQ Project Driver | D8: Project Type | E8: =VLOOKUP($A$1,ProjectData[],MATCH(A8,ProjectData[#Headers],0),FALSE()) -> Replacement
A9: Capitalisation | D9: Capitalisation | E9: =VLOOKUP($A$1,ProjectData[],MATCH(A9,ProjectData[#Headers],0),FALSE()) -> Project Close
A10: RepexDollarsBasis | D10: Dollar Basis | E10: =VLOOKUP($A$1,ProjectData[],MATCH(A10,ProjectData[#Headers],0),FALSE()) -> Real2026
A11: DMDLCCOCSplitType | D11: Cost Allocation Type | E11: =VLOOKUP($A$1,ProjectData[],MATCH(A11,ProjectData[#Headers],0),FALSE()) -> Secondary Systems
A12: Direct Materials | D12: Direct Materials | E12: =VLOOKUP(E$11,CostAllocationSplit[],MATCH(A12,CostAllocationSplit[#Headers],0),FALSE) -> 0.2
A13: Direct Labour | D13: Direct Labour | E13: =VLOOKUP(E$11,CostAllocationSplit[],MATCH(A13,CostAllocationSplit[#Headers],0),FALSE) -> 0.3
A14: Contract Costs | D14: Contract Costs | E14: =VLOOKUP(E$11,CostAllocationSplit[],MATCH(A14,CostAllocationSplit[#Headers],0),FALSE) -> 0.45
A15: Other Costs | D15: Other Costs | E15: =VLOOKUP(E$11,CostAllocationSplit[],MATCH(A15,CostAllocationSplit[#Headers],0),FALSE) -> 0.05
A16: Specific Approved Project | D16: Specific Approved Project? | E16: =IF(VLOOKUP($A$1,ProjectData[],MATCH(A16,ProjectData[#Headers],0),FALSE)="", FALSE,VLOOKUP($A$1,ProjectData[],MATCH(A16,ProjectData[#Headers],0),FALSE)) -> FALSE
C17: Project Asset Class Breakdown
A18: LinesOH | D18: LinesOH | E18: =VLOOKUP($A$1,ProjectData[],MATCH(A18,ProjectData[#Headers],0),FALSE()) -> 0
A19: LinesUG | D19: LinesUG | E19: =VLOOKUP($A$1,ProjectData[],MATCH(A19,ProjectData[#Headers],0),FALSE()) -> 0
A20: LinesRefit | D20: LinesRefit | E20: =VLOOKUP($A$1,ProjectData[],MATCH(A20,ProjectData[#Headers],0),FALSE()) -> 0
A21: SubsPrimary | D21: SubsPrimary | E21: =VLOOKUP($A$1,ProjectData[],MATCH(A21,ProjectData[#Headers],0),FALSE()) -> 0.26
A22: SubsSecondary | D22: SubsSecondary | E22: =VLOOKUP($A$1,ProjectData[],MATCH(A22,ProjectData[#Headers],0),FALSE()) -> 0.67
A23: Communications | D23: Communications | E23: =VLOOKUP($A$1,ProjectData[],MATCH(A23,ProjectData[#Headers],0),FALSE()) -> 0.07
A24: CommsCivil | D24: CommsCivil | E24: =VLOOKUP($A$1,ProjectData[],MATCH(A24,ProjectData[#Headers],0),FALSE()) -> 0
A25: SwitchgCentres | D25: SwitchgCentres | E25: =VLOOKUP($A$1,ProjectData[],MATCH(A25,ProjectData[#Headers],0),FALSE()) -> 0
A26: Land | D26: Land | E26: =VLOOKUP($A$1,ProjectData[],MATCH(A26,ProjectData[#Headers],0),FALSE()) -> 0
A27: Easement | D27: Easement | E27: =VLOOKUP($A$1,ProjectData[],MATCH(A27,ProjectData[#Headers],0),FALSE()) -> 0
A28: CommericalBuildings | D28: CommericalBuildings | E28: =VLOOKUP($A$1,ProjectData[],MATCH(A28,ProjectData[#Headers],0),FALSE()) -> 0
A29: IT | D29: IT | E29: =VLOOKUP($A$1,ProjectData[],MATCH(A29,ProjectData[#Headers],0),FALSE()) -> 0
A30: Office | D30: Office | E30: =VLOOKUP($A$1,ProjectData[],MATCH(A30,ProjectData[#Headers],0),FALSE()) -> 0
A31: OfficeMachines | D31: OfficeMachines | E31: =VLOOKUP($A$1,ProjectData[],MATCH(A31,ProjectData[#Headers],0),FALSE()) -> 0
... 32 more rows

Sheet P_28
A1: 28 | C1: Contents
A2: Index Column / Lookup column | G2: 2 | H2: =G2+1 -> 3 | I2: =H2+1 -> 4 | J2: =I2+1 -> 5 | K2: 6 | L2: 7 | M2: 8 | N2: 9 | AI2: =H2 -> 3 | AJ2: 4 | AK2: 5 | AL2: 6 | AM2: 7 | AN2: 8 | AO2: =N2 -> 9
C3: Projects
C4: Project Details
A5: Project Name | D5: =VLOOKUP($A$1,ProjectData[],MATCH(A5,ProjectData[#Headers],0),FALSE()) -> CP.02478 South pine No.5 Transformer Replacement
D7: Project Number | E7: =A1 -> 28
A8: PQ Project Driver | D8: Project Type | E8: =VLOOKUP($A$1,ProjectData[],MATCH(A8,ProjectData[#Headers],0),FALSE()) -> Replacement
A9: Capitalisation | D9: Capitalisation | E9: =VLOOKUP($A$1,ProjectData[],MATCH(A9,ProjectData[#Headers],0),FALSE()) -> Project Close
A10: RepexDollarsBasis | D10: Dollar Basis | E10: =VLOOKUP($A$1,ProjectData[],MATCH(A10,ProjectData[#Headers],0),FALSE()) -> Real2026
A11: DMDLCCOCSplitType | D11: Cost Allocation Type | E11: =VLOOKUP($A$1,ProjectData[],MATCH(A11,ProjectData[#Headers],0),FALSE()) -> Primary Plant - Power Transformer
A12: Direct Materials | D12: Direct Materials | E12: =VLOOKUP(E$11,CostAllocationSplit[],MATCH(A12,CostAllocationSplit[#Headers],0),FALSE) -> 0.6
A13: Direct Labour | D13: Direct Labour | E13: =VLOOKUP(E$11,CostAllocationSplit[],MATCH(A13,CostAllocationSplit[#Headers],0),FALSE) -> 0.15
A14: Contract Costs | D14: Contract Costs | E14: =VLOOKUP(E$11,CostAllocationSplit[],MATCH(A14,CostAllocationSplit[#Headers],0),FALSE) -> 0.23
A15: Other Costs | D15: Other Costs | E15: =VLOOKUP(E$11,CostAllocationSplit[],MATCH(A15,CostAllocationSplit[#Headers],0),FALSE) -> 0.02
A16: Specific Approved Project | D16: Specific Approved Project? | E16: =IF(VLOOKUP($A$1,ProjectData[],MATCH(A16,ProjectData[#Headers],0),FALSE)="", FALSE,VLOOKUP($A$1,ProjectData[],MATCH(A16,ProjectData[#Headers],0),FALSE)) -> FALSE
C17: Project Asset Class Breakdown
A18: LinesOH | D18: LinesOH | E18: =VLOOKUP($A$1,ProjectData[],MATCH(A18,ProjectData[#Headers],0),FALSE()) -> 0
A19: LinesUG | D19: LinesUG | E19: =VLOOKUP($A$1,ProjectData[],MATCH(A19,ProjectData[#Headers],0),FALSE()) -> 0
A20: LinesRefit | D20: LinesRefit | E20: =VLOOKUP($A$1,ProjectData[],MATCH(A20,ProjectData[#Headers],0),FALSE()) -> 0
A21: SubsPrimary | D21: SubsPrimary | E21: =VLOOKUP($A$1,ProjectData[],MATCH(A21,ProjectData[#Headers],0),FALSE()) -> 0.94
A22: SubsSecondary | D22: SubsSecondary | E22: =VLOOKUP($A$1,ProjectData[],MATCH(A22,ProjectData[#Headers],0),FALSE()) -> 0.06
A23: Communications | D23: Communications | E23: =VLOOKUP($A$1,ProjectData[],MATCH(A23,ProjectData[#Headers],0),FALSE()) -> 0
A24: CommsCivil | D24: CommsCivil | E24: =VLOOKUP($A$1,ProjectData[],MATCH(A24,ProjectData[#Headers],0),FALSE()) -> 0
A25: SwitchgCentres | D25: SwitchgCentres | E25: =VLOOKUP($A$1,ProjectData[],MATCH(A25,ProjectData[#Headers],0),FALSE()) -> 0
A26: Land | D26: Land | E26: =VLOOKUP($A$1,ProjectData[],MATCH(A26,ProjectData[#Headers],0),FALSE()) -> 0
A27: Easement | D27: Easement | E27: =VLOOKUP($A$1,ProjectData[],MATCH(A27,ProjectData[#Headers],0),FALSE()) -> 0
A28: CommericalBuildings | D28: CommericalBuildings | E28: =VLOOKUP($A$1,ProjectData[],MATCH(A28,ProjectData[#Headers],0),FALSE()) -> 0
A29: IT | D29: IT | E29: =VLOOKUP($A$1,ProjectData[],MATCH(A29,ProjectData[#Headers],0),FALSE()) -> 0
A30: Office | D30: Office | E30: =VLOOKUP($A$1,ProjectData[],MATCH(A30,ProjectData[#Headers],0),FALSE()) -> 0
A31: OfficeMachines | D31: OfficeMachines | E31: =VLOOKUP($A$1,ProjectData[],MATCH(A31,ProjectData[#Headers],0),FALSE()) -> 0
... 32 more rows

Sheet P_29
A1: 29 | C1: Contents
A2: Index Column / Lookup column | G2: 2 | H2: =G2+1 -> 3 | I2: =H2+1 -> 4 | J2: =I2+1 -> 5 | K2: 6 | L2: 7 | M2: 8 | N2: 9 | AI2: =H2 -> 3 | AJ2: 4 | AK2: 5 | AL2: 6 | AM2: 7 | AN2: 8 | AO2: =N2 -> 9
C3: Projects
C4: Project Details
A5: Project Name | D5: =VLOOKUP($A$1,ProjectData[],MATCH(A5,ProjectData[#Headers],0),FALSE()) -> CP.02584 Tarong Transformers Replacement
D7: Project Number | E7: =A1 -> 29
A8: PQ Project Driver | D8: Project Type | E8: =VLOOKUP($A$1,ProjectData[],MATCH(A8,ProjectData[#Headers],0),FALSE()) -> Replacement
A9: Capitalisation | D9: Capitalisation | E9: =VLOOKUP($A$1,ProjectData[],MATCH(A9,ProjectData[#Headers],0),FALSE()) -> Project Close
A10: RepexDollarsBasis | D10: Dollar Basis | E10: =VLOOKUP($A$1,ProjectData[],MATCH(A10,ProjectData[#Headers],0),FALSE()) -> Real2026
A11: DMDLCCOCSplitType | D11: Cost Allocation Type | E11: =VLOOKUP($A$1,ProjectData[],MATCH(A11,ProjectData[#Headers],0),FALSE()) -> Primary Plant - Power Transformer
A12: Direct Materials | D12: Direct Materials | E12: =VLOOKUP(E$11,CostAllocationSplit[],MATCH(A12,CostAllocationSplit[#Headers],0),FALSE) -> 0.6
A13: Direct Labour | D13: Direct Labour | E13: =VLOOKUP(E$11,CostAllocationSplit[],MATCH(A13,CostAllocationSplit[#Headers],0),FALSE) -> 0.15
A14: Contract Costs | D14: Contract Costs | E14: =VLOOKUP(E$11,CostAllocationSplit[],MATCH(A14,CostAllocationSplit[#Headers],0),FALSE) -> 0.23
A15: Other Costs | D15: Other Costs | E15: =VLOOKUP(E$11,CostAllocationSplit[],MATCH(A15,CostAllocationSplit[#Headers],0),FALSE) -> 0.02
A16: Specific Approved Project | D16: Specific Approved Project? | E16: =IF(VLOOKUP($A$1,ProjectData[],MATCH(A16,ProjectData[#Headers],0),FALSE)="", FALSE,VLOOKUP($A$1,ProjectData[],MATCH(A16,ProjectData[#Headers],0),FALSE)) -> FALSE
C17: Project Asset Class Breakdown
A18: LinesOH | D18: LinesOH | E18: =VLOOKUP($A$1,ProjectData[],MATCH(A18,ProjectData[#Headers],0),FALSE()) -> 0
A19: LinesUG | D19: LinesUG | E19: =VLOOKUP($A$1,ProjectData[],MATCH(A19,ProjectData[#Headers],0),FALSE()) -> 0
A20: LinesRefit | D20: LinesRefit | E20: =VLOOKUP($A$1,ProjectData[],MATCH(A20,ProjectData[#Headers],0),FALSE()) -> 0
A21: SubsPrimary | D21: SubsPrimary | E21: =VLOOKUP($A$1,ProjectData[],MATCH(A21,ProjectData[#Headers],0),FALSE()) -> 0.93
A22: SubsSecondary | D22: SubsSecondary | E22: =VLOOKUP($A$1,ProjectData[],MATCH(A22,ProjectData[#Headers],0),FALSE()) -> 0.07
A23: Communications | D23: Communications | E23: =VLOOKUP($A$1,ProjectData[],MATCH(A23,ProjectData[#Headers],0),FALSE()) -> 0
A24: CommsCivil | D24: CommsCivil | E24: =VLOOKUP($A$1,ProjectData[],MATCH(A24,ProjectData[#Headers],0),FALSE()) -> 0
A25: SwitchgCentres | D25: SwitchgCentres | E25: =VLOOKUP($A$1,ProjectData[],MATCH(A25,ProjectData[#Headers],0),FALSE()) -> 0
A26: Land | D26: Land | E26: =VLOOKUP($A$1,ProjectData[],MATCH(A26,ProjectData[#Headers],0),FALSE()) -> 0
A27: Easement | D27: Easement | E27: =VLOOKUP($A$1,ProjectData[],MATCH(A27,ProjectData[#Headers],0),FALSE()) -> 0
A28: CommericalBuildings | D28: CommericalBuildings | E28: =VLOOKUP($A$1,ProjectData[],MATCH(A28,ProjectData[#Headers],0),FALSE()) -> 0
A29: IT | D29: IT | E29: =VLOOKUP($A$1,ProjectData[],MATCH(A29,ProjectData[#Headers],0),FALSE()) -> 0
A30: Office | D30: Office | E30: =VLOOKUP($A$1,ProjectData[],MATCH(A30,ProjectData[#Headers],0),FALSE()) -> 0
A31: OfficeMachines | D31: OfficeMachines | E31: =VLOOKUP($A$1,ProjectData[],MATCH(A31,ProjectData[#Headers],0),FALSE()) -> 0
... 32 more rows

Sheet P_30
A1: 30 | C1: Contents
A2: Index Column / Lookup column | G2: 2 | H2: =G2+1 -> 3 | I2: =H2+1 -> 4 | J2: =I2+1 -> 5 | K2: 6 | L2: 7 | M2: 8 | N2: 9 | AI2: =H2 -> 3 | AJ2: 4 | AK2: 5 | AL2: 6 | AM2: 7 | AN2: 8 | AO2: =N2 -> 9
C3: Projects
C4: Project Details
A5: Project Name | D5: =VLOOKUP($A$1,ProjectData[],MATCH(A5,ProjectData[#Headers],0),FALSE()) -> CP.02617 T053 Kamerunga Substation Rebuild
D7: Project Number | E7: =A1 -> 30
A8: PQ Project Driver | D8: Project Type | E8: =VLOOKUP($A$1,ProjectData[],MATCH(A8,ProjectData[#Headers],0),FALSE()) -> Replacement
A9: Capitalisation | D9: Capitalisation | E9: =VLOOKUP($A$1,ProjectData[],MATCH(A9,ProjectData[#Headers],0),FALSE()) -> Project Close
A10: RepexDollarsBasis | D10: Dollar Basis | E10: =VLOOKUP($A$1,ProjectData[],MATCH(A10,ProjectData[#Headers],0),FALSE()) -> Real2026
A11: DMDLCCOCSplitType | D11: Cost Allocation Type | E11: =VLOOKUP($A$1,ProjectData[],MATCH(A11,ProjectData[#Headers],0),FALSE()) -> Tower Refit
A12: Direct Materials | D12: Direct Materials | E12: =VLOOKUP(E$11,CostAllocationSplit[],MATCH(A12,CostAllocationSplit[#Headers],0),FALSE) -> 0.02
A13: Direct Labour | D13: Direct Labour | E13: =VLOOKUP(E$11,CostAllocationSplit[],MATCH(A13,CostAllocationSplit[#Headers],0),FALSE) -> 0.2
A14: Contract Costs | D14: Contract Costs | E14: =VLOOKUP(E$11,CostAllocationSplit[],MATCH(A14,CostAllocationSplit[#Headers],0),FALSE) -> 0.75
A15: Other Costs | D15: Other Costs | E15: =VLOOKUP(E$11,CostAllocationSplit[],MATCH(A15,CostAllocationSplit[#Headers],0),FALSE) -> 0.03
A16: Specific Approved Project | D16: Specific Approved Project? | E16: =IF(VLOOKUP($A$1,ProjectData[],MATCH(A16,ProjectData[#Headers],0),FALSE)="", FALSE,VLOOKUP($A$1,ProjectData[],MATCH(A16,ProjectData[#Headers],0),FALSE)) -> FALSE
C17: Project Asset Class Breakdown
A18: LinesOH | D18: LinesOH | E18: =VLOOKUP($A$1,ProjectData[],MATCH(A18,ProjectData[#Headers],0),FALSE()) -> 0.11
A19: LinesUG | D19: LinesUG | E19: =VLOOKUP($A$1,ProjectData[],MATCH(A19,ProjectData[#Headers],0),FALSE()) -> 0
A20: LinesRefit | D20: LinesRefit | E20: =VLOOKUP($A$1,ProjectData[],MATCH(A20,ProjectData[#Headers],0),FALSE()) -> 0
A21: SubsPrimary | D21: SubsPrimary | E21: =VLOOKUP($A$1,ProjectData[],MATCH(A21,ProjectData[#Headers],0),FALSE()) -> 0.7
A22: SubsSecondary | D22: SubsSecondary | E22: =VLOOKUP($A$1,ProjectData[],MATCH(A22,ProjectData[#Headers],0),FALSE()) -> 0.17
A23: Communications | D23: Communications | E23: =VLOOKUP($A$1,ProjectData[],MATCH(A23,ProjectData[#Headers],0),FALSE()) -> 0.02
A24: CommsCivil | D24: CommsCivil | E24: =VLOOKUP($A$1,ProjectData[],MATCH(A24,ProjectData[#Headers],0),FALSE()) -> 0
A25: SwitchgCentres | D25: SwitchgCentres | E25: =VLOOKUP($A$1,ProjectData[],MATCH(A25,ProjectData[#Headers],0),FALSE()) -> 0
A26: Land | D26: Land | E26: =VLOOKUP($A$1,ProjectData[],MATCH(A26,ProjectData[#Headers],0),FALSE()) -> 0
A27: Easement | D27: Easement | E27: =VLOOKUP($A$1,ProjectData[],MATCH(A27,ProjectData[#Headers],0),FALSE()) -> 0
A28: CommericalBuildings | D28: CommericalBuildings | E28: =VLOOKUP($A$1,ProjectData[],MATCH(A28,ProjectData[#Headers],0),FALSE()) -> 0
A29: IT | D29: IT | E29: =VLOOKUP($A$1,ProjectData[],MATCH(A29,ProjectData[#Headers],0),FALSE()) -> 0
A30: Office | D30: Office | E30: =VLOOKUP($A$1,ProjectData[],MATCH(A30,ProjectData[#Headers],0),FALSE()) -> 0
A31: OfficeMachines | D31: OfficeMachines | E31: =VLOOKUP($A$1,ProjectData[],MATCH(A31,ProjectData[#Headers],0),FALSE()) -> 0
... 32 more rows

Sheet P_31
A1: 31 | C1: Contents
A2: Index Column / Lookup column | G2: 2 | H2: =G2+1 -> 3 | I2: =H2+1 -> 4 | J2: =I2+1 -> 5 | K2: 6 | L2: 7 | M2: 8 | N2: 9 | AI2: =H2 -> 3 | AJ2: 4 | AK2: 5 | AL2: 6 | AM2: 7 | AN2: 8 | AO2: =N2 -> 9
C3: Projects
C4: Project Details
A5: Project Name | D5: =VLOOKUP($A$1,ProjectData[],MATCH(A5,ProjectData[#Headers],0),FALSE()) -> CP.02631 Ross-Dan Gleeson B1257 TL Refit
D7: Project Number | E7: =A1 -> 31
A8: PQ Project Driver | D8: Project Type | E8: =VLOOKUP($A$1,ProjectData[],MATCH(A8,ProjectData[#Headers],0),FALSE()) -> Replacement
A9: Capitalisation | D9: Capitalisation | E9: =VLOOKUP($A$1,ProjectData[],MATCH(A9,ProjectData[#Headers],0),FALSE()) -> Project Close
A10: RepexDollarsBasis | D10: Dollar Basis | E10: =VLOOKUP($A$1,ProjectData[],MATCH(A10,ProjectData[#Headers],0),FALSE()) -> Real2026
A11: DMDLCCOCSplitType | D11: Cost Allocation Type | E11: =VLOOKUP($A$1,ProjectData[],MATCH(A11,ProjectData[#Headers],0),FALSE()) -> Tower Refit
A12: Direct Materials | D12: Direct Materials | E12: =VLOOKUP(E$11,CostAllocationSplit[],MATCH(A12,CostAllocationSplit[#Headers],0),FALSE) -> 0.02
A13: Direct Labour | D13: Direct Labour | E13: =VLOOKUP(E$11,CostAllocationSplit[],MATCH(A13,CostAllocationSplit[#Headers],0),FALSE) -> 0.2
A14: Contract Costs | D14: Contract Costs | E14: =VLOOKUP(E$11,CostAllocationSplit[],MATCH(A14,CostAllocationSplit[#Headers],0),FALSE) -> 0.75
A15: Other Costs | D15: Other Costs | E15: =VLOOKUP(E$11,CostAllocationSplit[],MATCH(A15,CostAllocationSplit[#Headers],0),FALSE) -> 0.03
A16: Specific Approved Project | D16: Specific Approved Project? | E16: =IF(VLOOKUP($A$1,ProjectData[],MATCH(A16,ProjectData[#Headers],0),FALSE)="", FALSE,VLOOKUP($A$1,ProjectData[],MATCH(A16,ProjectData[#Headers],0),FALSE)) -> FALSE
C17: Project Asset Class Breakdown
A18: LinesOH | D18: LinesOH | E18: =VLOOKUP($A$1,ProjectData[],MATCH(A18,ProjectData[#Headers],0),FALSE()) -> 0
A19: LinesUG | D19: LinesUG | E19: =VLOOKUP($A$1,ProjectData[],MATCH(A19,ProjectData[#Headers],0),FALSE()) -> 0
A20: LinesRefit | D20: LinesRefit | E20: =VLOOKUP($A$1,ProjectData[],MATCH(A20,ProjectData[#Headers],0),FALSE()) -> 1
A21: SubsPrimary | D21: SubsPrimary | E21: =VLOOKUP($A$1,ProjectData[],MATCH(A21,ProjectData[#Headers],0),FALSE()) -> 0
A22: SubsSecondary | D22: SubsSecondary | E22: =VLOOKUP($A$1,ProjectData[],MATCH(A22,ProjectData[#Headers],0),FALSE()) -> 0
A23: Communications | D23: Communications | E23: =VLOOKUP($A$1,ProjectData[],MATCH(A23,ProjectData[#Headers],0),FALSE()) -> 0
A24: CommsCivil | D24: CommsCivil | E24: =VLOOKUP($A$1,ProjectData[],MATCH(A24,ProjectData[#Headers],0),FALSE()) -> 0
A25: SwitchgCentres | D25: SwitchgCentres | E25: =VLOOKUP($A$1,ProjectData[],MATCH(A25,ProjectData[#Headers],0),FALSE()) -> 0
A26: Land | D26: Land | E26: =VLOOKUP($A$1,ProjectData[],MATCH(A26,ProjectData[#Headers],0),FALSE()) -> 0
A27: Easement | D27: Easement | E27: =VLOOKUP($A$1,ProjectData[],MATCH(A27,ProjectData[#Headers],0),FALSE()) -> 0
A28: CommericalBuildings | D28: CommericalBuildings | E28: =VLOOKUP($A$1,ProjectData[],MATCH(A28,ProjectData[#Headers],0),FALSE()) -> 0
A29: IT | D29: IT | E29: =VLOOKUP($A$1,ProjectData[],MATCH(A29,ProjectData[#Headers],0),FALSE()) -> 0
A30: Office | D30: Office | E30: =VLOOKUP($A$1,ProjectData[],MATCH(A30,ProjectData[#Headers],0),FALSE()) -> 0
A31: OfficeMachines | D31: OfficeMachines | E31: =VLOOKUP($A$1,ProjectData[],MATCH(A31,ProjectData[#Headers],0),FALSE()) -> 0
... 32 more rows

Sheet P_32
A1: 32 | C1: Contents
A2: Index Column / Lookup column | G2: 2 | H2: =G2+1 -> 3 | I2: =H2+1 -> 4 | J2: =I2+1 -> 5 | K2: 6 | L2: 7 | M2: 8 | N2: 9 | AI2: =H2 -> 3 | AJ2: 4 | AK2: 5 | AL2: 6 | AM2: 7 | AN2: 8 | AO2: =N2 -> 9
C3: Projects
C4: Project Details
A5: Project Name | D5: =VLOOKUP($A$1,ProjectData[],MATCH(A5,ProjectData[#Headers],0),FALSE()) -> CP.02729 H004 Mudgeeraba 110kV secondary system replacement
D7: Project Number | E7: =A1 -> 32
A8: PQ Project Driver | D8: Project Type | E8: =VLOOKUP($A$1,ProjectData[],MATCH(A8,ProjectData[#Headers],0),FALSE()) -> Replacement
A9: Capitalisation | D9: Capitalisation | E9: =VLOOKUP($A$1,ProjectData[],MATCH(A9,ProjectData[#Headers],0),FALSE()) -> Project Close
A10: RepexDollarsBasis | D10: Dollar Basis | E10: =VLOOKUP($A$1,ProjectData[],MATCH(A10,ProjectData[#Headers],0),FALSE()) -> Real2026
A11: DMDLCCOCSplitType | D11: Cost Allocation Type | E11: =VLOOKUP($A$1,ProjectData[],MATCH(A11,ProjectData[#Headers],0),FALSE()) -> Secondary Systems
A12: Direct Materials | D12: Direct Materials | E12: =VLOOKUP(E$11,CostAllocationSplit[],MATCH(A12,CostAllocationSplit[#Headers],0),FALSE) -> 0.2
A13: Direct Labour | D13: Direct Labour | E13: =VLOOKUP(E$11,CostAllocationSplit[],MATCH(A13,CostAllocationSplit[#Headers],0),FALSE) -> 0.3
A14: Contract Costs | D14: Contract Costs | E14: =VLOOKUP(E$11,CostAllocationSplit[],MATCH(A14,CostAllocationSplit[#Headers],0),FALSE) -> 0.45
A15: Other Costs | D15: Other Costs | E15: =VLOOKUP(E$11,CostAllocationSplit[],MATCH(A15,CostAllocationSplit[#Headers],0),FALSE) -> 0.05
A16: Specific Approved Project | D16: Specific Approved Project? | E16: =IF(VLOOKUP($A$1,ProjectData[],MATCH(A16,ProjectData[#Headers],0),FALSE)="", FALSE,VLOOKUP($A$1,ProjectData[],MATCH(A16,ProjectData[#Headers],0),FALSE)) -> FALSE
C17: Project Asset Class Breakdown
A18: LinesOH | D18: LinesOH | E18: =VLOOKUP($A$1,ProjectData[],MATCH(A18,ProjectData[#Headers],0),FALSE()) -> 0
A19: LinesUG | D19: LinesUG | E19: =VLOOKUP($A$1,ProjectData[],MATCH(A19,ProjectData[#Headers],0),FALSE()) -> 0
A20: LinesRefit | D20: LinesRefit | E20: =VLOOKUP($A$1,ProjectData[],MATCH(A20,ProjectData[#Headers],0),FALSE()) -> 0
A21: SubsPrimary | D21: SubsPrimary | E21: =VLOOKUP($A$1,ProjectData[],MATCH(A21,ProjectData[#Headers],0),FALSE()) -> 0.1
A22: SubsSecondary | D22: SubsSecondary | E22: =VLOOKUP($A$1,ProjectData[],MATCH(A22,ProjectData[#Headers],0),FALSE()) -> 0.8
A23: Communications | D23: Communications | E23: =VLOOKUP($A$1,ProjectData[],MATCH(A23,ProjectData[#Headers],0),FALSE()) -> 0.1
A24: CommsCivil | D24: CommsCivil | E24: =VLOOKUP($A$1,ProjectData[],MATCH(A24,ProjectData[#Headers],0),FALSE()) -> 0
A25: SwitchgCentres | D25: SwitchgCentres | E25: =VLOOKUP($A$1,ProjectData[],MATCH(A25,ProjectData[#Headers],0),FALSE()) -> 0
A26: Land | D26: Land | E26: =VLOOKUP($A$1,ProjectData[],MATCH(A26,ProjectData[#Headers],0),FALSE()) -> 0
A27: Easement | D27: Easement | E27: =VLOOKUP($A$1,ProjectData[],MATCH(A27,ProjectData[#Headers],0),FALSE()) -> 0
A28: CommericalBuildings | D28: CommericalBuildings | E28: =VLOOKUP($A$1,ProjectData[],MATCH(A28,ProjectData[#Headers],0),FALSE()) -> 0
A29: IT | D29: IT | E29: =VLOOKUP($A$1,ProjectData[],MATCH(A29,ProjectData[#Headers],0),FALSE()) -> 0
A30: Office | D30: Office | E30: =VLOOKUP($A$1,ProjectData[],MATCH(A30,ProjectData[#Headers],0),FALSE()) -> 0
A31: OfficeMachines | D31: OfficeMachines | E31: =VLOOKUP($A$1,ProjectData[],MATCH(A31,ProjectData[#Headers],0),FALSE()) -> 0
... 32 more rows

Sheet P_33
A1: 33 | C1: Contents
A2: Index Column / Lookup column | G2: 2 | H2: =G2+1 -> 3 | I2: =H2+1 -> 4 | J2: =I2+1 -> 5 | K2: 6 | L2: 7 | M2: 8 | N2: 9 | AI2: =H2 -> 3 | AJ2: 4 | AK2: 5 | AL2: 6 | AM2: 7 | AN2: 8 | AO2: =N2 -> 9
C3: Projects
C4: Project Details
A5: Project Name | D5: =VLOOKUP($A$1,ProjectData[],MATCH(A5,ProjectData[#Headers],0),FALSE()) -> CP.02750 BS1220 & BS1671 Ross to Chalumbin Life Extension
D7: Project Number | E7: =A1 -> 33
A8: PQ Project Driver | D8: Project Type | E8: =VLOOKUP($A$1,ProjectData[],MATCH(A8,ProjectData[#Headers],0),FALSE()) -> Replacement
A9: Capitalisation | D9: Capitalisation | E9: =VLOOKUP($A$1,ProjectData[],MATCH(A9,ProjectData[#Headers],0),FALSE()) -> Project Close
A10: RepexDollarsBasis | D10: Dollar Basis | E10: =VLOOKUP($A$1,ProjectData[],MATCH(A10,ProjectData[#Headers],0),FALSE()) -> Real2026
A11: DMDLCCOCSplitType | D11: Cost Allocation Type | E11: =VLOOKUP($A$1,ProjectData[],MATCH(A11,ProjectData[#Headers],0),FALSE()) -> Tower Refit
A12: Direct Materials | D12: Direct Materials | E12: =VLOOKUP(E$11,CostAllocationSplit[],MATCH(A12,CostAllocationSplit[#Headers],0),FALSE) -> 0.02
A13: Direct Labour | D13: Direct Labour | E13: =VLOOKUP(E$11,CostAllocationSplit[],MATCH(A13,CostAllocationSplit[#Headers],0),FALSE) -> 0.2
A14: Contract Costs | D14: Contract Costs | E14: =VLOOKUP(E$11,CostAllocationSplit[],MATCH(A14,CostAllocationSplit[#Headers],0),FALSE) -> 0.75
A15: Other Costs | D15: Other Costs | E15: =VLOOKUP(E$11,CostAllocationSplit[],MATCH(A15,CostAllocationSplit[#Headers],0),FALSE) -> 0.03
A16: Specific Approved Project | D16: Specific Approved Project? | E16: =IF(VLOOKUP($A$1,ProjectData[],MATCH(A16,ProjectData[#Headers],0),FALSE)="", FALSE,VLOOKUP($A$1,ProjectData[],MATCH(A16,ProjectData[#Headers],0),FALSE)) -> FALSE
C17: Project Asset Class Breakdown
A18: LinesOH | D18: LinesOH | E18: =VLOOKUP($A$1,ProjectData[],MATCH(A18,ProjectData[#Headers],0),FALSE()) -> 0
A19: LinesUG | D19: LinesUG | E19: =VLOOKUP($A$1,ProjectData[],MATCH(A19,ProjectData[#Headers],0),FALSE()) -> 0
A20: LinesRefit | D20: LinesRefit | E20: =VLOOKUP($A$1,ProjectData[],MATCH(A20,ProjectData[#Headers],0),FALSE()) -> 1
A21: SubsPrimary | D21: SubsPrimary | E21: =VLOOKUP($A$1,ProjectData[],MATCH(A21,ProjectData[#Headers],0),FALSE()) -> 0
A22: SubsSecondary | D22: SubsSecondary | E22: =VLOOKUP($A$1,ProjectData[],MATCH(A22,ProjectData[#Headers],0),FALSE()) -> 0
A23: Communications | D23: Communications | E23: =VLOOKUP($A$1,ProjectData[],MATCH(A23,ProjectData[#Headers],0),FALSE()) -> 0
A24: CommsCivil | D24: CommsCivil | E24: =VLOOKUP($A$1,ProjectData[],MATCH(A24,ProjectData[#Headers],0),FALSE()) -> 0
A25: SwitchgCentres | D25: SwitchgCentres | E25: =VLOOKUP($A$1,ProjectData[],MATCH(A25,ProjectData[#Headers],0),FALSE()) -> 0
A26: Land | D26: Land | E26: =VLOOKUP($A$1,ProjectData[],MATCH(A26,ProjectData[#Headers],0),FALSE()) -> 0
A27: Easement | D27: Easement | E27: =VLOOKUP($A$1,ProjectData[],MATCH(A27,ProjectData[#Headers],0),FALSE()) -> 0
A28: CommericalBuildings | D28: CommericalBuildings | E28: =VLOOKUP($A$1,ProjectData[],MATCH(A28,ProjectData[#Headers],0),FALSE()) -> 0
A29: IT | D29: IT | E29: =VLOOKUP($A$1,ProjectData[],MATCH(A29,ProjectData[#Headers],0),FALSE()) -> 0
A30: Office | D30: Office | E30: =VLOOKUP($A$1,ProjectData[],MATCH(A30,ProjectData[#Headers],0),FALSE()) -> 0
A31: OfficeMachines | D31: OfficeMachines | E31: =VLOOKUP($A$1,ProjectData[],MATCH(A31,ProjectData[#Headers],0),FALSE()) -> 0
... 32 more rows

Sheet P_34
A1: 34 | C1: Contents
A2: Index Column / Lookup column | G2: 2 | H2: =G2+1 -> 3 | I2: =H2+1 -> 4 | J2: =I2+1 -> 5 | K2: 6 | L2: 7 | M2: 8 | N2: 9 | AI2: =H2 -> 3 | AJ2: 4 | AK2: 5 | AL2: 6 | AM2: 7 | AN2: 8 | AO2: =N2 -> 9
C3: Projects
C4: Project Details
A5: Project Name | D5: =VLOOKUP($A$1,ProjectData[],MATCH(A5,ProjectData[#Headers],0),FALSE()) -> CP.02751 H021 Murarrie Secondary Systems Replacement
D7: Project Number | E7: =A1 -> 34
A8: PQ Project Driver | D8: Project Type | E8: =VLOOKUP($A$1,ProjectData[],MATCH(A8,ProjectData[#Headers],0),FALSE()) -> Replacement
A9: Capitalisation | D9: Capitalisation | E9: =VLOOKUP($A$1,ProjectData[],MATCH(A9,ProjectData[#Headers],0),FALSE()) -> Project Close
A10: RepexDollarsBasis | D10: Dollar Basis | E10: =VLOOKUP($A$1,ProjectData[],MATCH(A10,ProjectData[#Headers],0),FALSE()) -> Real2026
A11: DMDLCCOCSplitType | D11: Cost Allocation Type | E11: =VLOOKUP($A$1,ProjectData[],MATCH(A11,ProjectData[#Headers],0),FALSE()) -> Secondary Systems
A12: Direct Materials | D12: Direct Materials | E12: =VLOOKUP(E$11,CostAllocationSplit[],MATCH(A12,CostAllocationSplit[#Headers],0),FALSE) -> 0.2
A13: Direct Labour | D13: Direct Labour | E13: =VLOOKUP(E$11,CostAllocationSplit[],MATCH(A13,CostAllocationSplit[#Headers],0),FALSE) -> 0.3
A14: Contract Costs | D14: Contract Costs | E14: =VLOOKUP(E$11,CostAllocationSplit[],MATCH(A14,CostAllocationSplit[#Headers],0),FALSE) -> 0.45
A15: Other Costs | D15: Other Costs | E15: =VLOOKUP(E$11,CostAllocationSplit[],MATCH(A15,CostAllocationSplit[#Headers],0),FALSE) -> 0.05
A16: Specific Approved Project | D16: Specific Approved Project? | E16: =IF(VLOOKUP($A$1,ProjectData[],MATCH(A16,ProjectData[#Headers],0),FALSE)="", FALSE,VLOOKUP($A$1,ProjectData[],MATCH(A16,ProjectData[#Headers],0),FALSE)) -> FALSE
C17: Project Asset Class Breakdown
A18: LinesOH | D18: LinesOH | E18: =VLOOKUP($A$1,ProjectData[],MATCH(A18,ProjectData[#Headers],0),FALSE()) -> 0
A19: LinesUG | D19: LinesUG | E19: =VLOOKUP($A$1,ProjectData[],MATCH(A19,ProjectData[#Headers],0),FALSE()) -> 0
A20: LinesRefit | D20: LinesRefit | E20: =VLOOKUP($A$1,ProjectData[],MATCH(A20,ProjectData[#Headers],0),FALSE()) -> 0
A21: SubsPrimary | D21: SubsPrimary | E21: =VLOOKUP($A$1,ProjectData[],MATCH(A21,ProjectData[#Headers],0),FALSE()) -> 0.23
A22: SubsSecondary | D22: SubsSecondary | E22: =VLOOKUP($A$1,ProjectData[],MATCH(A22,ProjectData[#Headers],0),FALSE()) -> 0.76
A23: Communications | D23: Communications | E23: =VLOOKUP($A$1,ProjectData[],MATCH(A23,ProjectData[#Headers],0),FALSE()) -> 0.01
A24: CommsCivil | D24: CommsCivil | E24: =VLOOKUP($A$1,ProjectData[],MATCH(A24,ProjectData[#Headers],0),FALSE()) -> 0
A25: SwitchgCentres | D25: SwitchgCentres | E25: =VLOOKUP($A$1,ProjectData[],MATCH(A25,ProjectData[#Headers],0),FALSE()) -> 0
A26: Land | D26: Land | E26: =VLOOKUP($A$1,ProjectData[],MATCH(A26,ProjectData[#Headers],0),FALSE()) -> 0
A27: Easement | D27: Easement | E27: =VLOOKUP($A$1,ProjectData[],MATCH(A27,ProjectData[#Headers],0),FALSE()) -> 0
A28: CommericalBuildings | D28: CommericalBuildings | E28: =VLOOKUP($A$1,ProjectData[],MATCH(A28,ProjectData[#Headers],0),FALSE()) -> 0
A29: IT | D29: IT | E29: =VLOOKUP($A$1,ProjectData[],MATCH(A29,ProjectData[#Headers],0),FALSE()) -> 0
A30: Office | D30: Office | E30: =VLOOKUP($A$1,ProjectData[],MATCH(A30,ProjectData[#Headers],0),FALSE()) -> 0
A31: OfficeMachines | D31: OfficeMachines | E31: =VLOOKUP($A$1,ProjectData[],MATCH(A31,ProjectData[#Headers],0),FALSE()) -> 0
... 32 more rows

Sheet P_35
A1: 35 | C1: Contents
A2: Index Column / Lookup column | G2: 2 | H2: =G2+1 -> 3 | I2: =H2+1 -> 4 | J2: =I2+1 -> 5 | K2: 6 | L2: 7 | M2: 8 | N2: 9 | AI2: =H2 -> 3 | AJ2: 4 | AK2: 5 | AL2: 6 | AM2: 7 | AN2: 8 | AO2: =N2 -> 9
C3: Projects
C4: Project Details
A5: Project Name | D5: =VLOOKUP($A$1,ProjectData[],MATCH(A5,ProjectData[#Headers],0),FALSE()) -> CP.02756 H031 Molendinar Secondary Systems Replacement
D7: Project Number | E7: =A1 -> 35
A8: PQ Project Driver | D8: Project Type | E8: =VLOOKUP($A$1,ProjectData[],MATCH(A8,ProjectData[#Headers],0),FALSE()) -> Replacement
A9: Capitalisation | D9: Capitalisation | E9: =VLOOKUP($A$1,ProjectData[],MATCH(A9,ProjectData[#Headers],0),FALSE()) -> Project Close
A10: RepexDollarsBasis | D10: Dollar Basis | E10: =VLOOKUP($A$1,ProjectData[],MATCH(A10,ProjectData[#Headers],0),FALSE()) -> Real2026
A11: DMDLCCOCSplitType | D11: Cost Allocation Type | E11: =VLOOKUP($A$1,ProjectData[],MATCH(A11,ProjectData[#Headers],0),FALSE()) -> Secondary Systems
A12: Direct Materials | D12: Direct Materials | E12: =VLOOKUP(E$11,CostAllocationSplit[],MATCH(A12,CostAllocationSplit[#Headers],0),FALSE) -> 0.2
A13: Direct Labour | D13: Direct Labour | E13: =VLOOKUP(E$11,CostAllocationSplit[],MATCH(A13,CostAllocationSplit[#Headers],0),FALSE) -> 0.3
A14: Contract Costs | D14: Contract Costs | E14: =VLOOKUP(E$11,CostAllocationSplit[],MATCH(A14,CostAllocationSplit[#Headers],0),FALSE) -> 0.45
A15: Other Costs | D15: Other Costs | E15: =VLOOKUP(E$11,CostAllocationSplit[],MATCH(A15,CostAllocationSplit[#Headers],0),FALSE) -> 0.05
A16: Specific Approved Project | D16: Specific Approved Project? | E16: =IF(VLOOKUP($A$1,ProjectData[],MATCH(A16,ProjectData[#Headers],0),FALSE)="", FALSE,VLOOKUP($A$1,ProjectData[],MATCH(A16,ProjectData[#Headers],0),FALSE)) -> FALSE
C17: Project Asset Class Breakdown
A18: LinesOH | D18: LinesOH | E18: =VLOOKUP($A$1,ProjectData[],MATCH(A18,ProjectData[#Headers],0),FALSE()) -> 0
A19: LinesUG | D19: LinesUG | E19: =VLOOKUP($A$1,ProjectData[],MATCH(A19,ProjectData[#Headers],0),FALSE()) -> 0
A20: LinesRefit | D20: LinesRefit | E20: =VLOOKUP($A$1,ProjectData[],MATCH(A20,ProjectData[#Headers],0),FALSE()) -> 0
A21: SubsPrimary | D21: SubsPrimary | E21: =VLOOKUP($A$1,ProjectData[],MATCH(A21,ProjectData[#Headers],0),FALSE()) -> 0.06
A22: SubsSecondary | D22: SubsSecondary | E22: =VLOOKUP($A$1,ProjectData[],MATCH(A22,ProjectData[#Headers],0),FALSE()) -> 0.92
A23: Communications | D23: Communications | E23: =VLOOKUP($A$1,ProjectData[],MATCH(A23,ProjectData[#Headers],0),FALSE()) -> 0.02
A24: CommsCivil | D24: CommsCivil | E24: =VLOOKUP($A$1,ProjectData[],MATCH(A24,ProjectData[#Headers],0),FALSE()) -> 0
A25: SwitchgCentres | D25: SwitchgCentres | E25: =VLOOKUP($A$1,ProjectData[],MATCH(A25,ProjectData[#Headers],0),FALSE()) -> 0
A26: Land | D26: Land | E26: =VLOOKUP($A$1,ProjectData[],MATCH(A26,ProjectData[#Headers],0),FALSE()) -> 0
A27: Easement | D27: Easement | E27: =VLOOKUP($A$1,ProjectData[],MATCH(A27,ProjectData[#Headers],0),FALSE()) -> 0
A28: CommericalBuildings | D28: CommericalBuildings | E28: =VLOOKUP($A$1,ProjectData[],MATCH(A28,ProjectData[#Headers],0),FALSE()) -> 0
A29: IT | D29: IT | E29: =VLOOKUP($A$1,ProjectData[],MATCH(A29,ProjectData[#Headers],0),FALSE()) -> 0
A30: Office | D30: Office | E30: =VLOOKUP($A$1,ProjectData[],MATCH(A30,ProjectData[#Headers],0),FALSE()) -> 0
A31: OfficeMachines | D31: OfficeMachines | E31: =VLOOKUP($A$1,ProjectData[],MATCH(A31,ProjectData[#Headers],0),FALSE()) -> 0
... 32 more rows

Sheet P_36
A1: 36 | C1: Contents
A2: Index Column / Lookup column | G2: 2 | H2: =G2+1 -> 3 | I2: =H2+1 -> 4 | J2: =I2+1 -> 5 | K2: 6 | L2: 7 | M2: 8 | N2: 9 | AI2: =H2 -> 3 | AJ2: 4 | AK2: 5 | AL2: 6 | AM2: 7 | AN2: 8 | AO2: =N2 -> 9
C3: Projects
C4: Project Details
A5: Project Name | D5: =VLOOKUP($A$1,ProjectData[],MATCH(A5,ProjectData[#Headers],0),FALSE()) -> CP.02760 H014 Middle Ridge Secondary Systems Replacement
D7: Project Number | E7: =A1 -> 36
A8: PQ Project Driver | D8: Project Type | E8: =VLOOKUP($A$1,ProjectData[],MATCH(A8,ProjectData[#Headers],0),FALSE()) -> Replacement
A9: Capitalisation | D9: Capitalisation | E9: =VLOOKUP($A$1,ProjectData[],MATCH(A9,ProjectData[#Headers],0),FALSE()) -> Project Close
A10: RepexDollarsBasis | D10: Dollar Basis | E10: =VLOOKUP($A$1,ProjectData[],MATCH(A10,ProjectData[#Headers],0),FALSE()) -> Real2026
A11: DMDLCCOCSplitType | D11: Cost Allocation Type | E11: =VLOOKUP($A$1,ProjectData[],MATCH(A11,ProjectData[#Headers],0),FALSE()) -> Secondary Systems
A12: Direct Materials | D12: Direct Materials | E12: =VLOOKUP(E$11,CostAllocationSplit[],MATCH(A12,CostAllocationSplit[#Headers],0),FALSE) -> 0.2
A13: Direct Labour | D13: Direct Labour | E13: =VLOOKUP(E$11,CostAllocationSplit[],MATCH(A13,CostAllocationSplit[#Headers],0),FALSE) -> 0.3
A14: Contract Costs | D14: Contract Costs | E14: =VLOOKUP(E$11,CostAllocationSplit[],MATCH(A14,CostAllocationSplit[#Headers],0),FALSE) -> 0.45
A15: Other Costs | D15: Other Costs | E15: =VLOOKUP(E$11,CostAllocationSplit[],MATCH(A15,CostAllocationSplit[#Headers],0),FALSE) -> 0.05
A16: Specific Approved Project | D16: Specific Approved Project? | E16: =IF(VLOOKUP($A$1,ProjectData[],MATCH(A16,ProjectData[#Headers],0),FALSE)="", FALSE,VLOOKUP($A$1,ProjectData[],MATCH(A16,ProjectData[#Headers],0),FALSE)) -> FALSE
C17: Project Asset Class Breakdown
A18: LinesOH | D18: LinesOH | E18: =VLOOKUP($A$1,ProjectData[],MATCH(A18,ProjectData[#Headers],0),FALSE()) -> 0
A19: LinesUG | D19: LinesUG | E19: =VLOOKUP($A$1,ProjectData[],MATCH(A19,ProjectData[#Headers],0),FALSE()) -> 0
A20: LinesRefit | D20: LinesRefit | E20: =VLOOKUP($A$1,ProjectData[],MATCH(A20,ProjectData[#Headers],0),FALSE()) -> 0
A21: SubsPrimary | D21: SubsPrimary | E21: =VLOOKUP($A$1,ProjectData[],MATCH(A21,ProjectData[#Headers],0),FALSE()) -> 0.04
A22: SubsSecondary | D22: SubsSecondary | E22: =VLOOKUP($A$1,ProjectData[],MATCH(A22,ProjectData[#Headers],0),FALSE()) -> 0.93
A23: Communications | D23: Communications | E23: =VLOOKUP($A$1,ProjectData[],MATCH(A23,ProjectData[#Headers],0),FALSE()) -> 0.03
A24: CommsCivil | D24: CommsCivil | E24: =VLOOKUP($A$1,ProjectData[],MATCH(A24,ProjectData[#Headers],0),FALSE()) -> 0
A25: SwitchgCentres | D25: SwitchgCentres | E25: =VLOOKUP($A$1,ProjectData[],MATCH(A25,ProjectData[#Headers],0),FALSE()) -> 0
A26: Land | D26: Land | E26: =VLOOKUP($A$1,ProjectData[],MATCH(A26,ProjectData[#Headers],0),FALSE()) -> 0
A27: Easement | D27: Easement | E27: =VLOOKUP($A$1,ProjectData[],MATCH(A27,ProjectData[#Headers],0),FALSE()) -> 0
A28: CommericalBuildings | D28: CommericalBuildings | E28: =VLOOKUP($A$1,ProjectData[],MATCH(A28,ProjectData[#Headers],0),FALSE()) -> 0
A29: IT | D29: IT | E29: =VLOOKUP($A$1,ProjectData[],MATCH(A29,ProjectData[#Headers],0),FALSE()) -> 0
A30: Office | D30: Office | E30: =VLOOKUP($A$1,ProjectData[],MATCH(A30,ProjectData[#Headers],0),FALSE()) -> 0
A31: OfficeMachines | D31: OfficeMachines | E31: =VLOOKUP($A$1,ProjectData[],MATCH(A31,ProjectData[#Headers],0),FALSE()) -> 0
... 32 more rows

Sheet P_37
A1: 37 | C1: Contents
A2: Index Column / Lookup column | G2: 2 | H2: =G2+1 -> 3 | I2: =H2+1 -> 4 | J2: =I2+1 -> 5 | K2: 6 | L2: 7 | M2: 8 | N2: 9 | AI2: =H2 -> 3 | AJ2: 4 | AK2: 5 | AL2: 6 | AM2: 7 | AN2: 8 | AO2: =N2 -> 9
C3: Projects
C4: Project Details
A5: Project Name | D5: =VLOOKUP($A$1,ProjectData[],MATCH(A5,ProjectData[#Headers],0),FALSE()) -> CP.02796 Goodna Secondary Systems Replacement
D7: Project Number | E7: =A1 -> 37
A8: PQ Project Driver | D8: Project Type | E8: =VLOOKUP($A$1,ProjectData[],MATCH(A8,ProjectData[#Headers],0),FALSE()) -> Replacement
A9: Capitalisation | D9: Capitalisation | E9: =VLOOKUP($A$1,ProjectData[],MATCH(A9,ProjectData[#Headers],0),FALSE()) -> Project Close
A10: RepexDollarsBasis | D10: Dollar Basis | E10: =VLOOKUP($A$1,ProjectData[],MATCH(A10,ProjectData[#Headers],0),FALSE()) -> Real2026
A11: DMDLCCOCSplitType | D11: Cost Allocation Type | E11: =VLOOKUP($A$1,ProjectData[],MATCH(A11,ProjectData[#Headers],0),FALSE()) -> Secondary Systems
A12: Direct Materials | D12: Direct Materials | E12: =VLOOKUP(E$11,CostAllocationSplit[],MATCH(A12,CostAllocationSplit[#Headers],0),FALSE) -> 0.2
A13: Direct Labour | D13: Direct Labour | E13: =VLOOKUP(E$11,CostAllocationSplit[],MATCH(A13,CostAllocationSplit[#Headers],0),FALSE) -> 0.3
A14: Contract Costs | D14: Contract Costs | E14: =VLOOKUP(E$11,CostAllocationSplit[],MATCH(A14,CostAllocationSplit[#Headers],0),FALSE) -> 0.45
A15: Other Costs | D15: Other Costs | E15: =VLOOKUP(E$11,CostAllocationSplit[],MATCH(A15,CostAllocationSplit[#Headers],0),FALSE) -> 0.05
A16: Specific Approved Project | D16: Specific Approved Project? | E16: =IF(VLOOKUP($A$1,ProjectData[],MATCH(A16,ProjectData[#Headers],0),FALSE)="", FALSE,VLOOKUP($A$1,ProjectData[],MATCH(A16,ProjectData[#Headers],0),FALSE)) -> FALSE
C17: Project Asset Class Breakdown
A18: LinesOH | D18: LinesOH | E18: =VLOOKUP($A$1,ProjectData[],MATCH(A18,ProjectData[#Headers],0),FALSE()) -> 0
A19: LinesUG | D19: LinesUG | E19: =VLOOKUP($A$1,ProjectData[],MATCH(A19,ProjectData[#Headers],0),FALSE()) -> 0
A20: LinesRefit | D20: LinesRefit | E20: =VLOOKUP($A$1,ProjectData[],MATCH(A20,ProjectData[#Headers],0),FALSE()) -> 0
A21: SubsPrimary | D21: SubsPrimary | E21: =VLOOKUP($A$1,ProjectData[],MATCH(A21,ProjectData[#Headers],0),FALSE()) -> 0.05
A22: SubsSecondary | D22: SubsSecondary | E22: =VLOOKUP($A$1,ProjectData[],MATCH(A22,ProjectData[#Headers],0),FALSE()) -> 0.93
A23: Communications | D23: Communications | E23: =VLOOKUP($A$1,ProjectData[],MATCH(A23,ProjectData[#Headers],0),FALSE()) -> 0.02
A24: CommsCivil | D24: CommsCivil | E24: =VLOOKUP($A$1,ProjectData[],MATCH(A24,ProjectData[#Headers],0),FALSE()) -> 0
A25: SwitchgCentres | D25: SwitchgCentres | E25: =VLOOKUP($A$1,ProjectData[],MATCH(A25,ProjectData[#Headers],0),FALSE()) -> 0
A26: Land | D26: Land | E26: =VLOOKUP($A$1,ProjectData[],MATCH(A26,ProjectData[#Headers],0),FALSE()) -> 0
A27: Easement | D27: Easement | E27: =VLOOKUP($A$1,ProjectData[],MATCH(A27,ProjectData[#Headers],0),FALSE()) -> 0
A28: CommericalBuildings | D28: CommericalBuildings | E28: =VLOOKUP($A$1,ProjectData[],MATCH(A28,ProjectData[#Headers],0),FALSE()) -> 0
A29: IT | D29: IT | E29: =VLOOKUP($A$1,ProjectData[],MATCH(A29,ProjectData[#Headers],0),FALSE()) -> 0
A30: Office | D30: Office | E30: =VLOOKUP($A$1,ProjectData[],MATCH(A30,ProjectData[#Headers],0),FALSE()) -> 0
A31: OfficeMachines | D31: OfficeMachines | E31: =VLOOKUP($A$1,ProjectData[],MATCH(A31,ProjectData[#Headers],0),FALSE()) -> 0
... 32 more rows

Sheet P_38
A1: 38 | C1: Contents
A2: Index Column / Lookup column | G2: 2 | H2: =G2+1 -> 3 | I2: =H2+1 -> 4 | J2: =I2+1 -> 5 | K2: 6 | L2: 7 | M2: 8 | N2: 9 | AI2: =H2 -> 3 | AJ2: 4 | AK2: 5 | AL2: 6 | AM2: 7 | AN2: 8 | AO2: =N2 -> 9
C3: Projects
C4: Project Details
A5: Project Name | D5: =VLOOKUP($A$1,ProjectData[],MATCH(A5,ProjectData[#Headers],0),FALSE()) -> CP.02798 Middle Ridge Transformer 2 and 3 Life Extension
D7: Project Number | E7: =A1 -> 38
A8: PQ Project Driver | D8: Project Type | E8: =VLOOKUP($A$1,ProjectData[],MATCH(A8,ProjectData[#Headers],0),FALSE()) -> Replacement
A9: Capitalisation | D9: Capitalisation | E9: =VLOOKUP($A$1,ProjectData[],MATCH(A9,ProjectData[#Headers],0),FALSE()) -> Project Close
A10: RepexDollarsBasis | D10: Dollar Basis | E10: =VLOOKUP($A$1,ProjectData[],MATCH(A10,ProjectData[#Headers],0),FALSE()) -> Real2026
A11: DMDLCCOCSplitType | D11: Cost Allocation Type | E11: =VLOOKUP($A$1,ProjectData[],MATCH(A11,ProjectData[#Headers],0),FALSE()) -> Primary Plant - Power Transformer
A12: Direct Materials | D12: Direct Materials | E12: =VLOOKUP(E$11,CostAllocationSplit[],MATCH(A12,CostAllocationSplit[#Headers],0),FALSE) -> 0.6
A13: Direct Labour | D13: Direct Labour | E13: =VLOOKUP(E$11,CostAllocationSplit[],MATCH(A13,CostAllocationSplit[#Headers],0),FALSE) -> 0.15
A14: Contract Costs | D14: Contract Costs | E14: =VLOOKUP(E$11,CostAllocationSplit[],MATCH(A14,CostAllocationSplit[#Headers],0),FALSE) -> 0.23
A15: Other Costs | D15: Other Costs | E15: =VLOOKUP(E$11,CostAllocationSplit[],MATCH(A15,CostAllocationSplit[#Headers],0),FALSE) -> 0.02
A16: Specific Approved Project | D16: Specific Approved Project? | E16: =IF(VLOOKUP($A$1,ProjectData[],MATCH(A16,ProjectData[#Headers],0),FALSE)="", FALSE,VLOOKUP($A$1,ProjectData[],MATCH(A16,ProjectData[#Headers],0),FALSE)) -> FALSE
C17: Project Asset Class Breakdown
A18: LinesOH | D18: LinesOH | E18: =VLOOKUP($A$1,ProjectData[],MATCH(A18,ProjectData[#Headers],0),FALSE()) -> 0
A19: LinesUG | D19: LinesUG | E19: =VLOOKUP($A$1,ProjectData[],MATCH(A19,ProjectData[#Headers],0),FALSE()) -> 0
A20: LinesRefit | D20: LinesRefit | E20: =VLOOKUP($A$1,ProjectData[],MATCH(A20,ProjectData[#Headers],0),FALSE()) -> 0
A21: SubsPrimary | D21: SubsPrimary | E21: =VLOOKUP($A$1,ProjectData[],MATCH(A21,ProjectData[#Headers],0),FALSE()) -> 1
A22: SubsSecondary | D22: SubsSecondary | E22: =VLOOKUP($A$1,ProjectData[],MATCH(A22,ProjectData[#Headers],0),FALSE()) -> 0
A23: Communications | D23: Communications | E23: =VLOOKUP($A$1,ProjectData[],MATCH(A23,ProjectData[#Headers],0),FALSE()) -> 0
A24: CommsCivil | D24: CommsCivil | E24: =VLOOKUP($A$1,ProjectData[],MATCH(A24,ProjectData[#Headers],0),FALSE()) -> 0
A25: SwitchgCentres | D25: SwitchgCentres | E25: =VLOOKUP($A$1,ProjectData[],MATCH(A25,ProjectData[#Headers],0),FALSE()) -> 0
A26: Land | D26: Land | E26: =VLOOKUP($A$1,ProjectData[],MATCH(A26,ProjectData[#Headers],0),FALSE()) -> 0
A27: Easement | D27: Easement | E27: =VLOOKUP($A$1,ProjectData[],MATCH(A27,ProjectData[#Headers],0),FALSE()) -> 0
A28: CommericalBuildings | D28: CommericalBuildings | E28: =VLOOKUP($A$1,ProjectData[],MATCH(A28,ProjectData[#Headers],0),FALSE()) -> 0
A29: IT | D29: IT | E29: =VLOOKUP($A$1,ProjectData[],MATCH(A29,ProjectData[#Headers],0),FALSE()) -> 0
A30: Office | D30: Office | E30: =VLOOKUP($A$1,ProjectData[],MATCH(A30,ProjectData[#Headers],0),FALSE()) -> 0
A31: OfficeMachines | D31: OfficeMachines | E31: =VLOOKUP($A$1,ProjectData[],MATCH(A31,ProjectData[#Headers],0),FALSE()) -> 0
... 32 more rows

Sheet P_39
A1: 39 | C1: Contents
A2: Index Column / Lookup column | G2: 2 | H2: =G2+1 -> 3 | I2: =H2+1 -> 4 | J2: =I2+1 -> 5 | K2: 6 | L2: 7 | M2: 8 | N2: 9 | AI2: =H2 -> 3 | AJ2: 4 | AK2: 5 | AL2: 6 | AM2: 7 | AN2: 8 | AO2: =N2 -> 9
C3: Projects
C4: Project Details
A5: Project Name | D5: =VLOOKUP($A$1,ProjectData[],MATCH(A5,ProjectData[#Headers],0),FALSE()) -> CP.02800 Alligator Creek Bays Substation Reinvestment
D7: Project Number | E7: =A1 -> 39
A8: PQ Project Driver | D8: Project Type | E8: =VLOOKUP($A$1,ProjectData[],MATCH(A8,ProjectData[#Headers],0),FALSE()) -> Replacement
A9: Capitalisation | D9: Capitalisation | E9: =VLOOKUP($A$1,ProjectData[],MATCH(A9,ProjectData[#Headers],0),FALSE()) -> Project Close
A10: RepexDollarsBasis | D10: Dollar Basis | E10: =VLOOKUP($A$1,ProjectData[],MATCH(A10,ProjectData[#Headers],0),FALSE()) -> Real2026
A11: DMDLCCOCSplitType | D11: Cost Allocation Type | E11: =VLOOKUP($A$1,ProjectData[],MATCH(A11,ProjectData[#Headers],0),FALSE()) -> Primary Plant - Power Transformer
A12: Direct Materials | D12: Direct Materials | E12: =VLOOKUP(E$11,CostAllocationSplit[],MATCH(A12,CostAllocationSplit[#Headers],0),FALSE) -> 0.6
A13: Direct Labour | D13: Direct Labour | E13: =VLOOKUP(E$11,CostAllocationSplit[],MATCH(A13,CostAllocationSplit[#Headers],0),FALSE) -> 0.15
A14: Contract Costs | D14: Contract Costs | E14: =VLOOKUP(E$11,CostAllocationSplit[],MATCH(A14,CostAllocationSplit[#Headers],0),FALSE) -> 0.23
A15: Other Costs | D15: Other Costs | E15: =VLOOKUP(E$11,CostAllocationSplit[],MATCH(A15,CostAllocationSplit[#Headers],0),FALSE) -> 0.02
A16: Specific Approved Project | D16: Specific Approved Project? | E16: =IF(VLOOKUP($A$1,ProjectData[],MATCH(A16,ProjectData[#Headers],0),FALSE)="", FALSE,VLOOKUP($A$1,ProjectData[],MATCH(A16,ProjectData[#Headers],0),FALSE)) -> FALSE
C17: Project Asset Class Breakdown
A18: LinesOH | D18: LinesOH | E18: =VLOOKUP($A$1,ProjectData[],MATCH(A18,ProjectData[#Headers],0),FALSE()) -> 0
A19: LinesUG | D19: LinesUG | E19: =VLOOKUP($A$1,ProjectData[],MATCH(A19,ProjectData[#Headers],0),FALSE()) -> 0
A20: LinesRefit | D20: LinesRefit | E20: =VLOOKUP($A$1,ProjectData[],MATCH(A20,ProjectData[#Headers],0),FALSE()) -> 0
A21: SubsPrimary | D21: SubsPrimary | E21: =VLOOKUP($A$1,ProjectData[],MATCH(A21,ProjectData[#Headers],0),FALSE()) -> 0.25
A22: SubsSecondary | D22: SubsSecondary | E22: =VLOOKUP($A$1,ProjectData[],MATCH(A22,ProjectData[#Headers],0),FALSE()) -> 0.7
A23: Communications | D23: Communications | E23: =VLOOKUP($A$1,ProjectData[],MATCH(A23,ProjectData[#Headers],0),FALSE()) -> 0.05
A24: CommsCivil | D24: CommsCivil | E24: =VLOOKUP($A$1,ProjectData[],MATCH(A24,ProjectData[#Headers],0),FALSE()) -> 0
A25: SwitchgCentres | D25: SwitchgCentres | E25: =VLOOKUP($A$1,ProjectData[],MATCH(A25,ProjectData[#Headers],0),FALSE()) -> 0
A26: Land | D26: Land | E26: =VLOOKUP($A$1,ProjectData[],MATCH(A26,ProjectData[#Headers],0),FALSE()) -> 0
A27: Easement | D27: Easement | E27: =VLOOKUP($A$1,ProjectData[],MATCH(A27,ProjectData[#Headers],0),FALSE()) -> 0
A28: CommericalBuildings | D28: CommericalBuildings | E28: =VLOOKUP($A$1,ProjectData[],MATCH(A28,ProjectData[#Headers],0),FALSE()) -> 0
A29: IT | D29: IT | E29: =VLOOKUP($A$1,ProjectData[],MATCH(A29,ProjectData[#Headers],0),FALSE()) -> 0
A30: Office | D30: Office | E30: =VLOOKUP($A$1,ProjectData[],MATCH(A30,ProjectData[#Headers],0),FALSE()) -> 0
A31: OfficeMachines | D31: OfficeMachines | E31: =VLOOKUP($A$1,ProjectData[],MATCH(A31,ProjectData[#Headers],0),FALSE()) -> 0
... 32 more rows

Sheet P_40
A1: 40 | C1: Contents
A2: Index Column / Lookup column | G2: 2 | H2: =G2+1 -> 3 | I2: =H2+1 -> 4 | J2: =I2+1 -> 5 | K2: 6 | L2: 7 | M2: 8 | N2: 9 | AI2: =H2 -> 3 | AJ2: 4 | AK2: 5 | AL2: 6 | AM2: 7 | AN2: 8 | AO2: =N2 -> 9
C3: Projects
C4: Project Details
A5: Project Name | D5: =VLOOKUP($A$1,ProjectData[],MATCH(A5,ProjectData[#Headers],0),FALSE()) -> CP.02818 Woolooga-South Pine 275kV Modified Refit BS1020
D7: Project Number | E7: =A1 -> 40
A8: PQ Project Driver | D8: Project Type | E8: =VLOOKUP($A$1,ProjectData[],MATCH(A8,ProjectData[#Headers],0),FALSE()) -> Replacement
A9: Capitalisation | D9: Capitalisation | E9: =VLOOKUP($A$1,ProjectData[],MATCH(A9,ProjectData[#Headers],0),FALSE()) -> Project Close
A10: RepexDollarsBasis | D10: Dollar Basis | E10: =VLOOKUP($A$1,ProjectData[],MATCH(A10,ProjectData[#Headers],0),FALSE()) -> Real2026
A11: DMDLCCOCSplitType | D11: Cost Allocation Type | E11: =VLOOKUP($A$1,ProjectData[],MATCH(A11,ProjectData[#Headers],0),FALSE()) -> Tower Refit
A12: Direct Materials | D12: Direct Materials | E12: =VLOOKUP(E$11,CostAllocationSplit[],MATCH(A12,CostAllocationSplit[#Headers],0),FALSE) -> 0.02
A13: Direct Labour | D13: Direct Labour | E13: =VLOOKUP(E$11,CostAllocationSplit[],MATCH(A13,CostAllocationSplit[#Headers],0),FALSE) -> 0.2
A14: Contract Costs | D14: Contract Costs | E14: =VLOOKUP(E$11,CostAllocationSplit[],MATCH(A14,CostAllocationSplit[#Headers],0),FALSE) -> 0.75
A15: Other Costs | D15: Other Costs | E15: =VLOOKUP(E$11,CostAllocationSplit[],MATCH(A15,CostAllocationSplit[#Headers],0),FALSE) -> 0.03
A16: Specific Approved Project | D16: Specific Approved Project? | E16: =IF(VLOOKUP($A$1,ProjectData[],MATCH(A16,ProjectData[#Headers],0),FALSE)="", FALSE,VLOOKUP($A$1,ProjectData[],MATCH(A16,ProjectData[#Headers],0),FALSE)) -> FALSE
C17: Project Asset Class Breakdown
A18: LinesOH | D18: LinesOH | E18: =VLOOKUP($A$1,ProjectData[],MATCH(A18,ProjectData[#Headers],0),FALSE()) -> 0
A19: LinesUG | D19: LinesUG | E19: =VLOOKUP($A$1,ProjectData[],MATCH(A19,ProjectData[#Headers],0),FALSE()) -> 0
A20: LinesRefit | D20: LinesRefit | E20: =VLOOKUP($A$1,ProjectData[],MATCH(A20,ProjectData[#Headers],0),FALSE()) -> 1
A21: SubsPrimary | D21: SubsPrimary | E21: =VLOOKUP($A$1,ProjectData[],MATCH(A21,ProjectData[#Headers],0),FALSE()) -> 0
A22: SubsSecondary | D22: SubsSecondary | E22: =VLOOKUP($A$1,ProjectData[],MATCH(A22,ProjectData[#Headers],0),FALSE()) -> 0
A23: Communications | D23: Communications | E23: =VLOOKUP($A$1,ProjectData[],MATCH(A23,ProjectData[#Headers],0),FALSE()) -> 0
A24: CommsCivil | D24: CommsCivil | E24: =VLOOKUP($A$1,ProjectData[],MATCH(A24,ProjectData[#Headers],0),FALSE()) -> 0
A25: SwitchgCentres | D25: SwitchgCentres | E25: =VLOOKUP($A$1,ProjectData[],MATCH(A25,ProjectData[#Headers],0),FALSE()) -> 0
A26: Land | D26: Land | E26: =VLOOKUP($A$1,ProjectData[],MATCH(A26,ProjectData[#Headers],0),FALSE()) -> 0
A27: Easement | D27: Easement | E27: =VLOOKUP($A$1,ProjectData[],MATCH(A27,ProjectData[#Headers],0),FALSE()) -> 0
A28: CommericalBuildings | D28: CommericalBuildings | E28: =VLOOKUP($A$1,ProjectData[],MATCH(A28,ProjectData[#Headers],0),FALSE()) -> 0
A29: IT | D29: IT | E29: =VLOOKUP($A$1,ProjectData[],MATCH(A29,ProjectData[#Headers],0),FALSE()) -> 0
A30: Office | D30: Office | E30: =VLOOKUP($A$1,ProjectData[],MATCH(A30,ProjectData[#Headers],0),FALSE()) -> 0
A31: OfficeMachines | D31: OfficeMachines | E31: =VLOOKUP($A$1,ProjectData[],MATCH(A31,ProjectData[#Headers],0),FALSE()) -> 0
... 32 more rows

Sheet P_41
A1: 41 | C1: Contents
A2: Index Column / Lookup column | G2: 2 | H2: =G2+1 -> 3 | I2: =H2+1 -> 4 | J2: =I2+1 -> 5 | K2: 6 | L2: 7 | M2: 8 | N2: 9 | AI2: =H2 -> 3 | AJ2: 4 | AK2: 5 | AL2: 6 | AM2: 7 | AN2: 8 | AO2: =N2 -> 9
C3: Projects
C4: Project Details
A5: Project Name | D5: =VLOOKUP($A$1,ProjectData[],MATCH(A5,ProjectData[#Headers],0),FALSE()) -> CP.02829 H035 Strathmore SVC Sec Sys Replacement
D7: Project Number | E7: =A1 -> 41
A8: PQ Project Driver | D8: Project Type | E8: =VLOOKUP($A$1,ProjectData[],MATCH(A8,ProjectData[#Headers],0),FALSE()) -> Replacement
A9: Capitalisation | D9: Capitalisation | E9: =VLOOKUP($A$1,ProjectData[],MATCH(A9,ProjectData[#Headers],0),FALSE()) -> Project Close
A10: RepexDollarsBasis | D10: Dollar Basis | E10: =VLOOKUP($A$1,ProjectData[],MATCH(A10,ProjectData[#Headers],0),FALSE()) -> Real2026
A11: DMDLCCOCSplitType | D11: Cost Allocation Type | E11: =VLOOKUP($A$1,ProjectData[],MATCH(A11,ProjectData[#Headers],0),FALSE()) -> Secondary Systems
A12: Direct Materials | D12: Direct Materials | E12: =VLOOKUP(E$11,CostAllocationSplit[],MATCH(A12,CostAllocationSplit[#Headers],0),FALSE) -> 0.2
A13: Direct Labour | D13: Direct Labour | E13: =VLOOKUP(E$11,CostAllocationSplit[],MATCH(A13,CostAllocationSplit[#Headers],0),FALSE) -> 0.3
A14: Contract Costs | D14: Contract Costs | E14: =VLOOKUP(E$11,CostAllocationSplit[],MATCH(A14,CostAllocationSplit[#Headers],0),FALSE) -> 0.45
A15: Other Costs | D15: Other Costs | E15: =VLOOKUP(E$11,CostAllocationSplit[],MATCH(A15,CostAllocationSplit[#Headers],0),FALSE) -> 0.05
A16: Specific Approved Project | D16: Specific Approved Project? | E16: =IF(VLOOKUP($A$1,ProjectData[],MATCH(A16,ProjectData[#Headers],0),FALSE)="", FALSE,VLOOKUP($A$1,ProjectData[],MATCH(A16,ProjectData[#Headers],0),FALSE)) -> FALSE
C17: Project Asset Class Breakdown
A18: LinesOH | D18: LinesOH | E18: =VLOOKUP($A$1,ProjectData[],MATCH(A18,ProjectData[#Headers],0),FALSE()) -> 0
A19: LinesUG | D19: LinesUG | E19: =VLOOKUP($A$1,ProjectData[],MATCH(A19,ProjectData[#Headers],0),FALSE()) -> 0
A20: LinesRefit | D20: LinesRefit | E20: =VLOOKUP($A$1,ProjectData[],MATCH(A20,ProjectData[#Headers],0),FALSE()) -> 0
A21: SubsPrimary | D21: SubsPrimary | E21: =VLOOKUP($A$1,ProjectData[],MATCH(A21,ProjectData[#Headers],0),FALSE()) -> 0
A22: SubsSecondary | D22: SubsSecondary | E22: =VLOOKUP($A$1,ProjectData[],MATCH(A22,ProjectData[#Headers],0),FALSE()) -> 1
A23: Communications | D23: Communications | E23: =VLOOKUP($A$1,ProjectData[],MATCH(A23,ProjectData[#Headers],0),FALSE()) -> 0
A24: CommsCivil | D24: CommsCivil | E24: =VLOOKUP($A$1,ProjectData[],MATCH(A24,ProjectData[#Headers],0),FALSE()) -> 0
A25: SwitchgCentres | D25: SwitchgCentres | E25: =VLOOKUP($A$1,ProjectData[],MATCH(A25,ProjectData[#Headers],0),FALSE()) -> 0
A26: Land | D26: Land | E26: =VLOOKUP($A$1,ProjectData[],MATCH(A26,ProjectData[#Headers],0),FALSE()) -> 0
A27: Easement | D27: Easement | E27: =VLOOKUP($A$1,ProjectData[],MATCH(A27,ProjectData[#Headers],0),FALSE()) -> 0
A28: CommericalBuildings | D28: CommericalBuildings | E28: =VLOOKUP($A$1,ProjectData[],MATCH(A28,ProjectData[#Headers],0),FALSE()) -> 0
A29: IT | D29: IT | E29: =VLOOKUP($A$1,ProjectData[],MATCH(A29,ProjectData[#Headers],0),FALSE()) -> 0
A30: Office | D30: Office | E30: =VLOOKUP($A$1,ProjectData[],MATCH(A30,ProjectData[#Headers],0),FALSE()) -> 0
A31: OfficeMachines | D31: OfficeMachines | E31: =VLOOKUP($A$1,ProjectData[],MATCH(A31,ProjectData[#Headers],0),FALSE()) -> 0
... 32 more rows

Sheet P_42
A1: 42 | C1: Contents
